{"text_format":"1","workbook":"xlsx","n_sheets":5,"sheets":["Home","Notebooks","Desktops","iPads","Accessories"],"not_rendered":{"charts":0,"images":4,"macros":1,"external_links":0,"defined_names":25,"comments":0,"pivot_tables":0},"unopened":[],"bounds":{"document_bytes":16777216,"sheet_cells":100000,"rows_first":2000,"rows_last":500,"rows_between":2000,"halvings":0,"cell_chars":16384,"cell_head_chars":4096},"cells_cut":0,"cells_raw":0,"read":"whole","date_system":"1900"}

{"sheet":"Home","index":0,"n_rows":22,"n_cols":8,"rows_kept":22,"cut":false,"hidden":false,"merged":[]}
[]
[]
[]
[]
[null,null,null,null,null,null,null," "]
[null,null,null,null,null,null,null," "]
[null,null,null,null,null,null,null," "]
[null,null,null,null,null,null,null," "]
[null,null,null,null,null,null,null," "]
[null,null,null,null,null,null,null," "]
[null,null,null,null,null,null,null," "]
[null,null,null,null,null,null,null," "]
[null,null,null,null,null,null,null," "]
[null,null,null,null,null,null,null," "]
[null,null,null,null,null,null,null," "]
[null,null,null,null,null,null,null," "]
[null,null,null,null,null,null,null," "]
[null,null,null,null,null,null,null," "]
[null,null,null,null,null,null,null," "]
[null,null,null,null,null,null,null," "]
[null,null,null,null,null,null,null," "]
[null,null,null,null,null,null,null," "]

{"sheet":"Notebooks","index":1,"n_rows":726,"n_cols":15,"rows_kept":726,"cut":false,"hidden":false,"merged":[]}
[]
[]
[]
[]
[]
[]
[]
[]
[]
[]
[]
[]
[]
[]
[]
[]
[]
[]
[]
[]
[]
[]
[]
[]
[]
[]
[]
[]
[]
[]
[]
["IM SKU","CID#","Full Description","Apple.com","Type of Order","Parent SKU","AppleCare","AppleCare Price","Family","Color","Processor","GPU / CORE","RAM","STORAGE","Power adapter"]
["9YH025","Z14V00174","CTO 16IN MACBOOK PRO M1 MAX 10C CPU 32C GPU 64GB 8TB SP GRAY ",6099,"Direct Ship","MK183LL/A","07DZ76/SDYP2LL/A",279,"16IN MBP","Space Gray","M1 MAX","10-core CPU and 32-core GPU","64GB","8TB SSD","140W USB-C Power Adapter"]
["9YH054","Z14Y00172","CTO 16IN MACBOOK PRO M1 MAX 10C CPU 32C GPU 64GB 8TB SILVER ",6099,"Direct Ship","MK1E3LL/A","07DZ76/SDYP2LL/A",279,"16IN MBP","Silver","M1 MAX","10-core CPU and 32-core GPU","64GB","8TB SSD","140W USB-C Power Adapter"]
["9YH077","Z14W0010Q","CTO 16IN MACBOOK PRO M1 MAX 10C CPU 32C GPU 64GB 8TB SP GRAY ",6099,"Direct Ship","MK193LL/A","07DZ76/SDYP2LL/A",279,"16IN MBP","Space Gray","M1 MAX","10-core CPU and 32-core GPU","64GB","8TB SSD","140W USB-C Power Adapter"]
["9YH100","Z14Z0010Q","CTO 16IN MACBOOK PRO M1 MAX 10C CPU 32C GPU 64GB 8TB SILVER ",6099,"Direct Ship","MK1F3LL/A","07DZ76/SDYP2LL/A",279,"16IN MBP","Silver","M1 MAX","10-core CPU and 32-core GPU","64GB","8TB SSD","140W USB-C Power Adapter"]
["9YH107","Z14X000HS","CTO 16IN MACBOOK PRO M1 MAX 10C CPU 32C GPU 64GB 8TB SP GRAY ",6099,"Direct Ship","MK1A3LL/A","07DZ76/SDYP2LL/A",279,"16IN MBP","Space Gray","M1 MAX","10-core CPU and 32-core GPU","64GB","8TB SSD","140W USB-C Power Adapter"]
["9YH114","Z150000HS","CTO 16IN MACBOOK PRO M1 MAX 10C CPU 32C GPU 64GB 8TB SILVER ",6099,"Direct Ship","MK1H3LL/A","07DZ76/SDYP2LL/A",279,"16IN MBP","Silver","M1 MAX","10-core CPU and 32-core GPU","64GB","8TB SSD","140W USB-C Power Adapter"]
["9YH015","Z14V0016V","CTO 16IN MACBOOK PRO M1 MAX 10C CPU 24C GPU 64GB 8TB SP GRAY ",5899,"Direct Ship","MK183LL/A","07DZ76/SDYP2LL/A",279,"16IN MBP","Space Gray","M1 MAX","10-core CPU and 24-core GPU","64GB","8TB SSD","140W USB-C Power Adapter"]
["9YH044","Z14Y0016X","CTO 16IN MACBOOK PRO M1 MAX 10C CPU 24C GPU 64GB 8TB SILVER ",5899,"Direct Ship","MK1E3LL/A","07DZ76/SDYP2LL/A",279,"16IN MBP","Silver","M1 MAX","10-core CPU and 24-core GPU","64GB","8TB SSD","140W USB-C Power Adapter"]
["9YH069","Z14W0010H","CTO 16IN MACBOOK PRO M1 MAX 10C CPU 24C GPU 64GB 8TB SP GRAY ",5899,"Direct Ship","MK193LL/A","07DZ76/SDYP2LL/A",279,"16IN MBP","Space Gray","M1 MAX","10-core CPU and 24-core GPU","64GB","8TB SSD","140W USB-C Power Adapter"]
["9YH092","Z14Z0010H","CTO 16IN MACBOOK PRO M1 MAX 10C CPU 24C GPU 64GB 8TB SILVER ",5899,"Direct Ship","MK1F3LL/A","07DZ76/SDYP2LL/A",279,"16IN MBP","Silver","M1 MAX","10-core CPU and 24-core GPU","64GB","8TB SSD","140W USB-C Power Adapter"]
["9VL970","Z15G001XM","CTO 14IN MACBOOK PRO M1 MAX 10C CPU 32C GPU 64GB 8TB SP GRAY ",5899,"Direct Ship","MKGP3LL/A","06NX99/SCPG2LL/A",195,"14IN MBP","Space Gray","M1 MAX","10-core CPU and 32-core GPU","64GB","8TB SSD","96W USB-C Power adapter"]
["9VM020","Z15J001XL","CTO 14IN MACBOOK PRO M1 MAX 10C CPU 32C GPU 64GB 8TB SILVER ",5899,"Direct Ship","MKGR3LL/A","06NX99/SCPG2LL/A",195,"14IN MBP","Silver","M1 MAX","10-core CPU and 32-core GPU","64GB","8TB SSD","96W USB-C Power adapter"]
["9VM043","Z15H0010Q","CTO 14IN MACBOOK PRO M1 MAX 10C CPU 32C GPU 64GB 8TB SP GRAY ",5899,"Direct Ship","MKGQ3LL/A","06NX99/SCPG2LL/A",195,"14IN MBP","Space Gray","M1 MAX","10-core CPU and 32-core GPU","64GB","8TB SSD","96W USB-C Power adapter"]
["9VM066","Z15K0010Q","CTO 14IN MACBOOK PRO M1 MAX 10C CPU 32C GPU 64GB 8TB SILVER ",5899,"Direct Ship","MKGT3LL/A","06NX99/SCPG2LL/A",195,"14IN MBP","Silver","M1 MAX","10-core CPU and 32-core GPU","64GB","8TB SSD","96W USB-C Power adapter"]
["9YH024","Z14V0016Z","CTO 16IN MACBOOK PRO M1 MAX 10C CPU 32C GPU 32GB 8TB SP GRAY ",5699,"Direct Ship","MK183LL/A","07DZ76/SDYP2LL/A",279,"16IN MBP","Space Gray","M1 MAX","10-core CPU and 32-core GPU","32GB","8TB SSD","140W USB-C Power Adapter"]
["9YH053","Z14Y0016N","CTO 16IN MACBOOK PRO M1 MAX 10C CPU 32C GPU 32GB 8TB SILVER ",5699,"Direct Ship","MK1E3LL/A","07DZ76/SDYP2LL/A",279,"16IN MBP","Silver","M1 MAX","10-core CPU and 32-core GPU","32GB","8TB SSD","140W USB-C Power Adapter"]
["9YH076","Z14W0010P","CTO 16IN MACBOOK PRO M1 MAX 10C CPU 32C GPU 32GB 8TB SP GRAY ",5699,"Direct Ship","MK193LL/A","07DZ76/SDYP2LL/A",279,"16IN MBP","Space Gray","M1 MAX","10-core CPU and 32-core GPU","32GB","8TB SSD","140W USB-C Power Adapter"]
["9YH099","Z14Z0010P","CTO 16IN MACBOOK PRO M1 MAX 10C CPU 32C GPU 32GB 8TB SILVER ",5699,"Direct Ship","MK1F3LL/A","07DZ76/SDYP2LL/A",279,"16IN MBP","Silver","M1 MAX","10-core CPU and 32-core GPU","32GB","8TB SSD","140W USB-C Power Adapter"]
["9YH106","Z14X000H8","CTO 16IN MACBOOK PRO M1 MAX 10C CPU 32C GPU 32GB 8TB SP GRAY ",5699,"Direct Ship","MK1A3LL/A","07DZ76/SDYP2LL/A",279,"16IN MBP","Space Gray","M1 MAX","10-core CPU and 32-core GPU","32GB","8TB SSD","140W USB-C Power Adapter"]
["9YH113","Z150000H7","CTO 16IN MACBOOK PRO M1 MAX 10C CPU 32C GPU 32GB 8TB SILVER ",5699,"Direct Ship","MK1H3LL/A","07DZ76/SDYP2LL/A",279,"16IN MBP","Silver","M1 MAX","10-core CPU and 32-core GPU","32GB","8TB SSD","140W USB-C Power Adapter"]
["9VL960","Z15G001XG","CTO 14IN MACBOOK PRO M1 MAX 10C CPU 24C GPU 64GB 8TB SP GRAY ",5699,"Direct Ship","MKGP3LL/A","06NX99/SCPG2LL/A",195,"14IN MBP","Space Gray","M1 MAX","10-core CPU and 24-core GPU","64GB","8TB SSD","96W USB-C Power adapter"]
["9VM010","Z15J001XK","CTO 14IN MACBOOK PRO M1 MAX 10C CPU 24C GPU 64GB 8TB SILVER ",5699,"Direct Ship","MKGR3LL/A","06NX99/SCPG2LL/A",195,"14IN MBP","Silver","M1 MAX","10-core CPU and 24-core GPU","64GB","8TB SSD","96W USB-C Power adapter"]
["9VM035","Z15H0010N","CTO 14IN MACBOOK PRO M1 MAX 10C CPU 24C GPU 64GB 8TB SP GRAY ",5699,"Direct Ship","MKGQ3LL/A","06NX99/SCPG2LL/A",195,"14IN MBP","Space Gray","M1 MAX","10-core CPU and 24-core GPU","64GB","8TB SSD","96W USB-C Power adapter"]
["9VM058","Z15K0010H","CTO 14IN MACBOOK PRO M1 MAX 10C CPU 24C GPU 64GB 8TB SILVER ",5699,"Direct Ship","MKGT3LL/A","06NX99/SCPG2LL/A",195,"14IN MBP","Silver","M1 MAX","10-core CPU and 24-core GPU","64GB","8TB SSD","96W USB-C Power adapter"]
["9YH014","Z14V0016Q","CTO 16IN MACBOOK PRO M1 MAX 10C CPU 24C GPU 32GB 8TB SP GRAY ",5499,"Direct Ship","MK183LL/A","07DZ76/SDYP2LL/A",279,"16IN MBP","Space Gray","M1 MAX","10-core CPU and 24-core GPU","32GB","8TB SSD","140W USB-C Power Adapter"]
["9YH043","Z14Y0016J","CTO 16IN MACBOOK PRO M1 MAX 10C CPU 24C GPU 32GB 8TB SILVER ",5499,"Direct Ship","MK1E3LL/A","07DZ76/SDYP2LL/A",279,"16IN MBP","Silver","M1 MAX","10-core CPU and 24-core GPU","32GB","8TB SSD","140W USB-C Power Adapter"]
["9YH068","Z14W0010G","CTO 16IN MACBOOK PRO M1 MAX 10C CPU 24C GPU 32GB 8TB SP GRAY ",5499,"Direct Ship","MK193LL/A","07DZ76/SDYP2LL/A",279,"16IN MBP","Space Gray","M1 MAX","10-core CPU and 24-core GPU","32GB","8TB SSD","140W USB-C Power Adapter"]
["9YH091","Z14Z0010G","CTO 16IN MACBOOK PRO M1 MAX 10C CPU 24C GPU 32GB 8TB SILVER ",5499,"Direct Ship","MK1F3LL/A","07DZ76/SDYP2LL/A",279,"16IN MBP","Silver","M1 MAX","10-core CPU and 24-core GPU","32GB","8TB SSD","140W USB-C Power Adapter"]
["9VL969","Z15G001WX","CTO 14IN MACBOOK PRO M1 MAX 10C CPU 32C GPU 32GB 8TB SP GRAY ",5499,"Direct Ship","MKGP3LL/A","06NX99/SCPG2LL/A",195,"14IN MBP","Space Gray","M1 MAX","10-core CPU and 32-core GPU","32GB","8TB SSD","96W USB-C Power adapter"]
["9VM019","Z15J001XF","CTO 14IN MACBOOK PRO M1 MAX 10C CPU 32C GPU 32GB 8TB SILVER ",5499,"Direct Ship","MKGR3LL/A","06NX99/SCPG2LL/A",195,"14IN MBP","Silver","M1 MAX","10-core CPU and 32-core GPU","32GB","8TB SSD","96W USB-C Power adapter"]
["9VM042","Z15H0010P","CTO 14IN MACBOOK PRO M1 MAX 10C CPU 32C GPU 32GB 8TB SP GRAY ",5499,"Direct Ship","MKGQ3LL/A","06NX99/SCPG2LL/A",195,"14IN MBP","Space Gray","M1 MAX","10-core CPU and 32-core GPU","32GB","8TB SSD","96W USB-C Power adapter"]
["9VM065","Z15K0010P","CTO 14IN MACBOOK PRO M1 MAX 10C CPU 32C GPU 32GB 8TB SILVER ",5499,"Direct Ship","MKGT3LL/A","06NX99/SCPG2LL/A",195,"14IN MBP","Silver","M1 MAX","10-core CPU and 32-core GPU","32GB","8TB SSD","96W USB-C Power adapter"]
["9YH005","Z14V0016L","CTO 16IN MACBOOK PRO M1 PRO  10C CPU 16C GPU 32GB 8TB SP GRAY ",5299,"Direct Ship","MK183LL/A","07DZ76/SDYP2LL/A",279,"16IN MBP","Space Gray","M1 PRO","10-core CPU and 16-core GPU","32GB","8TB SSD","140W USB-C Power Adapter"]
["9YH034","Z14Y0016S","CTO 16IN MACBOOK PRO M1 PRO  10C CPU 16C GPU 32GB 8TB SILVER ",5299,"Direct Ship","MK1E3LL/A","07DZ76/SDYP2LL/A",279,"16IN MBP","Silver","M1 PRO","10-core CPU and 16-core GPU","32GB","8TB SSD","140W USB-C Power Adapter"]
["9YH061","Z14W0010A","CTO 16IN MACBOOK PRO M1 PRO  10C CPU 16C GPU 32GB 8TB SP GRAY ",5299,"Direct Ship","MK193LL/A","07DZ76/SDYP2LL/A",279,"16IN MBP","Space Gray","M1 PRO","10-core CPU and 16-core GPU","32GB","8TB SSD","140W USB-C Power Adapter"]
["9YH084","Z14Z0010A","CTO 16IN MACBOOK PRO M1 PRO  10C CPU 16C GPU 32GB 8TB SILVER ",5299,"Direct Ship","MK1F3LL/A","07DZ76/SDYP2LL/A",279,"16IN MBP","Silver","M1 PRO","10-core CPU and 16-core GPU","32GB","8TB SSD","140W USB-C Power Adapter"]
["9VL959","Z15G001WT","CTO 14IN MACBOOK PRO M1 MAX 10C CPU 24C GPU 32GB 8TB SP GRAY ",5299,"Direct Ship","MKGP3LL/A","06NX99/SCPG2LL/A",195,"14IN MBP","Space Gray","M1 MAX","10-core CPU and 24-core GPU","32GB","8TB SSD","96W USB-C Power adapter"]
["9VM009","Z15J001XE","CTO 14IN MACBOOK PRO M1 MAX 10C CPU 24C GPU 32GB 8TB SILVER ",5299,"Direct Ship","MKGR3LL/A","06NX99/SCPG2LL/A",195,"14IN MBP","Silver","M1 MAX","10-core CPU and 24-core GPU","32GB","8TB SSD","96W USB-C Power adapter"]
["9VM034","Z15H0010M","CTO 14IN MACBOOK PRO M1 MAX 10C CPU 24C GPU 32GB 8TB SP GRAY ",5299,"Direct Ship","MKGQ3LL/A","06NX99/SCPG2LL/A",195,"14IN MBP","Space Gray","M1 MAX","10-core CPU and 24-core GPU","32GB","8TB SSD","96W USB-C Power adapter"]
["9VM057","Z15K0010G","CTO 14IN MACBOOK PRO M1 MAX 10C CPU 24C GPU 32GB 8TB SILVER ",5299,"Direct Ship","MKGT3LL/A","06NX99/SCPG2LL/A",195,"14IN MBP","Silver","M1 MAX","10-core CPU and 24-core GPU","32GB","8TB SSD","96W USB-C Power adapter"]
["9VL950","Z15G001XB","CTO 14IN MACBOOK PRO M1 PRO 10C CPU 16C GPU 32GB 8TB SP GRAY ",5099,"Direct Ship","MKGP3LL/A","06NX99/SCPG2LL/A",195,"14IN MBP","Space Gray","M1 PRO","10-core CPU and 16-core GPU","32GB","8TB SSD","96W USB-C Power adapter"]
["9VL999","Z15J001XJ","CTO 14IN MACBOOK PRO M1 PRO 10C CPU 16C GPU 32GB 8TB SILVER ",5099,"Direct Ship","MKGR3LL/A","06NX99/SCPG2LL/A",195,"14IN MBP","Silver","M1 PRO","10-core CPU and 16-core GPU","32GB","8TB SSD","96W USB-C Power adapter"]
["9VM027","Z15H0010L","CTO 14IN MACBOOK PRO M1 PRO 10C CPU 16C GPU 32GB 8TB SP GRAY ",5099,"Direct Ship","MKGQ3LL/A","06NX99/SCPG2LL/A",195,"14IN MBP","Space Gray","M1 PRO","10-core CPU and 16-core GPU","32GB","8TB SSD","96W USB-C Power adapter"]
["9VM050","Z15K0010A","CTO 14IN MACBOOK PRO M1 PRO 10C CPU 16C GPU 32GB 8TB SILVER ",5099,"Direct Ship","MKGT3LL/A","06NX99/SCPG2LL/A",195,"14IN MBP","Silver","M1 PRO","10-core CPU and 16-core GPU","32GB","8TB SSD","96W USB-C Power adapter"]
["9VL940","Z15G001X6","CTO 14IN MACBOOK PRO M1 PRO 10C CPU 14C GPU 32GB 8TB SP GRAY ",4999,"Direct Ship","MKGP3LL/A","06NX99/SCPG2LL/A",195,"14IN MBP","Space Gray","M1 PRO","10-core CPU and 14-core GPU","32GB","8TB SSD","96W USB-C Power adapter"]
["9VL989","Z15J001XH","CTO 14IN MACBOOK PRO M1 PRO 10C CPU 14C GPU 32GB 8TB SILVER ",4999,"Direct Ship","MKGR3LL/A","06NX99/SCPG2LL/A",195,"14IN MBP","Silver","M1 PRO","10-core CPU and 14-core GPU","32GB","8TB SSD","96W USB-C Power adapter"]
["9YH004","Z14V0013S","CTO 16IN MACBOOK PRO M1 PRO  10C CPU 16C GPU 16GB 8TB SP GRAY ",4899,"Direct Ship","MK183LL/A","07DZ76/SDYP2LL/A",279,"16IN MBP","Space Gray","M1 PRO","10-core CPU and 16-core GPU","16GB","8TB SSD","140W USB-C Power Adapter"]
["9YH023","Z14V00173","CTO 16IN MACBOOK PRO M1 MAX 10C CPU 32C GPU 64GB 4TB SP GRAY ",4899,"Direct Ship","MK183LL/A","07DZ76/SDYP2LL/A",279,"16IN MBP","Space Gray","M1 MAX","10-core CPU and 32-core GPU","64GB","4TB SSD","140W USB-C Power Adapter"]
["9YH033","Z14Y0015W","CTO 16IN MACBOOK PRO M1 PRO  10C CPU 16C GPU 16GB 8TB SILVER ",4899,"Direct Ship","MK1E3LL/A","07DZ76/SDYP2LL/A",279,"16IN MBP","Silver","M1 PRO","10-core CPU and 16-core GPU","16GB","8TB SSD","140W USB-C Power Adapter"]
["9YH052","Z14Y00171","CTO 16IN MACBOOK PRO M1 MAX 10C CPU 32C GPU 64GB 4TB SILVER ",4899,"Direct Ship","MK1E3LL/A","07DZ76/SDYP2LL/A",279,"16IN MBP","Silver","M1 MAX","10-core CPU and 32-core GPU","64GB","4TB SSD","140W USB-C Power Adapter"]
["9YH060","Z14W000ZP","CTO 16IN MACBOOK PRO M1 PRO  10C CPU 16C GPU 16GB 8TB SP GRAY ",4899,"Direct Ship","MK193LL/A","07DZ76/SDYP2LL/A",279,"16IN MBP","Space Gray","M1 PRO","10-core CPU and 16-core GPU","16GB","8TB SSD","140W USB-C Power Adapter"]
["9YH075","Z14W0010N","CTO 16IN MACBOOK PRO M1 MAX 10C CPU 32C GPU 64GB 4TB SP GRAY ",4899,"Direct Ship","MK193LL/A","07DZ76/SDYP2LL/A",279,"16IN MBP","Space Gray","M1 MAX","10-core CPU and 32-core GPU","64GB","4TB SSD","140W USB-C Power Adapter"]
["9YH083","Z14Z000ZP","CTO 16IN MACBOOK PRO M1 PRO  10C CPU 16C GPU 16GB 8TB SILVER ",4899,"Direct Ship","MK1F3LL/A","07DZ76/SDYP2LL/A",279,"16IN MBP","Silver","M1 PRO","10-core CPU and 16-core GPU","16GB","8TB SSD","140W USB-C Power Adapter"]
["9YH098","Z14Z0010N","CTO 16IN MACBOOK PRO M1 MAX 10C CPU 32C GPU 64GB 4TB SILVER ",4899,"Direct Ship","MK1F3LL/A","07DZ76/SDYP2LL/A",279,"16IN MBP","Silver","M1 MAX","10-core CPU and 32-core GPU","64GB","4TB SSD","140W USB-C Power Adapter"]
["9YH105","Z14X000HR","CTO 16IN MACBOOK PRO M1 MAX 10C CPU 32C GPU 64GB 4TB SP GRAY ",4899,"Direct Ship","MK1A3LL/A","07DZ76/SDYP2LL/A",279,"16IN MBP","Space Gray","M1 MAX","10-core CPU and 32-core GPU","64GB","4TB SSD","140W USB-C Power Adapter"]
["9YH112","Z150000HR","CTO 16IN MACBOOK PRO M1 MAX 10C CPU 32C GPU 64GB 4TB SILVER ",4899,"Direct Ship","MK1H3LL/A","07DZ76/SDYP2LL/A",279,"16IN MBP","Silver","M1 MAX","10-core CPU and 32-core GPU","64GB","4TB SSD","140W USB-C Power Adapter"]
["9YL012","Z15G003B2","CTO 14IN MACBOOK PRO M1 PRO 8C CPU 14C GPU 32GB 8TB SP GRAY 96W ",4819,"Direct Ship","MKGP3LL/A","06NX99/SCPG2LL/A",195,"14IN MBP","Space Gray","M1 PRO","8-core CPU and 14-core GPU","32GB","8TB SSD","96W USB-C Power adapter"]
["9YL021","Z15J002HA","CTO 14IN MACBOOK PRO M1 PRO 8C CPU 14C GPU 32GB 8TB SILVER 96W ",4819,"Direct Ship","MKGR3LL/A","06NX99/SCPG2LL/A",195,"14IN MBP","Silver","M1 PRO","8-core CPU and 14-core GPU","32GB","8TB SSD","96W USB-C Power adapter"]
["9VL930","Z15G001X1","CTO 14IN MACBOOK PRO M1 PRO 8C CPU 14C GPU 32GB 8TB SP GRAY ",4799,"Direct Ship","MKGP3LL/A","06NX99/SCPG2LL/A",195,"14IN MBP","Space Gray","M1 PRO","8-core CPU and 14-core GPU","32GB","8TB SSD","67W USB-C  Power adapter"]
["9VL979","Z15J001XG","CTO 14IN MACBOOK PRO M1 PRO 8C CPU 14C GPU 32GB 8TB SILVER ",4799,"Direct Ship","MKGR3LL/A","06NX99/SCPG2LL/A",195,"14IN MBP","Silver","M1 PRO","8-core CPU and 14-core GPU","32GB","8TB SSD","67W USB-C  Power adapter"]
["9YH013","Z14V0016U","CTO 16IN MACBOOK PRO M1 MAX 10C CPU 24C GPU 64GB 4TB SP GRAY ",4699,"Direct Ship","MK183LL/A","07DZ76/SDYP2LL/A",279,"16IN MBP","Space Gray","M1 MAX","10-core CPU and 24-core GPU","64GB","4TB SSD","140W USB-C Power Adapter"]
["9YH042","Z14Y0016W","CTO 16IN MACBOOK PRO M1 MAX 10C CPU 24C GPU 64GB 4TB SILVER ",4699,"Direct Ship","MK1E3LL/A","07DZ76/SDYP2LL/A",279,"16IN MBP","Silver","M1 MAX","10-core CPU and 24-core GPU","64GB","4TB SSD","140W USB-C Power Adapter"]
["9YH067","Z14W0010F","CTO 16IN MACBOOK PRO M1 MAX 10C CPU 24C GPU 64GB 4TB SP GRAY ",4699,"Direct Ship","MK193LL/A","07DZ76/SDYP2LL/A",279,"16IN MBP","Space Gray","M1 MAX","10-core CPU and 24-core GPU","64GB","4TB SSD","140W USB-C Power Adapter"]
["9YH090","Z14Z0010F","CTO 16IN MACBOOK PRO M1 MAX 10C CPU 24C GPU 64GB 4TB SILVER ",4699,"Direct Ship","MK1F3LL/A","07DZ76/SDYP2LL/A",279,"16IN MBP","Silver","M1 MAX","10-core CPU and 24-core GPU","64GB","4TB SSD","140W USB-C Power Adapter"]
["9VL949","Z15G001WP","CTO 14IN MACBOOK PRO M1 PRO 10C CPU 16C GPU 16GB 8TB SP GRAY ",4699,"Direct Ship","MKGP3LL/A","06NX99/SCPG2LL/A",195,"14IN MBP","Space Gray","M1 PRO","10-core CPU and 16-core GPU","16GB","8TB SSD","96W USB-C Power adapter"]
["9VL968","Z15G001XL","CTO 14IN MACBOOK PRO M1 MAX 10C CPU 32C GPU 64GB 4TB SP GRAY ",4699,"Direct Ship","MKGP3LL/A","06NX99/SCPG2LL/A",195,"14IN MBP","Space Gray","M1 MAX","10-core CPU and 32-core GPU","64GB","4TB SSD","96W USB-C Power adapter"]
["9VL998","Z15J001XD","CTO 14IN MACBOOK PRO M1 PRO 10C CPU 16C GPU 16GB 8TB SILVER ",4699,"Direct Ship","MKGR3LL/A","06NX99/SCPG2LL/A",195,"14IN MBP","Silver","M1 PRO","10-core CPU and 16-core GPU","16GB","8TB SSD","96W USB-C Power adapter"]
["9VM018","Z15J001XB","CTO 14IN MACBOOK PRO M1 MAX 10C CPU 32C GPU 64GB 4TB SILVER ",4699,"Direct Ship","MKGR3LL/A","06NX99/SCPG2LL/A",195,"14IN MBP","Silver","M1 MAX","10-core CPU and 32-core GPU","64GB","4TB SSD","96W USB-C Power adapter"]
["9VM026","Z15H000ZP","CTO 14IN MACBOOK PRO M1 PRO 10C CPU 16C GPU 16GB 8TB SP GRAY ",4699,"Direct Ship","MKGQ3LL/A","06NX99/SCPG2LL/A",195,"14IN MBP","Space Gray","M1 PRO","10-core CPU and 16-core GPU","16GB","8TB SSD","96W USB-C Power adapter"]
["9VM041","Z15H0010K","CTO 14IN MACBOOK PRO M1 MAX 10C CPU 32C GPU 64GB 4TB SP GRAY ",4699,"Direct Ship","MKGQ3LL/A","06NX99/SCPG2LL/A",195,"14IN MBP","Space Gray","M1 MAX","10-core CPU and 32-core GPU","64GB","4TB SSD","96W USB-C Power adapter"]
["9VM049","Z15K000ZP","CTO 14IN MACBOOK PRO M1 PRO 10C CPU 16C GPU 16GB 8TB SILVER ",4699,"Direct Ship","MKGT3LL/A","06NX99/SCPG2LL/A",195,"14IN MBP","Silver","M1 PRO","10-core CPU and 16-core GPU","16GB","8TB SSD","96W USB-C Power adapter"]
["9VM064","Z15K0010N","CTO 14IN MACBOOK PRO M1 MAX 10C CPU 32C GPU 64GB 4TB SILVER ",4699,"Direct Ship","MKGT3LL/A","06NX99/SCPG2LL/A",195,"14IN MBP","Silver","M1 MAX","10-core CPU and 32-core GPU","64GB","4TB SSD","96W USB-C Power adapter"]
["9VL939","Z15G001WK","CTO 14IN MACBOOK PRO M1 PRO 10C CPU 14C GPU 16GB 8TB SP GRAY ",4599,"Direct Ship","MKGP3LL/A","06NX99/SCPG2LL/A",195,"14IN MBP","Space Gray","M1 PRO","10-core CPU and 14-core GPU","16GB","8TB SSD","96W USB-C Power adapter"]
["9VL988","Z15J001XC","CTO 14IN MACBOOK PRO M1 PRO 10C CPU 14C GPU 16GB 8TB SILVER ",4599,"Direct Ship","MKGR3LL/A","06NX99/SCPG2LL/A",195,"14IN MBP","Silver","M1 PRO","10-core CPU and 14-core GPU","16GB","8TB SSD","96W USB-C Power adapter"]
["9YH022","Z14V0016Y","CTO 16IN MACBOOK PRO M1 MAX 10C CPU 32C GPU 32GB 4TB SP GRAY ",4499,"Direct Ship","MK183LL/A","07DZ76/SDYP2LL/A",279,"16IN MBP","Space Gray","M1 MAX","10-core CPU and 32-core GPU","32GB","4TB SSD","140W USB-C Power Adapter"]
["9YH051","Z14Y0016M","CTO 16IN MACBOOK PRO M1 MAX 10C CPU 32C GPU 32GB 4TB SILVER ",4499,"Direct Ship","MK1E3LL/A","07DZ76/SDYP2LL/A",279,"16IN MBP","Silver","M1 MAX","10-core CPU and 32-core GPU","32GB","4TB SSD","140W USB-C Power Adapter"]
["9YH074","Z14W0010M","CTO 16IN MACBOOK PRO M1 MAX 10C CPU 32C GPU 32GB 4TB SP GRAY ",4499,"Direct Ship","MK193LL/A","07DZ76/SDYP2LL/A",279,"16IN MBP","Space Gray","M1 MAX","10-core CPU and 32-core GPU","32GB","4TB SSD","140W USB-C Power Adapter"]
["9YH097","Z14Z0010M","CTO 16IN MACBOOK PRO M1 MAX 10C CPU 32C GPU 32GB 4TB SILVER ",4499,"Direct Ship","MK1F3LL/A","07DZ76/SDYP2LL/A",279,"16IN MBP","Silver","M1 MAX","10-core CPU and 32-core GPU","32GB","4TB SSD","140W USB-C Power Adapter"]
["9YH104","Z14X000H7","CTO 16IN MACBOOK PRO M1 MAX 10C CPU 32C GPU 32GB 4TB SP GRAY ",4499,"Direct Ship","MK1A3LL/A","07DZ76/SDYP2LL/A",279,"16IN MBP","Space Gray","M1 MAX","10-core CPU and 32-core GPU","32GB","4TB SSD","140W USB-C Power Adapter"]
["9YH111","Z150000H6","CTO 16IN MACBOOK PRO M1 MAX 10C CPU 32C GPU 32GB 4TB SILVER ",4499,"Direct Ship","MK1H3LL/A","07DZ76/SDYP2LL/A",279,"16IN MBP","Silver","M1 MAX","10-core CPU and 32-core GPU","32GB","4TB SSD","140W USB-C Power Adapter"]
["9VL958","Z15G001XF","CTO 14IN MACBOOK PRO M1 MAX 10C CPU 24C GPU 64GB 4TB SP GRAY ",4499,"Direct Ship","MKGP3LL/A","06NX99/SCPG2LL/A",195,"14IN MBP","Space Gray","M1 MAX","10-core CPU and 24-core GPU","64GB","4TB SSD","96W USB-C Power adapter"]
["9VM008","Z15J001XA","CTO 14IN MACBOOK PRO M1 MAX 10C CPU 24C GPU 64GB 4TB SILVER ",4499,"Direct Ship","MKGR3LL/A","06NX99/SCPG2LL/A",195,"14IN MBP","Silver","M1 MAX","10-core CPU and 24-core GPU","64GB","4TB SSD","96W USB-C Power adapter"]
["9VM033","Z15H0010H","CTO 14IN MACBOOK PRO M1 MAX 10C CPU 24C GPU 64GB 4TB SP GRAY ",4499,"Direct Ship","MKGQ3LL/A","06NX99/SCPG2LL/A",195,"14IN MBP","Space Gray","M1 MAX","10-core CPU and 24-core GPU","64GB","4TB SSD","96W USB-C Power adapter"]
["9VM056","Z15K0010F","CTO 14IN MACBOOK PRO M1 MAX 10C CPU 24C GPU 64GB 4TB SILVER ",4499,"Direct Ship","MKGT3LL/A","06NX99/SCPG2LL/A",195,"14IN MBP","Silver","M1 MAX","10-core CPU and 24-core GPU","64GB","4TB SSD","96W USB-C Power adapter"]
["9YL011","Z15G0020C","CTO 14IN MACBOOK PRO M1 PRO 8C CPU 14C GPU 16GB 8TB SP GRAY 96W ",4419,"Direct Ship","MKGP3LL/A","06NX99/SCPG2LL/A",195,"14IN MBP","Space Gray","M1 PRO","8-core CPU and 14-core GPU","16GB","8TB SSD","96W USB-C Power adapter"]
["9YL020","Z15J002H9","CTO 14IN MACBOOK PRO M1 PRO 8C CPU 14C GPU 16GB 8TB SILVER 96W ",4419,"Direct Ship","MKGR3LL/A","06NX99/SCPG2LL/A",195,"14IN MBP","Silver","M1 PRO","8-core CPU and 14-core GPU","16GB","8TB SSD","96W USB-C Power adapter"]
["9VL929","Z15G001VU","CTO 14IN MACBOOK PRO M1 PRO 8C CPU 14C GPU 16GB 8TB SP GRAY ",4399,"Direct Ship","MKGP3LL/A","06NX99/SCPG2LL/A",195,"14IN MBP","Space Gray","M1 PRO","8-core CPU and 14-core GPU","16GB","8TB SSD","67W USB-C  Power adapter"]
["9VL978","Z15J001VT","CTO 14IN MACBOOK PRO M1 PRO 8C CPU 14C GPU 16GB 8TB SILVER ",4399,"Direct Ship","MKGR3LL/A","06NX99/SCPG2LL/A",195,"14IN MBP","Silver","M1 PRO","8-core CPU and 14-core GPU","16GB","8TB SSD","67W USB-C  Power adapter"]
["9YH012","Z14V0016P","CTO 16IN MACBOOK PRO M1 MAX 10C CPU 24C GPU 32GB 4TB SP GRAY ",4299,"Direct Ship","MK183LL/A","07DZ76/SDYP2LL/A",279,"16IN MBP","Space Gray","M1 MAX","10-core CPU and 24-core GPU","32GB","4TB SSD","140W USB-C Power Adapter"]
["9YH021","Z14V00172","CTO 16IN MACBOOK PRO M1 MAX 10C CPU 32C GPU 64GB 2TB SP GRAY ",4299,"Direct Ship","MK183LL/A","07DZ76/SDYP2LL/A",279,"16IN MBP","Space Gray","M1 MAX","10-core CPU and 32-core GPU","64GB","2TB SSD","140W USB-C Power Adapter"]
["9YH041","Z14Y0016H","CTO 16IN MACBOOK PRO M1 MAX 10C CPU 24C GPU 32GB 4TB SILVER ",4299,"Direct Ship","MK1E3LL/A","07DZ76/SDYP2LL/A",279,"16IN MBP","Silver","M1 MAX","10-core CPU and 24-core GPU","32GB","4TB SSD","140W USB-C Power Adapter"]
["9YH050","Z14Y00170","CTO 16IN MACBOOK PRO M1 MAX 10C CPU 32C GPU 64GB 2TB SILVER ",4299,"Direct Ship","MK1E3LL/A","07DZ76/SDYP2LL/A",279,"16IN MBP","Silver","M1 MAX","10-core CPU and 32-core GPU","64GB","2TB SSD","140W USB-C Power Adapter"]
["9YH066","Z14W0010E","CTO 16IN MACBOOK PRO M1 MAX 10C CPU 24C GPU 32GB 4TB SP GRAY ",4299,"Direct Ship","MK193LL/A","07DZ76/SDYP2LL/A",279,"16IN MBP","Space Gray","M1 MAX","10-core CPU and 24-core GPU","32GB","4TB SSD","140W USB-C Power Adapter"]
["9YH073","Z14W0010L","CTO 16IN MACBOOK PRO M1 MAX 10C CPU 32C GPU 64GB 2TB SP GRAY ",4299,"Direct Ship","MK193LL/A","07DZ76/SDYP2LL/A",279,"16IN MBP","Space Gray","M1 MAX","10-core CPU and 32-core GPU","64GB","2TB SSD","140W USB-C Power Adapter"]
["9YH089","Z14Z0010E","CTO 16IN MACBOOK PRO M1 MAX 10C CPU 24C GPU 32GB 4TB SILVER ",4299,"Direct Ship","MK1F3LL/A","07DZ76/SDYP2LL/A",279,"16IN MBP","Silver","M1 MAX","10-core CPU and 24-core GPU","32GB","4TB SSD","140W USB-C Power Adapter"]
["9YH096","Z14Z0010L","CTO 16IN MACBOOK PRO M1 MAX 10C CPU 32C GPU 64GB 2TB SILVER ",4299,"Direct Ship","MK1F3LL/A","07DZ76/SDYP2LL/A",279,"16IN MBP","Silver","M1 MAX","10-core CPU and 32-core GPU","64GB","2TB SSD","140W USB-C Power Adapter"]
["9YH103","Z14X000HQ","CTO 16IN MACBOOK PRO M1 MAX 10C CPU 32C GPU 64GB 2TB SP GRAY ",4299,"Direct Ship","MK1A3LL/A","07DZ76/SDYP2LL/A",279,"16IN MBP","Space Gray","M1 MAX","10-core CPU and 32-core GPU","64GB","2TB SSD","140W USB-C Power Adapter"]
["9YH110","Z150000HQ","CTO 16IN MACBOOK PRO M1 MAX 10C CPU 32C GPU 64GB 2TB SILVER ",4299,"Direct Ship","MK1H3LL/A","07DZ76/SDYP2LL/A",279,"16IN MBP","Silver","M1 MAX","10-core CPU and 32-core GPU","64GB","2TB SSD","140W USB-C Power Adapter"]
["9YH901","Z14X000HQ","CTO 16IN MACBOOK PRO M1 MAX 10C CPU 32C GPU 64GB 2TB SP GRAY ",4299,"Stocked","MK1A3LL/A","07DZ76/SDYP2LL/A",279,"16IN MBP","Space Gray","M1 MAX","10-core CPU and 32-core GPU","64GB","2TB SSD","140W USB-C Power Adapter"]
["9VL967","Z15G001WW","CTO 14IN MACBOOK PRO M1 MAX 10C CPU 32C GPU 32GB 4TB SP GRAY ",4299,"Direct Ship","MKGP3LL/A","06NX99/SCPG2LL/A",195,"14IN MBP","Space Gray","M1 MAX","10-core CPU and 32-core GPU","32GB","4TB SSD","96W USB-C Power adapter"]
["9VM017","Z15J001X6","CTO 14IN MACBOOK PRO M1 MAX 10C CPU 32C GPU 32GB 4TB SILVER ",4299,"Direct Ship","MKGR3LL/A","06NX99/SCPG2LL/A",195,"14IN MBP","Silver","M1 MAX","10-core CPU and 32-core GPU","32GB","4TB SSD","96W USB-C Power adapter"]
["9VM040","Z15H0010J","CTO 14IN MACBOOK PRO M1 MAX 10C CPU 32C GPU 32GB 4TB SP GRAY ",4299,"Direct Ship","MKGQ3LL/A","06NX99/SCPG2LL/A",195,"14IN MBP","Space Gray","M1 MAX","10-core CPU and 32-core GPU","32GB","4TB SSD","96W USB-C Power adapter"]
["9VM063","Z15K0010M","CTO 14IN MACBOOK PRO M1 MAX 10C CPU 32C GPU 32GB 4TB SILVER ",4299,"Direct Ship","MKGT3LL/A","06NX99/SCPG2LL/A",195,"14IN MBP","Silver","M1 MAX","10-core CPU and 32-core GPU","32GB","4TB SSD","96W USB-C Power adapter"]
["9YH003","Z14V0016K","CTO 16IN MACBOOK PRO M1 PRO  10C CPU 16C GPU 32GB 4TB SP GRAY ",4099,"Direct Ship","MK183LL/A","07DZ76/SDYP2LL/A",279,"16IN MBP","Space Gray","M1 PRO","10-core CPU and 16-core GPU","32GB","4TB SSD","140W USB-C Power Adapter"]
["9YH011","Z14V0016T","CTO 16IN MACBOOK PRO M1 MAX 10C CPU 24C GPU 64GB 2TB SP GRAY ",4099,"Direct Ship","MK183LL/A","07DZ76/SDYP2LL/A",279,"16IN MBP","Space Gray","M1 MAX","10-core CPU and 24-core GPU","64GB","2TB SSD","140W USB-C Power Adapter"]
["9YH032","Z14Y0016R","CTO 16IN MACBOOK PRO M1 PRO  10C CPU 16C GPU 32GB 4TB SILVER ",4099,"Direct Ship","MK1E3LL/A","07DZ76/SDYP2LL/A",279,"16IN MBP","Silver","M1 PRO","10-core CPU and 16-core GPU","32GB","4TB SSD","140W USB-C Power Adapter"]
["9YH040","Z14Y0016V","CTO 16IN MACBOOK PRO M1 MAX 10C CPU 24C GPU 64GB 2TB SILVER ",4099,"Direct Ship","MK1E3LL/A","07DZ76/SDYP2LL/A",279,"16IN MBP","Silver","M1 MAX","10-core CPU and 24-core GPU","64GB","2TB SSD","140W USB-C Power Adapter"]
["9YH059","Z14W00109","CTO 16IN MACBOOK PRO M1 PRO  10C CPU 16C GPU 32GB 4TB SP GRAY ",4099,"Direct Ship","MK193LL/A","07DZ76/SDYP2LL/A",279,"16IN MBP","Space Gray","M1 PRO","10-core CPU and 16-core GPU","32GB","4TB SSD","140W USB-C Power Adapter"]
["9YH065","Z14W0010D","CTO 16IN MACBOOK PRO M1 MAX 10C CPU 24C GPU 64GB 2TB SP GRAY ",4099,"Direct Ship","MK193LL/A","07DZ76/SDYP2LL/A",279,"16IN MBP","Space Gray","M1 MAX","10-core CPU and 24-core GPU","64GB","2TB SSD","140W USB-C Power Adapter"]
["9YH082","Z14Z00109","CTO 16IN MACBOOK PRO M1 PRO  10C CPU 16C GPU 32GB 4TB SILVER ",4099,"Direct Ship","MK1F3LL/A","07DZ76/SDYP2LL/A",279,"16IN MBP","Silver","M1 PRO","10-core CPU and 16-core GPU","32GB","4TB SSD","140W USB-C Power Adapter"]
["9YH088","Z14Z0010D","CTO 16IN MACBOOK PRO M1 MAX 10C CPU 24C GPU 64GB 2TB SILVER ",4099,"Direct Ship","MK1F3LL/A","07DZ76/SDYP2LL/A",279,"16IN MBP","Silver","M1 MAX","10-core CPU and 24-core GPU","64GB","2TB SSD","140W USB-C Power Adapter"]
["9YH900","Z14V0016T","CTO 16IN MACBOOK PRO M1 MAX 10C CPU 24C GPU 64GB 2TB SP GRAY ",4099,"Stocked","MK183LL/A","07DZ76/SDYP2LL/A",279,"16IN MBP","Space Gray","M1 MAX","10-core CPU and 24-core GPU","64GB","2TB SSD","140W USB-C Power Adapter"]
["9VL957","Z15G001WS","CTO 14IN MACBOOK PRO M1 MAX 10C CPU 24C GPU 32GB 4TB SP GRAY ",4099,"Direct Ship","MKGP3LL/A","06NX99/SCPG2LL/A",195,"14IN MBP","Space Gray","M1 MAX","10-core CPU and 24-core GPU","32GB","4TB SSD","96W USB-C Power adapter"]
["9VL966","Z15G001XK","CTO 14IN MACBOOK PRO M1 MAX 10C CPU 32C GPU 64GB 2TB SP GRAY ",4099,"Direct Ship","MKGP3LL/A","06NX99/SCPG2LL/A",195,"14IN MBP","Space Gray","M1 MAX","10-core CPU and 32-core GPU","64GB","2TB SSD","96W USB-C Power adapter"]
["9VM007","Z15J001X5","CTO 14IN MACBOOK PRO M1 MAX 10C CPU 24C GPU 32GB 4TB SILVER ",4099,"Direct Ship","MKGR3LL/A","06NX99/SCPG2LL/A",195,"14IN MBP","Silver","M1 MAX","10-core CPU and 24-core GPU","32GB","4TB SSD","96W USB-C Power adapter"]
["9VM016","Z15J001X2","CTO 14IN MACBOOK PRO M1 MAX 10C CPU 32C GPU 64GB 2TB SILVER ",4099,"Direct Ship","MKGR3LL/A","06NX99/SCPG2LL/A",195,"14IN MBP","Silver","M1 MAX","10-core CPU and 32-core GPU","64GB","2TB SSD","96W USB-C Power adapter"]
["9VM032","Z15H0010G","CTO 14IN MACBOOK PRO M1 MAX 10C CPU 24C GPU 32GB 4TB SP GRAY ",4099,"Direct Ship","MKGQ3LL/A","06NX99/SCPG2LL/A",195,"14IN MBP","Space Gray","M1 MAX","10-core CPU and 24-core GPU","32GB","4TB SSD","96W USB-C Power adapter"]
["9VM039","Z15H0010E","CTO 14IN MACBOOK PRO M1 MAX 10C CPU 32C GPU 64GB 2TB SP GRAY ",4099,"Direct Ship","MKGQ3LL/A","06NX99/SCPG2LL/A",195,"14IN MBP","Space Gray","M1 MAX","10-core CPU and 32-core GPU","64GB","2TB SSD","96W USB-C Power adapter"]
["9VM055","Z15K0010E","CTO 14IN MACBOOK PRO M1 MAX 10C CPU 24C GPU 32GB 4TB SILVER ",4099,"Direct Ship","MKGT3LL/A","06NX99/SCPG2LL/A",195,"14IN MBP","Silver","M1 MAX","10-core CPU and 24-core GPU","32GB","4TB SSD","96W USB-C Power adapter"]
["9VM062","Z15K0010L","CTO 14IN MACBOOK PRO M1 MAX 10C CPU 32C GPU 64GB 2TB SILVER ",4099,"Direct Ship","MKGT3LL/A","06NX99/SCPG2LL/A",195,"14IN MBP","Silver","M1 MAX","10-core CPU and 32-core GPU","64GB","2TB SSD","96W USB-C Power adapter"]
["9YH019","Z14V00171","CTO 16IN MACBOOK PRO M1 MAX 10C CPU 32C GPU 64GB 1TB SP GRAY ",3899,"Direct Ship","MK183LL/A","07DZ76/SDYP2LL/A",279,"16IN MBP","Space Gray","M1 MAX","10-core CPU and 32-core GPU","64GB","1TB SSD","140W USB-C Power Adapter"]
["9YH020","Z14V0016X","CTO 16IN MACBOOK PRO M1 MAX 10C CPU 32C GPU 32GB 2TB SP GRAY ",3899,"Direct Ship","MK183LL/A","07DZ76/SDYP2LL/A",279,"16IN MBP","Space Gray","M1 MAX","10-core CPU and 32-core GPU","32GB","2TB SSD","140W USB-C Power Adapter"]
["9YH048","Z14Y0016Z","CTO 16IN MACBOOK PRO M1 MAX 10C CPU 32C GPU 64GB 1TB SILVER ",3899,"Direct Ship","MK1E3LL/A","07DZ76/SDYP2LL/A",279,"16IN MBP","Silver","M1 MAX","10-core CPU and 32-core GPU","64GB","1TB SSD","140W USB-C Power Adapter"]
["9YH049","Z14Y0016L","CTO 16IN MACBOOK PRO M1 MAX 10C CPU 32C GPU 32GB 2TB SILVER ",3899,"Direct Ship","MK1E3LL/A","07DZ76/SDYP2LL/A",279,"16IN MBP","Silver","M1 MAX","10-core CPU and 32-core GPU","32GB","2TB SSD","140W USB-C Power Adapter"]
["9YH071","Z14W0010J","CTO 16IN MACBOOK PRO M1 MAX 10C CPU 32C GPU 64GB 1TB SP GRAY ",3899,"Direct Ship","MK193LL/A","07DZ76/SDYP2LL/A",279,"16IN MBP","Space Gray","M1 MAX","10-core CPU and 32-core GPU","64GB","1TB SSD","140W USB-C Power Adapter"]
["9YH072","Z14W0010K","CTO 16IN MACBOOK PRO M1 MAX 10C CPU 32C GPU 32GB 2TB SP GRAY ",3899,"Direct Ship","MK193LL/A","07DZ76/SDYP2LL/A",279,"16IN MBP","Space Gray","M1 MAX","10-core CPU and 32-core GPU","32GB","2TB SSD","140W USB-C Power Adapter"]
["9YH094","Z14Z0010J","CTO 16IN MACBOOK PRO M1 MAX 10C CPU 32C GPU 64GB 1TB SILVER ",3899,"Direct Ship","MK1F3LL/A","07DZ76/SDYP2LL/A",279,"16IN MBP","Silver","M1 MAX","10-core CPU and 32-core GPU","64GB","1TB SSD","140W USB-C Power Adapter"]
["9YH095","Z14Z0010K","CTO 16IN MACBOOK PRO M1 MAX 10C CPU 32C GPU 32GB 2TB SILVER ",3899,"Direct Ship","MK1F3LL/A","07DZ76/SDYP2LL/A",279,"16IN MBP","Silver","M1 MAX","10-core CPU and 32-core GPU","32GB","2TB SSD","140W USB-C Power Adapter"]
["9YH101","Z14X000GD","CTO 16IN MACBOOK PRO M1 MAX 10C CPU 32C GPU 64GB 1TB SP GRAY ",3899,"Direct Ship","MK1A3LL/A","07DZ76/SDYP2LL/A",279,"16IN MBP","Space Gray","M1 MAX","10-core CPU and 32-core GPU","64GB","1TB SSD","140W USB-C Power Adapter"]
["9YH102","Z14X000H6","CTO 16IN MACBOOK PRO M1 MAX 10C CPU 32C GPU 32GB 2TB SP GRAY ",3899,"Direct Ship","MK1A3LL/A","07DZ76/SDYP2LL/A",279,"16IN MBP","Space Gray","M1 MAX","10-core CPU and 32-core GPU","32GB","2TB SSD","140W USB-C Power Adapter"]
["9YH108","Z150000HP","CTO 16IN MACBOOK PRO M1 MAX 10C CPU 32C GPU 64GB 1TB SILVER ",3899,"Direct Ship","MK1H3LL/A","07DZ76/SDYP2LL/A",279,"16IN MBP","Silver","M1 MAX","10-core CPU and 32-core GPU","64GB","1TB SSD","140W USB-C Power Adapter"]
["9YH109","Z150000H5","CTO 16IN MACBOOK PRO M1 MAX 10C CPU 32C GPU 32GB 2TB SILVER ",3899,"Direct Ship","MK1H3LL/A","07DZ76/SDYP2LL/A",279,"16IN MBP","Silver","M1 MAX","10-core CPU and 32-core GPU","32GB","2TB SSD","140W USB-C Power Adapter"]
["9VL948","Z15G001XA","CTO 14IN MACBOOK PRO M1 PRO 10C CPU 16C GPU 32GB 4TB SP GRAY ",3899,"Direct Ship","MKGP3LL/A","06NX99/SCPG2LL/A",195,"14IN MBP","Space Gray","M1 PRO","10-core CPU and 16-core GPU","32GB","4TB SSD","96W USB-C Power adapter"]
["9VL956","Z15G001XE","CTO 14IN MACBOOK PRO M1 MAX 10C CPU 24C GPU 64GB 2TB SP GRAY ",3899,"Direct Ship","MKGP3LL/A","06NX99/SCPG2LL/A",195,"14IN MBP","Space Gray","M1 MAX","10-core CPU and 24-core GPU","64GB","2TB SSD","96W USB-C Power adapter"]
["9VL997","Z15J001X9","CTO 14IN MACBOOK PRO M1 PRO 10C CPU 16C GPU 32GB 4TB SILVER ",3899,"Direct Ship","MKGR3LL/A","06NX99/SCPG2LL/A",195,"14IN MBP","Silver","M1 PRO","10-core CPU and 16-core GPU","32GB","4TB SSD","96W USB-C Power adapter"]
["9VM006","Z15J001X1","CTO 14IN MACBOOK PRO M1 MAX 10C CPU 24C GPU 64GB 2TB SILVER ",3899,"Direct Ship","MKGR3LL/A","06NX99/SCPG2LL/A",195,"14IN MBP","Silver","M1 MAX","10-core CPU and 24-core GPU","64GB","2TB SSD","96W USB-C Power adapter"]
["9VM025","Z15H0010F","CTO 14IN MACBOOK PRO M1 PRO 10C CPU 16C GPU 32GB 4TB SP GRAY ",3899,"Direct Ship","MKGQ3LL/A","06NX99/SCPG2LL/A",195,"14IN MBP","Space Gray","M1 PRO","10-core CPU and 16-core GPU","32GB","4TB SSD","96W USB-C Power adapter"]
["9VM031","Z15H0010C","CTO 14IN MACBOOK PRO M1 MAX 10C CPU 24C GPU 64GB 2TB SP GRAY ",3899,"Direct Ship","MKGQ3LL/A","06NX99/SCPG2LL/A",195,"14IN MBP","Space Gray","M1 MAX","10-core CPU and 24-core GPU","64GB","2TB SSD","96W USB-C Power adapter"]
["9VM048","Z15K00109","CTO 14IN MACBOOK PRO M1 PRO 10C CPU 16C GPU 32GB 4TB SILVER ",3899,"Direct Ship","MKGT3LL/A","06NX99/SCPG2LL/A",195,"14IN MBP","Silver","M1 PRO","10-core CPU and 16-core GPU","32GB","4TB SSD","96W USB-C Power adapter"]
["9VM054","Z15K0010D","CTO 14IN MACBOOK PRO M1 MAX 10C CPU 24C GPU 64GB 2TB SILVER ",3899,"Direct Ship","MKGT3LL/A","06NX99/SCPG2LL/A",195,"14IN MBP","Silver","M1 MAX","10-core CPU and 24-core GPU","64GB","2TB SSD","96W USB-C Power adapter"]
["9VL938","Z15G001X5","CTO 14IN MACBOOK PRO M1 PRO 10C CPU 14C GPU 32GB 4TB SP GRAY ",3799,"Direct Ship","MKGP3LL/A","06NX99/SCPG2LL/A",195,"14IN MBP","Space Gray","M1 PRO","10-core CPU and 14-core GPU","32GB","4TB SSD","96W USB-C Power adapter"]
["9VL987","Z15J001X8","CTO 14IN MACBOOK PRO M1 PRO 10C CPU 14C GPU 32GB 4TB SILVER ",3799,"Direct Ship","MKGR3LL/A","06NX99/SCPG2LL/A",195,"14IN MBP","Silver","M1 PRO","10-core CPU and 14-core GPU","32GB","4TB SSD","96W USB-C Power adapter"]
["9YH002","Z14V0015Y","CTO 16IN MACBOOK PRO M1 PRO  10C CPU 16C GPU 16GB 4TB SP GRAY ",3699,"Direct Ship","MK183LL/A","07DZ76/SDYP2LL/A",279,"16IN MBP","Space Gray","M1 PRO","10-core CPU and 16-core GPU","16GB","4TB SSD","140W USB-C Power Adapter"]
["9YH009","Z14V0016S","CTO 16IN MACBOOK PRO M1 MAX 10C CPU 24C GPU 64GB 1TB SP GRAY ",3699,"Direct Ship","MK183LL/A","07DZ76/SDYP2LL/A",279,"16IN MBP","Space Gray","M1 MAX","10-core CPU and 24-core GPU","64GB","1TB SSD","140W USB-C Power Adapter"]
["9YH010","Z14V0016N","CTO 16IN MACBOOK PRO M1 MAX 10C CPU 24C GPU 32GB 2TB SP GRAY ",3699,"Direct Ship","MK183LL/A","07DZ76/SDYP2LL/A",279,"16IN MBP","Space Gray","M1 MAX","10-core CPU and 24-core GPU","32GB","2TB SSD","140W USB-C Power Adapter"]
["9YH017","Z14V00170","CTO 16IN MACBOOK PRO M1 MAX 10C CPU 32C GPU 64GB 512GB SP GRAY ",3699,"Direct Ship","MK183LL/A","07DZ76/SDYP2LL/A",279,"16IN MBP","Space Gray","M1 MAX","10-core CPU and 32-core GPU","64GB","512GB SSD","140W USB-C Power Adapter"]
["9YH031","Z14Y0015V","CTO 16IN MACBOOK PRO M1 PRO  10C CPU 16C GPU 16GB 4TB SILVER ",3699,"Direct Ship","MK1E3LL/A","07DZ76/SDYP2LL/A",279,"16IN MBP","Silver","M1 PRO","10-core CPU and 16-core GPU","16GB","4TB SSD","140W USB-C Power Adapter"]
["9YH038","Z14Y0016U","CTO 16IN MACBOOK PRO M1 MAX 10C CPU 24C GPU 64GB 1TB SILVER ",3699,"Direct Ship","MK1E3LL/A","07DZ76/SDYP2LL/A",279,"16IN MBP","Silver","M1 MAX","10-core CPU and 24-core GPU","64GB","1TB SSD","140W USB-C Power Adapter"]
["9YH039","Z14Y0016G","CTO 16IN MACBOOK PRO M1 MAX 10C CPU 24C GPU 32GB 2TB SILVER ",3699,"Direct Ship","MK1E3LL/A","07DZ76/SDYP2LL/A",279,"16IN MBP","Silver","M1 MAX","10-core CPU and 24-core GPU","32GB","2TB SSD","140W USB-C Power Adapter"]
["9YH046","Z14Y0016Y","CTO 16IN MACBOOK PRO M1 MAX 10C CPU 32C GPU 64GB 512GB SILVER ",3699,"Direct Ship","MK1E3LL/A","07DZ76/SDYP2LL/A",279,"16IN MBP","Silver","M1 MAX","10-core CPU and 32-core GPU","64GB","512GB SSD","140W USB-C Power Adapter"]
["9YH058","Z14W000ZN","CTO 16IN MACBOOK PRO M1 PRO  10C CPU 16C GPU 16GB 4TB SP GRAY ",3699,"Direct Ship","MK193LL/A","07DZ76/SDYP2LL/A",279,"16IN MBP","Space Gray","M1 PRO","10-core CPU and 16-core GPU","16GB","4TB SSD","140W USB-C Power Adapter"]
["9YH063","Z14W0010B","CTO 16IN MACBOOK PRO M1 MAX 10C CPU 24C GPU 64GB 1TB SP GRAY ",3699,"Direct Ship","MK193LL/A","07DZ76/SDYP2LL/A",279,"16IN MBP","Space Gray","M1 MAX","10-core CPU and 24-core GPU","64GB","1TB SSD","140W USB-C Power Adapter"]
["9YH064","Z14W0010C","CTO 16IN MACBOOK PRO M1 MAX 10C CPU 24C GPU 32GB 2TB SP GRAY ",3699,"Direct Ship","MK193LL/A","07DZ76/SDYP2LL/A",279,"16IN MBP","Space Gray","M1 MAX","10-core CPU and 24-core GPU","32GB","2TB SSD","140W USB-C Power Adapter"]
["9YH081","Z14Z000ZN","CTO 16IN MACBOOK PRO M1 PRO  10C CPU 16C GPU 16GB 4TB SILVER ",3699,"Direct Ship","MK1F3LL/A","07DZ76/SDYP2LL/A",279,"16IN MBP","Silver","M1 PRO","10-core CPU and 16-core GPU","16GB","4TB SSD","140W USB-C Power Adapter"]
["9YH086","Z14Z0010B","CTO 16IN MACBOOK PRO M1 MAX 10C CPU 24C GPU 64GB 1TB SILVER ",3699,"Direct Ship","MK1F3LL/A","07DZ76/SDYP2LL/A",279,"16IN MBP","Silver","M1 MAX","10-core CPU and 24-core GPU","64GB","1TB SSD","140W USB-C Power Adapter"]
["9YH087","Z14Z0010C","CTO 16IN MACBOOK PRO M1 MAX 10C CPU 24C GPU 32GB 2TB SILVER ",3699,"Direct Ship","MK1F3LL/A","07DZ76/SDYP2LL/A",279,"16IN MBP","Silver","M1 MAX","10-core CPU and 24-core GPU","32GB","2TB SSD","140W USB-C Power Adapter"]
["9YH899","Z14V0016S","CTO 16IN MACBOOK PRO M1 MAX 10C CPU 24C GPU 64GB 1TB SP GRAY ",3699,"Stocked","MK183LL/A","07DZ76/SDYP2LL/A",279,"16IN MBP","Space Gray","M1 MAX","10-core CPU and 24-core GPU","64GB","1TB SSD","140W USB-C Power Adapter"]
["9VL964","Z15G001XJ","CTO 14IN MACBOOK PRO M1 MAX 10C CPU 32C GPU 64GB 1TB SP GRAY ",3699,"Direct Ship","MKGP3LL/A","06NX99/SCPG2LL/A",195,"14IN MBP","Space Gray","M1 MAX","10-core CPU and 32-core GPU","64GB","1TB SSD","96W USB-C Power adapter"]
["9VL965","Z15G001WV","CTO 14IN MACBOOK PRO M1 MAX 10C CPU 32C GPU 32GB 2TB SP GRAY ",3699,"Direct Ship","MKGP3LL/A","06NX99/SCPG2LL/A",195,"14IN MBP","Space Gray","M1 MAX","10-core CPU and 32-core GPU","32GB","2TB SSD","96W USB-C Power adapter"]
["9VM014","Z15J001WT","CTO 14IN MACBOOK PRO M1 MAX 10C CPU 32C GPU 64GB 1TB SILVER ",3699,"Direct Ship","MKGR3LL/A","06NX99/SCPG2LL/A",195,"14IN MBP","Silver","M1 MAX","10-core CPU and 32-core GPU","64GB","1TB SSD","96W USB-C Power adapter"]
["9VM015","Z15J001WX","CTO 14IN MACBOOK PRO M1 MAX 10C CPU 32C GPU 32GB 2TB SILVER ",3699,"Direct Ship","MKGR3LL/A","06NX99/SCPG2LL/A",195,"14IN MBP","Silver","M1 MAX","10-core CPU and 32-core GPU","32GB","2TB SSD","96W USB-C Power adapter"]
["9VM037","Z15H00109","CTO 14IN MACBOOK PRO M1 MAX 10C CPU 32C GPU 64GB 1TB SP GRAY ",3699,"Direct Ship","MKGQ3LL/A","06NX99/SCPG2LL/A",195,"14IN MBP","Space Gray","M1 MAX","10-core CPU and 32-core GPU","64GB","1TB SSD","96W USB-C Power adapter"]
["9VM038","Z15H0010D","CTO 14IN MACBOOK PRO M1 MAX 10C CPU 32C GPU 32GB 2TB SP GRAY ",3699,"Direct Ship","MKGQ3LL/A","06NX99/SCPG2LL/A",195,"14IN MBP","Space Gray","M1 MAX","10-core CPU and 32-core GPU","32GB","2TB SSD","96W USB-C Power adapter"]
["9VM060","Z15K0010J","CTO 14IN MACBOOK PRO M1 MAX 10C CPU 32C GPU 64GB 1TB SILVER ",3699,"Direct Ship","MKGT3LL/A","06NX99/SCPG2LL/A",195,"14IN MBP","Silver","M1 MAX","10-core CPU and 32-core GPU","64GB","1TB SSD","96W USB-C Power adapter"]
["9VM061","Z15K0010K","CTO 14IN MACBOOK PRO M1 MAX 10C CPU 32C GPU 32GB 2TB SILVER ",3699,"Direct Ship","MKGT3LL/A","06NX99/SCPG2LL/A",195,"14IN MBP","Silver","M1 MAX","10-core CPU and 32-core GPU","32GB","2TB SSD","96W USB-C Power adapter"]
["9YK027","Z15H00109","CTO 14IN MACBOOK PRO M1 MAX 10C CPU 32C GPU 64GB 1TB SP GRAY ",3699,"Stocked","MKGQ3LL/A","06NX99/SCPG2LL/A",195,"14IN MBP","Space Gray","M1 MAX","10-core CPU and 32-core GPU","64GB","1TB SSD","96W USB-C Power adapter"]
["9YL010","Z15G002C3","CTO 14IN MACBOOK PRO M1 PRO 8C CPU 14C GPU 32GB 4TB SP GRAY 96W ",3619,"Direct Ship","MKGP3LL/A","06NX99/SCPG2LL/A",195,"14IN MBP","Space Gray","M1 PRO","8-core CPU and 14-core GPU","32GB","4TB SSD","96W USB-C Power adapter"]
["9YL019","Z15J0026F","CTO 14IN MACBOOK PRO M1 PRO 8C CPU 14C GPU 32GB 4TB SILVER 96W ",3619,"Direct Ship","MKGR3LL/A","06NX99/SCPG2LL/A",195,"14IN MBP","Silver","M1 PRO","8-core CPU and 14-core GPU","32GB","4TB SSD","96W USB-C Power adapter"]
["9VL928","Z15G001X0","CTO 14IN MACBOOK PRO M1 PRO 8C CPU 14C GPU 32GB 4TB SP GRAY ",3599,"Direct Ship","MKGP3LL/A","06NX99/SCPG2LL/A",195,"14IN MBP","Space Gray","M1 PRO","8-core CPU and 14-core GPU","32GB","4TB SSD","67W USB-C  Power adapter"]
["9VL977","Z15J001X7","CTO 14IN MACBOOK PRO M1 PRO 8C CPU 14C GPU 32GB 4TB SILVER ",3599,"Direct Ship","MKGR3LL/A","06NX99/SCPG2LL/A",195,"14IN MBP","Silver","M1 PRO","8-core CPU and 14-core GPU","32GB","4TB SSD","67W USB-C  Power adapter"]
["9YH001","Z14V0016J","CTO 16IN MACBOOK PRO M1 PRO  10C CPU 16C GPU 32GB 2TB SP GRAY ",3499,"Direct Ship","MK183LL/A","07DZ76/SDYP2LL/A",279,"16IN MBP","Space Gray","M1 PRO","10-core CPU and 16-core GPU","32GB","2TB SSD","140W USB-C Power Adapter"]
["9YH007","Z14V0016R","CTO 16IN MACBOOK PRO M1 MAX 10C CPU 24C GPU 64GB 512GB SP GRAY ",3499,"Direct Ship","MK183LL/A","07DZ76/SDYP2LL/A",279,"16IN MBP","Space Gray","M1 MAX","10-core CPU and 24-core GPU","64GB","512GB SSD","140W USB-C Power Adapter"]
["9YH018","Z14V0016W","CTO 16IN MACBOOK PRO M1 MAX 10C CPU 32C GPU 32GB 1TB SP GRAY ",3499,"Direct Ship","MK183LL/A","07DZ76/SDYP2LL/A",279,"16IN MBP","Space Gray","M1 MAX","10-core CPU and 32-core GPU","32GB","1TB SSD","140W USB-C Power Adapter"]
["9YH030","Z14Y0016Q","CTO 16IN MACBOOK PRO M1 PRO  10C CPU 16C GPU 32GB 2TB SILVER ",3499,"Direct Ship","MK1E3LL/A","07DZ76/SDYP2LL/A",279,"16IN MBP","Silver","M1 PRO","10-core CPU and 16-core GPU","32GB","2TB SSD","140W USB-C Power Adapter"]
["9YH036","Z14Y0016T","CTO 16IN MACBOOK PRO M1 MAX 10C CPU 24C GPU 64GB 512GB SILVER ",3499,"Direct Ship","MK1E3LL/A","07DZ76/SDYP2LL/A",279,"16IN MBP","Silver","M1 MAX","10-core CPU and 24-core GPU","64GB","512GB SSD","140W USB-C Power Adapter"]
["9YH047","Z14Y0016K","CTO 16IN MACBOOK PRO M1 MAX 10C CPU 32C GPU 32GB 1TB SILVER ",3499,"Direct Ship","MK1E3LL/A","07DZ76/SDYP2LL/A",279,"16IN MBP","Silver","M1 MAX","10-core CPU and 32-core GPU","32GB","1TB SSD","140W USB-C Power Adapter"]
["9YH057","Z14W00108","CTO 16IN MACBOOK PRO M1 PRO  10C CPU 16C GPU 32GB 2TB SP GRAY ",3499,"Direct Ship","MK193LL/A","07DZ76/SDYP2LL/A",279,"16IN MBP","Space Gray","M1 PRO","10-core CPU and 16-core GPU","32GB","2TB SSD","140W USB-C Power Adapter"]
["9YH070","Z14W00107","CTO 16IN MACBOOK PRO M1 MAX 10C CPU 32C GPU 32GB 1TB SP GRAY ",3499,"Direct Ship","MK193LL/A","07DZ76/SDYP2LL/A",279,"16IN MBP","Space Gray","M1 MAX","10-core CPU and 32-core GPU","32GB","1TB SSD","140W USB-C Power Adapter"]
["9YH080","Z14Z00108","CTO 16IN MACBOOK PRO M1 PRO  10C CPU 16C GPU 32GB 2TB SILVER ",3499,"Direct Ship","MK1F3LL/A","07DZ76/SDYP2LL/A",279,"16IN MBP","Silver","M1 PRO","10-core CPU and 16-core GPU","32GB","2TB SSD","140W USB-C Power Adapter"]
["9YH093","Z14Z00107","CTO 16IN MACBOOK PRO M1 MAX 10C CPU 32C GPU 32GB 1TB SILVER ",3499,"Direct Ship","MK1F3LL/A","07DZ76/SDYP2LL/A",279,"16IN MBP","Silver","M1 MAX","10-core CPU and 32-core GPU","32GB","1TB SSD","140W USB-C Power Adapter"]
["9YG946","MK1A3LL/A","16-INCH MACBOOK PRO: APPLE M1 MAX CHIP WITH 10‑CORE CPU AND 32‑CORE GPU, 1TB SSD - SPACE GRAY",3499,"Stocked",null,"07DZ76/SDYP2LL/A",279,"16IN MBP","Space Gray","M1 MAX","10-core CPU and 32-core GPU","32GB","1TB SSD","140W USB-C Power Adapter"]
["9YG947","MK1H3LL/A","16-INCH MACBOOK PRO: APPLE M1 MAX CHIP WITH 10‑CORE CPU AND 32‑CORE GPU, 1TB SSD - SILVER",3499,"Stocked",null,"07DZ76/SDYP2LL/A",279,"16IN MBP","Silver","M1 MAX","10-core CPU and 32-core GPU","32GB","1TB SSD","140W USB-C Power Adapter"]
["9YH898","Z14V0016J","CTO 16IN MACBOOK PRO M1 PRO  10C CPU 16C GPU 32GB 2TB SP GRAY ",3499,"Stocked","MK183LL/A","07DZ76/SDYP2LL/A",279,"16IN MBP","Space Gray","M1 PRO","10-core CPU and 16-core GPU","32GB","2TB SSD","140W USB-C Power Adapter"]
["9VL947","Z15G001WN","CTO 14IN MACBOOK PRO M1 PRO 10C CPU 16C GPU 16GB 4TB SP GRAY ",3499,"Direct Ship","MKGP3LL/A","06NX99/SCPG2LL/A",195,"14IN MBP","Space Gray","M1 PRO","10-core CPU and 16-core GPU","16GB","4TB SSD","96W USB-C Power adapter"]
["9VL954","Z15G001XD","CTO 14IN MACBOOK PRO M1 MAX 10C CPU 24C GPU 64GB 1TB SP GRAY ",3499,"Direct Ship","MKGP3LL/A","06NX99/SCPG2LL/A",195,"14IN MBP","Space Gray","M1 MAX","10-core CPU and 24-core GPU","64GB","1TB SSD","96W USB-C Power adapter"]
["9VL955","Z15G001WR","CTO 14IN MACBOOK PRO M1 MAX 10C CPU 24C GPU 32GB 2TB SP GRAY ",3499,"Direct Ship","MKGP3LL/A","06NX99/SCPG2LL/A",195,"14IN MBP","Space Gray","M1 MAX","10-core CPU and 24-core GPU","32GB","2TB SSD","96W USB-C Power adapter"]
["9VL962","Z15G001XH","CTO 14IN MACBOOK PRO M1 MAX 10C CPU 32C GPU 64GB 512GB SP GRAY ",3499,"Direct Ship","MKGP3LL/A","06NX99/SCPG2LL/A",195,"14IN MBP","Space Gray","M1 MAX","10-core CPU and 32-core GPU","64GB","512GB SSD","96W USB-C Power adapter"]
["9VL996","Z15J001X4","CTO 14IN MACBOOK PRO M1 PRO 10C CPU 16C GPU 16GB 4TB SILVER ",3499,"Direct Ship","MKGR3LL/A","06NX99/SCPG2LL/A",195,"14IN MBP","Silver","M1 PRO","10-core CPU and 16-core GPU","16GB","4TB SSD","96W USB-C Power adapter"]
["9VM004","Z15J001WS","CTO 14IN MACBOOK PRO M1 MAX 10C CPU 24C GPU 64GB 1TB SILVER ",3499,"Direct Ship","MKGR3LL/A","06NX99/SCPG2LL/A",195,"14IN MBP","Silver","M1 MAX","10-core CPU and 24-core GPU","64GB","1TB SSD","96W USB-C Power adapter"]
["9VM005","Z15J001WW","CTO 14IN MACBOOK PRO M1 MAX 10C CPU 24C GPU 32GB 2TB SILVER ",3499,"Direct Ship","MKGR3LL/A","06NX99/SCPG2LL/A",195,"14IN MBP","Silver","M1 MAX","10-core CPU and 24-core GPU","32GB","2TB SSD","96W USB-C Power adapter"]
["9VM012","Z15J001WJ","CTO 14IN MACBOOK PRO M1 MAX 10C CPU 32C GPU 64GB 512GB SILVER ",3499,"Direct Ship","MKGR3LL/A","06NX99/SCPG2LL/A",195,"14IN MBP","Silver","M1 MAX","10-core CPU and 32-core GPU","64GB","512GB SSD","96W USB-C Power adapter"]
["9VM024","Z15H000ZN","CTO 14IN MACBOOK PRO M1 PRO 10C CPU 16C GPU 16GB 4TB SP GRAY ",3499,"Direct Ship","MKGQ3LL/A","06NX99/SCPG2LL/A",195,"14IN MBP","Space Gray","M1 PRO","10-core CPU and 16-core GPU","16GB","4TB SSD","96W USB-C Power adapter"]
["9VM029","Z15H00108","CTO 14IN MACBOOK PRO M1 MAX 10C CPU 24C GPU 64GB 1TB SP GRAY ",3499,"Direct Ship","MKGQ3LL/A","06NX99/SCPG2LL/A",195,"14IN MBP","Space Gray","M1 MAX","10-core CPU and 24-core GPU","64GB","1TB SSD","96W USB-C Power adapter"]
["9VM030","Z15H0010B","CTO 14IN MACBOOK PRO M1 MAX 10C CPU 24C GPU 32GB 2TB SP GRAY ",3499,"Direct Ship","MKGQ3LL/A","06NX99/SCPG2LL/A",195,"14IN MBP","Space Gray","M1 MAX","10-core CPU and 24-core GPU","32GB","2TB SSD","96W USB-C Power adapter"]
["9VM047","Z15K000ZN","CTO 14IN MACBOOK PRO M1 PRO 10C CPU 16C GPU 16GB 4TB SILVER ",3499,"Direct Ship","MKGT3LL/A","06NX99/SCPG2LL/A",195,"14IN MBP","Silver","M1 PRO","10-core CPU and 16-core GPU","16GB","4TB SSD","96W USB-C Power adapter"]
["9VM052","Z15K0010B","CTO 14IN MACBOOK PRO M1 MAX 10C CPU 24C GPU 64GB 1TB SILVER ",3499,"Direct Ship","MKGT3LL/A","06NX99/SCPG2LL/A",195,"14IN MBP","Silver","M1 MAX","10-core CPU and 24-core GPU","64GB","1TB SSD","96W USB-C Power adapter"]
["9VM053","Z15K0010C","CTO 14IN MACBOOK PRO M1 MAX 10C CPU 24C GPU 32GB 2TB SILVER ",3499,"Direct Ship","MKGT3LL/A","06NX99/SCPG2LL/A",195,"14IN MBP","Silver","M1 MAX","10-core CPU and 24-core GPU","32GB","2TB SSD","96W USB-C Power adapter"]
["9VL937","Z15G001WJ","CTO 14IN MACBOOK PRO M1 PRO 10C CPU 14C GPU 16GB 4TB SP GRAY ",3399,"Direct Ship","MKGP3LL/A","06NX99/SCPG2LL/A",195,"14IN MBP","Space Gray","M1 PRO","10-core CPU and 14-core GPU","16GB","4TB SSD","96W USB-C Power adapter"]
["9VL986","Z15J001X3","CTO 14IN MACBOOK PRO M1 PRO 10C CPU 14C GPU 16GB 4TB SILVER ",3399,"Direct Ship","MKGR3LL/A","06NX99/SCPG2LL/A",195,"14IN MBP","Silver","M1 PRO","10-core CPU and 14-core GPU","16GB","4TB SSD","96W USB-C Power adapter"]
["9YH008","Z14V0016M","CTO 16IN MACBOOK PRO M1 MAX 10C CPU 24C GPU 32GB 1TB SP GRAY ",3299,"Direct Ship","MK183LL/A","07DZ76/SDYP2LL/A",279,"16IN MBP","Space Gray","M1 MAX","10-core CPU and 24-core GPU","32GB","1TB SSD","140W USB-C Power Adapter"]
["9YH016","Z14V0016G","CTO 16IN MACBOOK PRO M1 MAX 10C CPU 32C GPU 32GB 512GB SP GRAY ",3299,"Direct Ship","MK183LL/A","07DZ76/SDYP2LL/A",279,"16IN MBP","Space Gray","M1 MAX","10-core CPU and 32-core GPU","32GB","512GB SSD","140W USB-C Power Adapter"]
["9YH037","Z14Y0016F","CTO 16IN MACBOOK PRO M1 MAX 10C CPU 24C GPU 32GB 1TB SILVER ",3299,"Direct Ship","MK1E3LL/A","07DZ76/SDYP2LL/A",279,"16IN MBP","Silver","M1 MAX","10-core CPU and 24-core GPU","32GB","1TB SSD","140W USB-C Power Adapter"]
["9YH045","Z14Y0016E","CTO 16IN MACBOOK PRO M1 MAX 10C CPU 32C GPU 32GB 512GB SILVER ",3299,"Direct Ship","MK1E3LL/A","07DZ76/SDYP2LL/A",279,"16IN MBP","Silver","M1 MAX","10-core CPU and 32-core GPU","32GB","512GB SSD","140W USB-C Power Adapter"]
["9YH062","Z14W00106","CTO 16IN MACBOOK PRO M1 MAX 10C CPU 24C GPU 32GB 1TB SP GRAY ",3299,"Direct Ship","MK193LL/A","07DZ76/SDYP2LL/A",279,"16IN MBP","Space Gray","M1 MAX","10-core CPU and 24-core GPU","32GB","1TB SSD","140W USB-C Power Adapter"]
["9YH085","Z14Z00106","CTO 16IN MACBOOK PRO M1 MAX 10C CPU 24C GPU 32GB 1TB SILVER ",3299,"Direct Ship","MK1F3LL/A","07DZ76/SDYP2LL/A",279,"16IN MBP","Silver","M1 MAX","10-core CPU and 24-core GPU","32GB","1TB SSD","140W USB-C Power Adapter"]
["9VL946","Z15G001X9","CTO 14IN MACBOOK PRO M1 PRO 10C CPU 16C GPU 32GB 2TB SP GRAY ",3299,"Direct Ship","MKGP3LL/A","06NX99/SCPG2LL/A",195,"14IN MBP","Space Gray","M1 PRO","10-core CPU and 16-core GPU","32GB","2TB SSD","96W USB-C Power adapter"]
["9VL952","Z15G001XC","CTO 14IN MACBOOK PRO M1 MAX 10C CPU 24C GPU 64GB 512GB SP GRAY ",3299,"Direct Ship","MKGP3LL/A","06NX99/SCPG2LL/A",195,"14IN MBP","Space Gray","M1 MAX","10-core CPU and 24-core GPU","64GB","512GB SSD","96W USB-C Power adapter"]
["9VL963","Z15G001WU","CTO 14IN MACBOOK PRO M1 MAX 10C CPU 32C GPU 32GB 1TB SP GRAY ",3299,"Direct Ship","MKGP3LL/A","06NX99/SCPG2LL/A",195,"14IN MBP","Space Gray","M1 MAX","10-core CPU and 32-core GPU","32GB","1TB SSD","96W USB-C Power adapter"]
["9VL995","Z15J001X0","CTO 14IN MACBOOK PRO M1 PRO 10C CPU 16C GPU 32GB 2TB SILVER ",3299,"Direct Ship","MKGR3LL/A","06NX99/SCPG2LL/A",195,"14IN MBP","Silver","M1 PRO","10-core CPU and 16-core GPU","32GB","2TB SSD","96W USB-C Power adapter"]
["9VM002","Z15J001WH","CTO 14IN MACBOOK PRO M1 MAX 10C CPU 24C GPU 64GB 512GB SILVER ",3299,"Direct Ship","MKGR3LL/A","06NX99/SCPG2LL/A",195,"14IN MBP","Silver","M1 MAX","10-core CPU and 24-core GPU","64GB","512GB SSD","96W USB-C Power adapter"]
["9VM013","Z15J001WN","CTO 14IN MACBOOK PRO M1 MAX 10C CPU 32C GPU 32GB 1TB SILVER ",3299,"Direct Ship","MKGR3LL/A","06NX99/SCPG2LL/A",195,"14IN MBP","Silver","M1 MAX","10-core CPU and 32-core GPU","32GB","1TB SSD","96W USB-C Power adapter"]
["9VM023","Z15H0010A","CTO 14IN MACBOOK PRO M1 PRO 10C CPU 16C GPU 32GB 2TB SP GRAY ",3299,"Direct Ship","MKGQ3LL/A","06NX99/SCPG2LL/A",195,"14IN MBP","Space Gray","M1 PRO","10-core CPU and 16-core GPU","32GB","2TB SSD","96W USB-C Power adapter"]
["9VM036","Z15H00107","CTO 14IN MACBOOK PRO M1 MAX 10C CPU 32C GPU 32GB 1TB SP GRAY ",3299,"Direct Ship","MKGQ3LL/A","06NX99/SCPG2LL/A",195,"14IN MBP","Space Gray","M1 MAX","10-core CPU and 32-core GPU","32GB","1TB SSD","96W USB-C Power adapter"]
["9VM046","Z15K00108","CTO 14IN MACBOOK PRO M1 PRO 10C CPU 16C GPU 32GB 2TB SILVER ",3299,"Direct Ship","MKGT3LL/A","06NX99/SCPG2LL/A",195,"14IN MBP","Silver","M1 PRO","10-core CPU and 16-core GPU","32GB","2TB SSD","96W USB-C Power adapter"]
["9VM059","Z15K00107","CTO 14IN MACBOOK PRO M1 MAX 10C CPU 32C GPU 32GB 1TB SILVER ",3299,"Direct Ship","MKGT3LL/A","06NX99/SCPG2LL/A",195,"14IN MBP","Silver","M1 MAX","10-core CPU and 32-core GPU","32GB","1TB SSD","96W USB-C Power adapter"]
["9YK028","Z15H00107","CTO 14IN MACBOOK PRO M1 MAX 10C CPU 32C GPU 32GB 1TB SP GRAY ",3299,"Stocked","MKGQ3LL/A","06NX99/SCPG2LL/A",195,"14IN MBP","Space Gray","M1 MAX","10-core CPU and 32-core GPU","32GB","1TB SSD","96W USB-C Power adapter"]
["9YL009","Z15G0024Z","CTO 14IN MACBOOK PRO M1 PRO 8C CPU 14C GPU 16GB 4TB SP GRAY 96W ",3219,"Direct Ship","MKGP3LL/A","06NX99/SCPG2LL/A",195,"14IN MBP","Space Gray","M1 PRO","8-core CPU and 14-core GPU","16GB","4TB SSD","96W USB-C Power adapter"]
["9YL018","Z15J002H8","CTO 14IN MACBOOK PRO M1 PRO 8C CPU 14C GPU 16GB 4TB SILVER 96W ",3219,"Direct Ship","MKGR3LL/A","06NX99/SCPG2LL/A",195,"14IN MBP","Silver","M1 PRO","8-core CPU and 14-core GPU","16GB","4TB SSD","96W USB-C Power adapter"]
["9VL927","Z15G001VT","CTO 14IN MACBOOK PRO M1 PRO 8C CPU 14C GPU 16GB 4TB SP GRAY ",3199,"Direct Ship","MKGP3LL/A","06NX99/SCPG2LL/A",195,"14IN MBP","Space Gray","M1 PRO","8-core CPU and 14-core GPU","16GB","4TB SSD","67W USB-C  Power adapter"]
["9VL936","Z15G001X4","CTO 14IN MACBOOK PRO M1 PRO 10C CPU 14C GPU 32GB 2TB SP GRAY ",3199,"Direct Ship","MKGP3LL/A","06NX99/SCPG2LL/A",195,"14IN MBP","Space Gray","M1 PRO","10-core CPU and 14-core GPU","32GB","2TB SSD","96W USB-C Power adapter"]
["9VL976","Z15J001VS","CTO 14IN MACBOOK PRO M1 PRO 8C CPU 14C GPU 16GB 4TB SILVER ",3199,"Direct Ship","MKGR3LL/A","06NX99/SCPG2LL/A",195,"14IN MBP","Silver","M1 PRO","8-core CPU and 14-core GPU","16GB","4TB SSD","67W USB-C  Power adapter"]
["9VL985","Z15J001WZ","CTO 14IN MACBOOK PRO M1 PRO 10C CPU 14C GPU 32GB 2TB SILVER ",3199,"Direct Ship","MKGR3LL/A","06NX99/SCPG2LL/A",195,"14IN MBP","Silver","M1 PRO","10-core CPU and 14-core GPU","32GB","2TB SSD","96W USB-C Power adapter"]
["9YG998","Z14V0016H","CTO 16IN MACBOOK PRO M1 PRO  10C CPU 16C GPU 32GB 1TB SP GRAY ",3099,"Direct Ship","MK183LL/A","07DZ76/SDYP2LL/A",279,"16IN MBP","Space Gray","M1 PRO","10-core CPU and 16-core GPU","32GB","1TB SSD","140W USB-C Power Adapter"]
["9YG999","Z14V0015X","CTO 16IN MACBOOK PRO M1 PRO  10C CPU 16C GPU 16GB 2TB SP GRAY ",3099,"Direct Ship","MK183LL/A","07DZ76/SDYP2LL/A",279,"16IN MBP","Space Gray","M1 PRO","10-core CPU and 16-core GPU","16GB","2TB SSD","140W USB-C Power Adapter"]
["9YH006","Z14V0016F","CTO 16IN MACBOOK PRO M1 MAX 10C CPU 24C GPU 32GB 512GB SP GRAY ",3099,"Direct Ship","MK183LL/A","07DZ76/SDYP2LL/A",279,"16IN MBP","Space Gray","M1 MAX","10-core CPU and 24-core GPU","32GB","512GB SSD","140W USB-C Power Adapter"]
["9YH028","Z14Y0016P","CTO 16IN MACBOOK PRO M1 PRO  10C CPU 16C GPU 32GB 1TB SILVER ",3099,"Direct Ship","MK1E3LL/A","07DZ76/SDYP2LL/A",279,"16IN MBP","Silver","M1 PRO","10-core CPU and 16-core GPU","32GB","1TB SSD","140W USB-C Power Adapter"]
["9YH029","Z14Y0015U","CTO 16IN MACBOOK PRO M1 PRO  10C CPU 16C GPU 16GB 2TB SILVER ",3099,"Direct Ship","MK1E3LL/A","07DZ76/SDYP2LL/A",279,"16IN MBP","Silver","M1 PRO","10-core CPU and 16-core GPU","16GB","2TB SSD","140W USB-C Power Adapter"]
["9YH035","Z14Y0016D","CTO 16IN MACBOOK PRO M1 MAX 10C CPU 24C GPU 32GB 512GB SILVER ",3099,"Direct Ship","MK1E3LL/A","07DZ76/SDYP2LL/A",279,"16IN MBP","Silver","M1 MAX","10-core CPU and 24-core GPU","32GB","512GB SSD","140W USB-C Power Adapter"]
["9YH055","Z14W00105","CTO 16IN MACBOOK PRO M1 PRO  10C CPU 16C GPU 32GB 1TB SP GRAY ",3099,"Direct Ship","MK193LL/A","07DZ76/SDYP2LL/A",279,"16IN MBP","Space Gray","M1 PRO","10-core CPU and 16-core GPU","32GB","1TB SSD","140W USB-C Power Adapter"]
["9YH056","Z14W000ZM","CTO 16IN MACBOOK PRO M1 PRO  10C CPU 16C GPU 16GB 2TB SP GRAY ",3099,"Direct Ship","MK193LL/A","07DZ76/SDYP2LL/A",279,"16IN MBP","Space Gray","M1 PRO","10-core CPU and 16-core GPU","16GB","2TB SSD","140W USB-C Power Adapter"]
["9YH078","Z14Z00105","CTO 16IN MACBOOK PRO M1 PRO  10C CPU 16C GPU 32GB 1TB SILVER ",3099,"Direct Ship","MK1F3LL/A","07DZ76/SDYP2LL/A",279,"16IN MBP","Silver","M1 PRO","10-core CPU and 16-core GPU","32GB","1TB SSD","140W USB-C Power Adapter"]
["9YH079","Z14Z000ZM","CTO 16IN MACBOOK PRO M1 PRO  10C CPU 16C GPU 16GB 2TB SILVER ",3099,"Direct Ship","MK1F3LL/A","07DZ76/SDYP2LL/A",279,"16IN MBP","Silver","M1 PRO","10-core CPU and 16-core GPU","16GB","2TB SSD","140W USB-C Power Adapter"]
["9YH897","Z14V0016H","CTO 16IN MACBOOK PRO M1 PRO  10C CPU 16C GPU 32GB 1TB SP GRAY ",3099,"Stocked","MK183LL/A","07DZ76/SDYP2LL/A",279,"16IN MBP","Space Gray","M1 PRO","10-core CPU and 16-core GPU","32GB","1TB SSD","140W USB-C Power Adapter"]
["9VL953","Z15G001WQ","CTO 14IN MACBOOK PRO M1 MAX 10C CPU 24C GPU 32GB 1TB SP GRAY ",3099,"Direct Ship","MKGP3LL/A","06NX99/SCPG2LL/A",195,"14IN MBP","Space Gray","M1 MAX","10-core CPU and 24-core GPU","32GB","1TB SSD","96W USB-C Power adapter"]
["9VL961","Z15G001WF","CTO 14IN MACBOOK PRO M1 MAX 10C CPU 32C GPU 32GB 512GB SP GRAY ",3099,"Direct Ship","MKGP3LL/A","06NX99/SCPG2LL/A",195,"14IN MBP","Space Gray","M1 MAX","10-core CPU and 32-core GPU","32GB","512GB SSD","96W USB-C Power adapter"]
["9VM003","Z15J001WM","CTO 14IN MACBOOK PRO M1 MAX 10C CPU 24C GPU 32GB 1TB SILVER ",3099,"Direct Ship","MKGR3LL/A","06NX99/SCPG2LL/A",195,"14IN MBP","Silver","M1 MAX","10-core CPU and 24-core GPU","32GB","1TB SSD","96W USB-C Power adapter"]
["9VM011","Z15J001WE","CTO 14IN MACBOOK PRO M1 MAX 10C CPU 32C GPU 32GB 512GB SILVER ",3099,"Direct Ship","MKGR3LL/A","06NX99/SCPG2LL/A",195,"14IN MBP","Silver","M1 MAX","10-core CPU and 32-core GPU","32GB","512GB SSD","96W USB-C Power adapter"]
["9VM028","Z15H00106","CTO 14IN MACBOOK PRO M1 MAX 10C CPU 24C GPU 32GB 1TB SP GRAY ",3099,"Direct Ship","MKGQ3LL/A","06NX99/SCPG2LL/A",195,"14IN MBP","Space Gray","M1 MAX","10-core CPU and 24-core GPU","32GB","1TB SSD","96W USB-C Power adapter"]
["9VM051","Z15K00106","CTO 14IN MACBOOK PRO M1 MAX 10C CPU 24C GPU 32GB 1TB SILVER ",3099,"Direct Ship","MKGT3LL/A","06NX99/SCPG2LL/A",195,"14IN MBP","Silver","M1 MAX","10-core CPU and 24-core GPU","32GB","1TB SSD","96W USB-C Power adapter"]
["9YL008","Z15G00245","CTO 14IN MACBOOK PRO M1 PRO 8C CPU 14C GPU 32GB 2TB SP GRAY 96W ",3019,"Direct Ship","MKGP3LL/A","06NX99/SCPG2LL/A",195,"14IN MBP","Space Gray","M1 PRO","8-core CPU and 14-core GPU","32GB","2TB SSD","96W USB-C Power adapter"]
["9YL017","Z15J00237","CTO 14IN MACBOOK PRO M1 PRO 8C CPU 14C GPU 32GB 2TB SILVER 96W ",3019,"Direct Ship","MKGR3LL/A","06NX99/SCPG2LL/A",195,"14IN MBP","Silver","M1 PRO","8-core CPU and 14-core GPU","32GB","2TB SSD","96W USB-C Power adapter"]
["9VL926","Z15G001WZ","CTO 14IN MACBOOK PRO M1 PRO 8C CPU 14C GPU 32GB 2TB SP GRAY ",2999,"Direct Ship","MKGP3LL/A","06NX99/SCPG2LL/A",195,"14IN MBP","Space Gray","M1 PRO","8-core CPU and 14-core GPU","32GB","2TB SSD","67W USB-C  Power adapter"]
["9VL975","Z15J001WY","CTO 14IN MACBOOK PRO M1 PRO 8C CPU 14C GPU 32GB 2TB SILVER ",2999,"Direct Ship","MKGR3LL/A","06NX99/SCPG2LL/A",195,"14IN MBP","Silver","M1 PRO","8-core CPU and 14-core GPU","32GB","2TB SSD","67W USB-C  Power adapter"]
["9YH896","Z14V0016E","CTO 16IN MACBOOK PRO M1 PRO  10C CPU 16C GPU 32GB 512GB SP GRAY ",2899,"Stocked","MK183LL/A","07DZ76/SDYP2LL/A",279,"16IN MBP","Space Gray","M1 PRO","10-core CPU and 16-core GPU","32GB","512GB SSD","140W USB-C Power Adapter"]
["9YH026","Z14Y0016C","CTO 16IN MACBOOK PRO M1 PRO  10C CPU 16C GPU 32GB 512GB SILVER ",2899,"Direct Ship","MK1E3LL/A","07DZ76/SDYP2LL/A",279,"16IN MBP","Silver","M1 PRO","10-core CPU and 16-core GPU","32GB","512GB SSD","140W USB-C Power Adapter"]
["9YL133","Z14V0016E","CTO 16IN MACBOOK PRO M1 PRO  10C CPU 16C GPU 32GB 512GB SP GRAY ",2899,"Direct Ship","MK183LL/A","07DZ76/SDYP2LL/A",279,"16IN MBP","Space Gray","M1 PRO","10-core CPU and 16-core GPU","32GB","512GB SSD","140W USB-C Power Adapter"]
["9VL944","Z15G001X8","CTO 14IN MACBOOK PRO M1 PRO 10C CPU 16C GPU 32GB 1TB SP GRAY ",2899,"Direct Ship","MKGP3LL/A","06NX99/SCPG2LL/A",195,"14IN MBP","Space Gray","M1 PRO","10-core CPU and 16-core GPU","32GB","1TB SSD","96W USB-C Power adapter"]
["9VL945","Z15G001WM","CTO 14IN MACBOOK PRO M1 PRO 10C CPU 16C GPU 16GB 2TB SP GRAY ",2899,"Direct Ship","MKGP3LL/A","06NX99/SCPG2LL/A",195,"14IN MBP","Space Gray","M1 PRO","10-core CPU and 16-core GPU","16GB","2TB SSD","96W USB-C Power adapter"]
["9VL951","Z15G001WE","CTO 14IN MACBOOK PRO M1 MAX 10C CPU 24C GPU 32GB 512GB SP GRAY ",2899,"Direct Ship","MKGP3LL/A","06NX99/SCPG2LL/A",195,"14IN MBP","Space Gray","M1 MAX","10-core CPU and 24-core GPU","32GB","512GB SSD","96W USB-C Power adapter"]
["9VL993","Z15J001WR","CTO 14IN MACBOOK PRO M1 PRO 10C CPU 16C GPU 32GB 1TB SILVER ",2899,"Direct Ship","MKGR3LL/A","06NX99/SCPG2LL/A",195,"14IN MBP","Silver","M1 PRO","10-core CPU and 16-core GPU","32GB","1TB SSD","96W USB-C Power adapter"]
["9VL994","Z15J001WV","CTO 14IN MACBOOK PRO M1 PRO 10C CPU 16C GPU 16GB 2TB SILVER ",2899,"Direct Ship","MKGR3LL/A","06NX99/SCPG2LL/A",195,"14IN MBP","Silver","M1 PRO","10-core CPU and 16-core GPU","16GB","2TB SSD","96W USB-C Power adapter"]
["9VM001","Z15J001WD","CTO 14IN MACBOOK PRO M1 MAX 10C CPU 24C GPU 32GB 512GB SILVER ",2899,"Direct Ship","MKGR3LL/A","06NX99/SCPG2LL/A",195,"14IN MBP","Silver","M1 MAX","10-core CPU and 24-core GPU","32GB","512GB SSD","96W USB-C Power adapter"]
["9VM021","Z15H00105","CTO 14IN MACBOOK PRO M1 PRO 10C CPU 16C GPU 32GB 1TB SP GRAY ",2899,"Direct Ship","MKGQ3LL/A","06NX99/SCPG2LL/A",195,"14IN MBP","Space Gray","M1 PRO","10-core CPU and 16-core GPU","32GB","1TB SSD","96W USB-C Power adapter"]
["9VM022","Z15H000ZM","CTO 14IN MACBOOK PRO M1 PRO 10C CPU 16C GPU 16GB 2TB SP GRAY ",2899,"Direct Ship","MKGQ3LL/A","06NX99/SCPG2LL/A",195,"14IN MBP","Space Gray","M1 PRO","10-core CPU and 16-core GPU","16GB","2TB SSD","96W USB-C Power adapter"]
["9VM044","Z15K00105","CTO 14IN MACBOOK PRO M1 PRO 10C CPU 16C GPU 32GB 1TB SILVER ",2899,"Direct Ship","MKGT3LL/A","06NX99/SCPG2LL/A",195,"14IN MBP","Silver","M1 PRO","10-core CPU and 16-core GPU","32GB","1TB SSD","96W USB-C Power adapter"]
["9VM045","Z15K000ZM","CTO 14IN MACBOOK PRO M1 PRO 10C CPU 16C GPU 16GB 2TB SILVER ",2899,"Direct Ship","MKGT3LL/A","06NX99/SCPG2LL/A",195,"14IN MBP","Silver","M1 PRO","10-core CPU and 16-core GPU","16GB","2TB SSD","96W USB-C Power adapter"]
["9VL934","Z15G001X3","CTO 14IN MACBOOK PRO M1 PRO 10C CPU 14C GPU 32GB 1TB SP GRAY ",2799,"Direct Ship","MKGP3LL/A","06NX99/SCPG2LL/A",195,"14IN MBP","Space Gray","M1 PRO","10-core CPU and 14-core GPU","32GB","1TB SSD","96W USB-C Power adapter"]
["9VL935","Z15G001WH","CTO 14IN MACBOOK PRO M1 PRO 10C CPU 14C GPU 16GB 2TB SP GRAY ",2799,"Direct Ship","MKGP3LL/A","06NX99/SCPG2LL/A",195,"14IN MBP","Space Gray","M1 PRO","10-core CPU and 14-core GPU","16GB","2TB SSD","96W USB-C Power adapter"]
["9VL983","Z15J001WQ","CTO 14IN MACBOOK PRO M1 PRO 10C CPU 14C GPU 32GB 1TB SILVER ",2799,"Direct Ship","MKGR3LL/A","06NX99/SCPG2LL/A",195,"14IN MBP","Silver","M1 PRO","10-core CPU and 14-core GPU","32GB","1TB SSD","96W USB-C Power adapter"]
["9VL984","Z15J001WU","CTO 14IN MACBOOK PRO M1 PRO 10C CPU 14C GPU 16GB 2TB SILVER ",2799,"Direct Ship","MKGR3LL/A","06NX99/SCPG2LL/A",195,"14IN MBP","Silver","M1 PRO","10-core CPU and 14-core GPU","16GB","2TB SSD","96W USB-C Power adapter"]
["9YG997","Z14V0015W","CTO 16IN MACBOOK PRO M1 PRO  10C CPU 16C GPU 16GB 1TB SP GRAY ",2699,"Direct Ship","MK183LL/A","07DZ76/SDYP2LL/A",279,"16IN MBP","Space Gray","M1 PRO","10-core CPU and 16-core GPU","16GB","1TB SSD","140W USB-C Power Adapter"]
["9YH027","Z14Y0015T","CTO 16IN MACBOOK PRO M1 PRO  10C CPU 16C GPU 16GB 1TB SILVER ",2699,"Direct Ship","MK1E3LL/A","07DZ76/SDYP2LL/A",279,"16IN MBP","Silver","M1 PRO","10-core CPU and 16-core GPU","16GB","1TB SSD","140W USB-C Power Adapter"]
["9YG944","MK193LL/A","16-INCH MACBOOK PRO: APPLE M1 PRO CHIP WITH 10‑CORE CPU AND 16‑CORE GPU, 1TB SSD - SPACE GRAY",2699,"Stocked",null,"07DZ76/SDYP2LL/A",279,"16IN MBP","Space Gray","M1 PRO","10-core CPU and 16-core GPU","16GB","1TB SSD","140W USB-C Power Adapter"]
["9YG945","MK1F3LL/A","16-INCH MACBOOK PRO: APPLE M1 PRO CHIP WITH 10‑CORE CPU AND 16‑CORE GPU, 1TB SSD - SILVER",2699,"Stocked",null,"07DZ76/SDYP2LL/A",279,"16IN MBP","Silver","M1 PRO","10-core CPU and 16-core GPU","16GB","1TB SSD","140W USB-C Power Adapter"]
["9VL942","Z15G001X7","CTO 14IN MACBOOK PRO M1 PRO 10C CPU 16C GPU 32GB 512GB SP GRAY ",2699,"Direct Ship","MKGP3LL/A","06NX99/SCPG2LL/A",195,"14IN MBP","Space Gray","M1 PRO","10-core CPU and 16-core GPU","32GB","512GB SSD","96W USB-C Power adapter"]
["9VL991","Z15J001WG","CTO 14IN MACBOOK PRO M1 PRO 10C CPU 16C GPU 32GB 512GB SILVER ",2699,"Direct Ship","MKGR3LL/A","06NX99/SCPG2LL/A",195,"14IN MBP","Silver","M1 PRO","10-core CPU and 16-core GPU","32GB","512GB SSD","96W USB-C Power adapter"]
["9YL024","Z15G0023R","CTO 14IN MACBOOK PRO M1 PRO 8C CPU 14C GPU 32GB 1TB SP GRAY 96W ",2619,"Direct Ship","MKGP3LL/A","06NX99/SCPG2LL/A",195,"14IN MBP","Space Gray","M1 PRO","8-core CPU and 14-core GPU","32GB","1TB SSD","96W USB-C Power adapter"]
["9YL007","Z15G0023S","CTO 14IN MACBOOK PRO M1 PRO 8C CPU 14C GPU 16GB 2TB SP GRAY 96W ",2619,"Direct Ship","MKGP3LL/A","06NX99/SCPG2LL/A",195,"14IN MBP","Space Gray","M1 PRO","8-core CPU and 14-core GPU","16GB","2TB SSD","96W USB-C Power adapter"]
["9YL015","Z15J0022W","CTO 14IN MACBOOK PRO M1 PRO 8C CPU 14C GPU 32GB 1TB SILVER 96W ",2619,"Direct Ship","MKGR3LL/A","06NX99/SCPG2LL/A",195,"14IN MBP","Silver","M1 PRO","8-core CPU and 14-core GPU","32GB","1TB SSD","96W USB-C Power adapter"]
["9YL016","Z15J0023V","CTO 14IN MACBOOK PRO M1 PRO 8C CPU 14C GPU 16GB 2TB SILVER 96W ",2619,"Direct Ship","MKGR3LL/A","06NX99/SCPG2LL/A",195,"14IN MBP","Silver","M1 PRO","8-core CPU and 14-core GPU","16GB","2TB SSD","96W USB-C Power adapter"]
["9VL924","Z15G001WY","CTO 14IN MACBOOK PRO M1 PRO 8C CPU 14C GPU 32GB 1TB SP GRAY ",2599,"Direct Ship","MKGP3LL/A","06NX99/SCPG2LL/A",195,"14IN MBP","Space Gray","M1 PRO","8-core CPU and 14-core GPU","32GB","1TB SSD","67W USB-C  Power adapter"]
["9VL925","Z15G001VS","CTO 14IN MACBOOK PRO M1 PRO 8C CPU 14C GPU 16GB 2TB SP GRAY ",2599,"Direct Ship","MKGP3LL/A","06NX99/SCPG2LL/A",195,"14IN MBP","Space Gray","M1 PRO","8-core CPU and 14-core GPU","16GB","2TB SSD","67W USB-C  Power adapter"]
["9VL932","Z15G001X2","CTO 14IN MACBOOK PRO M1 PRO 10C CPU 14C GPU 32GB 512GB SP GRAY ",2599,"Direct Ship","MKGP3LL/A","06NX99/SCPG2LL/A",195,"14IN MBP","Space Gray","M1 PRO","10-core CPU and 14-core GPU","32GB","512GB SSD","96W USB-C Power adapter"]
["9VL973","Z15J001WP","CTO 14IN MACBOOK PRO M1 PRO 8C CPU 14C GPU 32GB 1TB SILVER ",2599,"Direct Ship","MKGR3LL/A","06NX99/SCPG2LL/A",195,"14IN MBP","Silver","M1 PRO","8-core CPU and 14-core GPU","32GB","1TB SSD","67W USB-C  Power adapter"]
["9VL974","Z15J001VR","CTO 14IN MACBOOK PRO M1 PRO 8C CPU 14C GPU 16GB 2TB SILVER ",2599,"Direct Ship","MKGR3LL/A","06NX99/SCPG2LL/A",195,"14IN MBP","Silver","M1 PRO","8-core CPU and 14-core GPU","16GB","2TB SSD","67W USB-C  Power adapter"]
["9VL981","Z15J001WF","CTO 14IN MACBOOK PRO M1 PRO 10C CPU 14C GPU 32GB 512GB SILVER ",2599,"Direct Ship","MKGR3LL/A","06NX99/SCPG2LL/A",195,"14IN MBP","Silver","M1 PRO","10-core CPU and 14-core GPU","32GB","512GB SSD","96W USB-C Power adapter"]
["9YH894","Z15G001WY","CTO 14IN MACBOOK PRO M1 PRO 8C CPU 14C GPU 32GB 1TB SP GRAY ",2599,"Stocked","MKGP3LL/A","06NX99/SCPG2LL/A",195,"14IN MBP","Space Gray","M1 PRO","8-core CPU and 14-core GPU","32GB","1TB SSD","67W USB-C  Power adapter"]
["9YG942","MK183LL/A","16-INCH MACBOOK PRO: APPLE M1 PRO CHIP WITH 10‑CORE CPU AND 16‑CORE GPU, 512GB SSD - SPACE GRAY",2499,"Stocked",null,"07DZ76/SDYP2LL/A",279,"16IN MBP","Space Gray","M1 PRO","10-core CPU and 16-core GPU","16GB","512GB SSD","140W USB-C Power Adapter"]
["9YG943","MK1E3LL/A","16-INCH MACBOOK PRO: APPLE M1 PRO CHIP WITH 10‑CORE CPU AND 16‑CORE GPU, 512GB SSD - SILVER",2499,"Stocked",null,"07DZ76/SDYP2LL/A",279,"16IN MBP","Silver","M1 PRO","10-core CPU and 16-core GPU","16GB","512GB SSD","140W USB-C Power Adapter"]
["9VL943","Z15G001WL","CTO 14IN MACBOOK PRO M1 PRO 10C CPU 16C GPU 16GB 1TB SP GRAY ",2499,"Direct Ship","MKGP3LL/A","06NX99/SCPG2LL/A",195,"14IN MBP","Space Gray","M1 PRO","10-core CPU and 16-core GPU","16GB","1TB SSD","96W USB-C Power adapter"]
["9VL992","Z15J001WL","CTO 14IN MACBOOK PRO M1 PRO 10C CPU 16C GPU 16GB 1TB SILVER ",2499,"Direct Ship","MKGR3LL/A","06NX99/SCPG2LL/A",195,"14IN MBP","Silver","M1 PRO","10-core CPU and 16-core GPU","16GB","1TB SSD","96W USB-C Power adapter"]
["9YG940","MKGQ3LL/A","14-INCH MACBOOK PRO: APPLE M1 PRO CHIP WITH 10‑CORE CPU AND 16‑CORE GPU, 1TB SSD - SPACE GRAY",2499,"Stocked",null,"06NX99/SCPG2LL/A",195,"14IN MBP","Space Gray","M1 PRO","10-core CPU and 16-core GPU","16GB","1TB SSD","96W USB-C Power adapter"]
["9YG941","MKGT3LL/A","14-INCH MACBOOK PRO: APPLE M1 PRO CHIP WITH 10‑CORE CPU AND 16‑CORE GPU, 1TB SSD - SILVER",2499,"Stocked",null,"06NX99/SCPG2LL/A",195,"14IN MBP","Silver","M1 PRO","10-core CPU and 16-core GPU","16GB","1TB SSD","96W USB-C Power adapter"]
["07DZ45","Z16T0006S","CTO 13IN MACBOOK PRO M2 8C 10C GPU 24GB 2TB SSD Silver",2499,"Direct Ship","MNEP3LL/A ","06NY08/SF932LL/A",174,"13IN MBP","Silver","M2","8-core CPU and 10-core GPU","24GB","2TB SSD","67W USB-C  Power adapter"]
["07DZ56","Z16R0005Z","CTO 13IN MACBOOK PRO M2 8C 10C GPU 24GB 2TB SSD Space gray",2499,"Direct Ship","MNEH3LL/A ","06NY08/SF932LL/A",174,"13IN MBP","Space Gray","M2","8-core CPU and 10-core GPU","24GB","2TB SSD","67W USB-C  Power adapter"]
["07DZ64","Z16U0005J","CTO 13IN MACBOOK PRO M2 8C 10C GPU 24GB 2TB SSD Silver",2499,"Direct Ship","MNEQ3LL/A ","06NY08/SF932LL/A",174,"13IN MBP","Silver","M2","8-core CPU and 10-core GPU","24GB","2TB SSD","67W USB-C  Power adapter"]
["07DZ72","Z16S0005J","CTO 13IN MACBOOK PRO M2 8C 10C GPU 24GB 2TB SSD Space gray",2499,"Direct Ship","MNEJ3LL/A","06NY08/SF932LL/A",174,"13IN MBP","Space Gray","M2","8-core CPU and 10-core GPU","24GB","2TB SSD","67W USB-C  Power adapter"]
["9YL005","Z15G0021L","CTO 14IN MACBOOK PRO M1 PRO 8C CPU 14C GPU 32GB 512GB SP GRAY 96W ",2419,"Direct Ship","MKGP3LL/A","06NX99/SCPG2LL/A",195,"14IN MBP","Space Gray","M1 PRO","8-core CPU and 14-core GPU","32GB","512GB SSD","96W USB-C Power adapter"]
["9YL013","Z15J0021W","CTO 14IN MACBOOK PRO M1 PRO 8C CPU 14C GPU 32GB 512GB SILVER 96W ",2419,"Direct Ship","MKGR3LL/A","06NX99/SCPG2LL/A",195,"14IN MBP","Silver","M1 PRO","8-core CPU and 14-core GPU","32GB","512GB SSD","96W USB-C Power adapter"]
["9VL922","Z15G001WA","CTO 14IN MACBOOK PRO M1 PRO 8C CPU 14C GPU 32GB 512GB SP GRAY ",2399,"Direct Ship","MKGP3LL/A","06NX99/SCPG2LL/A",195,"14IN MBP","Space Gray","M1 PRO","8-core CPU and 14-core GPU","32GB","512GB SSD","67W USB-C  Power adapter"]
["9VL933","Z15G001WG","CTO 14IN MACBOOK PRO M1 PRO 10C CPU 14C GPU 16GB 1TB SP GRAY ",2399,"Direct Ship","MKGP3LL/A","06NX99/SCPG2LL/A",195,"14IN MBP","Space Gray","M1 PRO","10-core CPU and 14-core GPU","16GB","1TB SSD","96W USB-C Power adapter"]
["9VL971","Z15J001W9","CTO 14IN MACBOOK PRO M1 PRO 8C CPU 14C GPU 32GB 512GB SILVER ",2399,"Direct Ship","MKGR3LL/A","06NX99/SCPG2LL/A",195,"14IN MBP","Silver","M1 PRO","8-core CPU and 14-core GPU","32GB","512GB SSD","67W USB-C  Power adapter"]
["9VL982","Z15J001WK","CTO 14IN MACBOOK PRO M1 PRO 10C CPU 14C GPU 16GB 1TB SILVER ",2399,"Direct Ship","MKGR3LL/A","06NX99/SCPG2LL/A",195,"14IN MBP","Silver","M1 PRO","10-core CPU and 14-core GPU","16GB","1TB SSD","96W USB-C Power adapter"]
["9YH893","Z15G001WA","CTO 14IN MACBOOK PRO M1 PRO 8C CPU 14C GPU 32GB 512GB SP GRAY ",2399,"Stocked","MKGP3LL/A","06NX99/SCPG2LL/A",195,"14IN MBP","Space Gray","M1 PRO","8-core CPU and 14-core GPU","32GB","512GB SSD","67W USB-C  Power adapter"]
["9VL941","Z15G001WD","CTO 14IN MACBOOK PRO M1 PRO 10C CPU 16C GPU 16GB 512GB SP GRAY ",2299,"Direct Ship","MKGP3LL/A","06NX99/SCPG2LL/A",195,"14IN MBP","Space Gray","M1 PRO","10-core CPU and 16-core GPU","16GB","512GB SSD","96W USB-C Power adapter"]
["9VL990","Z15J001WC","CTO 14IN MACBOOK PRO M1 PRO 10C CPU 16C GPU 16GB 512GB SILVER ",2299,"Direct Ship","MKGR3LL/A","06NX99/SCPG2LL/A",195,"14IN MBP","Silver","M1 PRO","10-core CPU and 16-core GPU","16GB","512GB SSD","96W USB-C Power adapter"]
["07DZ41","Z16T0006P","CTO 13IN MACBOOK PRO M2 8C 10C GPU 16GB 2TB SSD Silver",2299,"Direct Ship","MNEP3LL/A ","06NY08/SF932LL/A",174,"13IN MBP","Silver","M2","8-core CPU and 10-core GPU","16GB","2TB SSD","67W USB-C  Power adapter"]
["07DZ52","Z16R0005W","CTO 13IN MACBOOK PRO M2 8C 10C GPU 16GB 2TB SSD Space gray",2299,"Direct Ship","MNEH3LL/A ","06NY08/SF932LL/A",174,"13IN MBP","Space Gray","M2","8-core CPU and 10-core GPU","16GB","2TB SSD","67W USB-C  Power adapter"]
["07DZ61","Z16U0005H","CTO 13IN MACBOOK PRO M2 8C 10C GPU 16GB 2TB SSD Silver",2299,"Direct Ship","MNEQ3LL/A ","06NY08/SF932LL/A",174,"13IN MBP","Silver","M2","8-core CPU and 10-core GPU","16GB","2TB SSD","67W USB-C  Power adapter"]
["07DZ69","Z16S0005G","CTO 13IN MACBOOK PRO M2 8C 10C GPU 16GB 2TB SSD Space gray",2299,"Direct Ship","MNEJ3LL/A","06NY08/SF932LL/A",174,"13IN MBP","Space Gray","M2","8-core CPU and 10-core GPU","16GB","2TB SSD","67W USB-C  Power adapter"]
["9YL006","Z15G0022J","CTO 14IN MACBOOK PRO M1 PRO 8C CPU 14C GPU 16GB 1TB SP GRAY 96W ",2219,"Direct Ship","MKGP3LL/A","06NX99/SCPG2LL/A",195,"14IN MBP","Space Gray","M1 PRO","8-core CPU and 14-core GPU","16GB","1TB SSD","96W USB-C Power adapter"]
["9YL014","Z15J00227","CTO 14IN MACBOOK PRO M1 PRO 8C CPU 14C GPU 16GB 1TB SILVER 96W ",2219,"Direct Ship","MKGR3LL/A","06NX99/SCPG2LL/A",195,"14IN MBP","Silver","M1 PRO","8-core CPU and 14-core GPU","16GB","1TB SSD","96W USB-C Power adapter"]
["9VL923","Z15G001VR","CTO 14IN MACBOOK PRO M1 PRO 8C CPU 14C GPU 16GB 1TB SP GRAY ",2199,"Direct Ship","MKGP3LL/A","06NX99/SCPG2LL/A",195,"14IN MBP","Space Gray","M1 PRO","8-core CPU and 14-core GPU","16GB","1TB SSD","67W USB-C  Power adapter"]
["9VL931","Z15G001WC","CTO 14IN MACBOOK PRO M1 PRO 10C CPU 14C GPU 16GB 512GB SP GRAY ",2199,"Direct Ship","MKGP3LL/A","06NX99/SCPG2LL/A",195,"14IN MBP","Space Gray","M1 PRO","10-core CPU and 14-core GPU","16GB","512GB SSD","96W USB-C Power adapter"]
["9VL972","Z15J001VQ","CTO 14IN MACBOOK PRO M1 PRO 8C CPU 14C GPU 16GB 1TB SILVER ",2199,"Direct Ship","MKGR3LL/A","06NX99/SCPG2LL/A",195,"14IN MBP","Silver","M1 PRO","8-core CPU and 14-core GPU","16GB","1TB SSD","67W USB-C  Power adapter"]
["9VL980","Z15J001WB","CTO 14IN MACBOOK PRO M1 PRO 10C CPU 14C GPU 16GB 512GB SILVER ",2199,"Direct Ship","MKGR3LL/A","06NX99/SCPG2LL/A",195,"14IN MBP","Silver","M1 PRO","10-core CPU and 14-core GPU","16GB","512GB SSD","96W USB-C Power adapter"]
["9YH892","Z15G001VR","CTO 14IN MACBOOK PRO M1 PRO 8C CPU 14C GPU 16GB 1TB SP GRAY ",2199,"Stocked","MKGP3LL/A","06NX99/SCPG2LL/A",195,"14IN MBP","Space Gray","M1 PRO","8-core CPU and 14-core GPU","16GB","1TB SSD","67W USB-C  Power adapter"]
["07DZ37","Z16T00063","CTO 13IN MACBOOK PRO M2 8C 10C GPU 8GB 2TB SSD Silver",2099,"Direct Ship","MNEP3LL/A ","06NY08/SF932LL/A",174,"13IN MBP","Silver","M2","8-core CPU and 10-core GPU","8GB","2TB SSD","67W USB-C  Power adapter"]
["07DZ44","Z16T0006R","CTO 13IN MACBOOK PRO M2 8C 10C GPU 24GB 1TB SSD Silver",2099,"Direct Ship","MNEP3LL/A ","06NY08/SF932LL/A",174,"13IN MBP","Silver","M2","8-core CPU and 10-core GPU","24GB","1TB SSD","67W USB-C  Power adapter"]
["07DZ48","Z16R0005K","CTO 13IN MACBOOK PRO M2 8C 10C GPU 8GB 2TB SSD Space gray",2099,"Direct Ship","MNEH3LL/A ","06NY08/SF932LL/A",174,"13IN MBP","Space Gray","M2","8-core CPU and 10-core GPU","8GB","2TB SSD","67W USB-C  Power adapter"]
["07DZ55","Z16R0005Y","CTO 13IN MACBOOK PRO M2 8C 10C GPU 24GB 1TB SSD Space gray",2099,"Direct Ship","MNEH3LL/A ","06NY08/SF932LL/A",174,"13IN MBP","Space Gray","M2","8-core CPU and 10-core GPU","24GB","1TB SSD","67W USB-C  Power adapter"]
["07DZ58","Z16U0004X","CTO 13IN MACBOOK PRO M2 8C 10C GPU 8GB 2TB SSD Silver",2099,"Direct Ship","MNEQ3LL/A ","06NY08/SF932LL/A",174,"13IN MBP","Silver","M2","8-core CPU and 10-core GPU","8GB","2TB SSD","67W USB-C  Power adapter"]
["07DZ63","Z16U0005G","CTO 13IN MACBOOK PRO M2 8C 10C GPU 24GB 1TB SSD Silver",2099,"Direct Ship","MNEQ3LL/A ","06NY08/SF932LL/A",174,"13IN MBP","Silver","M2","8-core CPU and 10-core GPU","24GB","1TB SSD","67W USB-C  Power adapter"]
["07DZ66","Z16S0004X","CTO 13IN MACBOOK PRO M2 8C 10C GPU 8GB 2TB SSD Space gray",2099,"Direct Ship","MNEJ3LL/A","06NY08/SF932LL/A",174,"13IN MBP","Space Gray","M2","8-core CPU and 10-core GPU","8GB","2TB SSD","67W USB-C  Power adapter"]
["07DZ71","Z16S0005H","CTO 13IN MACBOOK PRO M2 8C 10C GPU 24GB 1TB SSD Space gray",2099,"Direct Ship","MNEJ3LL/A","06NY08/SF932LL/A",174,"13IN MBP","Space Gray","M2","8-core CPU and 10-core GPU","24GB","1TB SSD","67W USB-C  Power adapter"]
["9ZN702","Z15G001XP","CTO 14IN MACBOOK PRO M1 PRO 8C CPU 14C GPU 16GB 512GB SPACE GRAY 96W ",2019,"Direct Ship","MKGP3LL/A","06NX99/SCPG2LL/A",195,"14IN MBP","Space Gray","M1 PRO","8-core CPU and 14-core GPU","16GB","512GB SSD","96W USB-C Power adapter"]
["9YL022","Z15J001XN","CTO 14IN MACBOOK PRO M1 PRO 8C CPU 14C GPU 16GB 512GB SILVER 96W ",2019,"Direct Ship","MKGR3LL/A","06NX99/SCPG2LL/A",195,"14IN MBP","Silver","M1 PRO","8-core CPU and 14-core GPU","16GB","512GB SSD","96W USB-C Power adapter"]
["9YG938","MKGP3LL/A","14-INCH MACBOOK PRO: APPLE M1 PRO CHIP WITH 8‑CORE CPU AND 14‑CORE GPU, 512GB SSD - SPACE GRAY",1999,"Stocked",null,"06NX99/SCPG2LL/A",195,"14IN MBP","Space Gray","M1 PRO","8-core CPU and 14-core GPU","16GB","512GB SSD","67W USB-C  Power adapter"]
["9YG939","MKGR3LL/A","14-INCH MACBOOK PRO: APPLE M1 PRO CHIP WITH 8‑CORE CPU AND 14‑CORE GPU, 512GB SSD - SILVER",1999,"Stocked",null,"06NX99/SCPG2LL/A",195,"14IN MBP","Silver","M1 PRO","8-core CPU and 14-core GPU","16GB","512GB SSD","67W USB-C  Power adapter"]
["8RB894","Z124000FN","CTO 13IN MACBOOK AIR M1 7C GPU 16GB MEMORY 2TB SSD SPACE GRAY ",1999,"Direct Ship","MGN63LL/A","06NX89/S9788LL/A",139,"13IN MB AIR","Space Gray","M1","8-core CPU and 7-core GPU","16GB","2TB SSD","30W USB-C Power Adapter"]
["8RB901","Z127000FN","CTO 13IN MACBOOK AIR M1 7C GPU 16GB MEMORY 2TB SSD SILVER ",1999,"Direct Ship","MGN93LL/A","06NX89/S9788LL/A",139,"13IN MB AIR","Silver","M1","8-core CPU and 7-core GPU","16GB","2TB SSD","30W USB-C Power Adapter"]
["8RB908","Z12A000FN","CTO 13IN MACBOOK AIR M1 7C GPU 16GB MEMORY 2TB SSD GOLD ",1999,"Direct Ship","MGND3LL/A","06NX89/S9788LL/A",139,"13IN MB AIR","Gold","M1","8-core CPU and 7-core GPU","16GB","2TB SSD","30W USB-C Power Adapter"]
["07DZ40","Z16T0006N","CTO 13IN MACBOOK PRO M2 8C 10C GPU 16GB 1TB SSD Silver",1899,"Direct Ship","MNEP3LL/A ","06NY08/SF932LL/A",174,"13IN MBP","Silver","M2","8-core CPU and 10-core GPU","16GB","1TB SSD","67W USB-C  Power adapter"]
["07DZ43","Z16T0006Q","CTO 13IN MACBOOK PRO M2 8C 10C GPU 24GB 512GB SSD Silver",1899,"Direct Ship","MNEP3LL/A ","06NY08/SF932LL/A",174,"13IN MBP","Silver","M2","8-core CPU and 10-core GPU","24GB","512GB SSD","67W USB-C  Power adapter"]
["07DZ51","Z16R0005V","CTO 13IN MACBOOK PRO M2 8C 10C GPU 16GB 1TB SSD Space gray",1899,"Direct Ship","MNEH3LL/A ","06NY08/SF932LL/A",174,"13IN MBP","Space Gray","M2","8-core CPU and 10-core GPU","16GB","1TB SSD","67W USB-C  Power adapter"]
["07DZ54","Z16R0005X","CTO 13IN MACBOOK PRO M2 8C 10C GPU 24GB 512GB SSD Space gray",1899,"Direct Ship","MNEH3LL/A ","06NY08/SF932LL/A",174,"13IN MBP","Space Gray","M2","8-core CPU and 10-core GPU","24GB","512GB SSD","67W USB-C  Power adapter"]
["07DZ60","Z16U0005F","CTO 13IN MACBOOK PRO M2 8C 10C GPU 16GB 1TB SSD Silver",1899,"Direct Ship","MNEQ3LL/A ","06NY08/SF932LL/A",174,"13IN MBP","Silver","M2","8-core CPU and 10-core GPU","16GB","1TB SSD","67W USB-C  Power adapter"]
["07DZ62","Z16U0005E","CTO 13IN MACBOOK PRO M2 8C 10C GPU 24GB 512GB SSD Silver",1899,"Direct Ship","MNEQ3LL/A ","06NY08/SF932LL/A",174,"13IN MBP","Silver","M2","8-core CPU and 10-core GPU","24GB","512GB SSD","67W USB-C  Power adapter"]
["07DZ68","Z16S0005F","\\",1899,"Direct Ship","MNEJ3LL/A","06NY08/SF932LL/A",174,"13IN MBP","Space Gray","M2","8-core CPU and 10-core GPU","16GB","1TB SSD","67W USB-C  Power adapter"]
["07DZ70","Z16S0005E","CTO 13IN MACBOOK PRO M2 8C 10C GPU 24GB 512GB SSD Space gray",1899,"Direct Ship","MNEJ3LL/A","06NY08/SF932LL/A",174,"13IN MBP","Space Gray","M2","8-core CPU and 10-core GPU","24GB","512GB SSD","67W USB-C  Power adapter"]
["8RB893","Z124000F4","CTO 13IN MACBOOK AIR M1 7C GPU 8GB MEMORY 2TB SSD SPACE GRAY ",1799,"Direct Ship","MGN63LL/A","06NX89/S9788LL/A",139,"13IN MB AIR","Space Gray","M1","8-core CPU and 7-core GPU","8GB","2TB SSD","30W USB-C Power Adapter"]
["8RB900","Z127000F4","CTO 13IN MACBOOK AIR M1 7C GPU 8GB MEMORY 2TB SSD SILVER ",1799,"Direct Ship","MGN93LL/A","06NX89/S9788LL/A",139,"13IN MB AIR","Silver","M1","8-core CPU and 7-core GPU","8GB","2TB SSD","30W USB-C Power Adapter"]
["8RB907","Z12A000F4","CTO 13IN MACBOOK AIR M1 7C GPU 8GB MEMORY 2TB SSD GOLD ",1799,"Direct Ship","MGND3LL/A","06NX89/S9788LL/A",139,"13IN MB AIR","Gold","M1","8-core CPU and 7-core GPU","8GB","2TB SSD","30W USB-C Power Adapter"]
["07DZ36","Z16T00062","CTO 13IN MACBOOK PRO M2 8C 10C GPU 8GB 1TB SSD Silver",1699,"Direct Ship","MNEP3LL/A ","06NY08/SF932LL/A",174,"13IN MBP","Silver","M2","8-core CPU and 10-core GPU","8GB","1TB SSD","67W USB-C  Power adapter"]
["07DZ39","Z16T0006M","CTO 13IN MACBOOK PRO M2 8C 10C GPU 16GB 512GB SSD Silver",1699,"Direct Ship","MNEP3LL/A ","06NY08/SF932LL/A",174,"13IN MBP","Silver","M2","8-core CPU and 10-core GPU","16GB","512GB SSD","67W USB-C  Power adapter"]
["07DZ42","Z16T0006L","CTO 13IN MACBOOK PRO M2 8C 10C GPU 24GB 256GB SSD Silver",1699,"Direct Ship","MNEP3LL/A ","06NY08/SF932LL/A",174,"13IN MBP","Silver","M2","8-core CPU and 10-core GPU","24GB","256GB SSD","67W USB-C  Power adapter"]
["07DZ47","Z16R0005J","CTO 13IN MACBOOK PRO M2 8C 10C GPU 8GB 1TB SSD Space gray",1699,"Direct Ship","MNEH3LL/A ","06NY08/SF932LL/A",174,"13IN MBP","Space Gray","M2","8-core CPU and 10-core GPU","8GB","1TB SSD","67W USB-C  Power adapter"]
["07DZ50","Z16R0005U","CTO 13IN MACBOOK PRO M2 8C 10C GPU 16GB 512GB SSD Space gray",1699,"Direct Ship","MNEH3LL/A ","06NY08/SF932LL/A",174,"13IN MBP","Space Gray","M2","8-core CPU and 10-core GPU","16GB","512GB SSD","67W USB-C  Power adapter"]
["07DZ53","Z16R0005T","CTO 13IN MACBOOK PRO M2 8C 10C GPU 24GB 256GB SSD Space gray",1699,"Direct Ship","MNEH3LL/A ","06NY08/SF932LL/A",174,"13IN MBP","Space Gray","M2","8-core CPU and 10-core GPU","24GB","256GB SSD","67W USB-C  Power adapter"]
["07DZ57","Z16U0004W","CTO 13IN MACBOOK PRO M2 8C 10C GPU 8GB 1TB SSD Silver",1699,"Direct Ship","MNEQ3LL/A ","06NY08/SF932LL/A",174,"13IN MBP","Silver","M2","8-core CPU and 10-core GPU","8GB","1TB SSD","67W USB-C  Power adapter"]
["07DZ59","Z16U0005D","CTO 13IN MACBOOK PRO M2 8C 10C GPU 16GB 512GB SSD Silver",1699,"Direct Ship","MNEQ3LL/A ","06NY08/SF932LL/A",174,"13IN MBP","Silver","M2","8-core CPU and 10-core GPU","16GB","512GB SSD","67W USB-C  Power adapter"]
["07DZ65","Z16S0004W","CTO 13IN MACBOOK PRO M2 8C 10C GPU 8GB 1TB SSD Space gray",1699,"Direct Ship","MNEJ3LL/A","06NY08/SF932LL/A",174,"13IN MBP","Space Gray","M2","8-core CPU and 10-core GPU","8GB","1TB SSD","67W USB-C  Power adapter"]
["07DZ67","Z16S0005D","CTO 13IN MACBOOK PRO M2 8C 10C GPU 16GB 512GB SSD Space gray",1699,"Direct Ship","MNEJ3LL/A","06NY08/SF932LL/A",174,"13IN MBP","Space Gray","M2","8-core CPU and 10-core GPU","16GB","512GB SSD","67W USB-C  Power adapter"]
["8RB892","Z124000FM","CTO 13IN MACBOOK AIR M1 7C GPU 16GB MEMORY 1TB SSD SPACE GRAY ",1599,"Direct Ship","MGN63LL/A","06NX89/S9788LL/A",139,"13IN MB AIR","Space Gray","M1","8-core CPU and 7-core GPU","16GB","1TB SSD","30W USB-C Power Adapter"]
["8RB899","Z127000FM","CTO 13IN MACBOOK AIR M1 7C GPU 16GB MEMORY 1TB SSD SILVER ",1599,"Direct Ship","MGN93LL/A","06NX89/S9788LL/A",139,"13IN MB AIR","Silver","M1","8-core CPU and 7-core GPU","16GB","1TB SSD","30W USB-C Power Adapter"]
["8RB906","Z12A000FM","CTO 13IN MACBOOK AIR M1 7C GPU 16GB MEMORY 1TB SSD GOLD ",1599,"Direct Ship","MGND3LL/A","06NX89/S9788LL/A",139,"13IN MB AIR","Gold","M1","8-core CPU and 7-core GPU","16GB","1TB SSD","30W USB-C Power Adapter"]
["07DV60","MNEJ3LL/A","13-inch MacBook Pro: Apple M2 chip with 8-core CPU and 10-core GPU, 512GB SSD - Space Gray",1299,"Stocked",null,"06NY08/SF932LL/A",174,"13IN MBP","Space Gray","M2","8-core CPU and 10-core GPU","8GB","512GB SSD","67W USB-C  Power adapter"]
["07DV61","MNEQ3LL/A","13-inch MacBook Pro: Apple M2 chip with 8-core CPU and 10-core GPU, 512GB SSD - Silver",1299,"Stocked",null,"06NY08/SF932LL/A",174,"13IN MBP","Silver","M2","8-core CPU and 10-core GPU","8GB","512GB SSD","67W USB-C  Power adapter"]
["07DZ35","Z16T00061","CTO 13IN MACBOOK PRO M2 8C 10C GPU 8GB 512GB SSD Silver",1499,"Direct Ship","MNEP3LL/A ","06NY08/SF932LL/A",174,"13IN MBP","Silver","M2","8-core CPU and 10-core GPU","8GB","512GB SSD","67W USB-C  Power adapter"]
["07DZ38","Z16T0006K","CTO 13IN MACBOOK PRO M2 8C 10C GPU 16GB 256GB SSD Silver",1499,"Direct Ship","MNEP3LL/A ","06NY08/SF932LL/A",174,"13IN MBP","Silver","M2","8-core CPU and 10-core GPU","16gb","256GB SSD","67W USB-C  Power adapter"]
["07DZ46","Z16R0005H","CTO 13IN MACBOOK PRO M2 8C 10C GPU 8GB 512GB SSD Space gray",1499,"Direct Ship","MNEH3LL/A ","06NY08/SF932LL/A",174,"13IN MBP","Space Gray","M2","8-core CPU and 10-core GPU","8GB","512GB SSD","67W USB-C  Power adapter"]
["07DZ49","Z16R0005S","CTO 13IN MACBOOK PRO M2 8C 10C GPU 16GB 256GB SSD Space gray",1499,"Direct Ship","MNEH3LL/A ","06NY08/SF932LL/A",174,"13IN MBP","Space Gray","M2","8-core CPU and 10-core GPU","16GB","256GB SSD","67W USB-C  Power adapter"]
["07DV54","MLXX3LL/A","13-inch MacBook Air: Apple M2 chip with 8-core CPU and 10-core GPU, 512GB - Space Gray",1499,"Stocked",null,"06NY07/SF8C2LL/A",160,"13IN MB AIR","Space Gray","M2","8-core CPU and 10-core GPU","8GB","512GB SSD","35W Dual USB-C Port Compact Power Adapter"]
["07DV55","MLY03LL/A","13-inch MacBook Air: Apple M2 chip with 8-core CPU and 10-core GPU, 512GB - Silver",1499,"Stocked",null,"06NY07/SF8C2LL/A",160,"13IN MB AIR","Silver","M2","8-core CPU and 10-core GPU","8GB","512GB SSD","35W Dual USB-C Port Compact Power Adapter"]
["07DV56","MLY23LL/A","13-inch MacBook Air: Apple M2 chip with 8-core CPU and 10-core GPU, 512GB - Starlight",1499,"Stocked",null,"06NY07/SF8C2LL/A",160,"13IN MB AIR","Starlight","M2","8-core CPU and 10-core GPU","8GB","512GB SSD","35W Dual USB-C Port Compact Power Adapter"]
["07DV57","MLY43LL/A","13-inch MacBook Air: Apple M2 chip with 8-core CPU and 10-core GPU, 512GB - Midnight",1499,"Stocked",null,"06NY07/SF8C2LL/A",160,"13IN MB AIR","Midnight","M2","8-core CPU and 10-core GPU","8GB","512GB SSD","35W Dual USB-C Port Compact Power Adapter"]
["8RB890","Z124000FL","CTO 13IN MACBOOK AIR M1 7C GPU 16GB MEMORY 512GB SSD SPACE GRAY ",1399,"Direct Ship","MGN63LL/A","06NX89/S9788LL/A",139,"13IN MB AIR","Space Gray","M1","8-core CPU and 7-core GPU","16GB","512GB SSD","30W USB-C Power Adapter"]
["8RB891","Z124000F3","CTO 13IN MACBOOK AIR M1 7C GPU 8GB MEMORY 1TB SSD SPACE GRAY ",1399,"Direct Ship","MGN63LL/A","06NX89/S9788LL/A",139,"13IN MB AIR","Space Gray","M1","8-core CPU and 7-core GPU","8GB","1TB SSD","30W USB-C Power Adapter"]
["8RB897","Z127000FL","CTO 13IN MACBOOK AIR M1 7C GPU 16GB MEMORY 512GB SSD SILVER ",1399,"Direct Ship","MGN93LL/A","06NX89/S9788LL/A",139,"13IN MB AIR","Silver","M1","8-core CPU and 7-core GPU","16GB","512GB SSD","30W USB-C Power Adapter"]
["8RB898","Z127000F3","CTO 13IN MACBOOK AIR M1 7C GPU 8GB MEMORY 1TB SSD SILVER ",1399,"Direct Ship","MGN93LL/A","06NX89/S9788LL/A",139,"13IN MB AIR","Silver","M1","8-core CPU and 7-core GPU","8GB","1TB SSD","30W USB-C Power Adapter"]
["8RB904","Z12A000FL","CTO 13IN MACBOOK AIR M1 7C GPU 16GB MEMORY 512GB SSD GOLD ",1399,"Direct Ship","MGND3LL/A","06NX89/S9788LL/A",139,"13IN MB AIR","Gold","M1","8-core CPU and 7-core GPU","16GB","512GB SSD","30W USB-C Power Adapter"]
["8RB905","Z12A000F3","CTO 13IN MACBOOK AIR M1 7C GPU 8GB MEMORY 1TB SSD GOLD ",1399,"Direct Ship","MGND3LL/A","06NX89/S9788LL/A",139,"13IN MB AIR","Gold","M1","8-core CPU and 7-core GPU","8GB","1TB SSD","30W USB-C Power Adapter"]
["07DV58","MNEH3LL/A","13-inch MacBook Pro: Apple M2 chip with 8-core CPU and 10-core GPU, 256GB SSD - Space Gray",1299,"Stocked",null,"06NY08/SF932LL/A",174,"13IN MBP","Space Gray","M2","8-core CPU and 10-core GPU","8GB","256GB SSD","67W USB-C  Power adapter"]
["07DV59","MNEP3LL/A","13-inch MacBook Pro: Apple M2 chip with 8-core CPU and 10-core GPU, 256GB SSD - Silver",1299,"Stocked",null,"06NY08/SF932LL/A",174,"13IN MBP","Silver","M2","8-core CPU and 10-core GPU","8GB","256GB SSD","67W USB-C  Power adapter"]
["8RC148","Z124000FK","CTO 13IN MACBOOK AIR M1 7C GPU 16GB MEMORY 256GB SSD SPACE GRAY ",1199,"Stocked","MGN63LL/A","06NX89/S9788LL/A",139,"13IN MB AIR","Space Gray","M1","8-core CPU and 7-core GPU","16GB","256GB SSD","30W USB-C Power Adapter"]
["8RB889","Z124000F2","CTO 13IN MACBOOK AIR M1 7C GPU 8GB MEMORY 512GB SSD SPACE GRAY ",1199,"Direct Ship","MGN63LL/A","06NX89/S9788LL/A",139,"13IN MB AIR","Space Gray","M1","8-core CPU and 7-core GPU","8GB","512GB SSD","30W USB-C Power Adapter"]
["8RB895","Z127000FK","CTO 13IN MACBOOK AIR M1 7C GPU 16GB MEMORY 256GB SSD SILVER ",1199,"Direct Ship","MGN93LL/A","06NX89/S9788LL/A",139,"13IN MB AIR","Silver","M1","8-core CPU and 7-core GPU","16GB","256GB SSD","30W USB-C Power Adapter"]
["8RB896","Z127000F2","CTO 13IN MACBOOK AIR M1 7C GPU 8GB MEMORY 512GB SSD SILVER ",1199,"Direct Ship","MGN93LL/A","06NX89/S9788LL/A",139,"13IN MB AIR","Silver","M1","8-core CPU and 7-core GPU","8GB","512GB SSD","30W USB-C Power Adapter"]
["8RB902","Z12A000FK","CTO 13IN MACBOOK AIR M1 7C GPU 16GB MEMORY 256GB SSD GOLD",1199,"Direct Ship","MGND3LL/A","06NX89/S9788LL/A",139,"13IN MB AIR","Gold","M1","8-core CPU and 7-core GPU","16GB","256GB SSD","30W USB-C Power Adapter"]
["8RB903","Z12A000F2","CTO 13IN MACBOOK AIR M1 7C GPU 8GB MEMORY 512GB SSD GOLD",1199,"Direct Ship","MGND3LL/A","06NX89/S9788LL/A",139,"13IN MB AIR","Gold","M1","8-core CPU and 7-core GPU","8GB","512GB SSD","30W USB-C Power Adapter"]
["8RB888","Z124000FK","CTO 13IN MACBOOK AIR M1 7C GPU 16GB MEMORY 256GB SSD SPACE GRAY ",1199,"Direct Ship","MGN63LL/A","06NX89/S9788LL/A",139,"13IN MB AIR","Space Gray","M1","8-core CPU and 7-core GPU","16GB","256GB SSD","30W USB-C Power Adapter"]
["07DV50","MLXW3LL/A","13-inch MacBook Air: Apple M2 chip with 8-core CPU and 8-core GPU, 256GB - Space Gray",1199,"Stocked",null,"06NY07/SF8C2LL/A",160,"13IN MB AIR","Space Gray","M2","8-core CPU and 8-core GPU","8GB","256GB SSD","30W USB-C Power Adapter"]
["07DV51","MLXY3LL/A","13-inch MacBook Air: Apple M2 chip with 8-core CPU and 8-core GPU, 256GB - Silver",1199,"Stocked",null,"06NY07/SF8C2LL/A",160,"13IN MB AIR","Silver","M2","8-core CPU and 8-core GPU","8GB","256GB SSD","30W USB-C Power Adapter"]
["07DV52","MLY13LL/A","13-inch MacBook Air: Apple M2 chip with 8-core CPU and 8-core GPU, 256GB - Starlight",1199,"Stocked",null,"06NY07/SF8C2LL/A",160,"13IN MB AIR","Starlight","M2","8-core CPU and 8-core GPU","8GB","256GB SSD","30W USB-C Power Adapter"]
["07DV53","MLY33LL/A","13-inch MacBook Air: Apple M2 chip with 8-core CPU and 8-core GPU, 256GB - Midnight",1199,"Stocked",null,"06NY07/SF8C2LL/A",160,"13IN MB AIR","Midnight","M2","8-core CPU and 8-core GPU","8GB","256GB SSD","30W USB-C Power Adapter"]
["8RB878","MGN63LL/A","MB AIR 13: M1 CHIP; 8-CORE CPU & 7-CORE GPU, 256GB - SPACE GRAY ",999,"Stocked",null,"06NX89/S9788LL/A",139,"13IN MB AIR","Space Gray","M1","8-core CPU and 7-core GPU","8GB","256GB SSD","30W USB-C Power Adapter"]
["8RB879","MGN93LL/A","MB AIR 13: M1 CHIP; 8-CORE CPU & 7-CORE GPU, 256GB - SILVER",999,"Stocked",null,"06NX89/S9788LL/A",139,"13IN MB AIR","Silver","M1","8-core CPU and 7-core GPU","8GB","256GB SSD","30W USB-C Power Adapter"]
["8RB880","MGND3LL/A","MB AIR 13: M1 CHIP; 8-CORE CPU & 7-CORE GPU, 256GB - GOLD",999,"Stocked",null,"06NX89/S9788LL/A",139,"13IN MB AIR","Gold","M1","8-core CPU and 7-core GPU","8GB","256GB SSD","30W USB-C Power Adapter"]
["07FX27","Z160000BK","CTO MACBOOK AIR M2 8C 8C GPU 8GB 256GB SSD 35W Dual Midnight",1219,"Direct ship","MLY33LL/A ","06NY07/SF8C2LL/A",160,"13IN MB AIR","Midnight","M2","8-core CPU and 8-core GPU","8GB","256GB SSD","35W Dual USB-C Port Compact Power Adapter"]
["07FX28","Z160000BJ","CTO MACBOOK AIR M2 8C 8C GPU 8GB 256GB SSD 67W Midnight",1219,"Direct ship","MLY33LL/A ","06NY07/SF8C2LL/A",160,"13IN MB AIR","Midnight","M2","8-core CPU and 8-core GPU","8GB","256GB SSD","67W USB-C  Power adapter"]
["07FX29","Z160000AK","CTO MACBOOK AIR M2 8C 8C GPU 8GB 512GB SSD 30W Midnight",1399,"Direct ship","MLY33LL/A ","06NY07/SF8C2LL/A",160,"13IN MB AIR","Midnight","M2","8-core CPU and 8-core GPU","8GB","512GB SSD","30W USB-C Power Adapter"]
["07FX30","Z160001F9","CTO MACBOOK AIR M2 8C 8C GPU 8GB 512GB SSD 35W Dual Midnight",1419,"Direct ship","MLY33LL/A ","06NY07/SF8C2LL/A",160,"13IN MB AIR","Midnight","M2","8-core CPU and 8-core GPU","8GB","512GB SSD","35W Dual USB-C Port Compact Power Adapter"]
["07FX31","Z160001DY","CTO MACBOOK AIR M2 8C 8C GPU 8GB 512GB SSD 67W Midnight",1419,"Direct ship","MLY33LL/A ","06NY07/SF8C2LL/A",160,"13IN MB AIR","Midnight","M2","8-core CPU and 8-core GPU","8GB","512GB SSD","67W USB-C  Power adapter"]
["07FX32","Z160000AL","CTO MACBOOK AIR M2 8C 8C GPU 8GB 1TB SSD 30W Midnight",1599,"Direct ship","MLY33LL/A ","06NY07/SF8C2LL/A",160,"13IN MB AIR","Midnight","M2","8-core CPU and 8-core GPU","8GB","1TB SSD","30W USB-C Power Adapter"]
["07FX33","Z160001E1","CTO MACBOOK AIR M2 8C 8C GPU 8GB 1TB SSD 35W Dual Midnight",1619,"Direct ship","MLY33LL/A ","06NY07/SF8C2LL/A",160,"13IN MB AIR","Midnight","M2","8-core CPU and 8-core GPU","8GB","1TB SSD","35W Dual USB-C Port Compact Power Adapter"]
["07FX34","Z160001G2","CTO MACBOOK AIR M2 8C 8C GPU 8GB 1TB SSD 67W Midnight",1619,"Direct ship","MLY33LL/A ","06NY07/SF8C2LL/A",160,"13IN MB AIR","Midnight","M2","8-core CPU and 8-core GPU","8GB","1TB SSD","67W USB-C  Power adapter"]
["07FX35","Z160000AM","CTO MACBOOK AIR M2 8C 8C GPU 8GB 2TB SSD 30W Midnight",1999,"Direct ship","MLY33LL/A ","06NY07/SF8C2LL/A",160,"13IN MB AIR","Midnight","M2","8-core CPU and 8-core GPU","8GB","2TB SSD","30W USB-C Power Adapter"]
["07FX36","Z16000140","CTO MACBOOK AIR M2 8C 8C GPU 8GB 2TB SSD 35W Dual Midnight",2019,"Direct ship","MLY33LL/A ","06NY07/SF8C2LL/A",160,"13IN MB AIR","Midnight","M2","8-core CPU and 8-core GPU","8GB","2TB SSD","35W Dual USB-C Port Compact Power Adapter"]
["07FX37","Z160001TZ","CTO MACBOOK AIR M2 8C 8C GPU 8GB 2TB SSD 67W Midnight",2019,"Direct ship","MLY33LL/A ","06NY07/SF8C2LL/A",160,"13IN MB AIR","Midnight","M2","8-core CPU and 8-core GPU","8GB","2TB SSD","67W USB-C  Power adapter"]
["07FX38","Z160000AY","CTO MACBOOK AIR M2 8C 10C GPU 8GB 256GB SSD 30W Midnight",1299,"Direct ship","MLY33LL/A ","06NY07/SF8C2LL/A",160,"13IN MB AIR","Midnight","M2","8-core CPU and 10-core GPU","8GB","256GB SSD","30W USB-C Power Adapter"]
["07FX39","Z160001FT","CTO MACBOOK AIR M2 8C 10C GPU 8GB 256GB SSD 35W Dual Midnight",1319,"Direct ship","MLY33LL/A ","06NY07/SF8C2LL/A",160,"13IN MB AIR","Midnight","M2","8-core CPU and 10-core GPU","8GB","256GB SSD","35W Dual USB-C Port Compact Power Adapter"]
["07FX40","Z160001EW","CTO MACBOOK AIR M2 8C 10C GPU 8GB 256GB SSD 67W Midnight",1319,"Direct ship","MLY33LL/A ","06NY07/SF8C2LL/A",160,"13IN MB AIR","Midnight","M2","8-core CPU and 10-core GPU","8GB","256GB SSD","67W USB-C  Power adapter"]
["07FX41","Z160000B3","CTO MACBOOK AIR M2 8C 10C GPU 8GB 512GB SSD 35W Dual Midnight",1499,"Direct ship","MLY33LL/A ","06NY07/SF8C2LL/A",160,"13IN MB AIR","Midnight","M2","8-core CPU and 10-core GPU","8GB","512GB SSD","35W Dual USB-C Port Compact Power Adapter"]
["07FX42","Z160001MZ","CTO MACBOOK AIR M2 8C 10C GPU 8GB 512GB SSD 67W Midnight",1499,"Direct ship","MLY33LL/A ","06NY07/SF8C2LL/A",160,"13IN MB AIR","Midnight","M2","8-core CPU and 10-core GPU","8GB","512GB SSD","67W USB-C  Power adapter"]
["07FX43","Z160000B8","CTO MACBOOK AIR M2 8C 10C GPU 8GB 1TB SSD 35W Dual Midnight",1699,"Direct ship","MLY33LL/A ","06NY07/SF8C2LL/A",160,"13IN MB AIR","Midnight","M2","8-core CPU and 10-core GPU","8GB","1TB SSD","35W Dual USB-C Port Compact Power Adapter"]
["07FX44","Z160001XG","CTO MACBOOK AIR M2 8C 10C GPU 8GB 1TB SSD 67W Midnight",1699,"Direct ship","MLY33LL/A ","06NY07/SF8C2LL/A",160,"13IN MB AIR","Midnight","M2","8-core CPU and 10-core GPU","8GB","1TB SSD","67W USB-C  Power adapter"]
["07FX45","Z160000BD","CTO MACBOOK AIR M2 8C 10C GPU 8GB 2TB SSD 35W Dual Midnight",2099,"Direct ship","MLY33LL/A ","06NY07/SF8C2LL/A",160,"13IN MB AIR","Midnight","M2","8-core CPU and 10-core GPU","8GB","2TB SSD","35W Dual USB-C Port Compact Power Adapter"]
["07FX46","Z160001SG","CTO MACBOOK AIR M2 8C 10C GPU 8GB 2TB SSD 67W Midnight",2099,"Direct ship","MLY33LL/A ","06NY07/SF8C2LL/A",160,"13IN MB AIR","Midnight","M2","8-core CPU and 10-core GPU","8GB","2TB SSD","67W USB-C  Power adapter"]
["07FX47","Z160000AU","CTO MACBOOK AIR M2 8C 8C GPU 16GB 256GB SSD 30W Midnight",1399,"Direct ship","MLY33LL/A ","06NY07/SF8C2LL/A",160,"13IN MB AIR","Midnight","M2","8-core CPU and 8-core GPU","16GB","256GB SSD","30W USB-C Power Adapter"]
["07FX48","Z160001CW","CTO MACBOOK AIR M2 8C 8C GPU 16GB 256GB SSD 35W Dual Midnight",1419,"Direct ship","MLY33LL/A ","06NY07/SF8C2LL/A",160,"13IN MB AIR","Midnight","M2","8-core CPU and 8-core GPU","16GB","256GB SSD","35W Dual USB-C Port Compact Power Adapter"]
["07FX49","Z160001CK","CTO MACBOOK AIR M2 8C 8C GPU 16GB 256GB SSD 67W Midnight",1419,"Direct ship","MLY33LL/A ","06NY07/SF8C2LL/A",160,"13IN MB AIR","Midnight","M2","8-core CPU and 8-core GPU","16GB","256GB SSD","67W USB-C  Power adapter"]
["07FX50","Z160000B1","CTO MACBOOK AIR M2 8C 8C GPU 16GB 512GB SSD 30W Midnight",1599,"Direct ship","MLY33LL/A ","06NY07/SF8C2LL/A",160,"13IN MB AIR","Midnight","M2","8-core CPU and 8-core GPU","16GB","512GB SSD","30W USB-C Power Adapter"]
["07FX51","Z1600015Y","CTO MACBOOK AIR M2 8C 8C GPU 16GB 512GB SSD 35W Dual Midnight",1619,"Direct ship","MLY33LL/A ","06NY07/SF8C2LL/A",160,"13IN MB AIR","Midnight","M2","8-core CPU and 8-core GPU","16GB","512GB SSD","35W Dual USB-C Port Compact Power Adapter"]
["07FX52","Z16000190","CTO MACBOOK AIR M2 8C 8C GPU 16GB 512GB SSD 67W Midnight",1619,"Direct ship","MLY33LL/A ","06NY07/SF8C2LL/A",160,"13IN MB AIR","Midnight","M2","8-core CPU and 8-core GPU","16GB","512GB SSD","67W USB-C  Power adapter"]
["07FX53","Z160000B6","CTO MACBOOK AIR M2 8C 8C GPU 16GB 1TB SSD 30W Midnight",1799,"Direct ship","MLY33LL/A ","06NY07/SF8C2LL/A",160,"13IN MB AIR","Midnight","M2","8-core CPU and 8-core GPU","16GB","1TB SSD","30W USB-C Power Adapter"]
["07FX54","Z16000194","CTO MACBOOK AIR M2 8C 8C GPU 16GB 1TB SSD 35W Dual Midnight",1819,"Direct ship","MLY33LL/A ","06NY07/SF8C2LL/A",160,"13IN MB AIR","Midnight","M2","8-core CPU and 8-core GPU","16GB","1TB SSD","35W Dual USB-C Port Compact Power Adapter"]
["07FX55","Z160001EB","CTO MACBOOK AIR M2 8C 8C GPU 16GB 1TB SSD 67W Midnight",1819,"Direct ship","MLY33LL/A ","06NY07/SF8C2LL/A",160,"13IN MB AIR","Midnight","M2","8-core CPU and 8-core GPU","16GB","1TB SSD","67W USB-C  Power adapter"]
["07FX56","Z160000BB","CTO MACBOOK AIR M2 8C 8C GPU 16GB 2TB SSD 30W Midnight",2199,"Direct ship","MLY33LL/A ","06NY07/SF8C2LL/A",160,"13IN MB AIR","Midnight","M2","8-core CPU and 8-core GPU","16GB","2TB SSD","30W USB-C Power Adapter"]
["07FX57","Z160001TS","CTO MACBOOK AIR M2 8C 8C GPU 16GB 2TB SSD 35W Dual Midnight",2219,"Direct ship","MLY33LL/A ","06NY07/SF8C2LL/A",160,"13IN MB AIR","Midnight","M2","8-core CPU and 8-core GPU","16GB","2TB SSD","35W Dual USB-C Port Compact Power Adapter"]
["07FX58","Z160001M5","CTO MACBOOK AIR M2 8C 8C GPU 16GB 2TB SSD 67W Midnight",2219,"Direct ship","MLY33LL/A ","06NY07/SF8C2LL/A",160,"13IN MB AIR","Midnight","M2","8-core CPU and 8-core GPU","16GB","2TB SSD","67W USB-C  Power adapter"]
["07FX59","Z160000AZ","CTO MACBOOK AIR M2 8C 10C GPU 16GB 256GB SSD 30W Midnight",1499,"Direct ship","MLY33LL/A ","06NY07/SF8C2LL/A",160,"13IN MB AIR","Midnight","M2","8-core CPU and 10-core GPU","16GB","256GB SSD","30W USB-C Power Adapter"]
["07FX60","Z160001DG","CTO MACBOOK AIR M2 8C 10C GPU 16GB 256GB SSD 35W Dual Midnight",1519,"Direct ship","MLY33LL/A ","06NY07/SF8C2LL/A",160,"13IN MB AIR","Midnight","M2","8-core CPU and 10-core GPU","16GB","256GB SSD","35W Dual USB-C Port Compact Power Adapter"]
["07FX61","Z160001DD","CTO MACBOOK AIR M2 8C 10C GPU 16GB 256GB SSD 67W Midnight",1519,"Direct ship","MLY33LL/A ","06NY07/SF8C2LL/A",160,"13IN MB AIR","Midnight","M2","8-core CPU and 10-core GPU","16GB","256GB SSD","67W USB-C  Power adapter"]
["07FX62","Z160000B4","CTO MACBOOK AIR M2 8C 10C GPU 16GB 512GB SSD 35W Dual Midnight",1699,"Direct ship","MLY33LL/A ","06NY07/SF8C2LL/A",160,"13IN MB AIR","Midnight","M2","8-core CPU and 10-core GPU","16GB","512GB SSD","35W Dual USB-C Port Compact Power Adapter"]
["07FX63","Z160001CN","CTO MACBOOK AIR M2 8C 10C GPU 16GB 512GB SSD 67W Midnight",1699,"Direct ship","MLY33LL/A ","06NY07/SF8C2LL/A",160,"13IN MB AIR","Midnight","M2","8-core CPU and 10-core GPU","16GB","512GB SSD","67W USB-C  Power adapter"]
["07FX64","Z160000B9","CTO MACBOOK AIR M2 8C 10C GPU 16GB 1TB SSD 35W Dual Midnight",1899,"Direct ship","MLY33LL/A ","06NY07/SF8C2LL/A",160,"13IN MB AIR","Midnight","M2","8-core CPU and 10-core GPU","16GB","1TB SSD","35W Dual USB-C Port Compact Power Adapter"]
["07FX65","Z160001CT","CTO MACBOOK AIR M2 8C 10C GPU 16GB 1TB SSD 67W Midnight",1899,"Direct ship","MLY33LL/A ","06NY07/SF8C2LL/A",160,"13IN MB AIR","Midnight","M2","8-core CPU and 10-core GPU","16GB","1TB SSD","67W USB-C  Power adapter"]
["07FX66","Z160000BE","CTO MACBOOK AIR M2 8C 10C GPU 16GB 2TB SSD 35W Dual Midnight",2299,"Direct ship","MLY33LL/A ","06NY07/SF8C2LL/A",160,"13IN MB AIR","Midnight","M2","8-core CPU and 10-core GPU","16GB","2TB SSD","35W Dual USB-C Port Compact Power Adapter"]
["07FX67","Z160001CL","CTO MACBOOK AIR M2 8C 10C GPU 16GB 2TB SSD 67W Midnight",2299,"Direct ship","MLY33LL/A ","06NY07/SF8C2LL/A",160,"13IN MB AIR","Midnight","M2","8-core CPU and 10-core GPU","16GB","2TB SSD","67W USB-C  Power adapter"]
["07FX68","Z160000AV","CTO MACBOOK AIR M2 8C 8C GPU 24GB 256GB SSD 30W Midnight",1599,"Direct ship","MLY33LL/A ","06NY07/SF8C2LL/A",160,"13IN MB AIR","Midnight","M2","8-core CPU and 8-core GPU","24GB","256GB SSD","30W USB-C Power Adapter"]
["07FX69","Z160001FL","CTO MACBOOK AIR M2 8C 8C GPU 24GB 256GB SSD 35W Dual Midnight",1619,"Direct ship","MLY33LL/A ","06NY07/SF8C2LL/A",160,"13IN MB AIR","Midnight","M2","8-core CPU and 8-core GPU","24GB","256GB SSD","35W Dual USB-C Port Compact Power Adapter"]
["07FX70","Z160001KG","CTO MACBOOK AIR M2 8C 8C GPU 24GB 256GB SSD 67W Midnight",1619,"Direct ship","MLY33LL/A ","06NY07/SF8C2LL/A",160,"13IN MB AIR","Midnight","M2","8-core CPU and 8-core GPU","24GB","256GB SSD","67W USB-C  Power adapter"]
["07FX71","Z160000B2","CTO MACBOOK AIR M2 8C 8C GPU 24GB 512GB SSD 30W Midnight",1799,"Direct ship","MLY33LL/A ","06NY07/SF8C2LL/A",160,"13IN MB AIR","Midnight","M2","8-core CPU and 8-core GPU","24GB","512GB SSD","30W USB-C Power Adapter"]
["07FX72","Z160001CX","CTO MACBOOK AIR M2 8C 8C GPU 24GB 512GB SSD 35W Dual Midnight",1819,"Direct ship","MLY33LL/A ","06NY07/SF8C2LL/A",160,"13IN MB AIR","Midnight","M2","8-core CPU and 8-core GPU","24GB","512GB SSD","35W Dual USB-C Port Compact Power Adapter"]
["07FX73","Z160001C1","CTO MACBOOK AIR M2 8C 8C GPU 24GB 512GB SSD 67W Midnight",1819,"Direct ship","MLY33LL/A ","06NY07/SF8C2LL/A",160,"13IN MB AIR","Midnight","M2","8-core CPU and 8-core GPU","24GB","512GB SSD","67W USB-C  Power adapter"]
["07FX74","Z160000B7","CTO MACBOOK AIR M2 8C 8C GPU 24GB 1TB SSD 30W Midnight",1999,"Direct ship","MLY33LL/A ","06NY07/SF8C2LL/A",160,"13IN MB AIR","Midnight","M2","8-core CPU and 8-core GPU","24GB","1TB SSD","30W USB-C Power Adapter"]
["07FX75","Z16000151","CTO MACBOOK AIR M2 8C 8C GPU 24GB 1TB SSD 35W Dual Midnight",2019,"Direct ship","MLY33LL/A ","06NY07/SF8C2LL/A",160,"13IN MB AIR","Midnight","M2","8-core CPU and 8-core GPU","24GB","1TB SSD","35W Dual USB-C Port Compact Power Adapter"]
["07FX76","Z160001DJ","CTO MACBOOK AIR M2 8C 8C GPU 24GB 1TB SSD 67W Midnight",2019,"Direct ship","MLY33LL/A ","06NY07/SF8C2LL/A",160,"13IN MB AIR","Midnight","M2","8-core CPU and 8-core GPU","24GB","1TB SSD","67W USB-C  Power adapter"]
["07FX77","Z160000BC","CTO MACBOOK AIR M2 8C 8C GPU 24GB 2TB SSD 30W Midnight",2399,"Direct ship","MLY33LL/A ","06NY07/SF8C2LL/A",160,"13IN MB AIR","Midnight","M2","8-core CPU and 8-core GPU","24GB","2TB SSD","30W USB-C Power Adapter"]
["07FX78","Z160001DZ","CTO MACBOOK AIR M2 8C 8C GPU 24GB 2TB SSD 35W Dual Midnight",2419,"Direct ship","MLY33LL/A ","06NY07/SF8C2LL/A",160,"13IN MB AIR","Midnight","M2","8-core CPU and 8-core GPU","24GB","2TB SSD","35W Dual USB-C Port Compact Power Adapter"]
["07FX79","Z160001S6","CTO MACBOOK AIR M2 8C 8C GPU 24GB 2TB SSD 67W Midnight",2419,"Direct ship","MLY33LL/A ","06NY07/SF8C2LL/A",160,"13IN MB AIR","Midnight","M2","8-core CPU and 8-core GPU","24GB","2TB SSD","67W USB-C  Power adapter"]
["07FX80","Z160000B0","CTO MACBOOK AIR M2 8C 10C GPU 24GB 256GB SSD 30W Midnight",1699,"Direct ship","MLY33LL/A ","06NY07/SF8C2LL/A",160,"13IN MB AIR","Midnight","M2","8-core CPU and 10-core GPU","24GB","256GB SSD","30W USB-C Power Adapter"]
["07FX81","Z160001GK","CTO MACBOOK AIR M2 8C 10C GPU 24GB 256GB SSD 35W Dual Midnight",1719,"Direct ship","MLY33LL/A ","06NY07/SF8C2LL/A",160,"13IN MB AIR","Midnight","M2","8-core CPU and 10-core GPU","24GB","256GB SSD","35W Dual USB-C Port Compact Power Adapter"]
["07FX82","Z160001CM","CTO MACBOOK AIR M2 8C 10C GPU 24GB 256GB SSD 67W Midnight",1719,"Direct ship","MLY33LL/A ","06NY07/SF8C2LL/A",160,"13IN MB AIR","Midnight","M2","8-core CPU and 10-core GPU","24GB","256GB SSD","67W USB-C  Power adapter"]
["07FX83","Z160000B5","CTO MACBOOK AIR M2 8C 10C GPU 24GB 512GB SSD 35W Dual Midnight",1899,"Direct ship","MLY33LL/A ","06NY07/SF8C2LL/A",160,"13IN MB AIR","Midnight","M2","8-core CPU and 10-core GPU","24GB","512GB SSD","35W Dual USB-C Port Compact Power Adapter"]
["07FX84","Z160001G7","CTO MACBOOK AIR M2 8C 10C GPU 24GB 512GB SSD 67W Midnight",1899,"Direct ship","MLY33LL/A ","06NY07/SF8C2LL/A",160,"13IN MB AIR","Midnight","M2","8-core CPU and 10-core GPU","24GB","512GB SSD","67W USB-C  Power adapter"]
["07FX85","Z160000BA","CTO MACBOOK AIR M2 8C 10C GPU 24GB 1TB SSD 35W Dual Midnight",2099,"Direct ship","MLY33LL/A ","06NY07/SF8C2LL/A",160,"13IN MB AIR","Midnight","M2","8-core CPU and 10-core GPU","24GB","1TB SSD","35W Dual USB-C Port Compact Power Adapter"]
["07FX86","Z16000192","CTO MACBOOK AIR M2 8C 10C GPU 24GB 1TB SSD 67W Midnight",2099,"Direct ship","MLY33LL/A ","06NY07/SF8C2LL/A",160,"13IN MB AIR","Midnight","M2","8-core CPU and 10-core GPU","24GB","1TB SSD","67W USB-C  Power adapter"]
["07FX87","Z160000BF","CTO MACBOOK AIR M2 8C 10C GPU 24GB 2TB SSD 35W Dual Midnight",2499,"Direct ship","MLY33LL/A ","06NY07/SF8C2LL/A",160,"13IN MB AIR","Midnight","M2","8-core CPU and 10-core GPU","24GB","2TB SSD","35W Dual USB-C Port Compact Power Adapter"]
["07FX88","Z160001FB","CTO MACBOOK AIR M2 8C 10C GPU 24GB 2TB SSD 67W Midnight",2499,"Direct ship","MLY33LL/A ","06NY07/SF8C2LL/A",160,"13IN MB AIR","Midnight","M2","8-core CPU and 10-core GPU","24GB","2TB SSD","67W USB-C  Power adapter"]
["07FX89","Z15Y000BK","CTO MACBOOK AIR M2 8C 8C GPU 8GB 256GB SSD 35W Dual Starlight",1219,"Direct ship","MLY13LL/A","06NY07/SF8C2LL/A",160,"13IN MB AIR","Starlight","M2","8-core CPU and 8-core GPU","8GB","256GB SSD","35W Dual USB-C Port Compact Power Adapter"]
["07FX90","Z15Y000BJ","CTO MACBOOK AIR M2 8C 8C GPU 8GB 256GB SSD 67W Starlight",1219,"Direct ship","MLY13LL/A","06NY07/SF8C2LL/A",160,"13IN MB AIR","Starlight","M2","8-core CPU and 8-core GPU","8GB","256GB SSD","67W USB-C  Power adapter"]
["07FX91","Z15Y000AK","CTO MACBOOK AIR M2 8C 8C GPU 8GB 512GB SSD 30W Starlight",1399,"Direct ship","MLY13LL/A","06NY07/SF8C2LL/A",160,"13IN MB AIR","Starlight","M2","8-core CPU and 8-core GPU","8GB","512GB SSD","30W USB-C Power Adapter"]
["07FX92","Z15Y001C7","CTO MACBOOK AIR M2 8C 8C GPU 8GB 512GB SSD 35W Dual Starlight",1419,"Direct ship","MLY13LL/A","06NY07/SF8C2LL/A",160,"13IN MB AIR","Starlight","M2","8-core CPU and 8-core GPU","8GB","512GB SSD","35W Dual USB-C Port Compact Power Adapter"]
["07FX93","Z15Y001EL","CTO MACBOOK AIR M2 8C 8C GPU 8GB 512GB SSD 67W Starlight",1419,"Direct ship","MLY13LL/A","06NY07/SF8C2LL/A",160,"13IN MB AIR","Starlight","M2","8-core CPU and 8-core GPU","8GB","512GB SSD","67W USB-C  Power adapter"]
["07FX94","Z15Y000AL","CTO MACBOOK AIR M2 8C 8C GPU 8GB 1TB SSD 30W Starlight",1599,"Direct ship","MLY13LL/A","06NY07/SF8C2LL/A",160,"13IN MB AIR","Starlight","M2","8-core CPU and 8-core GPU","8GB","1TB SSD","30W USB-C Power Adapter"]
["07FX95","Z15Y0012Y","CTO MACBOOK AIR M2 8C 8C GPU 8GB 1TB SSD 35W Dual Starlight",1619,"Direct ship","MLY13LL/A","06NY07/SF8C2LL/A",160,"13IN MB AIR","Starlight","M2","8-core CPU and 8-core GPU","8GB","1TB SSD","35W Dual USB-C Port Compact Power Adapter"]
["07FX96","Z15Y001JB","CTO MACBOOK AIR M2 8C 8C GPU 8GB 1TB SSD 67W Starlight",1619,"Direct ship","MLY13LL/A","06NY07/SF8C2LL/A",160,"13IN MB AIR","Starlight","M2","8-core CPU and 8-core GPU","8GB","1TB SSD","67W USB-C  Power adapter"]
["07FX97","Z15Y000AM","CTO MACBOOK AIR M2 8C 8C GPU 8GB 2TB SSD 30W Starlight",1999,"Direct ship","MLY13LL/A","06NY07/SF8C2LL/A",160,"13IN MB AIR","Starlight","M2","8-core CPU and 8-core GPU","8GB","2TB SSD","30W USB-C Power Adapter"]
["07FX98","Z15Y001LV","CTO MACBOOK AIR M2 8C 8C GPU 8GB 2TB SSD 35W Dual Starlight",2019,"Direct ship","MLY13LL/A","06NY07/SF8C2LL/A",160,"13IN MB AIR","Starlight","M2","8-core CPU and 8-core GPU","8GB","2TB SSD","35W Dual USB-C Port Compact Power Adapter"]
["07FX99","Z15Y001TD","CTO MACBOOK AIR M2 8C 8C GPU 8GB 2TB SSD 67W Starlight",2019,"Direct ship","MLY13LL/A","06NY07/SF8C2LL/A",160,"13IN MB AIR","Starlight","M2","8-core CPU and 8-core GPU","8GB","2TB SSD","67W USB-C  Power adapter"]
["07FY00","Z15Y000AY","CTO MACBOOK AIR M2 8C 10C GPU 8GB 256GB SSD 30W Starlight",1299,"Direct ship","MLY13LL/A","06NY07/SF8C2LL/A",160,"13IN MB AIR","Starlight","M2","8-core CPU and 10-core GPU","8GB","256GB SSD","30W USB-C Power Adapter"]
["07FY01","Z15Y001L5","CTO MACBOOK AIR M2 8C 10C GPU 8GB 256GB SSD 35W Dual Starlight",1319,"Direct ship","MLY13LL/A","06NY07/SF8C2LL/A",160,"13IN MB AIR","Starlight","M2","8-core CPU and 10-core GPU","8GB","256GB SSD","35W Dual USB-C Port Compact Power Adapter"]
["07FY02","Z15Y001C8","CTO MACBOOK AIR M2 8C 10C GPU 8GB 256GB SSD 67W Starlight",1319,"Direct ship","MLY13LL/A","06NY07/SF8C2LL/A",160,"13IN MB AIR","Starlight","M2","8-core CPU and 10-core GPU","8GB","256GB SSD","67W USB-C  Power adapter"]
["07FY03","Z15Y000AZ","CTO MACBOOK AIR M2 8C 10C GPU 8GB 512GB SSD 35W Dual Starlight",1499,"Direct ship","MLY13LL/A","06NY07/SF8C2LL/A",160,"13IN MB AIR","Starlight","M2","8-core CPU and 10-core GPU","8GB","512GB SSD","35W Dual USB-C Port Compact Power Adapter"]
["07FY04","Z15Y001KB","CTO MACBOOK AIR M2 8C 10C GPU 8GB 512GB SSD 67W Starlight",1499,"Direct ship","MLY13LL/A","06NY07/SF8C2LL/A",160,"13IN MB AIR","Starlight","M2","8-core CPU and 10-core GPU","8GB","512GB SSD","67W USB-C  Power adapter"]
["07FY05","Z15Y000B0","CTO MACBOOK AIR M2 8C 10C GPU 8GB 1TB SSD 35W Dual Starlight",1699,"Direct ship","MLY13LL/A","06NY07/SF8C2LL/A",160,"13IN MB AIR","Starlight","M2","8-core CPU and 10-core GPU","8GB","1TB SSD","35W Dual USB-C Port Compact Power Adapter"]
["07FY06","Z15Y0015T","CTO MACBOOK AIR M2 8C 10C GPU 8GB 1TB SSD 67W Starlight",1699,"Direct ship","MLY13LL/A","06NY07/SF8C2LL/A",160,"13IN MB AIR","Starlight","M2","8-core CPU and 10-core GPU","8GB","1TB SSD","67W USB-C  Power adapter"]
["07FY07","Z15Y000B1","CTO MACBOOK AIR M2 8C 10C GPU 8GB 2TB SSD 35W Dual Starlight",2099,"Direct ship","MLY13LL/A","06NY07/SF8C2LL/A",160,"13IN MB AIR","Starlight","M2","8-core CPU and 10-core GPU","8GB","2TB SSD","35W Dual USB-C Port Compact Power Adapter"]
["07FY08","Z15Y","CTO MACBOOK AIR M2 8C 10C GPU 8GB 2TB SSD 67W Starlight",2099,"Direct ship","MLY13LL/A","06NY07/SF8C2LL/A",160,"13IN MB AIR","Starlight","M2","8-core CPU and 10-core GPU","8GB","2TB SSD","67W USB-C  Power adapter"]
["07FY09","Z15Y000AU","CTO MACBOOK AIR M2 8C 8C GPU 16GB 256GB SSD 30W Starlight",1399,"Direct ship","MLY13LL/A","06NY07/SF8C2LL/A",160,"13IN MB AIR","Starlight","M2","8-core CPU and 8-core GPU","16GB","256GB SSD","30W USB-C Power Adapter"]
["07FY10","Z15Y001BU","CTO MACBOOK AIR M2 8C 8C GPU 16GB 256GB SSD 35W Dual Starlight",1419,"Direct ship","MLY13LL/A","06NY07/SF8C2LL/A",160,"13IN MB AIR","Starlight","M2","8-core CPU and 8-core GPU","16GB","256GB SSD","35W Dual USB-C Port Compact Power Adapter"]
["07FY11","Z15Y001CF","CTO MACBOOK AIR M2 8C 8C GPU 16GB 256GB SSD 67W Starlight",1419,"Direct ship","MLY13LL/A","06NY07/SF8C2LL/A",160,"13IN MB AIR","Starlight","M2","8-core CPU and 8-core GPU","16GB","256GB SSD","67W USB-C  Power adapter"]
["07FY12","Z15Y000B2","CTO MACBOOK AIR M2 8C 8C GPU 16GB 512GB SSD 30W Starlight",1599,"Direct ship","MLY13LL/A","06NY07/SF8C2LL/A",160,"13IN MB AIR","Starlight","M2","8-core CPU and 8-core GPU","16GB","512GB SSD","30W USB-C Power Adapter"]
["07FY13","Z15Y001CC","CTO MACBOOK AIR M2 8C 8C GPU 16GB 512GB SSD 35W Dual Starlight",1619,"Direct ship","MLY13LL/A","06NY07/SF8C2LL/A",160,"13IN MB AIR","Starlight","M2","8-core CPU and 8-core GPU","16GB","512GB SSD","35W Dual USB-C Port Compact Power Adapter"]
["07FY14","Z15Y001C0","CTO MACBOOK AIR M2 8C 8C GPU 16GB 512GB SSD 67W Starlight",1619,"Direct ship","MLY13LL/A","06NY07/SF8C2LL/A",160,"13IN MB AIR","Starlight","M2","8-core CPU and 8-core GPU","16GB","512GB SSD","67W USB-C  Power adapter"]
["07FY15","Z15Y000B3","CTO MACBOOK AIR M2 8C 8C GPU 16GB 1TB SSD 30W Starlight",1799,"Direct ship","MLY13LL/A","06NY07/SF8C2LL/A",160,"13IN MB AIR","Starlight","M2","8-core CPU and 8-core GPU","16GB","1TB SSD","30W USB-C Power Adapter"]
["07FY16","Z15Y001C3","CTO MACBOOK AIR M2 8C 8C GPU 16GB 1TB SSD 35W Dual Starlight",1819,"Direct ship","MLY13LL/A","06NY07/SF8C2LL/A",160,"13IN MB AIR","Starlight","M2","8-core CPU and 8-core GPU","16GB","1TB SSD","35W Dual USB-C Port Compact Power Adapter"]
["07FY17","Z15Y001CK","CTO MACBOOK AIR M2 8C 8C GPU 16GB 1TB SSD 67W Starlight",1819,"Direct ship","MLY13LL/A","06NY07/SF8C2LL/A",160,"13IN MB AIR","Starlight","M2","8-core CPU and 8-core GPU","16GB","1TB SSD","67W USB-C  Power adapter"]
["07FY18","Z15Y000B4","CTO MACBOOK AIR M2 8C 8C GPU 16GB 2TB SSD 30W Starlight",2199,"Direct ship","MLY13LL/A","06NY07/SF8C2LL/A",160,"13IN MB AIR","Starlight","M2","8-core CPU and 8-core GPU","16GB","2TB SSD","30W USB-C Power Adapter"]
["07FY19","Z15Y0012Z","CTO MACBOOK AIR M2 8C 8C GPU 16GB 2TB SSD 35W Dual Starlight",2219,"Direct ship","MLY13LL/A","06NY07/SF8C2LL/A",160,"13IN MB AIR","Starlight","M2","8-core CPU and 8-core GPU","16GB","2TB SSD","35W Dual USB-C Port Compact Power Adapter"]
["07FY20","Z15Y001LW","CTO MACBOOK AIR M2 8C 8C GPU 16GB 2TB SSD 67W Starlight",2219,"Direct ship","MLY13LL/A","06NY07/SF8C2LL/A",160,"13IN MB AIR","Starlight","M2","8-core CPU and 8-core GPU","16GB","2TB SSD","67W USB-C  Power adapter"]
["07FY21","Z15Y000B5","CTO MACBOOK AIR M2 8C 10C GPU 16GB 256GB SSD 30W Starlight",1499,"Direct ship","MLY13LL/A","06NY07/SF8C2LL/A",160,"13IN MB AIR","Starlight","M2","8-core CPU and 10-core GPU","16GB","256GB SSD","30W USB-C Power Adapter"]
["07FY22","Z15Y001CN","CTO MACBOOK AIR M2 8C 10C GPU 16GB 256GB SSD 35W Dual Starlight",1519,"Direct ship","MLY13LL/A","06NY07/SF8C2LL/A",160,"13IN MB AIR","Starlight","M2","8-core CPU and 10-core GPU","16GB","256GB SSD","35W Dual USB-C Port Compact Power Adapter"]
["07FY23","Z15Y001D1","CTO MACBOOK AIR M2 8C 10C GPU 16GB 256GB SSD 67W Starlight",1519,"Direct ship","MLY13LL/A","06NY07/SF8C2LL/A",160,"13IN MB AIR","Starlight","M2","8-core CPU and 10-core GPU","16GB","256GB SSD","67W USB-C  Power adapter"]
["07FY24","Z15Y000B6","CTO MACBOOK AIR M2 8C 10C GPU 16GB 512GB SSD 35W Dual Starlight",1699,"Direct ship","MLY13LL/A","06NY07/SF8C2LL/A",160,"13IN MB AIR","Starlight","M2","8-core CPU and 10-core GPU","16GB","512GB SSD","35W Dual USB-C Port Compact Power Adapter"]
["07FY25","Z15Y001BF","CTO MACBOOK AIR M2 8C 10C GPU 16GB 512GB SSD 67W Starlight",1699,"Direct ship","MLY13LL/A","06NY07/SF8C2LL/A",160,"13IN MB AIR","Starlight","M2","8-core CPU and 10-core GPU","16GB","512GB SSD","67W USB-C  Power adapter"]
["07FY26","Z15Y000B7","CTO MACBOOK AIR M2 8C 10C GPU 16GB 1TB SSD 35W Dual Starlight",1899,"Direct ship","MLY13LL/A","06NY07/SF8C2LL/A",160,"13IN MB AIR","Starlight","M2","8-core CPU and 10-core GPU","16GB","1TB SSD","35W Dual USB-C Port Compact Power Adapter"]
["07FY27","Z15Y001GW","CTO MACBOOK AIR M2 8C 10C GPU 16GB 1TB SSD 67W Starlight",1899,"Direct ship","MLY13LL/A","06NY07/SF8C2LL/A",160,"13IN MB AIR","Starlight","M2","8-core CPU and 10-core GPU","16GB","1TB SSD","67W USB-C  Power adapter"]
["07FY28","Z15Y000B8","CTO MACBOOK AIR M2 8C 10C GPU 16GB 2TB SSD 35W Dual Starlight",2299,"Direct ship","MLY13LL/A","06NY07/SF8C2LL/A",160,"13IN MB AIR","Starlight","M2","8-core CPU and 10-core GPU","16GB","2TB SSD","35W Dual USB-C Port Compact Power Adapter"]
["07FY29","Z15Y001V2","CTO MACBOOK AIR M2 8C 10C GPU 16GB 2TB SSD 67W Starlight",2299,"Direct ship","MLY13LL/A","06NY07/SF8C2LL/A",160,"13IN MB AIR","Starlight","M2","8-core CPU and 10-core GPU","16GB","2TB SSD","67W USB-C  Power adapter"]
["07FY30","Z15Y000AV","CTO MACBOOK AIR M2 8C 8C GPU 24GB 256GB SSD 30W Starlight",1599,"Direct ship","MLY13LL/A","06NY07/SF8C2LL/A",160,"13IN MB AIR","Starlight","M2","8-core CPU and 8-core GPU","24GB","256GB SSD","30W USB-C Power Adapter"]
["07FY31","Z15Y001JN","CTO MACBOOK AIR M2 8C 8C GPU 24GB 256GB SSD 35W Dual Starlight",1619,"Direct ship","MLY13LL/A","06NY07/SF8C2LL/A",160,"13IN MB AIR","Starlight","M2","8-core CPU and 8-core GPU","24GB","256GB SSD","35W Dual USB-C Port Compact Power Adapter"]
["07FY32","Z15Y001HU","CTO MACBOOK AIR M2 8C 8C GPU 24GB 256GB SSD 67W Starlight",1619,"Direct ship","MLY13LL/A","06NY07/SF8C2LL/A",160,"13IN MB AIR","Starlight","M2","8-core CPU and 8-core GPU","24GB","256GB SSD","67W USB-C  Power adapter"]
["07FY33","Z15Y000B9","CTO MACBOOK AIR M2 8C 8C GPU 24GB 512GB SSD 30W Starlight",1799,"Direct ship","MLY13LL/A","06NY07/SF8C2LL/A",160,"13IN MB AIR","Starlight","M2","8-core CPU and 8-core GPU","24GB","512GB SSD","30W USB-C Power Adapter"]
["07FY34","Z15Y0019B","CTO MACBOOK AIR M2 8C 8C GPU 24GB 512GB SSD 35W Dual Starlight",1819,"Direct ship","MLY13LL/A","06NY07/SF8C2LL/A",160,"13IN MB AIR","Starlight","M2","8-core CPU and 8-core GPU","24GB","512GB SSD","35W Dual USB-C Port Compact Power Adapter"]
["07FY35","Z15Y001BS","CTO MACBOOK AIR M2 8C 8C GPU 24GB 512GB SSD 67W Starlight",1819,"Direct ship","MLY13LL/A","06NY07/SF8C2LL/A",160,"13IN MB AIR","Starlight","M2","8-core CPU and 8-core GPU","24GB","512GB SSD","67W USB-C  Power adapter"]
["07FY36","Z15Y000BA","CTO MACBOOK AIR M2 8C 8C GPU 24GB 1TB SSD 30W Starlight",1999,"Direct ship","MLY13LL/A","06NY07/SF8C2LL/A",160,"13IN MB AIR","Starlight","M2","8-core CPU and 8-core GPU","24GB","1TB SSD","30W USB-C Power Adapter"]
["07FY37","Z15Y001C2","CTO MACBOOK AIR M2 8C 8C GPU 24GB 1TB SSD 35W Dual Starlight",2019,"Direct ship","MLY13LL/A","06NY07/SF8C2LL/A",160,"13IN MB AIR","Starlight","M2","8-core CPU and 8-core GPU","24GB","1TB SSD","35W Dual USB-C Port Compact Power Adapter"]
["07FY38","Z15Y001DF","CTO MACBOOK AIR M2 8C 8C GPU 24GB 1TB SSD 67W Starlight",2019,"Direct ship","MLY13LL/A","06NY07/SF8C2LL/A",160,"13IN MB AIR","Starlight","M2","8-core CPU and 8-core GPU","24GB","1TB SSD","67W USB-C  Power adapter"]
["07FY39","Z15Y000BB","CTO MACBOOK AIR M2 8C 8C GPU 24GB 2TB SSD 30W Starlight",2399,"Direct ship","MLY13LL/A","06NY07/SF8C2LL/A",160,"13IN MB AIR","Starlight","M2","8-core CPU and 8-core GPU","24GB","2TB SSD","30W USB-C Power Adapter"]
["07FY40","Z15Y001CD","CTO MACBOOK AIR M2 8C 8C GPU 24GB 2TB SSD 35W Dual Starlight",2419,"Direct ship","MLY13LL/A","06NY07/SF8C2LL/A",160,"13IN MB AIR","Starlight","M2","8-core CPU and 8-core GPU","24GB","2TB SSD","35W Dual USB-C Port Compact Power Adapter"]
["07FY41","Z15Y001S5","CTO MACBOOK AIR M2 8C 8C GPU 24GB 2TB SSD 67W Starlight",2419,"Direct ship","MLY13LL/A","06NY07/SF8C2LL/A",160,"13IN MB AIR","Starlight","M2","8-core CPU and 8-core GPU","24GB","2TB SSD","67W USB-C  Power adapter"]
["07FY42","Z15Y000BC","CTO MACBOOK AIR M2 8C 10C GPU 24GB 256GB SSD 30W Starlight",1699,"Direct ship","MLY13LL/A","06NY07/SF8C2LL/A",160,"13IN MB AIR","Starlight","M2","8-core CPU and 10-core GPU","24GB","256GB SSD","30W USB-C Power Adapter"]
["07FY43","Z15Y001HT","CTO MACBOOK AIR M2 8C 10C GPU 24GB 256GB SSD 35W Dual Starlight",1719,"Direct ship","MLY13LL/A","06NY07/SF8C2LL/A",160,"13IN MB AIR","Starlight","M2","8-core CPU and 10-core GPU","24GB","256GB SSD","35W Dual USB-C Port Compact Power Adapter"]
["07FY44","Z15Y001PE","CTO MACBOOK AIR M2 8C 10C GPU 24GB 256GB SSD 67W Starlight",1719,"Direct ship","MLY13LL/A","06NY07/SF8C2LL/A",160,"13IN MB AIR","Starlight","M2","8-core CPU and 10-core GPU","24GB","256GB SSD","67W USB-C  Power adapter"]
["07FY45","Z15Y000BD","CTO MACBOOK AIR M2 8C 10C GPU 24GB 512GB SSD 35W Dual Starlight",1899,"Direct ship","MLY13LL/A","06NY07/SF8C2LL/A",160,"13IN MB AIR","Starlight","M2","8-core CPU and 10-core GPU","24GB","512GB SSD","35W Dual USB-C Port Compact Power Adapter"]
["07FY46","Z15Y001J5","CTO MACBOOK AIR M2 8C 10C GPU 24GB 512GB SSD 67W Starlight",1899,"Direct ship","MLY13LL/A","06NY07/SF8C2LL/A",160,"13IN MB AIR","Starlight","M2","8-core CPU and 10-core GPU","24GB","512GB SSD","67W USB-C  Power adapter"]
["07FY47","Z15Y000BE","CTO MACBOOK AIR M2 8C 10C GPU 24GB 1TB SSD 35W Dual Starlight",2099,"Direct ship","MLY13LL/A","06NY07/SF8C2LL/A",160,"13IN MB AIR","Starlight","M2","8-core CPU and 10-core GPU","24GB","1TB SSD","35W Dual USB-C Port Compact Power Adapter"]
["07FY48","Z15Y001BT","CTO MACBOOK AIR M2 8C 10C GPU 24GB 1TB SSD 67W Starlight",2099,"Direct ship","MLY13LL/A","06NY07/SF8C2LL/A",160,"13IN MB AIR","Starlight","M2","8-core CPU and 10-core GPU","24GB","1TB SSD","67W USB-C  Power adapter"]
["07FY49","Z15Y000BF","CTO MACBOOK AIR M2 8C 10C GPU 24GB 2TB SSD 35W Dual Starlight",2499,"Direct ship","MLY13LL/A","06NY07/SF8C2LL/A",160,"13IN MB AIR","Starlight","M2","8-core CPU and 10-core GPU","24GB","2TB SSD","35W Dual USB-C Port Compact Power Adapter"]
["07FY50","Z15Y001KH","CTO MACBOOK AIR M2 8C 10C GPU 24GB 2TB SSD 67W Starlight",2499,"Direct ship","MLY13LL/A","06NY07/SF8C2LL/A",160,"13IN MB AIR","Starlight","M2","8-core CPU and 10-core GPU","24GB","2TB SSD","67W USB-C  Power adapter"]
["07FY51","Z15S000DJ","CTO MACBOOK AIR M2 8C 8C GPU 8GB 256GB SSD 35W Dual Space gray",1219,"Direct ship","MLXW3LL/A ","06NY07/SF8C2LL/A",160,"13IN MB AIR","Space gray","M2","8-core CPU and 8-core GPU","8GB","256GB SSD","35W Dual USB-C Port Compact Power Adapter"]
["07FY52","Z15S000DH","CTO MACBOOK AIR M2 8C 8C GPU 8GB 256GB SSD 67W Space gray",1219,"Direct ship","MLXW3LL/A ","06NY07/SF8C2LL/A",160,"13IN MB AIR","Space gray","M2","8-core CPU and 8-core GPU","8GB","256GB SSD","67W USB-C  Power adapter"]
["07FY53","Z15S000CJ","CTO MACBOOK AIR M2 8C 8C GPU 8GB 512GB SSD 30W Space gray",1399,"Direct ship","MLXW3LL/A ","06NY07/SF8C2LL/A",160,"13IN MB AIR","Space gray","M2","8-core CPU and 8-core GPU","8GB","512GB SSD","30W USB-C Power Adapter"]
["07FY54","Z15S001EE","CTO MACBOOK AIR M2 8C 8C GPU 8GB 512GB SSD 35W Dual Space gray",1419,"Direct ship","MLXW3LL/A ","06NY07/SF8C2LL/A",160,"13IN MB AIR","Space gray","M2","8-core CPU and 8-core GPU","8GB","512GB SSD","35W Dual USB-C Port Compact Power Adapter"]
["07FY55","Z15S001EN","CTO MACBOOK AIR M2 8C 8C GPU 8GB 512GB SSD 67W Space gray",1419,"Direct ship","MLXW3LL/A ","06NY07/SF8C2LL/A",160,"13IN MB AIR","Space gray","M2","8-core CPU and 8-core GPU","8GB","512GB SSD","67W USB-C  Power adapter"]
["07FY56","Z15S000CK","CTO MACBOOK AIR M2 8C 8C GPU 8GB 1TB SSD 30W Space gray",1599,"Direct ship","MLXW3LL/A ","06NY07/SF8C2LL/A",160,"13IN MB AIR","Space gray","M2","8-core CPU and 8-core GPU","8GB","1TB SSD","30W USB-C Power Adapter"]
["07FY57","Z15S001NE","CTO MACBOOK AIR M2 8C 8C GPU 8GB 1TB SSD 35W Dual Space gray",1619,"Direct ship","MLXW3LL/A ","06NY07/SF8C2LL/A",160,"13IN MB AIR","Space gray","M2","8-core CPU and 8-core GPU","8GB","1TB SSD","35W Dual USB-C Port Compact Power Adapter"]
["07FY58","Z15S001GD","CTO MACBOOK AIR M2 8C 8C GPU 8GB 1TB SSD 67W Space gray",1619,"Direct ship","MLXW3LL/A ","06NY07/SF8C2LL/A",160,"13IN MB AIR","Space gray","M2","8-core CPU and 8-core GPU","8GB","1TB SSD","67W USB-C  Power adapter"]
["07FY59","Z15S000CL","CTO MACBOOK AIR M2 8C 8C GPU 8GB 2TB SSD 30W Space gray",1999,"Direct ship","MLXW3LL/A ","06NY07/SF8C2LL/A",160,"13IN MB AIR","Space gray","M2","8-core CPU and 8-core GPU","8GB","2TB SSD","30W USB-C Power Adapter"]
["07FY60","Z15S00163","CTO MACBOOK AIR M2 8C 8C GPU 8GB 2TB SSD 35W Dual Space gray",2019,"Direct ship","MLXW3LL/A ","06NY07/SF8C2LL/A",160,"13IN MB AIR","Space gray","M2","8-core CPU and 8-core GPU","8GB","2TB SSD","35W Dual USB-C Port Compact Power Adapter"]
["07FY61","Z15S001UZ","CTO MACBOOK AIR M2 8C 8C GPU 8GB 2TB SSD 67W Space gray",2019,"Direct ship","MLXW3LL/A ","06NY07/SF8C2LL/A",160,"13IN MB AIR","Space gray","M2","8-core CPU and 8-core GPU","8GB","2TB SSD","67W USB-C  Power adapter"]
["07FY62","Z15S000CX","CTO MACBOOK AIR M2 8C 10C GPU 8GB 256GB SSD 30W Space gray",1299,"Direct ship","MLXW3LL/A ","06NY07/SF8C2LL/A",160,"13IN MB AIR","Space gray","M2","8-core CPU and 10-core GPU","8GB","256GB SSD","30W USB-C Power Adapter"]
["07FY63","Z15S001JM","CTO MACBOOK AIR M2 8C 10C GPU 8GB 256GB SSD 35W Dual Space gray",1319,"Direct ship","MLXW3LL/A ","06NY07/SF8C2LL/A",160,"13IN MB AIR","Space gray","M2","8-core CPU and 10-core GPU","8GB","256GB SSD","35W Dual USB-C Port Compact Power Adapter"]
["07FY64","Z15S001ME","CTO MACBOOK AIR M2 8C 10C GPU 8GB 256GB SSD 67W Space gray",1319,"Direct ship","MLXW3LL/A ","06NY07/SF8C2LL/A",160,"13IN MB AIR","Space gray","M2","8-core CPU and 10-core GPU","8GB","256GB SSD","67W USB-C  Power adapter"]
["07FY65","Z15S000CY","CTO MACBOOK AIR M2 8C 10C GPU 8GB 512GB SSD 35W Dual Space gray",1499,"Direct ship","MLXW3LL/A ","06NY07/SF8C2LL/A",160,"13IN MB AIR","Space gray","M2","8-core CPU and 10-core GPU","8GB","512GB SSD","35W Dual USB-C Port Compact Power Adapter"]
["07FY66","Z15S001J4","CTO MACBOOK AIR M2 8C 10C GPU 8GB 512GB SSD 67W Space gray",1499,"Direct ship","MLXW3LL/A ","06NY07/SF8C2LL/A",160,"13IN MB AIR","Space gray","M2","8-core CPU and 10-core GPU","8GB","512GB SSD","67W USB-C  Power adapter"]
["07FY67","Z15S000CZ","CTO MACBOOK AIR M2 8C 10C GPU 8GB 1TB SSD 35W Dual Space gray",1699,"Direct ship","MLXW3LL/A ","06NY07/SF8C2LL/A",160,"13IN MB AIR","Space gray","M2","8-core CPU and 10-core GPU","8GB","1TB SSD","35W Dual USB-C Port Compact Power Adapter"]
["07FY68","Z15S001Z6","CTO MACBOOK AIR M2 8C 10C GPU 8GB 1TB SSD 67W Space gray",1699,"Direct ship","MLXW3LL/A ","06NY07/SF8C2LL/A",160,"13IN MB AIR","Space gray","M2","8-core CPU and 10-core GPU","8GB","1TB SSD","67W USB-C  Power adapter"]
["07FY69","Z15S000D0","CTO MACBOOK AIR M2 8C 10C GPU 8GB 2TB SSD 35W Dual Space gray",2099,"Direct ship","MLXW3LL/A ","06NY07/SF8C2LL/A",160,"13IN MB AIR","Space gray","M2","8-core CPU and 10-core GPU","8GB","2TB SSD","35W Dual USB-C Port Compact Power Adapter"]
["07FY70","Z15S","CTO MACBOOK AIR M2 8C 10C GPU 8GB 2TB SSD 67W Space gray",2099,"Direct ship","MLXW3LL/A ","06NY07/SF8C2LL/A",160,"13IN MB AIR","Space gray","M2","8-core CPU and 10-core GPU","8GB","2TB SSD","67W USB-C  Power adapter"]
["07FY71","Z15S000CT","CTO MACBOOK AIR M2 8C 8C GPU 16GB 256GB SSD 30W Space gray",1399,"Direct ship","MLXW3LL/A ","06NY07/SF8C2LL/A",160,"13IN MB AIR","Space gray","M2","8-core CPU and 8-core GPU","16GB","256GB SSD","30W USB-C Power Adapter"]
["07FY72","Z15S001EM","CTO MACBOOK AIR M2 8C 8C GPU 16GB 256GB SSD 35W Dual Space gray",1419,"Direct ship","MLXW3LL/A ","06NY07/SF8C2LL/A",160,"13IN MB AIR","Space gray","M2","8-core CPU and 8-core GPU","16GB","256GB SSD","35W Dual USB-C Port Compact Power Adapter"]
["07FY73","Z15S001EC","CTO MACBOOK AIR M2 8C 8C GPU 16GB 256GB SSD 67W Space gray",1419,"Direct ship","MLXW3LL/A ","06NY07/SF8C2LL/A",160,"13IN MB AIR","Space gray","M2","8-core CPU and 8-core GPU","16GB","256GB SSD","67W USB-C  Power adapter"]
["07FY74","Z15S000D2","CTO MACBOOK AIR M2 8C 8C GPU 16GB 512GB SSD 30W Space gray",1599,"Direct ship","MLXW3LL/A ","06NY07/SF8C2LL/A",160,"13IN MB AIR","Space gray","M2","8-core CPU and 8-core GPU","16GB","512GB SSD","30W USB-C Power Adapter"]
["07FY75","Z15S0017E","CTO MACBOOK AIR M2 8C 8C GPU 16GB 512GB SSD 35W Dual Space gray",1619,"Direct ship","MLXW3LL/A ","06NY07/SF8C2LL/A",160,"13IN MB AIR","Space gray","M2","8-core CPU and 8-core GPU","16GB","512GB SSD","35W Dual USB-C Port Compact Power Adapter"]
["07FY76","Z15S001BB","CTO MACBOOK AIR M2 8C 8C GPU 16GB 512GB SSD 67W Space gray",1619,"Direct ship","MLXW3LL/A ","06NY07/SF8C2LL/A",160,"13IN MB AIR","Space gray","M2","8-core CPU and 8-core GPU","16GB","512GB SSD","67W USB-C  Power adapter"]
["07FY77","Z15S000D4","CTO MACBOOK AIR M2 8C 8C GPU 16GB 1TB SSD 30W Space gray",1799,"Direct ship","MLXW3LL/A ","06NY07/SF8C2LL/A",160,"13IN MB AIR","Space gray","M2","8-core CPU and 8-core GPU","16GB","1TB SSD","30W USB-C Power Adapter"]
["07FY78","Z15S001EY","CTO MACBOOK AIR M2 8C 8C GPU 16GB 1TB SSD 35W Dual Space gray",1819,"Direct ship","MLXW3LL/A ","06NY07/SF8C2LL/A",160,"13IN MB AIR","Space gray","M2","8-core CPU and 8-core GPU","16GB","1TB SSD","35W Dual USB-C Port Compact Power Adapter"]
["07FY79","Z15S001FP","CTO MACBOOK AIR M2 8C 8C GPU 16GB 1TB SSD 67W Space gray",1819,"Direct ship","MLXW3LL/A ","06NY07/SF8C2LL/A",160,"13IN MB AIR","Space gray","M2","8-core CPU and 8-core GPU","16GB","1TB SSD","67W USB-C  Power adapter"]
["07FY80","Z15S000D6","CTO MACBOOK AIR M2 8C 8C GPU 16GB 2TB SSD 30W Space gray",2199,"Direct ship","MLXW3LL/A ","06NY07/SF8C2LL/A",160,"13IN MB AIR","Space gray","M2","8-core CPU and 8-core GPU","16GB","2TB SSD","30W USB-C Power Adapter"]
["07FY81","Z15S001PD","CTO MACBOOK AIR M2 8C 8C GPU 16GB 2TB SSD 35W Dual Space gray",2219,"Direct ship","MLXW3LL/A ","06NY07/SF8C2LL/A",160,"13IN MB AIR","Space gray","M2","8-core CPU and 8-core GPU","16GB","2TB SSD","35W Dual USB-C Port Compact Power Adapter"]
["07FY82","Z15S001S3","CTO MACBOOK AIR M2 8C 8C GPU 16GB 2TB SSD 67W Space gray",2219,"Direct ship","MLXW3LL/A ","06NY07/SF8C2LL/A",160,"13IN MB AIR","Space gray","M2","8-core CPU and 8-core GPU","16GB","2TB SSD","67W USB-C  Power adapter"]
["07FY83","Z15S000D1","CTO MACBOOK AIR M2 8C 10C GPU 16GB 256GB SSD 30W Space gray",1499,"Direct ship","MLXW3LL/A ","06NY07/SF8C2LL/A",160,"13IN MB AIR","Space gray","M2","8-core CPU and 10-core GPU","16GB","256GB SSD","30W USB-C Power Adapter"]
["07FY84","Z15S001HV","CTO MACBOOK AIR M2 8C 10C GPU 16GB 256GB SSD 35W Dual Space gray",1519,"Direct ship","MLXW3LL/A ","06NY07/SF8C2LL/A",160,"13IN MB AIR","Space gray","M2","8-core CPU and 10-core GPU","16GB","256GB SSD","35W Dual USB-C Port Compact Power Adapter"]
["07FY85","Z15S001DS","CTO MACBOOK AIR M2 8C 10C GPU 16GB 256GB SSD 67W Space gray",1519,"Direct ship","MLXW3LL/A ","06NY07/SF8C2LL/A",160,"13IN MB AIR","Space gray","M2","8-core CPU and 10-core GPU","16GB","256GB SSD","67W USB-C  Power adapter"]
["07FY86","Z15S000D3","CTO MACBOOK AIR M2 8C 10C GPU 16GB 512GB SSD 35W Dual Space gray",1699,"Direct ship","MLXW3LL/A ","06NY07/SF8C2LL/A",160,"13IN MB AIR","Space gray","M2","8-core CPU and 10-core GPU","16GB","512GB SSD","35W Dual USB-C Port Compact Power Adapter"]
["07FY87","Z15S001EJ","CTO MACBOOK AIR M2 8C 10C GPU 16GB 512GB SSD 67W Space gray",1699,"Direct ship","MLXW3LL/A ","06NY07/SF8C2LL/A",160,"13IN MB AIR","Space gray","M2","8-core CPU and 10-core GPU","16GB","512GB SSD","67W USB-C  Power adapter"]
["07FY88","Z15S000D5","CTO MACBOOK AIR M2 8C 10C GPU 16GB 1TB SSD 35W Dual Space gray",1899,"Direct ship","MLXW3LL/A ","06NY07/SF8C2LL/A",160,"13IN MB AIR","Space gray","M2","8-core CPU and 10-core GPU","16GB","1TB SSD","35W Dual USB-C Port Compact Power Adapter"]
["07FY89","Z15S001G7","CTO MACBOOK AIR M2 8C 10C GPU 16GB 1TB SSD 67W Space gray",1899,"Direct ship","MLXW3LL/A ","06NY07/SF8C2LL/A",160,"13IN MB AIR","Space gray","M2","8-core CPU and 10-core GPU","16GB","1TB SSD","67W USB-C  Power adapter"]
["07FY90","Z15S000D7","CTO MACBOOK AIR M2 8C 10C GPU 16GB 2TB SSD 35W Dual Space gray",2299,"Direct ship","MLXW3LL/A ","06NY07/SF8C2LL/A",160,"13IN MB AIR","Space gray","M2","8-core CPU and 10-core GPU","16GB","2TB SSD","35W Dual USB-C Port Compact Power Adapter"]
["07FY91","Z15S001HD","CTO MACBOOK AIR M2 8C 10C GPU 16GB 2TB SSD 67W Space gray",2299,"Direct ship","MLXW3LL/A ","06NY07/SF8C2LL/A",160,"13IN MB AIR","Space gray","M2","8-core CPU and 10-core GPU","16GB","2TB SSD","67W USB-C  Power adapter"]
["07FY92","Z15S000CU","CTO MACBOOK AIR M2 8C 8C GPU 24GB 256GB SSD 30W Space gray",1599,"Direct ship","MLXW3LL/A ","06NY07/SF8C2LL/A",160,"13IN MB AIR","Space gray","M2","8-core CPU and 8-core GPU","24GB","256GB SSD","30W USB-C Power Adapter"]
["07FY93","Z15S001SS","CTO MACBOOK AIR M2 8C 8C GPU 24GB 256GB SSD 35W Dual Space gray",1619,"Direct ship","MLXW3LL/A ","06NY07/SF8C2LL/A",160,"13IN MB AIR","Space gray","M2","8-core CPU and 8-core GPU","24GB","256GB SSD","35W Dual USB-C Port Compact Power Adapter"]
["07FY94","Z15S001FB","CTO MACBOOK AIR M2 8C 8C GPU 24GB 256GB SSD 67W Space gray",1619,"Direct ship","MLXW3LL/A ","06NY07/SF8C2LL/A",160,"13IN MB AIR","Space gray","M2","8-core CPU and 8-core GPU","24GB","256GB SSD","67W USB-C  Power adapter"]
["07FY95","Z15S000D9","CTO MACBOOK AIR M2 8C 8C GPU 24GB 512GB SSD 30W Space gray",1799,"Direct ship","MLXW3LL/A ","06NY07/SF8C2LL/A",160,"13IN MB AIR","Space gray","M2","8-core CPU and 8-core GPU","24GB","512GB SSD","30W USB-C Power Adapter"]
["07FY96","Z15S001NJ","CTO MACBOOK AIR M2 8C 8C GPU 24GB 512GB SSD 35W Dual Space gray",1819,"Direct ship","MLXW3LL/A ","06NY07/SF8C2LL/A",160,"13IN MB AIR","Space gray","M2","8-core CPU and 8-core GPU","24GB","512GB SSD","35W Dual USB-C Port Compact Power Adapter"]
["07FY97","Z15S001GZ","CTO MACBOOK AIR M2 8C 8C GPU 24GB 512GB SSD 67W Space gray",1819,"Direct ship","MLXW3LL/A ","06NY07/SF8C2LL/A",160,"13IN MB AIR","Space gray","M2","8-core CPU and 8-core GPU","24GB","512GB SSD","67W USB-C  Power adapter"]
["07FY98","Z15S000DB","CTO MACBOOK AIR M2 8C 8C GPU 24GB 1TB SSD 30W Space gray",1999,"Direct ship","MLXW3LL/A ","06NY07/SF8C2LL/A",160,"13IN MB AIR","Space gray","M2","8-core CPU and 8-core GPU","24GB","1TB SSD","30W USB-C Power Adapter"]
["07FY99","Z15S00180","CTO MACBOOK AIR M2 8C 8C GPU 24GB 1TB SSD 35W Dual Space gray",2019,"Direct ship","MLXW3LL/A ","06NY07/SF8C2LL/A",160,"13IN MB AIR","Space gray","M2","8-core CPU and 8-core GPU","24GB","1TB SSD","35W Dual USB-C Port Compact Power Adapter"]
["07FZ00","Z15S001ER","CTO MACBOOK AIR M2 8C 8C GPU 24GB 1TB SSD 67W Space gray",2019,"Direct ship","MLXW3LL/A ","06NY07/SF8C2LL/A",160,"13IN MB AIR","Space gray","M2","8-core CPU and 8-core GPU","24GB","1TB SSD","67W USB-C  Power adapter"]
["07FZ01","Z15S000DD","CTO MACBOOK AIR M2 8C 8C GPU 24GB 2TB SSD 30W Space gray",2399,"Direct ship","MLXW3LL/A ","06NY07/SF8C2LL/A",160,"13IN MB AIR","Space gray","M2","8-core CPU and 8-core GPU","24GB","2TB SSD","30W USB-C Power Adapter"]
["07FZ02","Z15S001M6","CTO MACBOOK AIR M2 8C 8C GPU 24GB 2TB SSD 35W Dual Space gray",2419,"Direct ship","MLXW3LL/A ","06NY07/SF8C2LL/A",160,"13IN MB AIR","Space gray","M2","8-core CPU and 8-core GPU","24GB","2TB SSD","35W Dual USB-C Port Compact Power Adapter"]
["07FZ03","Z15S001LW","CTO MACBOOK AIR M2 8C 8C GPU 24GB 2TB SSD 67W Space gray",2419,"Direct ship","MLXW3LL/A ","06NY07/SF8C2LL/A",160,"13IN MB AIR","Space gray","M2","8-core CPU and 8-core GPU","24GB","2TB SSD","67W USB-C  Power adapter"]
["07FZ04","Z15S000D8","CTO MACBOOK AIR M2 8C 10C GPU 24GB 256GB SSD 30W Space gray",1699,"Direct ship","MLXW3LL/A ","06NY07/SF8C2LL/A",160,"13IN MB AIR","Space gray","M2","8-core CPU and 10-core GPU","24GB","256GB SSD","30W USB-C Power Adapter"]
["07FZ05","Z15S001HX","CTO MACBOOK AIR M2 8C 10C GPU 24GB 256GB SSD 35W Dual Space gray",1719,"Direct ship","MLXW3LL/A ","06NY07/SF8C2LL/A",160,"13IN MB AIR","Space gray","M2","8-core CPU and 10-core GPU","24GB","256GB SSD","35W Dual USB-C Port Compact Power Adapter"]
["07FZ06","Z15S001JH","CTO MACBOOK AIR M2 8C 10C GPU 24GB 256GB SSD 67W Space gray",1719,"Direct ship","MLXW3LL/A ","06NY07/SF8C2LL/A",160,"13IN MB AIR","Space gray","M2","8-core CPU and 10-core GPU","24GB","256GB SSD","67W USB-C  Power adapter"]
["07FZ07","Z15S000DA","CTO MACBOOK AIR M2 8C 10C GPU 24GB 512GB SSD 35W Dual Space gray",1899,"Direct ship","MLXW3LL/A ","06NY07/SF8C2LL/A",160,"13IN MB AIR","Space gray","M2","8-core CPU and 10-core GPU","24GB","512GB SSD","35W Dual USB-C Port Compact Power Adapter"]
["07FZ08","Z15S001FN","CTO MACBOOK AIR M2 8C 10C GPU 24GB 512GB SSD 67W Space gray",1899,"Direct ship","MLXW3LL/A ","06NY07/SF8C2LL/A",160,"13IN MB AIR","Space gray","M2","8-core CPU and 10-core GPU","24GB","512GB SSD","67W USB-C  Power adapter"]
["07FZ09","Z15S000DC","CTO MACBOOK AIR M2 8C 10C GPU 24GB 1TB SSD 35W Dual Space gray",2099,"Direct ship","MLXW3LL/A ","06NY07/SF8C2LL/A",160,"13IN MB AIR","Space gray","M2","8-core CPU and 10-core GPU","24GB","1TB SSD","35W Dual USB-C Port Compact Power Adapter"]
["07FZ10","Z15S001BC","CTO MACBOOK AIR M2 8C 10C GPU 24GB 1TB SSD 67W Space gray",2099,"Direct ship","MLXW3LL/A ","06NY07/SF8C2LL/A",160,"13IN MB AIR","Space gray","M2","8-core CPU and 10-core GPU","24GB","1TB SSD","67W USB-C  Power adapter"]
["07FZ11","Z15S000DE","CTO MACBOOK AIR M2 8C 10C GPU 24GB 2TB SSD 35W Dual Space gray",2499,"Direct ship","MLXW3LL/A ","06NY07/SF8C2LL/A",160,"13IN MB AIR","Space gray","M2","8-core CPU and 10-core GPU","24GB","2TB SSD","35W Dual USB-C Port Compact Power Adapter"]
["07FZ12","Z15S001ED","CTO MACBOOK AIR M2 8C 10C GPU 24GB 2TB SSD 67W Space gray",2499,"Direct ship","MLXW3LL/A ","06NY07/SF8C2LL/A",160,"13IN MB AIR","Space gray","M2","8-core CPU and 10-core GPU","24GB","2TB SSD","67W USB-C  Power adapter"]
["07FZ13","Z15W000BM","CTO MACBOOK AIR M2 8C 8C GPU 8GB 256GB SSD 35W Dual Silver",1219,"Direct ship","MLXY3LL/A","06NY07/SF8C2LL/A",160,"13IN MB AIR","Silver","M2","8-core CPU and 8-core GPU","8GB","256GB SSD","35W Dual USB-C Port Compact Power Adapter"]
["07FZ14","Z15W000BL","CTO MACBOOK AIR M2 8C 8C GPU 8GB 256GB SSD 67W Silver",1219,"Direct ship","MLXY3LL/A","06NY07/SF8C2LL/A",160,"13IN MB AIR","Silver","M2","8-core CPU and 8-core GPU","8GB","256GB SSD","67W USB-C  Power adapter"]
["07FZ15","Z15W000AM","CTO MACBOOK AIR M2 8C 8C GPU 8GB 512GB SSD 30W Silver",1399,"Direct ship","MLXY3LL/A","06NY07/SF8C2LL/A",160,"13IN MB AIR","Silver","M2","8-core CPU and 8-core GPU","8GB","512GB SSD","30W USB-C Power Adapter"]
["07FZ16","Z15W001BG","CTO MACBOOK AIR M2 8C 8C GPU 8GB 512GB SSD 35W Dual Silver",1419,"Direct ship","MLXY3LL/A","06NY07/SF8C2LL/A",160,"13IN MB AIR","Silver","M2","8-core CPU and 8-core GPU","8GB","512GB SSD","35W Dual USB-C Port Compact Power Adapter"]
["07FZ17","Z15W001FN","CTO MACBOOK AIR M2 8C 8C GPU 8GB 512GB SSD 67W Silver",1419,"Direct ship","MLXY3LL/A","06NY07/SF8C2LL/A",160,"13IN MB AIR","Silver","M2","8-core CPU and 8-core GPU","8GB","512GB SSD","67W USB-C  Power adapter"]
["07FZ18","Z15W000AN","CTO MACBOOK AIR M2 8C 8C GPU 8GB 1TB SSD 30W Silver",1599,"Direct ship","MLXY3LL/A","06NY07/SF8C2LL/A",160,"13IN MB AIR","Silver","M2","8-core CPU and 8-core GPU","8GB","1TB SSD","30W USB-C Power Adapter"]
["07FZ19","Z15W001EU","CTO MACBOOK AIR M2 8C 8C GPU 8GB 1TB SSD 35W Dual Silver",1619,"Direct ship","MLXY3LL/A","06NY07/SF8C2LL/A",160,"13IN MB AIR","Silver","M2","8-core CPU and 8-core GPU","8GB","1TB SSD","35W Dual USB-C Port Compact Power Adapter"]
["07FZ20","Z15W001GE","CTO MACBOOK AIR M2 8C 8C GPU 8GB 1TB SSD 67W Silver",1619,"Direct ship","MLXY3LL/A","06NY07/SF8C2LL/A",160,"13IN MB AIR","Silver","M2","8-core CPU and 8-core GPU","8GB","1TB SSD","67W USB-C  Power adapter"]
["07FZ21","Z15W000AP","CTO MACBOOK AIR M2 8C 8C GPU 8GB 2TB SSD 30W Silver",1999,"Direct ship","MLXY3LL/A","06NY07/SF8C2LL/A",160,"13IN MB AIR","Silver","M2","8-core CPU and 8-core GPU","8GB","2TB SSD","30W USB-C Power Adapter"]
["07FZ22","Z15W001KT","CTO MACBOOK AIR M2 8C 8C GPU 8GB 2TB SSD 35W Dual Silver",2019,"Direct ship","MLXY3LL/A","06NY07/SF8C2LL/A",160,"13IN MB AIR","Silver","M2","8-core CPU and 8-core GPU","8GB","2TB SSD","35W Dual USB-C Port Compact Power Adapter"]
["07FZ23","Z15W001R8","CTO MACBOOK AIR M2 8C 8C GPU 8GB 2TB SSD 67W Silver",2019,"Direct ship","MLXY3LL/A","06NY07/SF8C2LL/A",160,"13IN MB AIR","Silver","M2","8-core CPU and 8-core GPU","8GB","2TB SSD","67W USB-C  Power adapter"]
["07FZ24","Z15W000B0","CTO MACBOOK AIR M2 8C 10C GPU 8GB 256GB SSD 30W Silver",1299,"Direct ship","MLXY3LL/A","06NY07/SF8C2LL/A",160,"13IN MB AIR","Silver","M2","8-core CPU and 10-core GPU","8GB","256GB SSD","30W USB-C Power Adapter"]
["07FZ25","Z15W001EL","CTO MACBOOK AIR M2 8C 10C GPU 8GB 256GB SSD 35W Dual Silver",1319,"Direct ship","MLXY3LL/A","06NY07/SF8C2LL/A",160,"13IN MB AIR","Silver","M2","8-core CPU and 10-core GPU","8GB","256GB SSD","35W Dual USB-C Port Compact Power Adapter"]
["07FZ26","Z15W001GR","CTO MACBOOK AIR M2 8C 10C GPU 8GB 256GB SSD 67W Silver",1319,"Direct ship","MLXY3LL/A","06NY07/SF8C2LL/A",160,"13IN MB AIR","Silver","M2","8-core CPU and 10-core GPU","8GB","256GB SSD","67W USB-C  Power adapter"]
["07FZ27","Z15W000B3","CTO MACBOOK AIR M2 8C 10C GPU 8GB 512GB SSD 35W Dual Silver",1499,"Direct ship","MLXY3LL/A","06NY07/SF8C2LL/A",160,"13IN MB AIR","Silver","M2","8-core CPU and 10-core GPU","8GB","512GB SSD","35W Dual USB-C Port Compact Power Adapter"]
["07FZ28","Z15W001QE","CTO MACBOOK AIR M2 8C 10C GPU 8GB 512GB SSD 67W Silver",1499,"Direct ship","MLXY3LL/A","06NY07/SF8C2LL/A",160,"13IN MB AIR","Silver","M2","8-core CPU and 10-core GPU","8GB","512GB SSD","67W USB-C  Power adapter"]
["07FZ29","Z15W000B8","CTO MACBOOK AIR M2 8C 10C GPU 8GB 1TB SSD 35W Dual Silver",1699,"Direct ship","MLXY3LL/A","06NY07/SF8C2LL/A",160,"13IN MB AIR","Silver","M2","8-core CPU and 10-core GPU","8GB","1TB SSD","35W Dual USB-C Port Compact Power Adapter"]
["07FZ30","Z15W","CTO MACBOOK AIR M2 8C 10C GPU 8GB 1TB SSD 67W Silver",1699,"Direct ship","MLXY3LL/A","06NY07/SF8C2LL/A",160,"13IN MB AIR","Silver","M2","8-core CPU and 10-core GPU","8GB","1TB SSD","67W USB-C  Power adapter"]
["07FZ31","Z15W000BD","CTO MACBOOK AIR M2 8C 10C GPU 8GB 2TB SSD 35W Dual Silver",2099,"Direct ship","MLXY3LL/A","06NY07/SF8C2LL/A",160,"13IN MB AIR","Silver","M2","8-core CPU and 10-core GPU","8GB","2TB SSD","35W Dual USB-C Port Compact Power Adapter"]
["07FZ32","Z15W001RY","CTO MACBOOK AIR M2 8C 10C GPU 8GB 2TB SSD 67W Silver",2099,"Direct ship","MLXY3LL/A","06NY07/SF8C2LL/A",160,"13IN MB AIR","Silver","M2","8-core CPU and 10-core GPU","8GB","2TB SSD","67W USB-C  Power adapter"]
["07FZ33","Z15W000AW","CTO MACBOOK AIR M2 8C 8C GPU 16GB 256GB SSD 30W Silver",1399,"Direct ship","MLXY3LL/A","06NY07/SF8C2LL/A",160,"13IN MB AIR","Silver","M2","8-core CPU and 8-core GPU","16GB","256GB SSD","30W USB-C Power Adapter"]
["07FZ34","Z15W001BA","CTO MACBOOK AIR M2 8C 8C GPU 16GB 256GB SSD 35W Dual Silver",1419,"Direct ship","MLXY3LL/A","06NY07/SF8C2LL/A",160,"13IN MB AIR","Silver","M2","8-core CPU and 8-core GPU","16GB","256GB SSD","35W Dual USB-C Port Compact Power Adapter"]
["07FZ35","Z15W001BK","CTO MACBOOK AIR M2 8C 8C GPU 16GB 256GB SSD 67W Silver",1419,"Direct ship","MLXY3LL/A","06NY07/SF8C2LL/A",160,"13IN MB AIR","Silver","M2","8-core CPU and 8-core GPU","16GB","256GB SSD","67W USB-C  Power adapter"]
["07FZ36","Z15W000B4","CTO MACBOOK AIR M2 8C 8C GPU 16GB 512GB SSD 30W Silver",1599,"Direct ship","MLXY3LL/A","06NY07/SF8C2LL/A",160,"13IN MB AIR","Silver","M2","8-core CPU and 8-core GPU","16GB","512GB SSD","30W USB-C Power Adapter"]
["07FZ37","Z15W001BD","CTO MACBOOK AIR M2 8C 8C GPU 16GB 512GB SSD 35W Dual Silver",1619,"Direct ship","MLXY3LL/A","06NY07/SF8C2LL/A",160,"13IN MB AIR","Silver","M2","8-core CPU and 8-core GPU","16GB","512GB SSD","35W Dual USB-C Port Compact Power Adapter"]
["07FZ38","Z15W001BL","CTO MACBOOK AIR M2 8C 8C GPU 16GB 512GB SSD 67W Silver",1619,"Direct ship","MLXY3LL/A","06NY07/SF8C2LL/A",160,"13IN MB AIR","Silver","M2","8-core CPU and 8-core GPU","16GB","512GB SSD","67W USB-C  Power adapter"]
["07FZ39","Z15W000B9","CTO MACBOOK AIR M2 8C 8C GPU 16GB 1TB SSD 30W Silver",1799,"Direct ship","MLXY3LL/A","06NY07/SF8C2LL/A",160,"13IN MB AIR","Silver","M2","8-core CPU and 8-core GPU","16GB","1TB SSD","30W USB-C Power Adapter"]
["07FZ40","Z15W001BH","CTO MACBOOK AIR M2 8C 8C GPU 16GB 1TB SSD 35W Dual Silver",1819,"Direct ship","MLXY3LL/A","06NY07/SF8C2LL/A",160,"13IN MB AIR","Silver","M2","8-core CPU and 8-core GPU","16GB","1TB SSD","35W Dual USB-C Port Compact Power Adapter"]
["07FZ41","Z15W001HK","CTO MACBOOK AIR M2 8C 8C GPU 16GB 1TB SSD 67W Silver",1819,"Direct ship","MLXY3LL/A","06NY07/SF8C2LL/A",160,"13IN MB AIR","Silver","M2","8-core CPU and 8-core GPU","16GB","1TB SSD","67W USB-C  Power adapter"]
["07FZ42","Z15W000BE","CTO MACBOOK AIR M2 8C 8C GPU 16GB 2TB SSD 30W Silver",2199,"Direct ship","MLXY3LL/A","06NY07/SF8C2LL/A",160,"13IN MB AIR","Silver","M2","8-core CPU and 8-core GPU","16GB","2TB SSD","30W USB-C Power Adapter"]
["07FZ43","Z15W001CR","CTO MACBOOK AIR M2 8C 8C GPU 16GB 2TB SSD 35W Dual Silver",2219,"Direct ship","MLXY3LL/A","06NY07/SF8C2LL/A",160,"13IN MB AIR","Silver","M2","8-core CPU and 8-core GPU","16GB","2TB SSD","35W Dual USB-C Port Compact Power Adapter"]
["07FZ44","Z15W001FF","CTO MACBOOK AIR M2 8C 8C GPU 16GB 2TB SSD 67W Silver",2219,"Direct ship","MLXY3LL/A","06NY07/SF8C2LL/A",160,"13IN MB AIR","Silver","M2","8-core CPU and 8-core GPU","16GB","2TB SSD","67W USB-C  Power adapter"]
["07FZ45","Z15W000B1","CTO MACBOOK AIR M2 8C 10C GPU 16GB 256GB SSD 30W Silver",1499,"Direct ship","MLXY3LL/A","06NY07/SF8C2LL/A",160,"13IN MB AIR","Silver","M2","8-core CPU and 10-core GPU","16GB","256GB SSD","30W USB-C Power Adapter"]
["07FZ46","Z15W0015S","CTO MACBOOK AIR M2 8C 10C GPU 16GB 256GB SSD 35W Dual Silver",1519,"Direct ship","MLXY3LL/A","06NY07/SF8C2LL/A",160,"13IN MB AIR","Silver","M2","8-core CPU and 10-core GPU","16GB","256GB SSD","35W Dual USB-C Port Compact Power Adapter"]
["07FZ47","Z15W001H9","CTO MACBOOK AIR M2 8C 10C GPU 16GB 256GB SSD 67W Silver",1519,"Direct ship","MLXY3LL/A","06NY07/SF8C2LL/A",160,"13IN MB AIR","Silver","M2","8-core CPU and 10-core GPU","16GB","256GB SSD","67W USB-C  Power adapter"]
["07FZ48","Z15W000B5","CTO MACBOOK AIR M2 8C 10C GPU 16GB 512GB SSD 35W Dual Silver",1699,"Direct ship","MLXY3LL/A","06NY07/SF8C2LL/A",160,"13IN MB AIR","Silver","M2","8-core CPU and 10-core GPU","16GB","512GB SSD","35W Dual USB-C Port Compact Power Adapter"]
["07FZ49","Z15W001BC","CTO MACBOOK AIR M2 8C 10C GPU 16GB 512GB SSD 67W Silver",1699,"Direct ship","MLXY3LL/A","06NY07/SF8C2LL/A",160,"13IN MB AIR","Silver","M2","8-core CPU and 10-core GPU","16GB","512GB SSD","67W USB-C  Power adapter"]
["07FZ50","Z15W000BA","CTO MACBOOK AIR M2 8C 10C GPU 16GB 1TB SSD 35W Dual Silver",1899,"Direct ship","MLXY3LL/A","06NY07/SF8C2LL/A",160,"13IN MB AIR","Silver","M2","8-core CPU and 10-core GPU","16GB","1TB SSD","35W Dual USB-C Port Compact Power Adapter"]
["07FZ51","Z15W001G5","CTO MACBOOK AIR M2 8C 10C GPU 16GB 1TB SSD 67W Silver",1899,"Direct ship","MLXY3LL/A","06NY07/SF8C2LL/A",160,"13IN MB AIR","Silver","M2","8-core CPU and 10-core GPU","16GB","1TB SSD","67W USB-C  Power adapter"]
["07FZ52","Z15W000BF","CTO MACBOOK AIR M2 8C 10C GPU 16GB 2TB SSD 35W Dual Silver",2299,"Direct ship","MLXY3LL/A","06NY07/SF8C2LL/A",160,"13IN MB AIR","Silver","M2","8-core CPU and 10-core GPU","16GB","2TB SSD","35W Dual USB-C Port Compact Power Adapter"]
["07FZ53","Z15W001KC","CTO MACBOOK AIR M2 8C 10C GPU 16GB 2TB SSD 67W Silver",2299,"Direct ship","MLXY3LL/A","06NY07/SF8C2LL/A",160,"13IN MB AIR","Silver","M2","8-core CPU and 10-core GPU","16GB","2TB SSD","67W USB-C  Power adapter"]
["07FZ54","Z15W000AX","CTO MACBOOK AIR M2 8C 8C GPU 24GB 256GB SSD 30W Silver",1599,"Direct ship","MLXY3LL/A","06NY07/SF8C2LL/A",160,"13IN MB AIR","Silver","M2","8-core CPU and 8-core GPU","24GB","256GB SSD","30W USB-C Power Adapter"]
["07FZ55","Z15W001F2","CTO MACBOOK AIR M2 8C 8C GPU 24GB 256GB SSD 35W Dual Silver",1619,"Direct ship","MLXY3LL/A","06NY07/SF8C2LL/A",160,"13IN MB AIR","Silver","M2","8-core CPU and 8-core GPU","24GB","256GB SSD","35W Dual USB-C Port Compact Power Adapter"]
["07FZ56","Z15W001KL","CTO MACBOOK AIR M2 8C 8C GPU 24GB 256GB SSD 67W Silver",1619,"Direct ship","MLXY3LL/A","06NY07/SF8C2LL/A",160,"13IN MB AIR","Silver","M2","8-core CPU and 8-core GPU","24GB","256GB SSD","67W USB-C  Power adapter"]
["07FZ57","Z15W000B6","CTO MACBOOK AIR M2 8C 8C GPU 24GB 512GB SSD 30W Silver",1799,"Direct ship","MLXY3LL/A","06NY07/SF8C2LL/A",160,"13IN MB AIR","Silver","M2","8-core CPU and 8-core GPU","24GB","512GB SSD","30W USB-C Power Adapter"]
["07FZ58","Z15W001E0","CTO MACBOOK AIR M2 8C 8C GPU 24GB 512GB SSD 35W Dual Silver",1819,"Direct ship","MLXY3LL/A","06NY07/SF8C2LL/A",160,"13IN MB AIR","Silver","M2","8-core CPU and 8-core GPU","24GB","512GB SSD","35W Dual USB-C Port Compact Power Adapter"]
["07FZ59","Z15W001FC","CTO MACBOOK AIR M2 8C 8C GPU 24GB 512GB SSD 67W Silver",1819,"Direct ship","MLXY3LL/A","06NY07/SF8C2LL/A",160,"13IN MB AIR","Silver","M2","8-core CPU and 8-core GPU","24GB","512GB SSD","67W USB-C  Power adapter"]
["07FZ60","Z15W000BB","CTO MACBOOK AIR M2 8C 8C GPU 24GB 1TB SSD 30W Silver",1999,"Direct ship","MLXY3LL/A","06NY07/SF8C2LL/A",160,"13IN MB AIR","Silver","M2","8-core CPU and 8-core GPU","24GB","1TB SSD","30W USB-C Power Adapter"]
["07FZ61","Z15W001EH","CTO MACBOOK AIR M2 8C 8C GPU 24GB 1TB SSD 35W Dual Silver",2019,"Direct ship","MLXY3LL/A","06NY07/SF8C2LL/A",160,"13IN MB AIR","Silver","M2","8-core CPU and 8-core GPU","24GB","1TB SSD","35W Dual USB-C Port Compact Power Adapter"]
["07FZ62","Z15W001LF","CTO MACBOOK AIR M2 8C 8C GPU 24GB 1TB SSD 67W Silver",2019,"Direct ship","MLXY3LL/A","06NY07/SF8C2LL/A",160,"13IN MB AIR","Silver","M2","8-core CPU and 8-core GPU","24GB","1TB SSD","67W USB-C  Power adapter"]
["07FZ63","Z15W000BG","CTO MACBOOK AIR M2 8C 8C GPU 24GB 2TB SSD 30W Silver",2399,"Direct ship","MLXY3LL/A","06NY07/SF8C2LL/A",160,"13IN MB AIR","Silver","M2","8-core CPU and 8-core GPU","24GB","2TB SSD","30W USB-C Power Adapter"]
["07FZ64","Z15W001HQ","CTO MACBOOK AIR M2 8C 8C GPU 24GB 2TB SSD 35W Dual Silver",2419,"Direct ship","MLXY3LL/A","06NY07/SF8C2LL/A",160,"13IN MB AIR","Silver","M2","8-core CPU and 8-core GPU","24GB","2TB SSD","35W Dual USB-C Port Compact Power Adapter"]
["07FZ65","Z15W001R7","CTO MACBOOK AIR M2 8C 8C GPU 24GB 2TB SSD 67W Silver",2419,"Direct ship","MLXY3LL/A","06NY07/SF8C2LL/A",160,"13IN MB AIR","Silver","M2","8-core CPU and 8-core GPU","24GB","2TB SSD","67W USB-C  Power adapter"]
["07FZ66","Z15W000B2","CTO MACBOOK AIR M2 8C 10C GPU 24GB 256GB SSD 30W Silver",1699,"Direct ship","MLXY3LL/A","06NY07/SF8C2LL/A",160,"13IN MB AIR","Silver","M2","8-core CPU and 10-core GPU","24GB","256GB SSD","30W USB-C Power Adapter"]
["07FZ67","Z15W001C0","CTO MACBOOK AIR M2 8C 10C GPU 24GB 256GB SSD 35W Dual Silver",1719,"Direct ship","MLXY3LL/A","06NY07/SF8C2LL/A",160,"13IN MB AIR","Silver","M2","8-core CPU and 10-core GPU","24GB","256GB SSD","35W Dual USB-C Port Compact Power Adapter"]
["07FZ68","Z15W001FE","CTO MACBOOK AIR M2 8C 10C GPU 24GB 256GB SSD 67W Silver",1719,"Direct ship","MLXY3LL/A","06NY07/SF8C2LL/A",160,"13IN MB AIR","Silver","M2","8-core CPU and 10-core GPU","24GB","256GB SSD","67W USB-C  Power adapter"]
["07FZ69","Z15W000B7","CTO MACBOOK AIR M2 8C 10C GPU 24GB 512GB SSD 35W Dual Silver",1899,"Direct ship","MLXY3LL/A","06NY07/SF8C2LL/A",160,"13IN MB AIR","Silver","M2","8-core CPU and 10-core GPU","24GB","512GB SSD","35W Dual USB-C Port Compact Power Adapter"]
["07FZ70","Z15W001KU","CTO MACBOOK AIR M2 8C 10C GPU 24GB 512GB SSD 67W Silver",1899,"Direct ship","MLXY3LL/A","06NY07/SF8C2LL/A",160,"13IN MB AIR","Silver","M2","8-core CPU and 10-core GPU","24GB","512GB SSD","67W USB-C  Power adapter"]
["07FZ71","Z15W000BC","CTO MACBOOK AIR M2 8C 10C GPU 24GB 1TB SSD 35W Dual Silver",2099,"Direct ship","MLXY3LL/A","06NY07/SF8C2LL/A",160,"13IN MB AIR","Silver","M2","8-core CPU and 10-core GPU","24GB","1TB SSD","35W Dual USB-C Port Compact Power Adapter"]
["07FZ72","Z15W001C4","CTO MACBOOK AIR M2 8C 10C GPU 24GB 1TB SSD 67W Silver",2099,"Direct ship","MLXY3LL/A","06NY07/SF8C2LL/A",160,"13IN MB AIR","Silver","M2","8-core CPU and 10-core GPU","24GB","1TB SSD","67W USB-C  Power adapter"]
["07FZ73","Z15W000BH","CTO MACBOOK AIR M2 8C 10C GPU 24GB 2TB SSD 35W Dual Silver",2499,"Direct ship","MLXY3LL/A","06NY07/SF8C2LL/A",160,"13IN MB AIR","Silver","M2","8-core CPU and 10-core GPU","24GB","2TB SSD","35W Dual USB-C Port Compact Power Adapter"]
["07FZ74","Z15W001J9","CTO MACBOOK AIR M2 8C 10C GPU 24GB 2TB SSD 67W Silver",2499,"Direct ship","MLXY3LL/A","06NY07/SF8C2LL/A",160,"13IN MB AIR","Silver","M2","8-core CPU and 10-core GPU","24GB","2TB SSD","67W USB-C  Power adapter"]
["07FZ75","Z1610005N","CTO MACBOOK AIR M2 8C 10C GPU 8GB 512GB SSD 67W Midnight",1499,"Direct ship","MLY43LL/A","06NY07/SF8C2LL/A",160,"13IN MB AIR","Midnight","M2","8-core CPU and 10-core GPU","8GB","512GB SSD","67W USB-C  Power adapter"]
["07FZ76","Z16100056","CTO MACBOOK AIR M2 8C 10C GPU 8GB 1TB SSD 35W Dual Midnight",1699,"Direct ship","MLY43LL/A","06NY07/SF8C2LL/A",160,"13IN MB AIR","Midnight","M2","8-core CPU and 10-core GPU","8GB","1TB SSD","35W Dual USB-C Port Compact Power Adapter"]
["07FZ77","Z161000VY","CTO MACBOOK AIR M2 8C 10C GPU 8GB 1TB SSD 67W Midnight",1699,"Direct ship","MLY43LL/A","06NY07/SF8C2LL/A",160,"13IN MB AIR","Midnight","M2","8-core CPU and 10-core GPU","8GB","1TB SSD","67W USB-C  Power adapter"]
["07FZ78","Z16100057","CTO MACBOOK AIR M2 8C 10C GPU 8GB 2TB SSD 35W Dual Midnight",2099,"Direct ship","MLY43LL/A","06NY07/SF8C2LL/A",160,"13IN MB AIR","Midnight","M2","8-core CPU and 10-core GPU","8GB","2TB SSD","35W Dual USB-C Port Compact Power Adapter"]
["07FZ79","Z16100186","CTO MACBOOK AIR M2 8C 10C GPU 8GB 2TB SSD 67W Midnight",2099,"Direct ship","MLY43LL/A","06NY07/SF8C2LL/A",160,"13IN MB AIR","Midnight","M2","8-core CPU and 10-core GPU","8GB","2TB SSD","67W USB-C  Power adapter"]
["07FZ80","Z1610005E","CTO MACBOOK AIR M2 8C 10C GPU 16GB 512GB SSD 35W Dual Midnight",1699,"Direct ship","MLY43LL/A","06NY07/SF8C2LL/A",160,"13IN MB AIR","Midnight","M2","8-core CPU and 10-core GPU","16GB","512GB SSD","35W Dual USB-C Port Compact Power Adapter"]
["07FZ81","Z161000N0","CTO MACBOOK AIR M2 8C 10C GPU 16GB 512GB SSD 67W Midnight",1699,"Direct ship","MLY43LL/A","06NY07/SF8C2LL/A",160,"13IN MB AIR","Midnight","M2","8-core CPU and 10-core GPU","16GB","512GB SSD","67W USB-C  Power adapter"]
["07FZ82","Z1610005H","CTO MACBOOK AIR M2 8C 10C GPU 16GB 1TB SSD 35W Dual Midnight",1899,"Direct ship","MLY43LL/A","06NY07/SF8C2LL/A",160,"13IN MB AIR","Midnight","M2","8-core CPU and 10-core GPU","16GB","1TB SSD","35W Dual USB-C Port Compact Power Adapter"]
["07FZ83","Z161000Q4","CTO MACBOOK AIR M2 8C 10C GPU 16GB 1TB SSD 67W Midnight",1899,"Direct ship","MLY43LL/A","06NY07/SF8C2LL/A",160,"13IN MB AIR","Midnight","M2","8-core CPU and 10-core GPU","16GB","1TB SSD","67W USB-C  Power adapter"]
["07FZ84","Z1610005K","CTO MACBOOK AIR M2 8C 10C GPU 16GB 2TB SSD 35W Dual Midnight",2299,"Direct ship","MLY43LL/A","06NY07/SF8C2LL/A",160,"13IN MB AIR","Midnight","M2","8-core CPU and 10-core GPU","16GB","2TB SSD","35W Dual USB-C Port Compact Power Adapter"]
["07FZ85","Z161000SP","CTO MACBOOK AIR M2 8C 10C GPU 16GB 2TB SSD 67W Midnight",2299,"Direct ship","MLY43LL/A","06NY07/SF8C2LL/A",160,"13IN MB AIR","Midnight","M2","8-core CPU and 10-core GPU","16GB","2TB SSD","67W USB-C  Power adapter"]
["07FZ86","Z1610005F","CTO MACBOOK AIR M2 8C 10C GPU 24GB 512GB SSD 35W Dual Midnight",1899,"Direct ship","MLY43LL/A","06NY07/SF8C2LL/A",160,"13IN MB AIR","Midnight","M2","8-core CPU and 10-core GPU","24GB","512GB SSD","35W Dual USB-C Port Compact Power Adapter"]
["07FZ87","Z161000Q1","CTO MACBOOK AIR M2 8C 10C GPU 24GB 512GB SSD 67W Midnight",1899,"Direct ship","MLY43LL/A","06NY07/SF8C2LL/A",160,"13IN MB AIR","Midnight","M2","8-core CPU and 10-core GPU","24GB","512GB SSD","67W USB-C  Power adapter"]
["07FZ88","Z1610005J","CTO MACBOOK AIR M2 8C 10C GPU 24GB 1TB SSD 35W Dual Midnight",2099,"Direct ship","MLY43LL/A","06NY07/SF8C2LL/A",160,"13IN MB AIR","Midnight","M2","8-core CPU and 10-core GPU","24GB","1TB SSD","35W Dual USB-C Port Compact Power Adapter"]
["07FZ89","Z161000Q2","CTO MACBOOK AIR M2 8C 10C GPU 24GB 1TB SSD 67W Midnight",2099,"Direct ship","MLY43LL/A","06NY07/SF8C2LL/A",160,"13IN MB AIR","Midnight","M2","8-core CPU and 10-core GPU","24GB","1TB SSD","67W USB-C  Power adapter"]
["07FZ90","Z1610005L","CTO MACBOOK AIR M2 8C 10C GPU 24GB 2TB SSD 35W Dual Midnight",2499,"Direct ship","MLY43LL/A","06NY07/SF8C2LL/A",160,"13IN MB AIR","Midnight","M2","8-core CPU and 10-core GPU","24GB","2TB SSD","35W Dual USB-C Port Compact Power Adapter"]
["07FZ91","Z161000MB","CTO MACBOOK AIR M2 8C 10C GPU 24GB 2TB SSD 67W Midnight",2499,"Direct ship","MLY43LL/A","06NY07/SF8C2LL/A",160,"13IN MB AIR","Midnight","M2","8-core CPU and 10-core GPU","24GB","2TB SSD","67W USB-C  Power adapter"]
["07FZ92","Z15Z0005N","CTO MACBOOK AIR M2 8C 10C GPU 8GB 512GB SSD 67W Starlight",1499,"Direct ship","MLY23LL/A","06NY07/SF8C2LL/A",160,"13IN MB AIR","Starlight","M2","8-core CPU and 10-core GPU","8GB","512GB SSD","67W USB-C  Power adapter"]
["07FZ93","Z15Z00056","CTO MACBOOK AIR M2 8C 10C GPU 8GB 1TB SSD 35W Dual Starlight",1699,"Direct ship","MLY23LL/A","06NY07/SF8C2LL/A",160,"13IN MB AIR","Starlight","M2","8-core CPU and 10-core GPU","8GB","1TB SSD","35W Dual USB-C Port Compact Power Adapter"]
["07FZ94","Z15Z000W0","CTO MACBOOK AIR M2 8C 10C GPU 8GB 1TB SSD 67W Starlight",1699,"Direct ship","MLY23LL/A","06NY07/SF8C2LL/A",160,"13IN MB AIR","Starlight","M2","8-core CPU and 10-core GPU","8GB","1TB SSD","67W USB-C  Power adapter"]
["07FZ95","Z15Z00057","CTO MACBOOK AIR M2 8C 10C GPU 8GB 2TB SSD 35W Dual Starlight",2099,"Direct ship","MLY23LL/A","06NY07/SF8C2LL/A",160,"13IN MB AIR","Starlight","M2","8-core CPU and 10-core GPU","8GB","2TB SSD","35W Dual USB-C Port Compact Power Adapter"]
["07FZ96","Z15Z000LP","CTO MACBOOK AIR M2 8C 10C GPU 8GB 2TB SSD 67W Starlight",2099,"Direct ship","MLY23LL/A","06NY07/SF8C2LL/A",160,"13IN MB AIR","Starlight","M2","8-core CPU and 10-core GPU","8GB","2TB SSD","67W USB-C  Power adapter"]
["07FZ97","Z15Z0005E","CTO MACBOOK AIR M2 8C 10C GPU 16GB 512GB SSD 35W Dual Starlight",1699,"Direct ship","MLY23LL/A","06NY07/SF8C2LL/A",160,"13IN MB AIR","Starlight","M2","8-core CPU and 10-core GPU","16GB","512GB SSD","35W Dual USB-C Port Compact Power Adapter"]
["07FZ98","Z15Z000QQ","CTO MACBOOK AIR M2 8C 10C GPU 16GB 512GB SSD 67W Starlight",1699,"Direct ship","MLY23LL/A","06NY07/SF8C2LL/A",160,"13IN MB AIR","Starlight","M2","8-core CPU and 10-core GPU","16GB","512GB SSD","67W USB-C  Power adapter"]
["07FZ99","Z15Z0005H","CTO MACBOOK AIR M2 8C 10C GPU 16GB 1TB SSD 35W Dual Starlight",1899,"Direct ship","MLY23LL/A","06NY07/SF8C2LL/A",160,"13IN MB AIR","Starlight","M2","8-core CPU and 10-core GPU","16GB","1TB SSD","35W Dual USB-C Port Compact Power Adapter"]
["07GA00","Z15Z000RR","CTO MACBOOK AIR M2 8C 10C GPU 16GB 1TB SSD 67W Starlight",1899,"Direct ship","MLY23LL/A","06NY07/SF8C2LL/A",160,"13IN MB AIR","Starlight","M2","8-core CPU and 10-core GPU","16GB","1TB SSD","67W USB-C  Power adapter"]
["07GA01","Z15Z0005J","CTO MACBOOK AIR M2 8C 10C GPU 16GB 2TB SSD 35W Dual Starlight",2299,"Direct ship","MLY23LL/A","06NY07/SF8C2LL/A",160,"13IN MB AIR","Starlight","M2","8-core CPU and 10-core GPU","16GB","2TB SSD","35W Dual USB-C Port Compact Power Adapter"]
["07GA02","Z15Z000X2","CTO MACBOOK AIR M2 8C 10C GPU 16GB 2TB SSD 67W Starlight",2299,"Direct ship","MLY23LL/A","06NY07/SF8C2LL/A",160,"13IN MB AIR","Starlight","M2","8-core CPU and 10-core GPU","16GB","2TB SSD","67W USB-C  Power adapter"]
["07GA03","Z15Z0005F","CTO MACBOOK AIR M2 8C 10C GPU 24GB 512GB SSD 35W Dual Starlight",1899,"Direct ship","MLY23LL/A","06NY07/SF8C2LL/A",160,"13IN MB AIR","Starlight","M2","8-core CPU and 10-core GPU","24GB","512GB SSD","35W Dual USB-C Port Compact Power Adapter"]
["07GA04","Z15Z000RB","CTO MACBOOK AIR M2 8C 10C GPU 24GB 512GB SSD 67W Starlight",1899,"Direct ship","MLY23LL/A","06NY07/SF8C2LL/A",160,"13IN MB AIR","Starlight","M2","8-core CPU and 10-core GPU","24GB","512GB SSD","67W USB-C  Power adapter"]
["07GA05","Z15Z0005K","CTO MACBOOK AIR M2 8C 10C GPU 24GB 1TB SSD 35W Dual Starlight",2099,"Direct ship","MLY23LL/A","06NY07/SF8C2LL/A",160,"13IN MB AIR","Starlight","M2","8-core CPU and 10-core GPU","24GB","1TB SSD","35W Dual USB-C Port Compact Power Adapter"]
["07GA06","Z15Z000RE","CTO MACBOOK AIR M2 8C 10C GPU 24GB 1TB SSD 67W Starlight",2099,"Direct ship","MLY23LL/A","06NY07/SF8C2LL/A",160,"13IN MB AIR","Starlight","M2","8-core CPU and 10-core GPU","24GB","1TB SSD","67W USB-C  Power adapter"]
["07GA07","Z15Z0005L","CTO MACBOOK AIR M2 8C 10C GPU 24GB 2TB SSD 35W Dual Starlight",2499,"Direct ship","MLY23LL/A","06NY07/SF8C2LL/A",160,"13IN MB AIR","Starlight","M2","8-core CPU and 10-core GPU","24GB","2TB SSD","35W Dual USB-C Port Compact Power Adapter"]
["07GA08","Z15Z000MG","CTO MACBOOK AIR M2 8C 10C GPU 24GB 2TB SSD 67W Starlight",2499,"Direct ship","MLY23LL/A","06NY07/SF8C2LL/A",160,"13IN MB AIR","Starlight","M2","8-core CPU and 10-core GPU","24GB","2TB SSD","67W USB-C  Power adapter"]
["07GA09","Z15T0005Q","CTO MACBOOK AIR M2 8C 10C GPU 8GB 512GB SSD 67W Space gray",1499,"Direct ship","MLXX3LL/A","06NY07/SF8C2LL/A",160,"13IN MB AIR","Space gray","M2","8-core CPU and 10-core GPU","8GB","512GB SSD","67W USB-C  Power adapter"]
["07GA10","Z15T00058","CTO MACBOOK AIR M2 8C 10C GPU 8GB 1TB SSD 35W Dual Space gray",1699,"Direct ship","MLXX3LL/A","06NY07/SF8C2LL/A",160,"13IN MB AIR","Space gray","M2","8-core CPU and 10-core GPU","8GB","1TB SSD","35W Dual USB-C Port Compact Power Adapter"]
["07GA11","Z15T000MS","CTO MACBOOK AIR M2 8C 10C GPU 8GB 1TB SSD 67W Space gray",1699,"Direct ship","MLXX3LL/A","06NY07/SF8C2LL/A",160,"13IN MB AIR","Space gray","M2","8-core CPU and 10-core GPU","8GB","1TB SSD","67W USB-C  Power adapter"]
["07GA12","Z15T00059","CTO MACBOOK AIR M2 8C 10C GPU 8GB 2TB SSD 35W Dual Space gray",2099,"Direct ship","MLXX3LL/A","06NY07/SF8C2LL/A",160,"13IN MB AIR","Space gray","M2","8-core CPU and 10-core GPU","8GB","2TB SSD","35W Dual USB-C Port Compact Power Adapter"]
["07GA13","Z15T000ZS","CTO MACBOOK AIR M2 8C 10C GPU 8GB 2TB SSD 67W Space gray",2099,"Direct ship","MLXX3LL/A","06NY07/SF8C2LL/A",160,"13IN MB AIR","Space gray","M2","8-core CPU and 10-core GPU","8GB","2TB SSD","67W USB-C  Power adapter"]
["07GA14","Z15T0005G","CTO MACBOOK AIR M2 8C 10C GPU 16GB 512GB SSD 35W Dual Space gray",1699,"Direct ship","MLXX3LL/A","06NY07/SF8C2LL/A",160,"13IN MB AIR","Space gray","M2","8-core CPU and 10-core GPU","16GB","512GB SSD","35W Dual USB-C Port Compact Power Adapter"]
["07GA15","Z15T000R3","CTO MACBOOK AIR M2 8C 10C GPU 16GB 512GB SSD 67W Space gray",1699,"Direct ship","MLXX3LL/A","06NY07/SF8C2LL/A",160,"13IN MB AIR","Space gray","M2","8-core CPU and 10-core GPU","16GB","512GB SSD","67W USB-C  Power adapter"]
["07GA16","Z15T0005K","CTO MACBOOK AIR M2 8C 10C GPU 16GB 1TB SSD 35W Dual Space gray",1899,"Direct ship","MLXX3LL/A","06NY07/SF8C2LL/A",160,"13IN MB AIR","Space gray","M2","8-core CPU and 10-core GPU","16GB","1TB SSD","35W Dual USB-C Port Compact Power Adapter"]
["07GA17","Z15T000Q6","CTO MACBOOK AIR M2 8C 10C GPU 16GB 1TB SSD 67W Space gray",1899,"Direct ship","MLXX3LL/A","06NY07/SF8C2LL/A",160,"13IN MB AIR","Space gray","M2","8-core CPU and 10-core GPU","16GB","1TB SSD","67W USB-C  Power adapter"]
["07GA18","Z15T0005M","CTO MACBOOK AIR M2 8C 10C GPU 16GB 2TB SSD 35W Dual Space gray",2299,"Direct ship","MLXX3LL/A","06NY07/SF8C2LL/A",160,"13IN MB AIR","Space gray","M2","8-core CPU and 10-core GPU","16GB","2TB SSD","35W Dual USB-C Port Compact Power Adapter"]
["07GA19","Z15T000N1","CTO MACBOOK AIR M2 8C 10C GPU 16GB 2TB SSD 67W Space gray",2299,"Direct ship","MLXX3LL/A","06NY07/SF8C2LL/A",160,"13IN MB AIR","Space gray","M2","8-core CPU and 10-core GPU","16GB","2TB SSD","67W USB-C  Power adapter"]
["07GA20","Z15T0005H","CTO MACBOOK AIR M2 8C 10C GPU 24GB 512GB SSD 35W Dual Space gray",1899,"Direct ship","MLXX3LL/A","06NY07/SF8C2LL/A",160,"13IN MB AIR","Space gray","M2","8-core CPU and 10-core GPU","24GB","512GB SSD","35W Dual USB-C Port Compact Power Adapter"]
["07GA21","Z15T000S3","CTO MACBOOK AIR M2 8C 10C GPU 24GB 512GB SSD 67W Space gray",1899,"Direct ship","MLXX3LL/A","06NY07/SF8C2LL/A",160,"13IN MB AIR","Space gray","M2","8-core CPU and 10-core GPU","24GB","512GB SSD","67W USB-C  Power adapter"]
["07GA22","Z15T0005L","CTO MACBOOK AIR M2 8C 10C GPU 24GB 1TB SSD 35W Dual Space gray",2099,"Direct ship","MLXX3LL/A","06NY07/SF8C2LL/A",160,"13IN MB AIR","Space gray","M2","8-core CPU and 10-core GPU","24GB","1TB SSD","35W Dual USB-C Port Compact Power Adapter"]
["07GA23","Z15T000Q4","CTO MACBOOK AIR M2 8C 10C GPU 24GB 1TB SSD 67W Space gray",2099,"Direct ship","MLXX3LL/A","06NY07/SF8C2LL/A",160,"13IN MB AIR","Space gray","M2","8-core CPU and 10-core GPU","24GB","1TB SSD","67W USB-C  Power adapter"]
["07GA24","Z15T0005N","CTO MACBOOK AIR M2 8C 10C GPU 24GB 2TB SSD 35W Dual Space gray",2499,"Direct ship","MLXX3LL/A","06NY07/SF8C2LL/A",160,"13IN MB AIR","Space gray","M2","8-core CPU and 10-core GPU","24GB","2TB SSD","35W Dual USB-C Port Compact Power Adapter"]
["07GA25","Z15T000MG","CTO MACBOOK AIR M2 8C 10C GPU 24GB 2TB SSD 67W Space gray",2499,"Direct ship","MLXX3LL/A","06NY07/SF8C2LL/A",160,"13IN MB AIR","Space gray","M2","8-core CPU and 10-core GPU","24GB","2TB SSD","67W USB-C  Power adapter"]
["07GA26","Z15X0005P","CTO MACBOOK AIR M2 8C 10C GPU 8GB 512GB SSD 67W Silver",1499,"Direct ship","MLY03LL/A","06NY07/SF8C2LL/A",160,"13IN MB AIR","Silver","M2","8-core CPU and 10-core GPU","8GB","512GB SSD","67W USB-C  Power adapter"]
["07GA27","Z15X00057","CTO MACBOOK AIR M2 8C 10C GPU 8GB 1TB SSD 35W Dual Silver",1699,"Direct ship","MLY03LL/A","06NY07/SF8C2LL/A",160,"13IN MB AIR","Silver","M2","8-core CPU and 10-core GPU","8GB","1TB SSD","35W Dual USB-C Port Compact Power Adapter"]
["07GA28","Z15X000LP","CTO MACBOOK AIR M2 8C 10C GPU 8GB 1TB SSD 67W Silver",1699,"Direct ship","MLY03LL/A","06NY07/SF8C2LL/A",160,"13IN MB AIR","Silver","M2","8-core CPU and 10-core GPU","8GB","1TB SSD","67W USB-C  Power adapter"]
["07GA29","Z15X00058","CTO MACBOOK AIR M2 8C 10C GPU 8GB 2TB SSD 35W Dual Silver",2099,"Direct ship","MLY03LL/A","06NY07/SF8C2LL/A",160,"13IN MB AIR","Silver","M2","8-core CPU and 10-core GPU","8GB","2TB SSD","35W Dual USB-C Port Compact Power Adapter"]
["07GA30","Z15X00102","CTO MACBOOK AIR M2 8C 10C GPU 8GB 2TB SSD 67W Silver",2099,"Direct ship","MLY03LL/A","06NY07/SF8C2LL/A",160,"13IN MB AIR","Silver","M2","8-core CPU and 10-core GPU","8GB","2TB SSD","67W USB-C  Power adapter"]
["07GA31","Z15X0005F","CTO MACBOOK AIR M2 8C 10C GPU 16GB 512GB SSD 35W Dual Silver",1699,"Direct ship","MLY03LL/A","06NY07/SF8C2LL/A",160,"13IN MB AIR","Silver","M2","8-core CPU and 10-core GPU","16GB","512GB SSD","35W Dual USB-C Port Compact Power Adapter"]
["07GA32","Z15X000PL","CTO MACBOOK AIR M2 8C 10C GPU 16GB 512GB SSD 67W Silver",1699,"Direct ship","MLY03LL/A","06NY07/SF8C2LL/A",160,"13IN MB AIR","Silver","M2","8-core CPU and 10-core GPU","16GB","512GB SSD","67W USB-C  Power adapter"]
["07GA33","Z15X0005J","CTO MACBOOK AIR M2 8C 10C GPU 16GB 1TB SSD 35W Dual Silver",1899,"Direct ship","MLY03LL/A","06NY07/SF8C2LL/A",160,"13IN MB AIR","Silver","M2","8-core CPU and 10-core GPU","16GB","1TB SSD","35W Dual USB-C Port Compact Power Adapter"]
["07GA34","Z15X000QV","CTO MACBOOK AIR M2 8C 10C GPU 16GB 1TB SSD 67W Silver",1899,"Direct ship","MLY03LL/A","06NY07/SF8C2LL/A",160,"13IN MB AIR","Silver","M2","8-core CPU and 10-core GPU","16GB","1TB SSD","67W USB-C  Power adapter"]
["07GA35","Z15X0005L","CTO MACBOOK AIR M2 8C 10C GPU 16GB 2TB SSD 35W Dual Silver",2299,"Direct ship","MLY03LL/A","06NY07/SF8C2LL/A",160,"13IN MB AIR","Silver","M2","8-core CPU and 10-core GPU","16GB","2TB SSD","35W Dual USB-C Port Compact Power Adapter"]
["07GA36","Z15X000RS","CTO MACBOOK AIR M2 8C 10C GPU 16GB 2TB SSD 67W Silver",2299,"Direct ship","MLY03LL/A","06NY07/SF8C2LL/A",160,"13IN MB AIR","Silver","M2","8-core CPU and 10-core GPU","16GB","2TB SSD","67W USB-C  Power adapter"]
["07GA37","Z15X0005G","CTO MACBOOK AIR M2 8C 10C GPU 24GB 512GB SSD 35W Dual Silver",1899,"Direct ship","MLY03LL/A","06NY07/SF8C2LL/A",160,"13IN MB AIR","Silver","M2","8-core CPU and 10-core GPU","24GB","512GB SSD","35W Dual USB-C Port Compact Power Adapter"]
["07GA38","Z15X000QX","CTO MACBOOK AIR M2 8C 10C GPU 24GB 512GB SSD 67W Silver",1899,"Direct ship","MLY03LL/A","06NY07/SF8C2LL/A",160,"13IN MB AIR","Silver","M2","8-core CPU and 10-core GPU","24GB","512GB SSD","67W USB-C  Power adapter"]
["07GA39","Z15X0005K","CTO MACBOOK AIR M2 8C 10C GPU 24GB 1TB SSD 35W Dual Silver",2099,"Direct ship","MLY03LL/A","06NY07/SF8C2LL/A",160,"13IN MB AIR","Silver","M2","8-core CPU and 10-core GPU","24GB","1TB SSD","35W Dual USB-C Port Compact Power Adapter"]
["07GA40","Z15X000LQ","CTO MACBOOK AIR M2 8C 10C GPU 24GB 1TB SSD 67W Silver",2099,"Direct ship","MLY03LL/A","06NY07/SF8C2LL/A",160,"13IN MB AIR","Silver","M2","8-core CPU and 10-core GPU","24GB","1TB SSD","67W USB-C  Power adapter"]
["07GA41","Z15X0005M","CTO MACBOOK AIR M2 8C 10C GPU 24GB 2TB SSD 35W Dual Silver",2499,"Direct ship","MLY03LL/A","06NY07/SF8C2LL/A",160,"13IN MB AIR","Silver","M2","8-core CPU and 10-core GPU","24GB","2TB SSD","35W Dual USB-C Port Compact Power Adapter"]
["07GA42","Z15X000QT","CTO MACBOOK AIR M2 8C 10C GPU 24GB 2TB SSD 67W Silver",2499,"Direct ship","MLY03LL/A","06NY07/SF8C2LL/A",160,"13IN MB AIR","Silver","M2","8-core CPU and 10-core GPU","24GB","2TB SSD","67W USB-C  Power adapter"]

{"sheet":"Desktops","index":2,"n_rows":435,"n_cols":21,"rows_kept":435,"cut":false,"hidden":false,"merged":[]}
[]
[]
[]
[]
[]
[]
[]
[]
[]
[]
[]
[]
[]
[]
[]
[]
[]
[]
[]
[]
[]
[]
[]
[]
[]
[]
[]
[]
[]
[]
[]
["IM SKU","CID#","Full Description","Unit Price","Govt Price","Apple.com","Type of Order","Parent SKU","AppleCare","AppleCare Price","AppleCare  GOV Price","Family","Color","Processor","GPU/CORE","RAM","STORAGE","Graphics","Ethernet","Keyboard option","Display"]
["02NY56","Z14K000AK","CTO MAC STUDIO M1 ULTRA 20C CPU 64C GPU 128GB 8TB SSD STORAGE",7279,7128.92,7999,"Direct Ship","MJMW3LL/A","06NY06/SELQ2LL/A",118,115.57,"MAC STUDIO",null,"M1 ULTRA","20C CPU 64C GPU","128GB","8TB SSD",null,"10 Gigabit","None"]
["02NY52","Z14K000BL","CTO MAC STUDIO M1 ULTRA 20C CPU 64C GPU 64GB 8TB SSD STORAGE",6551,6415.93,7199,"Direct Ship","MJMW3LL/A","06NY06/SELQ2LL/A",118,115.57,"MAC STUDIO",null,"M1 ULTRA","20C CPU 64C GPU","64GB","8TB SSD",null,"10 Gigabit","None"]
["02NY48","Z14K000AY","CTO MAC STUDIO M1 ULTRA 20C CPU 48C GPU 128GB 8TB SSD STORAGE",6369,6237.68,6999,"Direct Ship","MJMW3LL/A","06NY06/SELQ2LL/A",118,115.57,"MAC STUDIO",null,"M1 ULTRA","20C CPU 48C GPU","128GB","8TB SSD",null,"10 Gigabit","None"]
["02NY55","Z14K000AP","CTO MAC STUDIO M1 ULTRA 20C CPU 64C GPU 128GB 4TB SSD STORAGE",6187,6059.43,6799,"Direct Ship","MJMW3LL/A","06NY06/SELQ2LL/A",118,115.57,"MAC STUDIO",null,"M1 ULTRA","20C CPU 64C GPU","128GB","4TB SSD",null,"10 Gigabit","None"]
["02NY44","Z14K0007F","CTO MAC STUDIO M1 ULTRA 20C CPU 48C GPU 64GB 8TB SSD STORAGE",5641,5524.69,6199,"Direct Ship","MJMW3LL/A","06NY06/SELQ2LL/A",118,115.57,"MAC STUDIO",null,"M1 ULTRA","20C CPU 48C GPU","64GB","8TB SSD",null,"10 Gigabit","None"]
["02NY54","Z14K000A6","CTO MAC STUDIO M1 ULTRA 20C CPU 64C GPU 128GB 2TB SSD STORAGE",5641,5524.69,6199,"Direct Ship","MJMW3LL/A","06NY06/SELQ2LL/A",118,115.57,"MAC STUDIO",null,"M1 ULTRA","20C CPU 64C GPU","128GB","2TB SSD",null,"10 Gigabit","None"]
["02NY51","Z14K000AX","CTO MAC STUDIO M1 ULTRA 20C CPU 64C GPU 64GB 4TB SSD STORAGE",5459,5346.44,5999,"Direct Ship","MJMW3LL/A","06NY06/SELQ2LL/A",118,115.57,"MAC STUDIO",null,"M1 ULTRA","20C CPU 64C GPU","64GB","4TB SSD",null,"10 Gigabit","None"]
["02NY47","Z14K000AU","CTO MAC STUDIO M1 ULTRA 20C CPU 48C GPU 128GB 4TB SSD STORAGE",5277,5168.2,5799,"Direct Ship","MJMW3LL/A","06NY06/SELQ2LL/A",118,115.57,"MAC STUDIO",null,"M1 ULTRA","20C CPU 48C GPU","128GB","4TB SSD",null,"10 Gigabit","None"]
["02NY53","Z14K0007J","CTO MAC STUDIO M1 ULTRA 20C CPU 64C GPU 128GB 1TB SSD STORAGE",5277,5168.2,5799,"Direct Ship","MJMW3LL/A","06NY06/SELQ2LL/A",118,115.57,"MAC STUDIO",null,"M1 ULTRA","20C CPU 64C GPU","128GB","1TB SSD",null,"10 Gigabit","None"]
["02NY50","Z14K000BD","CTO MAC STUDIO M1 ULTRA 20C CPU 64C GPU 64GB 2TB SSD STORAGE",4913,4811.7,5399,"Direct Ship","MJMW3LL/A","06NY06/SELQ2LL/A",118,115.57,"MAC STUDIO",null,"M1 ULTRA","20C CPU 64C GPU","64GB","2TB SSD",null,"10 Gigabit","None"]
["02NY46","Z14K0008B","CTO MAC STUDIO M1 ULTRA 20C CPU 48C GPU 128GB 2TB SSD STORAGE",4731,4633.45,5199,"Direct Ship","MJMW3LL/A","06NY06/SELQ2LL/A",118,115.57,"MAC STUDIO",null,"M1 ULTRA","20C CPU 48C GPU","128GB","2TB SSD",null,"10 Gigabit","None"]
["02NY21","Z14J000L0","CTO MAC STUDIO M1 MAX 10C CPU 32C GPU 64GB 8TB SSD STORAGE",4649,4553.1400000000003,4999,"Direct Ship","MJMV3LL/A ","06NY06/SELQ2LL/A",118,115.57,"MAC STUDIO",null,"M1 MAX","10C CPU 32C GPU","64GB","8TB SSD",null,"10 Gigabit","None"]
["02NY43","Z14K0007E","CTO MAC STUDIO M1 ULTRA 20C CPU 48C GPU 64GB 4TB SSD STORAGE",4549,4455.21,4999,"Direct Ship","MJMW3LL/A","06NY06/SELQ2LL/A",118,115.57,"MAC STUDIO",null,"M1 ULTRA","20C CPU 48C GPU","64GB","4TB SSD",null,"10 Gigabit","None"]
["02NY49","Z14K0007H","CTO MAC STUDIO M1 ULTRA 20C CPU 64C GPU 64GB 1TB SSD STORAGE",4549,4455.21,4999,"Direct Ship","MJMW3LL/A","06NY06/SELQ2LL/A",118,115.57,"MAC STUDIO",null,"M1 ULTRA","20C CPU 64C GPU","64GB","1TB SSD",null,"10 Gigabit","None"]
["02NY11","Z14J00001","CTO MAC STUDIO M1 MAX 10C CPU 24C GPU 64GB 8TB SSD STORAGE",4463,4370.9799999999996,4799,"Direct Ship","MJMV3LL/A ","06NY06/SELQ2LL/A",118,115.57,"MAC STUDIO",null,"M1 MAX","10C CPU 24C GPU","64GB","8TB SSD",null,"10 Gigabit","None"]
["02NY45","Z14K0007G","CTO MAC STUDIO M1 ULTRA 20C CPU 48C GPU 128GB 1TB SSD STORAGE",4367,4276.96,4799,"Direct Ship","MJMW3LL/A","06NY06/SELQ2LL/A",118,115.57,"MAC STUDIO",null,"M1 ULTRA","20C CPU 48C GPU","128GB","1TB SSD",null,"10 Gigabit","None"]
["02NY16","Z14J000RH","CTO MAC STUDIO M1 MAX 10C CPU 32C GPU 32GB 8TB SSD STORAGE",4277,4188.8100000000004,4599,"Direct Ship","MJMV3LL/A ","06NY06/SELQ2LL/A",118,115.57,"MAC STUDIO",null,"M1 MAX","10C CPU 32C GPU","32GB","8TB SSD",null,"10 Gigabit","None"]
["02NY06","Z14J0008J","CTO MAC STUDIO M1 MAX 10C CPU 24C GPU 32GB 8TB SSD STORAGE",4091,4006.65,4399,"Direct Ship","MJMV3LL/A ","06NY06/SELQ2LL/A",118,115.57,"MAC STUDIO",null,"M1 MAX","10C CPU 24C GPU","32GB","8TB SSD",null,"10 Gigabit","None"]
["02NY42","Z14K0007D","CTO MAC STUDIO M1 ULTRA 20C CPU 48C GPU 64GB 2TB SSD STORAGE",4003,3920.46,4399,"Direct Ship","MJMW3LL/A","06NY06/SELQ2LL/A",118,115.57,"MAC STUDIO",null,"M1 ULTRA","20C CPU 48C GPU","64GB","2TB SSD",null,"10 Gigabit","None"]
["02NX41","MJMW3LL/A","Mac Studio Apple M1 Ultra chip with 20‑core CPU and 48‑core GPU, 1TB SSD",3639,3563.97,3999,"Stocked",null,"06NY06/SELQ2LL/A",118,115.57,"MAC STUDIO",null,"M1 ULTRA","20C CPU 48C GPU","64GB","1TB SSD",null,"10 Gigabit","None"]
["02NY20","Z14J000H0","CTO MAC STUDIO M1 MAX 10C CPU 32C GPU 64GB 4TB SSD STORAGE",3533,3460.15,3799,"Direct Ship","MJMV3LL/A ","06NY06/SELQ2LL/A",118,115.57,"MAC STUDIO",null,"M1 MAX","10C CPU 32C GPU","64GB","4TB SSD",null,"10 Gigabit","None"]
["02NY10","Z14J000HA","CTO MAC STUDIO M1 MAX 10C CPU 24C GPU 64GB 4TB SSD STORAGE",3347,3277.99,3599,"Direct Ship","MJMV3LL/A ","06NY06/SELQ2LL/A",118,115.57,"MAC STUDIO",null,"M1 MAX","10C CPU 24C GPU","64GB","4TB SSD",null,"10 Gigabit","None"]
["02NY15","Z14J000HC","CTO MAC STUDIO M1 MAX 10C CPU 32C GPU 32GB 4TB SSD STORAGE",3161,3095.82,3399,"Direct Ship","MJMV3LL/A ","06NY06/SELQ2LL/A",118,115.57,"MAC STUDIO",null,"M1 MAX","10C CPU 32C GPU","32GB","4TB SSD",null,"10 Gigabit","None"]
["02NY05","Z14J0008H","CTO MAC STUDIO M1 MAX 10C CPU 24C GPU 32GB 4TB SSD STORAGE",2975,2913.66,3199,"Direct Ship","MJMV3LL/A ","06NY06/SELQ2LL/A",118,115.57,"MAC STUDIO",null,"M1 MAX","10C CPU 24C GPU","32GB","4TB SSD",null,"10 Gigabit","None"]
["02NY19","Z14J000H4","CTO MAC STUDIO M1 MAX 10C CPU 32C GPU 64GB 2TB SSD STORAGE",2975,2913.66,3199,"Direct Ship","MJMV3LL/A ","06NY06/SELQ2LL/A",118,115.57,"MAC STUDIO",null,"M1 MAX","10C CPU 32C GPU","64GB","2TB SSD",null,"10 Gigabit","None"]
["7PN210","Z0ZT0002N","CTO MAC MINI 3.2GHZ 6CORE i7 64GB RAM 2TB SSD 10GB ENET         ",2789,2731.49,2999,"Direct Ship","MXNG2LL/A","07DZ74/S9703LL/A",69,67.58,"MAC MINI","Space Gray","i7","6-CORE","64GB","2TB SSD","Intel UHD Graphics 630","10 Gigabit","None"]
["02NY09","Z14J000H3","CTO MAC STUDIO M1 MAX 10C CPU 24C GPU 64GB 2TB SSD STORAGE",2789,2731.49,2999,"Direct Ship","MJMV3LL/A ","06NY06/SELQ2LL/A",118,115.57,"MAC STUDIO",null,"M1 MAX","10C CPU 24C GPU","64GB","2TB SSD",null,"10 Gigabit","None"]
["7PN550","Z0ZT0005M","CTO MAC MINI 3.2GHZ 6CORE i7 64GB RAM 2TB SSD STORAGE         ",2696,2640.41,2899,"Direct Ship","MXNG2LL/A","07DZ74/S9703LL/A",69,67.58,"MAC MINI","Space Gray","I7","6-CORE","64GB","2TB SSD","Intel UHD Graphics 630","Gigabit Ethernet","None"]
["7PN198","Z0ZT0006G","CTO MAC MINI 3.0GHZ 6CORE I5 64GB RAM 2TB SSD 10GB ENET         ",2603,2549.33,2799,"Direct Ship","MXNG2LL/A","07DZ74/S9703LL/A",69,67.58,"MAC MINI","Space Gray","I5","6-CORE","64GB","2TB SSD","Intel UHD Graphics 630","10 Gigabit","None"]
["02NY14","Z14J000H7","CTO MAC STUDIO M1 MAX 10C CPU 32C GPU 32GB 2TB SSD STORAGE",2603,2549.33,2799,"Direct Ship","MJMV3LL/A ","06NY06/SELQ2LL/A",118,115.57,"MAC STUDIO",null,"M1 MAX","10C CPU 32C GPU","32GB","2TB SSD",null,"10 Gigabit","None"]
["02NY18","Z14J000GD","CTO MAC STUDIO M1 MAX 10C CPU 32C GPU 64GB 1TB SSD STORAGE",2603,2549.33,2799,"Direct Ship","MJMV3LL/A ","06NY06/SELQ2LL/A",118,115.57,"MAC STUDIO",null,"M1 MAX","10C CPU 32C GPU","64GB","1TB SSD",null,"10 Gigabit","None"]
["7PN538","Z0ZT00015","CTO MAC MINI 3.0GHZ 6CORE I5 64GB RAM 2TB SSD STORAGE         ",2510,2458.25,2699,"Direct Ship","MXNG2LL/A","07DZ74/S9703LL/A",69,67.58,"MAC MINI","Space Gray","I5","6-CORE","64GB","2TB SSD","Intel UHD Graphics 630","Gigabit Ethernet","None"]
["7PN207","Z0ZT00058","CTO MAC MINI 3.2GHZ 6CORE i7 32GB RAM 2TB SSD 10GB ENET         ",2417,2367.16,2599,"Direct Ship","MXNG2LL/A","07DZ74/S9703LL/A",69,67.58,"MAC MINI","Space Gray","i7","6-CORE","32GB","2TB SSD","Intel UHD Graphics 630","10 Gigabit","None"]
["7PN209","Z0ZT00068","CTO MAC MINI 3.2GHZ 6CORE i7 64GB RAM 1TB SSD 10GB ENET         ",2417,2367.16,2599,"Direct Ship","MXNG2LL/A","07DZ74/S9703LL/A",69,67.58,"MAC MINI","Space Gray","i7","6-CORE","64GB","1TB SSD","Intel UHD Graphics 630","10 Gigabit","None"]
["02NY04","Z14J0008G","CTO MAC STUDIO M1 MAX 10C CPU 24C GPU 32GB 2TB SSD STORAGE",2417,2367.16,2599,"Direct Ship","MJMV3LL/A ","06NY06/SELQ2LL/A",118,115.57,"MAC STUDIO",null,"M1 MAX","10C CPU 24C GPU","32GB","2TB SSD",null,"10 Gigabit","None"]
["02NY08","Z14J000E1","CTO MAC STUDIO M1 MAX 10C CPU 24C GPU 64GB 1TB SSD STORAGE",2417,2367.16,2599,"Direct Ship","MJMV3LL/A ","06NY06/SELQ2LL/A",118,115.57,"MAC STUDIO",null,"M1 MAX","10C CPU 24C GPU","64GB","1TB SSD",null,"10 Gigabit","None"]
["02NY17","Z14J0008M","CTO MAC STUDIO M1 MAX 10C CPU 32C GPU 64GB 512GB SSD STORAGE",2417,2367.16,2599,"Direct Ship","MJMV3LL/A ","06NY06/SELQ2LL/A",118,115.57,"MAC STUDIO",null,"M1 MAX","10C CPU 32C GPU","64GB","512GB SSD",null,"10 Gigabit","None"]
["9CX046","Z12X000QF","CTO iMac 24in M1 8C CPU 8C GPU 16GB 2TB TOUCH ID NUMERIC BLUE         ",2350,2301.5500000000002,2529,"Direct Ship","MGPL3LL/A ","06NX82/S9688LL/A",118,115.57,"IMAC 24","Blue","M1","8C CPU 8C GPU","16GB","2TB SSD","8-core CPU and 8-core GPU","Gigabit Ethernet","Numeric with Touch ID"]
["9CX087","Z12Z000Q6","CTO iMac 24in M1 8C CPU 8C GPU 16GB 2TB TOUCH ID NUMERIC PINK        ",2350,2301.5500000000002,2529,"Direct Ship","MGPN3LL/A","06NX82/S9688LL/A",118,115.57,"IMAC 24","Pink","M1","8C CPU 8C GPU","16GB","2TB SSD","8-core CPU and 8-core GPU","Gigabit Ethernet","Numeric with Touch ID"]
["9CW934","Z12Q000VC","CTO iMac 24in M1 8C CPU 8C GPU 16GB 2TB TOUCH ID NUMERIC SLVR        ",2350,2301.5500000000002,2529,"Direct Ship","MGPC3LL/A","06NX82/S9688LL/A",118,115.57,"IMAC 24","Silver","M1","8C CPU 8C GPU","16GB","2TB SSD","8-core CPU and 8-core GPU","Gigabit Ethernet","Numeric with Touch ID"]
["9CW945","Z12R000RS","CTO iMac 24in M1 8C CPU 8C GPU 16GB 2TB TOUCH ID NUMERIC SLVR        ",2350,2301.5500000000002,2529,"Direct Ship","MGPD3LL/A","06NX82/S9688LL/A",118,115.57,"IMAC 24","Silver","M1","8C CPU 8C GPU","16GB","2TB SSD","8-core CPU and 8-core GPU","Gigabit Ethernet","Numeric with Touch ID"]
["9CW960","Z12S000RX","CTO iMac 24in M1 8C CPU 8C GPU 16GB 2TB TOUCH ID NUMERIC YLOW",2350,2301.5500000000002,2529,"Direct Ship","No base model","06NX82/S9688LL/A",118,115.57,"IMAC 24","Yellow","M1","8C CPU 8C GPU","16GB","2TB SSD","8-core CPU and 8-core GPU","Gigabit Ethernet","Numeric with Touch ID"]
["9CW971","Z12T000RK","CTO iMac 24in M1 8C CPU 8C GPU 16GB 2TB TOUCH ID NUMERIC YLOW",2350,2301.5500000000002,2529,"Direct Ship","No base model","06NX82/S9688LL/A",118,115.57,"IMAC 24","Yellow","M1","8C CPU 8C GPU","16GB","2TB SSD","8-core CPU and 8-core GPU","Gigabit Ethernet","Numeric with Touch ID"]
["9CW997","Z12U000RU","CTO iMac 24in M1 8C CPU 8C GPU 16GB 2TB TOUCH ID NUMERIC GREEN        ",2350,2301.5500000000002,2529,"Direct Ship","MGPH3LL/A","06NX82/S9688LL/A",118,115.57,"IMAC 24","Green","M1","8C CPU 8C GPU","16GB","2TB SSD","8-core CPU and 8-core GPU","Gigabit Ethernet","Numeric with Touch ID"]
["9CX009","Z12V000RY","CTO iMac 24in M1 8C CPU 8C GPU 16GB 2TB TOUCH ID NUMERIC GREEN        ",2350,2301.5500000000002,2529,"Direct Ship","MGPJ3LL/A ","06NX82/S9688LL/A",118,115.57,"IMAC 24","Green","M1","8C CPU 8C GPU","16GB","2TB SSD","8-core CPU and 8-core GPU","Gigabit Ethernet","Numeric with Touch ID"]
["9CX035","Z12W000RM","CTO iMac 24in M1 8C CPU 8C GPU 16GB 2TB TOUCH ID NUMERIC BLUE         ",2350,2301.5500000000002,2529,"Direct Ship","MGPK3LL/A ","06NX82/S9688LL/A",118,115.57,"IMAC 24","Blue","M1","8C CPU 8C GPU","16GB","2TB SSD","8-core CPU and 8-core GPU","Gigabit Ethernet","Numeric with Touch ID"]
["9CX076","Z12Y000QV","CTO iMac 24in M1 8C CPU 8C GPU 16GB 2TB TOUCH ID NUMERIC PINK         ",2350,2301.5500000000002,2529,"Direct Ship","MGPM3LL/A ","06NX82/S9688LL/A",118,115.57,"IMAC 24","Pink","M1","8C CPU 8C GPU","16GB","2TB SSD","8-core CPU and 8-core GPU","Gigabit Ethernet","Numeric with Touch ID"]
["9CX106","Z130000QJ","CTO iMac 24in M1 8C CPU 8C GPU 16GB 2TB TOUCH ID NUMERIC PURP     ",2350,2301.5500000000002,2529,"Direct Ship","No base model","06NX82/S9688LL/A",118,115.57,"IMAC 24","Purple","M1","8C CPU 8C GPU","16GB","2TB SSD","8-core CPU and 8-core GPU","Gigabit Ethernet","Numeric with Touch ID"]
["9CX117","Z131000PH","CTO iMac 24in M1 8C CPU 8C GPU 16GB 2TB TOUCH ID NUMERIC PURP       ",2350,2301.5500000000002,2529,"Direct Ship","No base model","06NX82/S9688LL/A",118,115.57,"IMAC 24","Purple","M1","8C CPU 8C GPU","16GB","2TB SSD","8-core CPU and 8-core GPU","Gigabit Ethernet","Numeric with Touch ID"]
["9CX132","Z132000QQ","CTO iMac 24in M1 8C CPU 8C GPU 16GB 2TB TOUCH ID NUMERIC ORNGE       ",2350,2301.5500000000002,2529,"Direct Ship","No base model","06NX82/S9688LL/A",118,115.57,"IMAC 24","Orange","M1","8C CPU 8C GPU","16GB","2TB SSD","8-core CPU and 8-core GPU","Gigabit Ethernet","Numeric with Touch ID"]
["9CX143","Z133000NL","CTO iMac 24in M1 8C CPU 8C GPU 16GB 2TB TOUCH ID NUMERIC ORNGE    ",2350,2301.5500000000002,2529,"Direct Ship","No base model","06NX82/S9688LL/A",118,115.57,"IMAC 24","Orange","M1","8C CPU 8C GPU","16GB","2TB SSD","8-core CPU and 8-core GPU","Gigabit Ethernet","Numeric with Touch ID"]
["9CW926","Z12Q000NW","CTO iMac 24in M1 8C CPU 8C GPU 16GB RAM 2TB SSD TOUCH ID KB SLVR        ",2324,2276.08,2499,"Direct Ship","MGPC3LL/A","06NX82/S9688LL/A",118,115.57,"IMAC 24","Silver","M1","8C CPU 8C GPU","16GB","2TB SSD","8-core CPU and 8-core GPU","Gigabit Ethernet","Magic keyboard with Touch ID"]
["9CW939","Z12R000LY","CTO iMac 24in M1 8C CPU 8C GPU 16GB RAM 2TB SSD TOUCH ID KB SLVR        ",2324,2276.08,2499,"Direct Ship","MGPD3LL/A","06NX82/S9688LL/A",118,115.57,"IMAC 24","Silver","M1","8C CPU 8C GPU","16GB","2TB SSD","8-core CPU and 8-core GPU","Gigabit Ethernet","Magic keyboard with Touch ID"]
["9CW952","Z12S000NW","CTO iMac 24in M1 8C CPU 8C GPU 16GB RAM 2TB SSD TOUCH ID KB YLOW      ",2324,2276.08,2499,"Direct Ship","No base model","06NX82/S9688LL/A",118,115.57,"IMAC 24","Yellow","M1","8C CPU 8C GPU","16GB","2TB SSD","8-core CPU and 8-core GPU","Gigabit Ethernet","Magic keyboard with Touch ID"]
["9CW965","Z12T000LY","CTO iMac 24in M1 8C CPU 8C GPU 16GB RAM 2TB SSD TOUCH ID KB YLOW     ",2324,2276.08,2499,"Direct Ship","No base model","06NX82/S9688LL/A",118,115.57,"IMAC 24","Yellow","M1","8C CPU 8C GPU","16GB","2TB SSD","8-core CPU and 8-core GPU","Gigabit Ethernet","Magic keyboard with Touch ID"]
["9CW989","Z12U000NW","CTO iMac 24in M1 8C CPU 8C GPU 16GB RAM 2TB SSD TOUCH ID KB GREEN        ",2324,2276.08,2499,"Direct Ship","MGPH3LL/A","06NX82/S9688LL/A",118,115.57,"IMAC 24","Green","M1","8C CPU 8C GPU","16GB","2TB SSD","8-core CPU and 8-core GPU","Gigabit Ethernet","Magic keyboard with Touch ID"]
["9CX003","Z12V000LY","CTO iMac 24in M1 8C CPU 8C GPU 16GB RAM 2TB SSD TOUCH ID KB GREEN        ",2324,2276.08,2499,"Direct Ship","MGPJ3LL/A ","06NX82/S9688LL/A",118,115.57,"IMAC 24","Green","M1","8C CPU 8C GPU","16GB","2TB SSD","8-core CPU and 8-core GPU","Gigabit Ethernet","Magic keyboard with Touch ID"]
["9CX027","Z12W000NW","CTO iMac 24in M1 8C CPU 8C GPU 16GB RAM 2TB SSD TOUCH ID KB BLUE         ",2324,2276.08,2499,"Direct Ship","MGPK3LL/A ","06NX82/S9688LL/A",118,115.57,"IMAC 24","Blue","M1","8C CPU 8C GPU","16GB","2TB SSD","8-core CPU and 8-core GPU","Gigabit Ethernet","Magic keyboard with Touch ID"]
["9CX040","Z12X000LY","CTO iMac 24in M1 8C CPU 8C GPU 16GB RAM 2TB SSD TOUCH ID KB BLUE         ",2324,2276.08,2499,"Direct Ship","MGPL3LL/A ","06NX82/S9688LL/A",118,115.57,"IMAC 24","Blue","M1","8C CPU 8C GPU","16GB","2TB SSD","8-core CPU and 8-core GPU","Gigabit Ethernet","Magic keyboard with Touch ID"]
["9CX068","Z12Y000NW","CTO iMac 24in M1 8C CPU 8C GPU 16GB RAM 2TB SSD TOUCH ID KB PINK         ",2324,2276.08,2499,"Direct Ship","MGPM3LL/A ","06NX82/S9688LL/A",118,115.57,"IMAC 24","Pink","M1","8C CPU 8C GPU","16GB","2TB SSD","8-core CPU and 8-core GPU","Gigabit Ethernet","Magic keyboard with Touch ID"]
["9CX081","Z12Z000LY","CTO iMac 24in M1 8C CPU 8C GPU 16GB RAM 2TB SSD TOUCH ID KB PINK        ",2324,2276.08,2499,"Direct Ship","MGPN3LL/A","06NX82/S9688LL/A",118,115.57,"IMAC 24","Pink","M1","8C CPU 8C GPU","16GB","2TB SSD","8-core CPU and 8-core GPU","Gigabit Ethernet","Magic keyboard with Touch ID"]
["9CX098","Z130000NW","CTO iMac 24in M1 8C CPU 8C GPU 16GB RAM 2TB SSD TOUCH ID KB PURP  ",2324,2276.08,2499,"Direct Ship","No base model","06NX82/S9688LL/A",118,115.57,"IMAC 24","Purple","M1","8C CPU 8C GPU","16GB","2TB SSD","8-core CPU and 8-core GPU","Gigabit Ethernet","Magic keyboard with Touch ID"]
["9CX111","Z131000LY","CTO iMac 24in M1 8C CPU 8C GPU 16GB RAM 2TB SSD TOUCH ID KB PURP     ",2324,2276.08,2499,"Direct Ship","No base model","06NX82/S9688LL/A",118,115.57,"IMAC 24","Purple","M1","8C CPU 8C GPU","16GB","2TB SSD","8-core CPU and 8-core GPU","Gigabit Ethernet","Magic keyboard with Touch ID"]
["9CX124","Z132000NW","CTO iMac 24in M1 8C CPU 8C GPU 16GB RAM 2TB SSD TOUCH ID KB ORNGE   ",2324,2276.08,2499,"Direct Ship","No base model","06NX82/S9688LL/A",118,115.57,"IMAC 24","Orange","M1","8C CPU 8C GPU","16GB","2TB SSD","8-core CPU and 8-core GPU","Gigabit Ethernet","Magic keyboard with Touch ID"]
["9CX137","Z133000LY","CTO iMac 24in M1 8C CPU 8C GPU 16GB RAM 2TB SSD TOUCH ID KB ORNGE   ",2324,2276.08,2499,"Direct Ship","No base model","06NX82/S9688LL/A",118,115.57,"IMAC 24","Orange","M1","8C CPU 8C GPU","16GB","2TB SSD","8-core CPU and 8-core GPU","Gigabit Ethernet","Magic keyboard with Touch ID"]
["7PN547","Z0ZT0001X","CTO MAC MINI 3.2GHZ 6CORE i7 32GB RAM 2TB SSD STORAGE         ",2324,2276.08,2499,"Direct Ship","MXNG2LL/A","07DZ74/S9703LL/A",69,67.58,"MAC MINI","Space Gray","I7","6-CORE","32GB","2TB SSD","Intel UHD Graphics 630","Gigabit Ethernet","None"]
["7PN549","Z0ZT0004V","CTO MAC MINI 3.2GHZ 6CORE i7 64GB RAM 1TB SSD STORAGE         ",2324,2276.08,2499,"Direct Ship","MXNG2LL/A","07DZ74/S9703LL/A",69,67.58,"MAC MINI","Space Gray","I7","6-CORE","64GB","1TB SSD","Intel UHD Graphics 630","Gigabit Ethernet","None"]
["7PN195","Z0ZT0006V","CTO MAC MINI 3.0GHZ 6CORE I5 32GB RAM 2TB SSD 10GB ENET         ",2231,2185,2399,"Direct Ship","MXNG2LL/A","07DZ74/S9703LL/A",69,67.58,"MAC MINI","Space Gray","I5","6-CORE","32GB","2TB SSD","Intel UHD Graphics 630","10 Gigabit","None"]
["7PN197","Z0ZT000EL","CTO MAC MINI 3.0GHZ 6CORE I5 64GB RAM 1TB SSD 10GB ENET         ",2231,2185,2399,"Direct Ship","MXNG2LL/A","07DZ74/S9703LL/A",69,67.58,"MAC MINI","Space Gray","I5","6-CORE","64GB","1TB SSD","Intel UHD Graphics 630","10 Gigabit","None"]
["7PN208","Z0ZT00078","CTO MAC MINI 3.2GHZ 6CORE i7 64GB RAM 512GB SSD 10GB ENET         ",2231,2185,2399,"Direct Ship","MXNG2LL/A","07DZ74/S9703LL/A",69,67.58,"MAC MINI","Space Gray","i7","6-CORE","64GB","512GB SSD","Intel UHD Graphics 630","10 Gigabit","None"]
["02NY07","Z14J0008K","CTO MAC STUDIO M1 MAX 10C CPU 24C GPU 64GB 512GB SSD STORAGE",2231,2185,2399,"Direct Ship","MJMV3LL/A ","06NY06/SELQ2LL/A",118,115.57,"MAC STUDIO",null,"M1 MAX","10C CPU 24C GPU","64GB","512GB SSD",null,"10 Gigabit","None"]
["02NY13","Z14J000H2","CTO MAC STUDIO M1 MAX 10C CPU 32C GPU 32GB 1TB SSD STORAGE",2231,2185,2399,"Direct Ship","MJMV3LL/A ","06NY06/SELQ2LL/A",118,115.57,"MAC STUDIO",null,"M1 MAX","10C CPU 32C GPU","32GB","1TB SSD",null,"10 Gigabit","None"]
["9CX045","Z12X000NL","CTO iMac 24in M1 8C CPU 8C GPU 8GB 2TB TOUCH ID NUMERIC BLUE         ",2164,2119.38,2329,"Direct Ship","MGPL3LL/A ","06NX82/S9688LL/A",118,115.57,"IMAC 24","Blue","M1","8C CPU 8C GPU","8GB","2TB SSD","8-core CPU and 8-core GPU","Gigabit Ethernet","Numeric with Touch ID"]
["9CX086","Z12Z000UR","CTO iMac 24in M1 8C CPU 8C GPU 8GB 2TB TOUCH ID NUMERIC PINK        ",2164,2119.38,2329,"Direct Ship","MGPN3LL/A","06NX82/S9688LL/A",118,115.57,"IMAC 24","Pink","M1","8C CPU 8C GPU","8GB","2TB SSD","8-core CPU and 8-core GPU","Gigabit Ethernet","Numeric with Touch ID"]
["9CW933","Z12Q000V9","CTO iMac 24in M1 8C CPU 8C GPU 8GB 2TB TOUCH ID NUMERIC SLVR        ",2164,2119.38,2329,"Direct Ship","MGPC3LL/A","06NX82/S9688LL/A",118,115.57,"IMAC 24","Silver","M1","8C CPU 8C GPU","8GB","2TB SSD","8-core CPU and 8-core GPU","Gigabit Ethernet","Numeric with Touch ID"]
["9CW944","Z12R0013M","CTO iMac 24in M1 8C CPU 8C GPU 8GB 2TB TOUCH ID NUMERIC SLVR        ",2164,2119.38,2329,"Direct Ship","MGPD3LL/A","06NX82/S9688LL/A",118,115.57,"IMAC 24","Silver","M1","8C CPU 8C GPU","8GB","2TB SSD","8-core CPU and 8-core GPU","Gigabit Ethernet","Numeric with Touch ID"]
["9CW959","Z12S000RU","CTO iMac 24in M1 8C CPU 8C GPU 8GB 2TB TOUCH ID NUMERIC YLOW    ",2164,2119.38,2329,"Direct Ship","No base model","06NX82/S9688LL/A",118,115.57,"IMAC 24","Yellow","M1","8C CPU 8C GPU","8GB","2TB SSD","8-core CPU and 8-core GPU","Gigabit Ethernet","Numeric with Touch ID"]
["9CW970","Z12T000VQ","CTO iMac 24in M1 8C CPU 8C GPU 8GB 2TB TOUCH ID NUMERIC YLOW      ",2164,2119.38,2329,"Direct Ship","No base model","06NX82/S9688LL/A",118,115.57,"IMAC 24","Yellow","M1","8C CPU 8C GPU","8GB","2TB SSD","8-core CPU and 8-core GPU","Gigabit Ethernet","Numeric with Touch ID"]
["9CW996","Z12U000RR","CTO iMac 24in M1 8C CPU 8C GPU 8GB 2TB TOUCH ID NUMERIC GREEN        ",2164,2119.38,2329,"Direct Ship","MGPH3LL/A","06NX82/S9688LL/A",118,115.57,"IMAC 24","Green","M1","8C CPU 8C GPU","8GB","2TB SSD","8-core CPU and 8-core GPU","Gigabit Ethernet","Numeric with Touch ID"]
["9CX008","Z12V0010Q","CTO iMac 24in M1 8C CPU 8C GPU 8GB 2TB TOUCH ID NUMERIC GREEN        ",2164,2119.38,2329,"Direct Ship","MGPJ3LL/A ","06NX82/S9688LL/A",118,115.57,"IMAC 24","Green","M1","8C CPU 8C GPU","8GB","2TB SSD","8-core CPU and 8-core GPU","Gigabit Ethernet","Numeric with Touch ID"]
["9CX034","Z12W000RR","CTO iMac 24in M1 8C CPU 8C GPU 8GB 2TB TOUCH ID NUMERIC BLUE         ",2164,2119.38,2329,"Direct Ship","MGPK3LL/A ","06NX82/S9688LL/A",118,115.57,"IMAC 24","Blue","M1","8C CPU 8C GPU","8GB","2TB SSD","8-core CPU and 8-core GPU","Gigabit Ethernet","Numeric with Touch ID"]
["9CX075","Z12Y000QS","CTO iMac 24in M1 8C CPU 8C GPU 8GB 2TB TOUCH ID NUMERIC PINK         ",2164,2119.38,2329,"Direct Ship","MGPM3LL/A ","06NX82/S9688LL/A",118,115.57,"IMAC 24","Pink","M1","8C CPU 8C GPU","8GB","2TB SSD","8-core CPU and 8-core GPU","Gigabit Ethernet","Numeric with Touch ID"]
["9CX105","Z130000QF","CTO iMac 24in M1 8C CPU 8C GPU 8GB 2TB TOUCH ID NUMERIC PURP  ",2164,2119.38,2329,"Direct Ship","No base model","06NX82/S9688LL/A",118,115.57,"IMAC 24","Purple","M1","8C CPU 8C GPU","8GB","2TB SSD","8-core CPU and 8-core GPU","Gigabit Ethernet","Numeric with Touch ID"]
["9CX116","Z1310010W","CTO iMac 24in M1 8C CPU 8C GPU 8GB 2TB TOUCH ID NUMERIC PURP ",2164,2119.38,2329,"Direct Ship","No base model","06NX82/S9688LL/A",118,115.57,"IMAC 24","Purple","M1","8C CPU 8C GPU","8GB","2TB SSD","8-core CPU and 8-core GPU","Gigabit Ethernet","Numeric with Touch ID"]
["9CX131","Z132000QM","CTO iMac 24in M1 8C CPU 8C GPU 8GB 2TB TOUCH ID NUMERIC ORNGE    ",2164,2119.38,2329,"Direct Ship","No base model","06NX82/S9688LL/A",118,115.57,"IMAC 24","Orange","M1","8C CPU 8C GPU","8GB","2TB SSD","8-core CPU and 8-core GPU","Gigabit Ethernet","Numeric with Touch ID"]
["9CX142","Z133000XE","CTO iMac 24in M1 8C CPU 8C GPU 8GB 2TB TOUCH ID NUMERIC ORNGE      ",2164,2119.38,2329,"Direct Ship","No base model","06NX82/S9688LL/A",118,115.57,"IMAC 24","Orange","M1","8C CPU 8C GPU","8GB","2TB SSD","8-core CPU and 8-core GPU","Gigabit Ethernet","Numeric with Touch ID"]
["9CW925","Z12Q000NB","CTO iMac 24in M1 8C CPU 8C GPU 8GB RAM 2TB SSD TOUCH ID KB SLVR        ",2138,2093.92,2299,"Direct Ship","MGPC3LL/A","06NX82/S9688LL/A",118,115.57,"IMAC 24","Silver","M1","8C CPU 8C GPU","8GB","2TB SSD","8-core CPU and 8-core GPU","Gigabit Ethernet","Magic keyboard with Touch ID"]
["9CW938","Z12R000LE","CTO iMac 24in M1 8C CPU 8C GPU 8GB RAM 2TB SSD TOUCH ID KB SLVR        ",2138,2093.92,2299,"Direct Ship","MGPD3LL/A","06NX82/S9688LL/A",118,115.57,"IMAC 24","Silver","M1","8C CPU 8C GPU","8GB","2TB SSD","8-core CPU and 8-core GPU","Gigabit Ethernet","Magic keyboard with Touch ID"]
["9CW951","Z12S000NB","CTO iMac 24in M1 8C CPU 8C GPU 8GB RAM 2TB SSD TOUCH ID KB YLOW     ",2138,2093.92,2299,"Direct Ship","No base model","06NX82/S9688LL/A",118,115.57,"IMAC 24","Yellow","M1","8C CPU 8C GPU","8GB","2TB SSD","8-core CPU and 8-core GPU","Gigabit Ethernet","Magic keyboard with Touch ID"]
["9CW964","Z12T000LE","CTO iMac 24in M1 8C CPU 8C GPU 8GB RAM 2TB SSD TOUCH ID KB YLOW    ",2138,2093.92,2299,"Direct Ship","No base model","06NX82/S9688LL/A",118,115.57,"IMAC 24","Yellow","M1","8C CPU 8C GPU","8GB","2TB SSD","8-core CPU and 8-core GPU","Gigabit Ethernet","Magic keyboard with Touch ID"]
["9CW988","Z12U000NB","CTO iMac 24in M1 8C CPU 8C GPU 8GB RAM 2TB SSD TOUCH ID KB GREEN        ",2138,2093.92,2299,"Direct Ship","MGPH3LL/A","06NX82/S9688LL/A",118,115.57,"IMAC 24","Green","M1","8C CPU 8C GPU","8GB","2TB SSD","8-core CPU and 8-core GPU","Gigabit Ethernet","Magic keyboard with Touch ID"]
["9CX002","Z12V000LE","CTO iMac 24in M1 8C CPU 8C GPU 8GB RAM 2TB SSD TOUCH ID KB GREEN        ",2138,2093.92,2299,"Direct Ship","MGPJ3LL/A ","06NX82/S9688LL/A",118,115.57,"IMAC 24","Green","M1","8C CPU 8C GPU","8GB","2TB SSD","8-core CPU and 8-core GPU","Gigabit Ethernet","Magic keyboard with Touch ID"]
["9CX026","Z12W000NB","CTO iMac 24in M1 8C CPU 8C GPU 8GB RAM 2TB SSD TOUCH ID KB BLUE         ",2138,2093.92,2299,"Direct Ship","MGPK3LL/A ","06NX82/S9688LL/A",118,115.57,"IMAC 24","Blue","M1","8C CPU 8C GPU","8GB","2TB SSD","8-core CPU and 8-core GPU","Gigabit Ethernet","Magic keyboard with Touch ID"]
["9CX039","Z12X000LE","CTO iMac 24in M1 8C CPU 8C GPU 8GB RAM 2TB SSD TOUCH ID KB BLUE         ",2138,2093.92,2299,"Direct Ship","MGPL3LL/A ","06NX82/S9688LL/A",118,115.57,"IMAC 24","Blue","M1","8C CPU 8C GPU","8GB","2TB SSD","8-core CPU and 8-core GPU","Gigabit Ethernet","Magic keyboard with Touch ID"]
["9CX067","Z12Y000NB","CTO iMac 24in M1 8C CPU 8C GPU 8GB RAM 2TB SSD TOUCH ID KB PINK         ",2138,2093.92,2299,"Direct Ship","MGPM3LL/A ","06NX82/S9688LL/A",118,115.57,"IMAC 24","Pink","M1","8C CPU 8C GPU","8GB","2TB SSD","8-core CPU and 8-core GPU","Gigabit Ethernet","Magic keyboard with Touch ID"]
["9CX080","Z12Z000LE","CTO iMac 24in M1 8C CPU 8C GPU 8GB RAM 2TB SSD TOUCH ID KB PINK        ",2138,2093.92,2299,"Direct Ship","MGPN3LL/A","06NX82/S9688LL/A",118,115.57,"IMAC 24","Pink","M1","8C CPU 8C GPU","8GB","2TB SSD","8-core CPU and 8-core GPU","Gigabit Ethernet","Magic keyboard with Touch ID"]
["9CX097","Z130000NB","CTO iMac 24in M1 8C CPU 8C GPU 8GB RAM 2TB SSD TOUCH ID KB PURP       ",2138,2093.92,2299,"Direct Ship","No base model","06NX82/S9688LL/A",118,115.57,"IMAC 24","Purple","M1","8C CPU 8C GPU","8GB","2TB SSD","8-core CPU and 8-core GPU","Gigabit Ethernet","Magic keyboard with Touch ID"]
["9CX110","Z131000LE","CTO iMac 24in M1 8C CPU 8C GPU 8GB RAM 2TB SSD TOUCH ID KB PURP  ",2138,2093.92,2299,"Direct Ship","No base model","06NX82/S9688LL/A",118,115.57,"IMAC 24","Purple","M1","8C CPU 8C GPU","8GB","2TB SSD","8-core CPU and 8-core GPU","Gigabit Ethernet","Magic keyboard with Touch ID"]
["9CX123","Z132000NB","CTO iMac 24in M1 8C CPU 8C GPU 8GB RAM 2TB SSD TOUCH ID KB ORNGE   ",2138,2093.92,2299,"Direct Ship","No base model","06NX82/S9688LL/A",118,115.57,"IMAC 24","Orange","M1","8C CPU 8C GPU","8GB","2TB SSD","8-core CPU and 8-core GPU","Gigabit Ethernet","Magic keyboard with Touch ID"]
["9CX136","Z133000LE","CTO iMac 24in M1 8C CPU 8C GPU 8GB RAM 2TB SSD TOUCH ID KB ORNGE     ",2138,2093.92,2299,"Direct Ship","No base model","06NX82/S9688LL/A",118,115.57,"IMAC 24","Orange","M1","8C CPU 8C GPU","8GB","2TB SSD","8-core CPU and 8-core GPU","Gigabit Ethernet","Magic keyboard with Touch ID"]
["7PN535","Z0ZT0002M","CTO MAC MINI 3.0GHZ 6CORE I5 32GB RAM 2TB SSD STORAGE         ",2138,2093.92,2299,"Direct Ship","MXNG2LL/A","07DZ74/S9703LL/A",69,67.58,"MAC MINI","Space Gray","I5","6-CORE","32GB","2TB SSD","Intel UHD Graphics 630","Gigabit Ethernet","None"]
["7PN537","Z0ZT00071","CTO MAC MINI 3.0GHZ 6CORE I5 64GB RAM 1TB SSD STORAGE         ",2138,2093.92,2299,"Direct Ship","MXNG2LL/A","07DZ74/S9703LL/A",69,67.58,"MAC MINI","Space Gray","I5","6-CORE","64GB","1TB SSD","Intel UHD Graphics 630","Gigabit Ethernet","None"]
["7PN548","Z0ZT00096","CTO MAC MINI 3.2GHZ 6CORE i7 64GB RAM 512GB SSD STORAGE         ",2138,2093.92,2299,"Direct Ship","MXNG2LL/A","07DZ74/S9703LL/A",69,67.58,"MAC MINI","Space Gray","I7","6-CORE","64GB","512GB SSD","Intel UHD Graphics 630","Gigabit Ethernet","None"]
["7PN196","Z0ZT000EJ","CTO MAC MINI 3.0GHZ 6CORE I5 64GB RAM 512GB SSD 10GB ENET         ",2045,2002.84,2199,"Direct Ship","MXNG2LL/A","07DZ74/S9703LL/A",69,67.58,"MAC MINI","Space Gray","I5","6-CORE","64GB","512GB SSD","Intel UHD Graphics 630","10 Gigabit","None"]
["7PN204","Z0ZT0006X","CTO MAC MINI 3.2GHZ 6CORE i7 16GB RAM 2TB SSD 10GB ENET         ",2045,2002.84,2199,"Direct Ship","MXNG2LL/A","07DZ74/S9703LL/A",69,67.58,"MAC MINI","Space Gray","i7","6-CORE","16GB","2TB SSD","Intel UHD Graphics 630","10 Gigabit","None"]
["7PN206","Z0ZT0000W","CTO MAC MINI 3.2GHZ 6CORE i7 32GB RAM 1TB SSD 10GB ENET         ",2045,2002.84,2199,"Direct Ship","MXNG2LL/A","07DZ74/S9703LL/A",69,67.58,"MAC MINI","Space Gray","i7","6-CORE","32GB","1TB SSD","Intel UHD Graphics 630","10 Gigabit","None"]
["02NY03","Z14J0008F","CTO MAC STUDIO M1 MAX 10C CPU 24C GPU 32GB 1TB SSD STORAGE",2045,2002.84,2199,"Direct Ship","MJMV3LL/A ","06NY06/SELQ2LL/A",118,115.57,"MAC STUDIO",null,"M1 MAX","10C CPU 24C GPU","32GB","1TB SSD",null,"10 Gigabit","None"]
["02NY12","Z14J0008L","CTO MAC STUDIO M1 MAX 10C CPU 32C GPU 32GB 512B SSD STORAGE",2045,2002.84,2199,"Direct Ship","MJMV3LL/A ","06NY06/SELQ2LL/A",118,115.57,"MAC STUDIO",null,"M1 MAX","10C CPU 32C GPU","32GB","512B SSD",null,"10 Gigabit","None"]
["9CX085","Z12Z000Q9","CTO iMac 24in M1 8C CPU 8C GPU 16GB 1TB TOUCH ID NUMERIC PINK        ",1978,1937.22,2129,"Direct Ship","MGPN3LL/A","06NX82/S9688LL/A",118,115.57,"IMAC 24","Pink","M1","8C CPU 8C GPU","16GB","1TB SSD","8-core CPU and 8-core GPU","Gigabit Ethernet","Numeric with Touch ID"]
["9CW932","Z12Q000VB","CTO iMac 24in M1 8C CPU 8C GPU 16GB 1TB TOUCH ID NUMERIC SLVR        ",1978,1937.22,2129,"Direct Ship","MGPC3LL/A","06NX82/S9688LL/A",118,115.57,"IMAC 24","Silver","M1","8C CPU 8C GPU","16GB","1TB SSD","8-core CPU and 8-core GPU","Gigabit Ethernet","Numeric with Touch ID"]
["9CW943","Z12R000QF","CTO iMac 24in M1 8C CPU 8C GPU 16GB 1TB TOUCH ID NUMERIC SLVR        ",1978,1937.22,2129,"Direct Ship","MGPD3LL/A","06NX82/S9688LL/A",118,115.57,"IMAC 24","Silver","M1","8C CPU 8C GPU","16GB","1TB SSD","8-core CPU and 8-core GPU","Gigabit Ethernet","Numeric with Touch ID"]
["9CW958","Z12S000RW","CTO iMac 24in M1 8C CPU 8C GPU 16GB 1TB TOUCH ID NUMERIC YLOW    ",1978,1937.22,2129,"Direct Ship","No base model","06NX82/S9688LL/A",118,115.57,"IMAC 24","Yellow","M1","8C CPU 8C GPU","16GB","1TB SSD","8-core CPU and 8-core GPU","Gigabit Ethernet","Numeric with Touch ID"]
["9CW969","Z12T000QK","CTO iMac 24in M1 8C CPU 8C GPU 16GB 1TB TOUCH ID NUMERIC YLOW    ",1978,1937.22,2129,"Direct Ship","No base model","06NX82/S9688LL/A",118,115.57,"IMAC 24","Yellow","M1","8C CPU 8C GPU","16GB","1TB SSD","8-core CPU and 8-core GPU","Gigabit Ethernet","Numeric with Touch ID"]
["9CW995","Z12U000RT","CTO iMac 24in M1 8C CPU 8C GPU 16GB 1TB TOUCH ID NUMERIC GREEN        ",1978,1937.22,2129,"Direct Ship","MGPH3LL/A","06NX82/S9688LL/A",118,115.57,"IMAC 24","Green","M1","8C CPU 8C GPU","16GB","1TB SSD","8-core CPU and 8-core GPU","Gigabit Ethernet","Numeric with Touch ID"]
["9CX007","Z12V000Q4","CTO iMac 24in M1 8C CPU 8C GPU 16GB 1TB TOUCH ID NUMERIC GREEN        ",1978,1937.22,2129,"Direct Ship","MGPJ3LL/A ","06NX82/S9688LL/A",118,115.57,"IMAC 24","Green","M1","8C CPU 8C GPU","16GB","1TB SSD","8-core CPU and 8-core GPU","Gigabit Ethernet","Numeric with Touch ID"]
["9CX033","Z12W000RL","CTO iMac 24in M1 8C CPU 8C GPU 16GB 1TB TOUCH ID NUMERIC BLUE         ",1978,1937.22,2129,"Direct Ship","MGPK3LL/A ","06NX82/S9688LL/A",118,115.57,"IMAC 24","Blue","M1","8C CPU 8C GPU","16GB","1TB SSD","8-core CPU and 8-core GPU","Gigabit Ethernet","Numeric with Touch ID"]
["9CX044","Z12X000Q8","CTO iMac 24in M1 8C CPU 8C GPU 16GB 1TB TOUCH ID NUMERIC BLUE         ",1978,1937.22,2129,"Direct Ship","MGPL3LL/A ","06NX82/S9688LL/A",118,115.57,"IMAC 24","Blue","M1","8C CPU 8C GPU","16GB","1TB SSD","8-core CPU and 8-core GPU","Gigabit Ethernet","Numeric with Touch ID"]
["9CX074","Z12Y000QU","CTO iMac 24in M1 8C CPU 8C GPU 16GB 1TB TOUCH ID NUMERIC PINK         ",1978,1937.22,2129,"Direct Ship","MGPM3LL/A ","06NX82/S9688LL/A",118,115.57,"IMAC 24","Pink","M1","8C CPU 8C GPU","16GB","1TB SSD","8-core CPU and 8-core GPU","Gigabit Ethernet","Numeric with Touch ID"]
["9CX104","Z130000QH","CTO iMac 24in M1 8C CPU 8C GPU 16GB 1TB TOUCH ID NUMERIC PURP    ",1978,1937.22,2129,"Direct Ship","No base model","06NX82/S9688LL/A",118,115.57,"IMAC 24","Purple","M1","8C CPU 8C GPU","16GB","1TB SSD","8-core CPU and 8-core GPU","Gigabit Ethernet","Numeric with Touch ID"]
["9CX115","Z131000PL","CTO iMac 24in M1 8C CPU 8C GPU 16GB 1TB TOUCH ID NUMERIC PURP  ",1978,1937.22,2129,"Direct Ship","No base model","06NX82/S9688LL/A",118,115.57,"IMAC 24","Purple","M1","8C CPU 8C GPU","16GB","1TB SSD","8-core CPU and 8-core GPU","Gigabit Ethernet","Numeric with Touch ID"]
["9CX130","Z132000QP","CTO iMac 24in M1 8C CPU 8C GPU 16GB 1TB TOUCH ID NUMERIC ORNGE     ",1978,1937.22,2129,"Direct Ship","No base model","06NX82/S9688LL/A",118,115.57,"IMAC 24","Orange","M1","8C CPU 8C GPU","16GB","1TB SSD","8-core CPU and 8-core GPU","Gigabit Ethernet","Numeric with Touch ID"]
["9CX141","Z133000PR","CTO iMac 24in M1 8C CPU 8C GPU 16GB 1TB TOUCH ID NUMERIC ORNGE    ",1978,1937.22,2129,"Direct Ship","No base model","06NX82/S9688LL/A",118,115.57,"IMAC 24","Orange","M1","8C CPU 8C GPU","16GB","1TB SSD","8-core CPU and 8-core GPU","Gigabit Ethernet","Numeric with Touch ID"]
["7PN536","Z0ZT0002T","CTO MAC MINI 3.0GHZ 6CORE I5 64GB RAM 512GB SSD STORAGE         ",1952,1911.75,2099,"Direct Ship","MXNG2LL/A","07DZ74/S9703LL/A",69,67.58,"MAC MINI","Space Gray","I5","6-CORE","64GB","512GB SSD","Intel UHD Graphics 630","Gigabit Ethernet","None"]
["7PN544","Z0ZT00050","CTO MAC MINI 3.2GHZ 6CORE i7 16GB RAM 2TB SSD STORAGE         ",1952,1911.75,2099,"Direct Ship","MXNG2LL/A","07DZ74/S9703LL/A",69,67.58,"MAC MINI","Space Gray","I7","6-CORE","16GB","2TB SSD","Intel UHD Graphics 630","Gigabit Ethernet","None"]
["7PN546","Z0ZT0004G","CTO MAC MINI 3.2GHZ 6CORE i7 32GB RAM 1TB SSD STORAGE         ",1952,1911.75,2099,"Direct Ship","MXNG2LL/A","07DZ74/S9703LL/A",69,67.58,"MAC MINI","Space Gray","I7","6-CORE","32GB","1TB SSD","Intel UHD Graphics 630","Gigabit Ethernet","None"]
["9CW924","Z12Q000NV","CTO iMac 24in M1 8C CPU 8C GPU 16GB RAM 1TB SSD TOUCH ID KB SLVR        ",1952,1911.75,2099,"Direct Ship","MGPC3LL/A","06NX82/S9688LL/A",118,115.57,"IMAC 24","Silver","M1","8C CPU 8C GPU","16GB","1TB SSD","8-core CPU and 8-core GPU","Gigabit Ethernet","Magic keyboard with Touch ID"]
["9HK884","Z12R000LX","CTO iMac 24in M1 8C CPU 8C GPU 16GB RAM 1TB SSD TOUCH ID KB SLVR        ",1952,1911.75,2099,"Stocked","MGPD3LL/A","06NX82/S9688LL/A",118,115.57,"IMAC 24","Silver","M1","8C CPU 8C GPU","16GB","1TB SSD","8-core CPU and 8-core GPU","Gigabit Ethernet","Magic keyboard with Touch ID"]
["9CW950","Z12S000NV","CTO iMac 24in M1 8C CPU 8C GPU 16GB RAM 1TB SSD TOUCH ID KB YLOW     ",1952,1911.75,2099,"Direct Ship","No base model","06NX82/S9688LL/A",118,115.57,"IMAC 24","Yellow","M1","8C CPU 8C GPU","16GB","1TB SSD","8-core CPU and 8-core GPU","Gigabit Ethernet","Magic keyboard with Touch ID"]
["9CW963","Z12T000LX","CTO iMac 24in M1 8C CPU 8C GPU 16GB RAM 1TB SSD TOUCH ID KB YLOW   ",1952,1911.75,2099,"Direct Ship","No base model","06NX82/S9688LL/A",118,115.57,"IMAC 24","Yellow","M1","8C CPU 8C GPU","16GB","1TB SSD","8-core CPU and 8-core GPU","Gigabit Ethernet","Magic keyboard with Touch ID"]
["9CW987","Z12U000NV","CTO iMac 24in M1 8C CPU 8C GPU 16GB RAM 1TB SSD TOUCH ID KB GREEN        ",1952,1911.75,2099,"Direct Ship","MGPH3LL/A","06NX82/S9688LL/A",118,115.57,"IMAC 24","Green","M1","8C CPU 8C GPU","16GB","1TB SSD","8-core CPU and 8-core GPU","Gigabit Ethernet","Magic keyboard with Touch ID"]
["9CX001","Z12V000LX","CTO iMac 24in M1 8C CPU 8C GPU 16GB RAM 1TB SSD TOUCH ID KB GREEN        ",1952,1911.75,2099,"Direct Ship","MGPJ3LL/A ","06NX82/S9688LL/A",118,115.57,"IMAC 24","Green","M1","8C CPU 8C GPU","16GB","1TB SSD","8-core CPU and 8-core GPU","Gigabit Ethernet","Magic keyboard with Touch ID"]
["9CX025","Z12W000NV","CTO iMac 24in M1 8C CPU 8C GPU 16GB RAM 1TB SSD TOUCH ID KB BLUE         ",1952,1911.75,2099,"Direct Ship","MGPK3LL/A ","06NX82/S9688LL/A",118,115.57,"IMAC 24","Blue","M1","8C CPU 8C GPU","16GB","1TB SSD","8-core CPU and 8-core GPU","Gigabit Ethernet","Magic keyboard with Touch ID"]
["9CX038","Z12X000LX","CTO iMac 24in M1 8C CPU 8C GPU 16GB RAM 1TB SSD TOUCH ID KB BLUE         ",1952,1911.75,2099,"Direct Ship","MGPL3LL/A ","06NX82/S9688LL/A",118,115.57,"IMAC 24","Blue","M1","8C CPU 8C GPU","16GB","1TB SSD","8-core CPU and 8-core GPU","Gigabit Ethernet","Magic keyboard with Touch ID"]
["9CX066","Z12Y000NV","CTO iMac 24in M1 8C CPU 8C GPU 16GB RAM 1TB SSD TOUCH ID KB PINK         ",1952,1911.75,2099,"Direct Ship","MGPM3LL/A ","06NX82/S9688LL/A",118,115.57,"IMAC 24","Pink","M1","8C CPU 8C GPU","16GB","1TB SSD","8-core CPU and 8-core GPU","Gigabit Ethernet","Magic keyboard with Touch ID"]
["9CX079","Z12Z000LX","CTO iMac 24in M1 8C CPU 8C GPU 16GB RAM 1TB SSD TOUCH ID KB PINK        ",1952,1911.75,2099,"Direct Ship","MGPN3LL/A","06NX82/S9688LL/A",118,115.57,"IMAC 24","Pink","M1","8C CPU 8C GPU","16GB","1TB SSD","8-core CPU and 8-core GPU","Gigabit Ethernet","Magic keyboard with Touch ID"]
["9CX096","Z130000NV","CTO iMac 24in M1 8C CPU 8C GPU 16GB RAM 1TB SSD TOUCH ID KB PURP     ",1952,1911.75,2099,"Direct Ship","No base model","06NX82/S9688LL/A",118,115.57,"IMAC 24","Purple","M1","8C CPU 8C GPU","16GB","1TB SSD","8-core CPU and 8-core GPU","Gigabit Ethernet","Magic keyboard with Touch ID"]
["9CX109","Z131000LX","CTO iMac 24in M1 8C CPU 8C GPU 16GB RAM 1TB SSD TOUCH ID KB PURP   ",1952,1911.75,2099,"Direct Ship","No base model","06NX82/S9688LL/A",118,115.57,"IMAC 24","Purple","M1","8C CPU 8C GPU","16GB","1TB SSD","8-core CPU and 8-core GPU","Gigabit Ethernet","Magic keyboard with Touch ID"]
["9CX122","Z132000NV","CTO iMac 24in M1 8C CPU 8C GPU 16GB RAM 1TB SSD TOUCH ID KB ORNGE     ",1952,1911.75,2099,"Direct Ship","No base model","06NX82/S9688LL/A",118,115.57,"IMAC 24","Orange","M1","8C CPU 8C GPU","16GB","1TB SSD","8-core CPU and 8-core GPU","Gigabit Ethernet","Magic keyboard with Touch ID"]
["9CX135","Z133000LX","CTO iMac 24in M1 8C CPU 8C GPU 16GB RAM 1TB SSD TOUCH ID KB ORNGE  ",1952,1911.75,2099,"Direct Ship","No base model","06NX82/S9688LL/A",118,115.57,"IMAC 24","Orange","M1","8C CPU 8C GPU","16GB","1TB SSD","8-core CPU and 8-core GPU","Gigabit Ethernet","Magic keyboard with Touch ID"]
["9CW937","Z12R000LX","CTO iMac 24in M1 8C CPU 8C GPU 16GB RAM 1TB SSD TOUCH ID KB SLVR        ",1952,1911.75,2099,"Direct Ship","MGPD3LL/A","06NX82/S9688LL/A",118,115.57,"IMAC 24","Silver","M1","8C CPU 8C GPU","16GB","1TB SSD","8-core CPU and 8-core GPU","Gigabit Ethernet","Magic keyboard with Touch ID"]
["7PN192","Z0ZT0008L","CTO MAC MINI 3.0GHZ 6CORE I5 16GB RAM 2TB SSD 10GB ENET         ",1859,1820.67,1999,"Direct Ship","MXNG2LL/A","07DZ74/S9703LL/A",69,67.58,"MAC MINI","Space Gray","I5","6-CORE","16GB","2TB SSD","Intel UHD Graphics 630","10 Gigabit","None"]
["7PN194","Z0ZT0006Y","CTO MAC MINI 3.0GHZ 6CORE I5 32GB RAM 1TB SSD 10GB ENET         ",1859,1820.67,1999,"Direct Ship","MXNG2LL/A","07DZ74/S9703LL/A",69,67.58,"MAC MINI","Space Gray","I5","6-CORE","32GB","1TB SSD","Intel UHD Graphics 630","10 Gigabit","None"]
["7PN201","Z0ZT0004M","CTO MAC MINI 3.2GHZ 6CORE i7 8GB RAM 2TB SSD 10GB ENET         ",1859,1820.67,1999,"Direct Ship","MXNG2LL/A","07DZ74/S9703LL/A",69,67.58,"MAC MINI","Space Gray","i7","6-CORE","8GB","2TB SSD","Intel UHD Graphics 630","10 Gigabit","None"]
["7PN205","Z0ZT0006C","CTO MAC MINI 3.2GHZ 6CORE i7 32GB RAM 512GB SSD 10GB ENET         ",1859,1820.67,1999,"Direct Ship","MXNG2LL/A","07DZ74/S9703LL/A",69,67.58,"MAC MINI","Space Gray","i7","6-CORE","32GB","512GB SSD","Intel UHD Graphics 630","10 Gigabit","None"]
["02NX40","MJMV3LL/A","Mac Studio Apple M1 Max chip with 10‑core CPU and 24‑core GPU, 512GB SSD",1859,1820.67,1999,"Stocked",null,"06NY06/SELQ2LL/A",118,115.57,"MAC STUDIO",null,"M1 MAX","10C CPU 24C GPU","32GB","512GB SSD",null,"10 Gigabit","None"]
["9DC999","Z13K0017A","CTO iMac 24in M1 8C CPU 7C GPU 16GB 1TB SSD MM TOUCH ID KB ENET SLVR        ",1838,1800.1,1979,"Direct Ship","MGTF3LL/A","06NX82/S9688LL/A",118,115.57,"IMAC 24","Silver","M1","8C CPU 7C GPU","16GB","1TB SSD","8-core CPU and 7-core GPU","Gigabit Ethernet","Magic keyboard with Touch ID"]
["9DD011","Z14L000ZQ","CTO iMac 24in M1 8C CPU 7C GPU 16GB 1TB SSD MM TOUCH ID KB ENET GREEN        ",1838,1800.1,1979,"Direct Ship","MJV83LL/A","06NX82/S9688LL/A",118,115.57,"IMAC 24","Green","M1","8C CPU 7C GPU","16GB","1TB SSD","8-core CPU and 7-core GPU","Gigabit Ethernet","Magic keyboard with Touch ID"]
["9DD022","Z14M000XE","CTO iMac 24in M1 8C CPU 7C GPU 16GB 1TB SSD MM TOUCH ID KB ENET BLUE        ",1838,1800.1,1979,"Direct Ship","MJV93LL/A","06NX82/S9688LL/A",118,115.57,"IMAC 24","Blue","M1","8C CPU 7C GPU","16GB","1TB SSD","8-core CPU and 7-core GPU","Gigabit Ethernet","Magic keyboard with Touch ID"]
["9DD033","Z14P000YZ","CTO iMac 24in M1 8C CPU 7C GPU 16GB 1TB SSD MM TOUCH ID KB ENET PINK        ",1838,1800.1,1979,"Direct Ship","MJVA3LL/A","06NX82/S9688LL/A",118,115.57,"IMAC 24","Pink","M1","8C CPU 7C GPU","16GB","1TB SSD","8-core CPU and 7-core GPU","Gigabit Ethernet","Magic keyboard with Touch ID"]
["9DC993","Z13K0016Z","CTO iMac 24in M1 8C CPU 7C GPU 16GB RAM 1TB SSD MM TOUCH ID KB SLVR        ",1810,1772.68,1949,"Direct Ship","MGTF3LL/A","06NX82/S9688LL/A",118,115.57,"IMAC 24","Silver","M1","8C CPU 7C GPU","16GB","1TB SSD","8-core CPU and 7-core GPU","None","Magic keyboard with Touch ID"]
["9DD005","Z14L000ZC","CTO iMac 24in M1 8C CPU 7C GPU 16GB RAM 1TB SSD MM TOUCH ID KB GREEN        ",1810,1772.68,1949,"Direct Ship","MJV83LL/A","06NX82/S9688LL/A",118,115.57,"IMAC 24","Green","M1","8C CPU 7C GPU","16GB","1TB SSD","8-core CPU and 7-core GPU","None","Magic keyboard with Touch ID"]
["9DD016","Z14M000XV","CTO iMac 24in M1 8C CPU 7C GPU 16GB RAM 1TB SSD MM TOUCH ID KB BLUE        ",1810,1772.68,1949,"Direct Ship","MJV93LL/A","06NX82/S9688LL/A",118,115.57,"IMAC 24","Blue","M1","8C CPU 7C GPU","16GB","1TB SSD","8-core CPU and 7-core GPU","None","Magic keyboard with Touch ID"]
["9DD027","Z14P000Z9","CTO iMac 24in M1 8C CPU 7C GPU 16GB RAM 1TB SSD MM TOUCH ID KB PINK        ",1810,1772.68,1949,"Direct Ship","MJVA3LL/A","06NX82/S9688LL/A",118,115.57,"IMAC 24","Pink","M1","8C CPU 7C GPU","16GB","1TB SSD","8-core CPU and 7-core GPU","None","Magic keyboard with Touch ID"]
["9CW919","Z13K0017G","CTO iMac 24in M1 8C CPU 7C GPU 16GB 1TB SSD MM STD KB ENET SLVR        ",1794,1757.01,1939,"Direct Ship","MGTF3LL/A","06NX82/S9688LL/A",118,115.57,"IMAC 24","Silver","M1","8C CPU 7C GPU","16GB","1TB SSD","8-core CPU and 7-core GPU","Gigabit Ethernet","Magic keyboard"]
["9CW982","Z14L000Z3","CTO iMac 24in M1 8C CPU 7C GPU 16GB 1TB SSD MM STD KB ENET GREEN        ",1794,1757.01,1939,"Direct Ship","MJV83LL/A","06NX82/S9688LL/A",118,115.57,"IMAC 24","Green","M1","8C CPU 7C GPU","16GB","1TB SSD","8-core CPU and 7-core GPU","Gigabit Ethernet","Magic keyboard"]
["9CX020","Z14M000XL","CTO iMac 24in M1 8C CPU 7C GPU 16GB 1TB SSD MM STD KB ENET BLUE        ",1794,1757.01,1939,"Direct Ship","MJV93LL/A","06NX82/S9688LL/A",118,115.57,"IMAC 24","Blue","M1","8C CPU 7C GPU","16GB","1TB SSD","8-core CPU and 7-core GPU","Gigabit Ethernet","Magic keyboard"]
["9CX061","Z14P000ZP","CTO iMac 24in M1 8C CPU 7C GPU 16GB 1TB SSD MM STD KB ENET PINK        ",1794,1757.01,1939,"Direct Ship","MJVA3LL/A","06NX82/S9688LL/A",118,115.57,"IMAC 24","Pink","M1","8C CPU 7C GPU","16GB","1TB SSD","8-core CPU and 7-core GPU","Gigabit Ethernet","Magic keyboard"]
["9CX043","Z12X000Q6","CTO iMac 24in M1 8C CPU 8C GPU 8GB 1TB TOUCH ID NUMERIC BLUE         ",1792,1755.05,1929,"Direct Ship","MGPL3LL/A ","06NX82/S9688LL/A",118,115.57,"IMAC 24","Blue","M1","8C CPU 8C GPU","8GB","1TB SSD","8-core CPU and 8-core GPU","Gigabit Ethernet","Numeric with Touch ID"]
["9CX084","Z12Z000R0","CTO iMac 24in M1 8C CPU 8C GPU 8GB 1TB TOUCH ID NUMERIC PINK        ",1792,1755.05,1929,"Direct Ship","MGPN3LL/A","06NX82/S9688LL/A",118,115.57,"IMAC 24","Pink","M1","8C CPU 8C GPU","8GB","1TB SSD","8-core CPU and 8-core GPU","Gigabit Ethernet","Numeric with Touch ID"]
["9CW930","Z12Q000VA","CTO iMac 24in M1 8C CPU 8C GPU 16GB 512GB TOUCH ID NUMERIC SLVR        ",1792,1755.05,1929,"Direct Ship","MGPC3LL/A","06NX82/S9688LL/A",118,115.57,"IMAC 24","Silver","M1","8C CPU 8C GPU","16GB","512GB SSD","8-core CPU and 8-core GPU","Gigabit Ethernet","Numeric with Touch ID"]
["9CW931","Z12Q000V8","CTO iMac 24in M1 8C CPU 8C GPU 8GB 1TB TOUCH ID NUMERIC SLVR        ",1792,1755.05,1929,"Direct Ship","MGPC3LL/A","06NX82/S9688LL/A",118,115.57,"IMAC 24","Silver","M1","8C CPU 8C GPU","8GB","1TB SSD","8-core CPU and 8-core GPU","Gigabit Ethernet","Numeric with Touch ID"]
["9CW941","Z12R000PV","CTO iMac 24in M1 8C CPU 8C GPU 16GB 512GB TOUCH ID NUMERIC SLVR        ",1792,1755.05,1929,"Direct Ship","MGPD3LL/A","06NX82/S9688LL/A",118,115.57,"IMAC 24","Silver","M1","8C CPU 8C GPU","16GB","512GB SSD","8-core CPU and 8-core GPU","Gigabit Ethernet","Numeric with Touch ID"]
["9CW942","Z12R000SL","CTO iMac 24in M1 8C CPU 8C GPU 8GB 1TB TOUCH ID NUMERIC SLVR        ",1792,1755.05,1929,"Direct Ship","MGPD3LL/A","06NX82/S9688LL/A",118,115.57,"IMAC 24","Silver","M1","8C CPU 8C GPU","8GB","1TB SSD","8-core CPU and 8-core GPU","Gigabit Ethernet","Numeric with Touch ID"]
["9CW956","Z12S000RV","CTO iMac 24in M1 8C CPU 8C GPU 16GB 512GB TOUCH ID NUMERIC YLOW      ",1792,1755.05,1929,"Direct Ship","No base model","06NX82/S9688LL/A",118,115.57,"IMAC 24","Yellow","M1","8C CPU 8C GPU","16GB","512GB SSD","8-core CPU and 8-core GPU","Gigabit Ethernet","Numeric with Touch ID"]
["9CW957","Z12S000RT","CTO iMac 24in M1 8C CPU 8C GPU 8GB 1TB TOUCH ID NUMERIC YLOW     ",1792,1755.05,1929,"Direct Ship","No base model","06NX82/S9688LL/A",118,115.57,"IMAC 24","Yellow","M1","8C CPU 8C GPU","8GB","1TB SSD","8-core CPU and 8-core GPU","Gigabit Ethernet","Numeric with Touch ID"]
["9CW967","Z12T000PR","CTO iMac 24in M1 8C CPU 8C GPU 16GB 512GB TOUCH ID NUMERIC YLOW    ",1792,1755.05,1929,"Direct Ship","No base model","06NX82/S9688LL/A",118,115.57,"IMAC 24","Yellow","M1","8C CPU 8C GPU","16GB","512GB SSD","8-core CPU and 8-core GPU","Gigabit Ethernet","Numeric with Touch ID"]
["9CW968","Z12T000S3","CTO iMac 24in M1 8C CPU 8C GPU 8GB 1TB TOUCH ID NUMERIC YLOW     ",1792,1755.05,1929,"Direct Ship","No base model","06NX82/S9688LL/A",118,115.57,"IMAC 24","Yellow","M1","8C CPU 8C GPU","8GB","1TB SSD","8-core CPU and 8-core GPU","Gigabit Ethernet","Numeric with Touch ID"]
["9CW993","Z12U000RS","CTO iMac 24in M1 8C CPU 8C GPU 16GB 512GB TOUCH ID NUMERIC GREEN        ",1792,1755.05,1929,"Direct Ship","MGPH3LL/A","06NX82/S9688LL/A",118,115.57,"IMAC 24","Green","M1","8C CPU 8C GPU","16GB","512GB SSD","8-core CPU and 8-core GPU","Gigabit Ethernet","Numeric with Touch ID"]
["9CW994","Z12U000RQ","CTO iMac 24in M1 8C CPU 8C GPU 8GB 1TB TOUCH ID NUMERIC GREEN        ",1792,1755.05,1929,"Direct Ship","MGPH3LL/A","06NX82/S9688LL/A",118,115.57,"IMAC 24","Green","M1","8C CPU 8C GPU","8GB","1TB SSD","8-core CPU and 8-core GPU","Gigabit Ethernet","Numeric with Touch ID"]
["9CX005","Z12V000NR","CTO iMac 24in M1 8C CPU 8C GPU 16GB 512GB TOUCH ID NUMERIC GREEN        ",1792,1755.05,1929,"Direct Ship","MGPJ3LL/A ","06NX82/S9688LL/A",118,115.57,"IMAC 24","Green","M1","8C CPU 8C GPU","16GB","512GB SSD","8-core CPU and 8-core GPU","Gigabit Ethernet","Numeric with Touch ID"]
["9CX006","Z12V000UE","CTO iMac 24in M1 8C CPU 8C GPU 8GB 1TB TOUCH ID NUMERIC GREEN        ",1792,1755.05,1929,"Direct Ship","MGPJ3LL/A ","06NX82/S9688LL/A",118,115.57,"IMAC 24","Green","M1","8C CPU 8C GPU","8GB","1TB SSD","8-core CPU and 8-core GPU","Gigabit Ethernet","Numeric with Touch ID"]
["9CX031","Z12W000RS","CTO iMac 24in M1 8C CPU 8C GPU 16GB 512GB TOUCH ID NUMERIC BLUE         ",1792,1755.05,1929,"Direct Ship","MGPK3LL/A ","06NX82/S9688LL/A",118,115.57,"IMAC 24","Blue","M1","8C CPU 8C GPU","16GB","512GB SSD","8-core CPU and 8-core GPU","Gigabit Ethernet","Numeric with Touch ID"]
["9CX032","Z12W000RQ","CTO iMac 24in M1 8C CPU 8C GPU 8GB 1TB TOUCH ID NUMERIC BLUE         ",1792,1755.05,1929,"Direct Ship","MGPK3LL/A ","06NX82/S9688LL/A",118,115.57,"IMAC 24","Blue","M1","8C CPU 8C GPU","8GB","1TB SSD","8-core CPU and 8-core GPU","Gigabit Ethernet","Numeric with Touch ID"]
["9CX042","Z12X000Q7","CTO iMac 24in M1 8C CPU 8C GPU 16GB 512GB TOUCH ID NUMERIC BLUE         ",1792,1755.05,1929,"Direct Ship","MGPL3LL/A ","06NX82/S9688LL/A",118,115.57,"IMAC 24","Blue","M1","8C CPU 8C GPU","16GB","512GB SSD","8-core CPU and 8-core GPU","Gigabit Ethernet","Numeric with Touch ID"]
["9CX072","Z12Y000QT","CTO iMac 24in M1 8C CPU 8C GPU 16GB 512GB TOUCH ID NUMERIC PINK         ",1792,1755.05,1929,"Direct Ship","MGPM3LL/A ","06NX82/S9688LL/A",118,115.57,"IMAC 24","Pink","M1","8C CPU 8C GPU","16GB","512GB SSD","8-core CPU and 8-core GPU","Gigabit Ethernet","Numeric with Touch ID"]
["9CX073","Z12Y000QR","CTO iMac 24in M1 8C CPU 8C GPU 8GB 1TB TOUCH ID NUMERIC PINK         ",1792,1755.05,1929,"Direct Ship","MGPM3LL/A ","06NX82/S9688LL/A",118,115.57,"IMAC 24","Pink","M1","8C CPU 8C GPU","8GB","1TB SSD","8-core CPU and 8-core GPU","Gigabit Ethernet","Numeric with Touch ID"]
["9CX083","Z12Z000PW","CTO iMac 24in M1 8C CPU 8C GPU 16GB 512GB TOUCH ID NUMERIC PINK        ",1792,1755.05,1929,"Direct Ship","MGPN3LL/A","06NX82/S9688LL/A",118,115.57,"IMAC 24","Pink","M1","8C CPU 8C GPU","16GB","512GB SSD","8-core CPU and 8-core GPU","Gigabit Ethernet","Numeric with Touch ID"]
["9CX102","Z130000QG","CTO iMac 24in M1 8C CPU 8C GPU 16GB 512GB TOUCH ID NUMERIC PURP     ",1792,1755.05,1929,"Direct Ship","No base model","06NX82/S9688LL/A",118,115.57,"IMAC 24","Purple","M1","8C CPU 8C GPU","16GB","512GB SSD","8-core CPU and 8-core GPU","Gigabit Ethernet","Numeric with Touch ID"]
["9CX103","Z130000QE","CTO iMac 24in M1 8C CPU 8C GPU 8GB 1TB TOUCH ID NUMERIC PURP   ",1792,1755.05,1929,"Direct Ship","No base model","06NX82/S9688LL/A",118,115.57,"IMAC 24","Purple","M1","8C CPU 8C GPU","8GB","1TB SSD","8-core CPU and 8-core GPU","Gigabit Ethernet","Numeric with Touch ID"]
["9CX113","Z131000PQ","CTO iMac 24in M1 8C CPU 8C GPU 16GB 512GB TOUCH ID NUMERIC PURP   ",1792,1755.05,1929,"Direct Ship","No base model","06NX82/S9688LL/A",118,115.57,"IMAC 24","Purple","M1","8C CPU 8C GPU","16GB","512GB SSD","8-core CPU and 8-core GPU","Gigabit Ethernet","Numeric with Touch ID"]
["9CX114","Z131000NK","CTO iMac 24in M1 8C CPU 8C GPU 8GB 1TB TOUCH ID NUMERIC PURP      ",1792,1755.05,1929,"Direct Ship","No base model","06NX82/S9688LL/A",118,115.57,"IMAC 24","Purple","M1","8C CPU 8C GPU","8GB","1TB SSD","8-core CPU and 8-core GPU","Gigabit Ethernet","Numeric with Touch ID"]
["9CX128","Z132000QN","CTO iMac 24in M1 8C CPU 8C GPU 16GB 512GB TOUCH ID NUMERIC ORNGE    ",1792,1755.05,1929,"Direct Ship","No base model","06NX82/S9688LL/A",118,115.57,"IMAC 24","Orange","M1","8C CPU 8C GPU","16GB","512GB SSD","8-core CPU and 8-core GPU","Gigabit Ethernet","Numeric with Touch ID"]
["9CX129","Z132000QT","CTO iMac 24in M1 8C CPU 8C GPU 8GB 1TB TOUCH ID NUMERIC ORNGE     ",1792,1755.05,1929,"Direct Ship","No base model","06NX82/S9688LL/A",118,115.57,"IMAC 24","Orange","M1","8C CPU 8C GPU","8GB","1TB SSD","8-core CPU and 8-core GPU","Gigabit Ethernet","Numeric with Touch ID"]
["9CX139","Z133000QR","CTO iMac 24in M1 8C CPU 8C GPU 16GB 512GB TOUCH ID NUMERIC ORNGE   ",1792,1755.05,1929,"Direct Ship","No base model","06NX82/S9688LL/A",118,115.57,"IMAC 24","Orange","M1","8C CPU 8C GPU","16GB","512GB SSD","8-core CPU and 8-core GPU","Gigabit Ethernet","Numeric with Touch ID"]
["9CX140","Z133000UK","CTO iMac 24in M1 8C CPU 8C GPU 8GB 1TB TOUCH ID NUMERIC ORNGE  ",1792,1755.05,1929,"Direct Ship","No base model","06NX82/S9688LL/A",118,115.57,"IMAC 24","Orange","M1","8C CPU 8C GPU","8GB","1TB SSD","8-core CPU and 8-core GPU","Gigabit Ethernet","Numeric with Touch ID"]
["7PN532","Z0ZT0006L","CTO MAC MINI 3.0GHZ 6CORE I5 16GB RAM 2TB SSD STORAGE         ",1766,1729.59,1899,"Direct Ship","MXNG2LL/A","07DZ74/S9703LL/A",69,67.58,"MAC MINI","Space Gray","I5","6-CORE","16GB","2TB SSD","Intel UHD Graphics 630","Gigabit Ethernet","None"]
["7PN534","Z0ZT00016","CTO MAC MINI 3.0GHZ 6CORE I5 32GB RAM 1TB SSD STORAGE         ",1766,1729.59,1899,"Direct Ship","MXNG2LL/A","07DZ74/S9703LL/A",69,67.58,"MAC MINI","Space Gray","I5","6-CORE","32GB","1TB SSD","Intel UHD Graphics 630","Gigabit Ethernet","None"]
["7PN541","Z0ZT0005P","CTO MAC MINI 3.2GHZ 6CORE i7 8GB RAM 2TB SSD STORAGE         ",1766,1729.59,1899,"Direct Ship","MXNG2LL/A","07DZ74/S9703LL/A",69,67.58,"MAC MINI","Space Gray","I7","6-CORE","8GB","2TB SSD","Intel UHD Graphics 630","Gigabit Ethernet","None"]
["7PN545","Z0ZT0003V","CTO MAC MINI 3.2GHZ 6CORE i7 32GB RAM 512GB SSD STORAGE         ",1766,1729.59,1899,"Direct Ship","MXNG2LL/A","07DZ74/S9703LL/A",69,67.58,"MAC MINI","Space Gray","I7","6-CORE","32GB","512GB SSD","Intel UHD Graphics 630","Gigabit Ethernet","None"]
["9CW922","Z12Q000NU","CTO iMac 24in M1 8C CPU 8C GPU 16GB RAM 512GB SSD TOUCH ID KB SLVR        ",1766,1729.59,1899,"Direct Ship","MGPC3LL/A","06NX82/S9688LL/A",118,115.57,"IMAC 24","Silver","M1","8C CPU 8C GPU","16GB","512GB SSD","8-core CPU and 8-core GPU","Gigabit Ethernet","Magic keyboard with Touch ID"]
["9CW923","Z12Q000NA","CTO iMac 24in M1 8C CPU 8C GPU 8GB RAM 1TB SSD TOUCH ID KB SLVR        ",1766,1729.59,1899,"Direct Ship","MGPC3LL/A","06NX82/S9688LL/A",118,115.57,"IMAC 24","Silver","M1","8C CPU 8C GPU","8GB","1TB SSD","8-core CPU and 8-core GPU","Gigabit Ethernet","Magic keyboard with Touch ID"]
["9HK883","Z12R000LU","CTO iMac 24in M1 8C CPU 8C GPU 16GB RAM 512GB SSD TOUCH ID KB SLVR        ",1766,1729.59,1899,"Stocked","MGPD3LL/A","06NX82/S9688LL/A",118,115.57,"IMAC 24","Silver","M1","8C CPU 8C GPU","16GB","512GB SSD","8-core CPU and 8-core GPU","Gigabit Ethernet","Magic keyboard with Touch ID"]
["9CW936","Z12R000LD","CTO iMac 24in M1 8C CPU 8C GPU 8GB RAM 1TB SSD TOUCH ID KB SLVR        ",1766,1729.59,1899,"Direct Ship","MGPD3LL/A","06NX82/S9688LL/A",118,115.57,"IMAC 24","Silver","M1","8C CPU 8C GPU","8GB","1TB SSD","8-core CPU and 8-core GPU","Gigabit Ethernet","Magic keyboard with Touch ID"]
["9CW948","Z12S000NU","CTO iMac 24in M1 8C CPU 8C GPU 16GB RAM 512GB SSD TOUCH ID KB YLOW    ",1766,1729.59,1899,"Direct Ship","No base model","06NX82/S9688LL/A",118,115.57,"IMAC 24","Yellow","M1","8C CPU 8C GPU","16GB","512GB SSD","8-core CPU and 8-core GPU","Gigabit Ethernet","Magic keyboard with Touch ID"]
["9CW949","Z12S000NA","CTO iMac 24in M1 8C CPU 8C GPU 8GB RAM 1TB SSD TOUCH ID KB YLOW    ",1766,1729.59,1899,"Direct Ship","No base model","06NX82/S9688LL/A",118,115.57,"IMAC 24","Yellow","M1","8C CPU 8C GPU","8GB","1TB SSD","8-core CPU and 8-core GPU","Gigabit Ethernet","Magic keyboard with Touch ID"]
["9CW961","Z12T000LU","CTO iMac 24in M1 8C CPU 8C GPU 16GB RAM 512GB SSD TOUCH ID KB YLOW ",1766,1729.59,1899,"Direct Ship","No base model","06NX82/S9688LL/A",118,115.57,"IMAC 24","Yellow","M1","8C CPU 8C GPU","16GB","512GB SSD","8-core CPU and 8-core GPU","Gigabit Ethernet","Magic keyboard with Touch ID"]
["9CW962","Z12T000LD","CTO iMac 24in M1 8C CPU 8C GPU 8GB RAM 1TB SSD TOUCH ID KB YLOW   ",1766,1729.59,1899,"Direct Ship","No base model","06NX82/S9688LL/A",118,115.57,"IMAC 24","Yellow","M1","8C CPU 8C GPU","8GB","1TB SSD","8-core CPU and 8-core GPU","Gigabit Ethernet","Magic keyboard with Touch ID"]
["9CW985","Z12U000NU","CTO iMac 24in M1 8C CPU 8C GPU 16GB RAM 512GB SSD TOUCH ID KB GREEN        ",1766,1729.59,1899,"Direct Ship","MGPH3LL/A","06NX82/S9688LL/A",118,115.57,"IMAC 24","Green","M1","8C CPU 8C GPU","16GB","512GB SSD","8-core CPU and 8-core GPU","Gigabit Ethernet","Magic keyboard with Touch ID"]
["9CW986","Z12U000NA","CTO iMac 24in M1 8C CPU 8C GPU 8GB RAM 1TB SSD TOUCH ID KB GREEN        ",1766,1729.59,1899,"Direct Ship","MGPH3LL/A","06NX82/S9688LL/A",118,115.57,"IMAC 24","Green","M1","8C CPU 8C GPU","8GB","1TB SSD","8-core CPU and 8-core GPU","Gigabit Ethernet","Magic keyboard with Touch ID"]
["9CW998","Z12V000LU","CTO iMac 24in M1 8C CPU 8C GPU 16GB RAM 512GB SSD TOUCH ID KB GREEN        ",1766,1729.59,1899,"Direct Ship","MGPJ3LL/A ","06NX82/S9688LL/A",118,115.57,"IMAC 24","Green","M1","8C CPU 8C GPU","16GB","512GB SSD","8-core CPU and 8-core GPU","Gigabit Ethernet","Magic keyboard with Touch ID"]
["9CW999","Z12V000LD","CTO iMac 24in M1 8C CPU 8C GPU 8GB RAM 1TB SSD TOUCH ID KB GREEN        ",1766,1729.59,1899,"Direct Ship","MGPJ3LL/A ","06NX82/S9688LL/A",118,115.57,"IMAC 24","Green","M1","8C CPU 8C GPU","8GB","1TB SSD","8-core CPU and 8-core GPU","Gigabit Ethernet","Magic keyboard with Touch ID"]
["9CX023","Z12W000NU","CTO iMac 24in M1 8C CPU 8C GPU 16GB RAM 512GB SSD TOUCH ID KB BLUE         ",1766,1729.59,1899,"Direct Ship","MGPK3LL/A ","06NX82/S9688LL/A",118,115.57,"IMAC 24","Blue","M1","8C CPU 8C GPU","16GB","512GB SSD","8-core CPU and 8-core GPU","Gigabit Ethernet","Magic keyboard with Touch ID"]
["9CX024","Z12W000NA","CTO iMac 24in M1 8C CPU 8C GPU 8GB RAM 1TB SSD TOUCH ID KB BLUE         ",1766,1729.59,1899,"Direct Ship","MGPK3LL/A ","06NX82/S9688LL/A",118,115.57,"IMAC 24","Blue","M1","8C CPU 8C GPU","8GB","1TB SSD","8-core CPU and 8-core GPU","Gigabit Ethernet","Magic keyboard with Touch ID"]
["9CX036","Z12X000LU","CTO iMac 24in M1 8C CPU 8C GPU 16GB RAM 512GB SSD TOUCH ID KB BLUE         ",1766,1729.59,1899,"Direct Ship","MGPL3LL/A ","06NX82/S9688LL/A",118,115.57,"IMAC 24","Blue","M1","8C CPU 8C GPU","16GB","512GB SSD","8-core CPU and 8-core GPU","Gigabit Ethernet","Magic keyboard with Touch ID"]
["9CX037","Z12X000LD","CTO iMac 24in M1 8C CPU 8C GPU 8GB RAM 1TB SSD TOUCH ID KB BLUE         ",1766,1729.59,1899,"Direct Ship","MGPL3LL/A ","06NX82/S9688LL/A",118,115.57,"IMAC 24","Blue","M1","8C CPU 8C GPU","8GB","1TB SSD","8-core CPU and 8-core GPU","Gigabit Ethernet","Magic keyboard with Touch ID"]
["9CX064","Z12Y000NU","CTO iMac 24in M1 8C CPU 8C GPU 16GB RAM 512GB SSD TOUCH ID KB PINK         ",1766,1729.59,1899,"Direct Ship","MGPM3LL/A ","06NX82/S9688LL/A",118,115.57,"IMAC 24","Pink","M1","8C CPU 8C GPU","16GB","512GB SSD","8-core CPU and 8-core GPU","Gigabit Ethernet","Magic keyboard with Touch ID"]
["9CX065","Z12Y000NA","CTO iMac 24in M1 8C CPU 8C GPU 8GB RAM 1TB SSD TOUCH ID KB PINK         ",1766,1729.59,1899,"Direct Ship","MGPM3LL/A ","06NX82/S9688LL/A",118,115.57,"IMAC 24","Pink","M1","8C CPU 8C GPU","8GB","1TB SSD","8-core CPU and 8-core GPU","Gigabit Ethernet","Magic keyboard with Touch ID"]
["9CX077","Z12Z000LU","CTO iMac 24in M1 8C CPU 8C GPU 16GB RAM 512GB SSD TOUCH ID KB PINK        ",1766,1729.59,1899,"Direct Ship","MGPN3LL/A","06NX82/S9688LL/A",118,115.57,"IMAC 24","Pink","M1","8C CPU 8C GPU","16GB","512GB SSD","8-core CPU and 8-core GPU","Gigabit Ethernet","Magic keyboard with Touch ID"]
["9CX078","Z12Z000LD","CTO iMac 24in M1 8C CPU 8C GPU 8GB RAM 1TB SSD TOUCH ID KB PINK        ",1766,1729.59,1899,"Direct Ship","MGPN3LL/A","06NX82/S9688LL/A",118,115.57,"IMAC 24","Pink","M1","8C CPU 8C GPU","8GB","1TB SSD","8-core CPU and 8-core GPU","Gigabit Ethernet","Magic keyboard with Touch ID"]
["9CX094","Z130000NU","CTO iMac 24in M1 8C CPU 8C GPU 16GB RAM 512GB SSD TOUCH ID KB PURP  ",1766,1729.59,1899,"Direct Ship","No base model","06NX82/S9688LL/A",118,115.57,"IMAC 24","Purple","M1","8C CPU 8C GPU","16GB","512GB SSD","8-core CPU and 8-core GPU","Gigabit Ethernet","Magic keyboard with Touch ID"]
["9CX095","Z130000NA","CTO iMac 24in M1 8C CPU 8C GPU 8GB RAM 1TB SSD TOUCH ID KB PURP",1766,1729.59,1899,"Direct Ship","No base model","06NX82/S9688LL/A",118,115.57,"IMAC 24","Purple","M1","8C CPU 8C GPU","8GB","1TB SSD","8-core CPU and 8-core GPU","Gigabit Ethernet","Magic keyboard with Touch ID"]
["9CX107","Z131000LU","CTO iMac 24in M1 8C CPU 8C GPU 16GB RAM 512GB SSD TOUCH ID KB PURP    ",1766,1729.59,1899,"Direct Ship","No base model","06NX82/S9688LL/A",118,115.57,"IMAC 24","Purple","M1","8C CPU 8C GPU","16GB","512GB SSD","8-core CPU and 8-core GPU","Gigabit Ethernet","Magic keyboard with Touch ID"]
["9CX108","Z131000LD","CTO iMac 24in M1 8C CPU 8C GPU 8GB RAM 1TB SSD TOUCH ID KB PURP     ",1766,1729.59,1899,"Direct Ship","No base model","06NX82/S9688LL/A",118,115.57,"IMAC 24","Purple","M1","8C CPU 8C GPU","8GB","1TB SSD","8-core CPU and 8-core GPU","Gigabit Ethernet","Magic keyboard with Touch ID"]
["9CX120","Z132000NU","CTO iMac 24in M1 8C CPU 8C GPU 16GB RAM 512GB SSD TOUCH ID KB ORNGE  ",1766,1729.59,1899,"Direct Ship","No base model","06NX82/S9688LL/A",118,115.57,"IMAC 24","Orange","M1","8C CPU 8C GPU","16GB","512GB SSD","8-core CPU and 8-core GPU","Gigabit Ethernet","Magic keyboard with Touch ID"]
["9CX121","Z132000NA","CTO iMac 24in M1 8C CPU 8C GPU 8GB RAM 1TB SSD TOUCH ID KB ORNGE     ",1766,1729.59,1899,"Direct Ship","No base model","06NX82/S9688LL/A",118,115.57,"IMAC 24","Orange","M1","8C CPU 8C GPU","8GB","1TB SSD","8-core CPU and 8-core GPU","Gigabit Ethernet","Magic keyboard with Touch ID"]
["9CX133","Z133000LU","CTO iMac 24in M1 8C CPU 8C GPU 16GB RAM 512GB SSD TOUCH ID KB ORNGE       ",1766,1729.59,1899,"Direct Ship","No base model","06NX82/S9688LL/A",118,115.57,"IMAC 24","Orange","M1","8C CPU 8C GPU","16GB","512GB SSD","8-core CPU and 8-core GPU","Gigabit Ethernet","Magic keyboard with Touch ID"]
["9CX134","Z133000LD","CTO iMac 24in M1 8C CPU 8C GPU 8GB RAM 1TB SSD TOUCH ID KB ORNGE      ",1766,1729.59,1899,"Direct Ship","No base model","06NX82/S9688LL/A",118,115.57,"IMAC 24","Orange","M1","8C CPU 8C GPU","8GB","1TB SSD","8-core CPU and 8-core GPU","Gigabit Ethernet","Magic keyboard with Touch ID"]
["9CW913","Z13K000US","CTO iMac 24in M1 8C CPU 7C GPU 16GB RAM 1TB SSD MM STD KB SLVR        ",1766,1729.59,1899,"Direct Ship","MGTF3LL/A","06NX82/S9688LL/A",118,115.57,"IMAC 24","Silver","M1","8C CPU 7C GPU","16GB","1TB SSD","8-core CPU and 7-core GPU","None","Magic keyboard"]
["9CW976","Z14L000US","CTO iMac 24in M1 8C CPU 7C GPU 16GB RAM 1TB SSD MM STD KB GREEN        ",1766,1729.59,1899,"Direct Ship","MJV83LL/A","06NX82/S9688LL/A",118,115.57,"IMAC 24","Green","M1","8C CPU 7C GPU","16GB","1TB SSD","8-core CPU and 7-core GPU","None","Magic keyboard"]
["9CX014","Z14M000US","CTO iMac 24in M1 8C CPU 7C GPU 16GB RAM 1TB SSD MM STD KB BLUE        ",1766,1729.59,1899,"Direct Ship","MJV93LL/A","06NX82/S9688LL/A",118,115.57,"IMAC 24","Blue","M1","8C CPU 7C GPU","16GB","1TB SSD","8-core CPU and 7-core GPU","None","Magic keyboard"]
["9CX055","Z14P000US","CTO iMac 24in M1 8C CPU 7C GPU 16GB RAM 1TB SSD MM STD KB PINK        ",1766,1729.59,1899,"Direct Ship","MJVA3LL/A","06NX82/S9688LL/A",118,115.57,"IMAC 24","Pink","M1","8C CPU 7C GPU","16GB","1TB SSD","8-core CPU and 7-core GPU","None","Magic keyboard"]
["9CW935","Z12R000LU","CTO iMac 24in M1 8C CPU 8C GPU 16GB RAM 512GB SSD TOUCH ID KB SLVR        ",1766,1729.59,1899,"Direct Ship","MGPD3LL/A","06NX82/S9688LL/A",118,115.57,"IMAC 24","Silver","M1","8C CPU 8C GPU","16GB","512GB SSD","8-core CPU and 8-core GPU","Gigabit Ethernet","Magic keyboard with Touch ID"]
["7PN189","Z0ZT000EK","CTO MAC MINI 3.0GHZ 6CORE I5 8GB RAM 2TB SSD 10GB ENET         ",1673,1638.51,1799,"Direct Ship","MXNG2LL/A","07DZ74/S9703LL/A",69,67.58,"MAC MINI","Space Gray","I5","6-CORE","8GB","2TB SSD","Intel UHD Graphics 630","10 Gigabit","None"]
["7PN193","Z0ZT00094","CTO MAC MINI 3.0GHZ 6CORE I5 32GB RAM 512GB SSD 10GB ENET         ",1673,1638.51,1799,"Direct Ship","MXNG2LL/A","07DZ74/S9703LL/A",69,67.58,"MAC MINI","Space Gray","I5","6-CORE","32GB","512GB SSD","Intel UHD Graphics 630","10 Gigabit","None"]
["7PN203","Z0ZT0002U","CTO MAC MINI 3.2GHZ 6CORE i7 16GB RAM 1TB SSD 10GB ENET         ",1673,1638.51,1799,"Direct Ship","MXNG2LL/A","07DZ74/S9703LL/A",69,67.58,"MAC MINI","Space Gray","i7","6-CORE","16GB","1TB SSD","Intel UHD Graphics 630","10 Gigabit","None"]
["9CV180","Z12N000GA","CTO MAC MINI M1 16GB MEMORY  2TB SSD STORAGE 10GIGABIT ENET        ",1673,1638.51,1799,"Direct Ship","MGNR3LL/A","07DZ74/S9703LL/A",69,67.58,"MAC MINI","Silver","M1","8C CPU 8C GPU","16GB","2TB SSD","8-core CPU and 8-core GPU","10 Gigabit","None"]
["9CV181","Z12P000KL","CTO MAC MINI M1 16GB MEMORY  2TB SSD STORAGE 10GIGABIT ENET        ",1673,1638.51,1799,"Direct Ship","MGNT3LL/A","07DZ74/S9703LL/A",69,67.58,"MAC MINI","Silver","M1","8C CPU 8C GPU","16GB","2TB SSD","8-core CPU and 8-core GPU","10 Gigabit","None"]
["9DC997","Z13K00178","CTO iMac 24in M1 8C CPU 7C GPU 16GB 512GB SSD MM TOUCH ID KB ENET SLVR        ",1652,1617.94,1779,"Direct Ship","MGTF3LL/A","06NX82/S9688LL/A",118,115.57,"IMAC 24","Silver","M1","8C CPU 7C GPU","16GB","512GB SSD","8-core CPU and 7-core GPU","Gigabit Ethernet","Magic keyboard with Touch ID"]
["9DC998","Z13K00176","CTO iMac 24in M1 8C CPU 7C GPU 8GB 1TB SSD MM TOUCH ID KB ENET SLVR        ",1652,1617.94,1779,"Direct Ship","MGTF3LL/A","06NX82/S9688LL/A",118,115.57,"IMAC 24","Silver","M1","8C CPU 7C GPU","8GB","1TB SSD","8-core CPU and 7-core GPU","Gigabit Ethernet","Magic keyboard with Touch ID"]
["9DD009","Z14L000ZN","CTO iMac 24in M1 8C CPU 7C GPU 16GB 512GB SSD MM TOUCH ID KB ENET GREEN        ",1652,1617.94,1779,"Direct Ship","MJV83LL/A","06NX82/S9688LL/A",118,115.57,"IMAC 24","Green","M1","8C CPU 7C GPU","16GB","512GB SSD","8-core CPU and 7-core GPU","Gigabit Ethernet","Magic keyboard with Touch ID"]
["9DD010","Z14L000ZL","CTO iMac 24in M1 8C CPU 7C GPU 8GB 1TB SSD MM TOUCH ID KB ENET GREEN        ",1652,1617.94,1779,"Direct Ship","MJV83LL/A","06NX82/S9688LL/A",118,115.57,"IMAC 24","Green","M1","8C CPU 7C GPU","8GB","1TB SSD","8-core CPU and 7-core GPU","Gigabit Ethernet","Magic keyboard with Touch ID"]
["9DD020","Z14M000XC","CTO iMac 24in M1 8C CPU 7C GPU 16GB 512GB SSD MM TOUCH ID KB ENET BLUE        ",1652,1617.94,1779,"Direct Ship","MJV93LL/A","06NX82/S9688LL/A",118,115.57,"IMAC 24","Blue","M1","8C CPU 7C GPU","16GB","512GB SSD","8-core CPU and 7-core GPU","Gigabit Ethernet","Magic keyboard with Touch ID"]
["9DD021","Z14M000XA","CTO iMac 24in M1 8C CPU 7C GPU 8GB 1TB SSD MM TOUCH ID KB ENET BLUE        ",1652,1617.94,1779,"Direct Ship","MJV93LL/A","06NX82/S9688LL/A",118,115.57,"IMAC 24","Blue","M1","8C CPU 7C GPU","8GB","1TB SSD","8-core CPU and 7-core GPU","Gigabit Ethernet","Magic keyboard with Touch ID"]
["9DD031","Z14P000YX","CTO iMac 24in M1 8C CPU 7C GPU 16GB 512GB SSD MM TOUCH ID KB ENET PINK        ",1652,1617.94,1779,"Direct Ship","MJVA3LL/A","06NX82/S9688LL/A",118,115.57,"IMAC 24","Pink","M1","8C CPU 7C GPU","16GB","512GB SSD","8-core CPU and 7-core GPU","Gigabit Ethernet","Magic keyboard with Touch ID"]
["9DD032","Z14P000ZH","CTO iMac 24in M1 8C CPU 7C GPU 8GB 1TB SSD MM TOUCH ID KB ENET PINK        ",1652,1617.94,1779,"Direct Ship","MJVA3LL/A","06NX82/S9688LL/A",118,115.57,"IMAC 24","Pink","M1","8C CPU 7C GPU","8GB","1TB SSD","8-core CPU and 7-core GPU","Gigabit Ethernet","Magic keyboard with Touch ID"]
["9DC991","Z13K0016X","CTO iMac 24in M1 8C CPU 7C GPU 16GB RAM 512GB SSD MM TOUCH ID KB SLVR        ",1624,1590.52,1749,"Direct Ship","MGTF3LL/A","06NX82/S9688LL/A",118,115.57,"IMAC 24","Silver","M1","8C CPU 7C GPU","16GB","512GB SSD","8-core CPU and 7-core GPU","None","Magic keyboard with Touch ID"]
["9DC992","Z13K0016V","CTO iMac 24in M1 8C CPU 7C GPU 8GB RAM 1TB SSD MM TOUCH ID KB SLVR        ",1624,1590.52,1749,"Direct Ship","MGTF3LL/A","06NX82/S9688LL/A",118,115.57,"IMAC 24","Silver","M1","8C CPU 7C GPU","8GB","1TB SSD","8-core CPU and 7-core GPU","None","Magic keyboard with Touch ID"]
["9DD003","Z14L000ZA","CTO iMac 24in M1 8C CPU 7C GPU 16GB RAM 512GB SSD MM TOUCH ID KB GREEN        ",1624,1590.52,1749,"Direct Ship","MJV83LL/A","06NX82/S9688LL/A",118,115.57,"IMAC 24","Green","M1","8C CPU 7C GPU","16GB","512GB SSD","8-core CPU and 7-core GPU","None","Magic keyboard with Touch ID"]
["9DD004","Z14L000Z8","CTO iMac 24in M1 8C CPU 7C GPU 8GB RAM 1TB SSD MM TOUCH ID KB GREEN        ",1624,1590.52,1749,"Direct Ship","MJV83LL/A","06NX82/S9688LL/A",118,115.57,"IMAC 24","Green","M1","8C CPU 7C GPU","8GB","1TB SSD","8-core CPU and 7-core GPU","None","Magic keyboard with Touch ID"]
["9DD014","Z14M000XT","CTO iMac 24in M1 8C CPU 7C GPU 16GB RAM 512GB SSD MM TOUCH ID KB BLUE        ",1624,1590.52,1749,"Direct Ship","MJV93LL/A","06NX82/S9688LL/A",118,115.57,"IMAC 24","Blue","M1","8C CPU 7C GPU","16GB","512GB SSD","8-core CPU and 7-core GPU","None","Magic keyboard with Touch ID"]
["9DD015","Z14M000XR","CTO iMac 24in M1 8C CPU 7C GPU 8GB RAM 1TB SSD MM TOUCH ID KB BLUE        ",1624,1590.52,1749,"Direct Ship","MJV93LL/A","06NX82/S9688LL/A",118,115.57,"IMAC 24","Blue","M1","8C CPU 7C GPU","8GB","1TB SSD","8-core CPU and 7-core GPU","None","Magic keyboard with Touch ID"]
["9DD025","Z14P000Z7","CTO iMac 24in M1 8C CPU 7C GPU 16GB RAM 512GB SSD MM TOUCH ID KB PINK        ",1624,1590.52,1749,"Direct Ship","MJVA3LL/A","06NX82/S9688LL/A",118,115.57,"IMAC 24","Pink","M1","8C CPU 7C GPU","16GB","512GB SSD","8-core CPU and 7-core GPU","None","Magic keyboard with Touch ID"]
["9DD026","Z14P000Z5","CTO iMac 24in M1 8C CPU 7C GPU 8GB RAM 1TB SSD MM TOUCH ID KB PINK        ",1624,1590.52,1749,"Direct Ship","MJVA3LL/A","06NX82/S9688LL/A",118,115.57,"IMAC 24","Pink","M1","8C CPU 7C GPU","8GB","1TB SSD","8-core CPU and 7-core GPU","None","Magic keyboard with Touch ID"]
["9CW917","Z13K0017F","CTO iMac 24in M1 8C CPU 7C GPU 16GB 512GB SSD MM STD KB ENET SLVR        ",1608,1574.85,1729,"Direct Ship","MGTF3LL/A","06NX82/S9688LL/A",118,115.57,"IMAC 24","Silver","M1","8C CPU 7C GPU","16GB","512GB SSD","8-core CPU and 7-core GPU","Gigabit Ethernet","Magic keyboard"]
["9CW918","Z13K0017E","CTO iMac 24in M1 8C CPU 7C GPU 8GB 1TB SSD MM STD KB ENET SLVR        ",1608,1574.85,1729,"Direct Ship","MGTF3LL/A","06NX82/S9688LL/A",118,115.57,"IMAC 24","Silver","M1","8C CPU 7C GPU","8GB","1TB SSD","8-core CPU and 7-core GPU","Gigabit Ethernet","Magic keyboard"]
["9CW980","Z14L000Z2","CTO iMac 24in M1 8C CPU 7C GPU 16GB 512GB SSD MM STD KB ENET GREEN        ",1608,1574.85,1729,"Direct Ship","MJV83LL/A","06NX82/S9688LL/A",118,115.57,"IMAC 24","Green","M1","8C CPU 7C GPU","16GB","512GB SSD","8-core CPU and 7-core GPU","Gigabit Ethernet","Magic keyboard"]
["9CW981","Z14L000Z1","CTO iMac 24in M1 8C CPU 7C GPU 8GB 1TB SSD MM STD KB ENET GREEN        ",1608,1574.85,1729,"Direct Ship","MJV83LL/A","06NX82/S9688LL/A",118,115.57,"IMAC 24","Green","M1","8C CPU 7C GPU","8GB","1TB SSD","8-core CPU and 7-core GPU","Gigabit Ethernet","Magic keyboard"]
["9CX018","Z14M000XK","CTO iMac 24in M1 8C CPU 7C GPU 16GB 512GB SSD MM STD KB ENET BLUE        ",1608,1574.85,1729,"Direct Ship","MJV93LL/A","06NX82/S9688LL/A",118,115.57,"IMAC 24","Blue","M1","8C CPU 7C GPU","16GB","512GB SSD","8-core CPU and 7-core GPU","Gigabit Ethernet","Magic keyboard"]
["9CX019","Z14M000XJ","CTO iMac 24in M1 8C CPU 7C GPU 8GB 1TB SSD MM STD KB ENET BLUE        ",1608,1574.85,1729,"Direct Ship","MJV93LL/A","06NX82/S9688LL/A",118,115.57,"IMAC 24","Blue","M1","8C CPU 7C GPU","8GB","1TB SSD","8-core CPU and 7-core GPU","Gigabit Ethernet","Magic keyboard"]
["9CX059","Z14P000ZN","CTO iMac 24in M1 8C CPU 7C GPU 16GB 512GB SSD MM STD KB ENET PINK        ",1608,1574.85,1729,"Direct Ship","MJVA3LL/A","06NX82/S9688LL/A",118,115.57,"IMAC 24","Pink","M1","8C CPU 7C GPU","16GB","512GB SSD","8-core CPU and 7-core GPU","Gigabit Ethernet","Magic keyboard"]
["9CX060","Z14P000ZM","CTO iMac 24in M1 8C CPU 7C GPU 8GB 1TB SSD MM STD KB ENET PINK        ",1608,1574.85,1729,"Direct Ship","MJVA3LL/A","06NX82/S9688LL/A",118,115.57,"IMAC 24","Pink","M1","8C CPU 7C GPU","8GB","1TB SSD","8-core CPU and 7-core GPU","Gigabit Ethernet","Magic keyboard"]
["9CW928","Z12Q000V6","CTO iMac 24in M1 8C CPU 8C GPU 16GB 256GB TOUCH ID NUMERIC SLVR        ",1606,1572.89,1729,"Direct Ship","MGPC3LL/A","06NX82/S9688LL/A",118,115.57,"IMAC 24","Silver","M1","8C CPU 8C GPU","16GB","256GB SSD","8-core CPU and 8-core GPU","Gigabit Ethernet","Numeric with Touch ID"]
["9CW929","Z12Q000V7","CTO iMac 24in M1 8C CPU 8C GPU 8GB 512GB TOUCH ID NUMERIC SLVR        ",1606,1572.89,1729,"Direct Ship","MGPC3LL/A","06NX82/S9688LL/A",118,115.57,"IMAC 24","Silver","M1","8C CPU 8C GPU","8GB","512GB SSD","8-core CPU and 8-core GPU","Gigabit Ethernet","Numeric with Touch ID"]
["9CW940","Z12R000LZ","CTO iMac 24in M1 8C CPU 8C GPU 8GB 512GB TOUCH ID NUMERIC SLVR        ",1606,1572.89,1729,"Direct Ship","MGPD3LL/A","06NX82/S9688LL/A",118,115.57,"IMAC 24","Silver","M1","8C CPU 8C GPU","8GB","512GB SSD","8-core CPU and 8-core GPU","Gigabit Ethernet","Numeric with Touch ID"]
["9CW954","Z12S000RR","CTO iMac 24in M1 8C CPU 8C GPU 16GB 256GB TOUCH ID NUMERIC YLOW     ",1606,1572.89,1729,"Direct Ship","No base model","06NX82/S9688LL/A",118,115.57,"IMAC 24","Yellow","M1","8C CPU 8C GPU","16GB","256GB SSD","8-core CPU and 8-core GPU","Gigabit Ethernet","Numeric with Touch ID"]
["9CW955","Z12S000RS","CTO iMac 24in M1 8C CPU 8C GPU 8GB 512GB TOUCH ID NUMERIC YLOW      ",1606,1572.89,1729,"Direct Ship","No base model","06NX82/S9688LL/A",118,115.57,"IMAC 24","Yellow","M1","8C CPU 8C GPU","8GB","512GB SSD","8-core CPU and 8-core GPU","Gigabit Ethernet","Numeric with Touch ID"]
["9CW966","Z12T000LZ","CTO iMac 24in M1 8C CPU 8C GPU 8GB 512GB TOUCH ID NUMERIC YLOW      ",1606,1572.89,1729,"Direct Ship","No base model","06NX82/S9688LL/A",118,115.57,"IMAC 24","Yellow","M1","8C CPU 8C GPU","8GB","512GB SSD","8-core CPU and 8-core GPU","Gigabit Ethernet","Numeric with Touch ID"]
["9CW991","Z12U000RN","CTO iMac 24in M1 8C CPU 8C GPU 16GB 256GB TOUCH ID NUMERIC GREEN        ",1606,1572.89,1729,"Direct Ship","MGPH3LL/A","06NX82/S9688LL/A",118,115.57,"IMAC 24","Green","M1","8C CPU 8C GPU","16GB","256GB SSD","8-core CPU and 8-core GPU","Gigabit Ethernet","Numeric with Touch ID"]
["9CW992","Z12U000RP","CTO iMac 24in M1 8C CPU 8C GPU 8GB 512GB TOUCH ID NUMERIC GREEN        ",1606,1572.89,1729,"Direct Ship","MGPH3LL/A","06NX82/S9688LL/A",118,115.57,"IMAC 24","Green","M1","8C CPU 8C GPU","8GB","512GB SSD","8-core CPU and 8-core GPU","Gigabit Ethernet","Numeric with Touch ID"]
["9CX004","Z12V000LZ","CTO iMac 24in M1 8C CPU 8C GPU 8GB 512GB TOUCH ID NUMERIC GREEN        ",1606,1572.89,1729,"Direct Ship","MGPJ3LL/A ","06NX82/S9688LL/A",118,115.57,"IMAC 24","Green","M1","8C CPU 8C GPU","8GB","512GB SSD","8-core CPU and 8-core GPU","Gigabit Ethernet","Numeric with Touch ID"]
["9CX029","Z12W000RN","CTO iMac 24in M1 8C CPU 8C GPU 16GB 256GB TOUCH ID NUMERIC BLUE         ",1606,1572.89,1729,"Direct Ship","MGPK3LL/A ","06NX82/S9688LL/A",118,115.57,"IMAC 24","Blue","M1","8C CPU 8C GPU","16GB","256GB SSD","8-core CPU and 8-core GPU","Gigabit Ethernet","Numeric with Touch ID"]
["9CX030","Z12W000RP","CTO iMac 24in M1 8C CPU 8C GPU 8GB 512GB TOUCH ID NUMERIC BLUE         ",1606,1572.89,1729,"Direct Ship","MGPK3LL/A ","06NX82/S9688LL/A",118,115.57,"IMAC 24","Blue","M1","8C CPU 8C GPU","8GB","512GB SSD","8-core CPU and 8-core GPU","Gigabit Ethernet","Numeric with Touch ID"]
["9CX041","Z12X000LZ","CTO iMac 24in M1 8C CPU 8C GPU 8GB 512GB TOUCH ID NUMERIC BLUE         ",1606,1572.89,1729,"Direct Ship","MGPL3LL/A ","06NX82/S9688LL/A",118,115.57,"IMAC 24","Blue","M1","8C CPU 8C GPU","8GB","512GB SSD","8-core CPU and 8-core GPU","Gigabit Ethernet","Numeric with Touch ID"]
["9CX070","Z12Y000QP","CTO iMac 24in M1 8C CPU 8C GPU 16GB 256GB TOUCH ID NUMERIC PINK         ",1606,1572.89,1729,"Direct Ship","MGPM3LL/A ","06NX82/S9688LL/A",118,115.57,"IMAC 24","Pink","M1","8C CPU 8C GPU","16GB","256GB SSD","8-core CPU and 8-core GPU","Gigabit Ethernet","Numeric with Touch ID"]
["9CX071","Z12Y000QQ","CTO iMac 24in M1 8C CPU 8C GPU 8GB 512GB TOUCH ID NUMERIC PINK         ",1606,1572.89,1729,"Direct Ship","MGPM3LL/A ","06NX82/S9688LL/A",118,115.57,"IMAC 24","Pink","M1","8C CPU 8C GPU","8GB","512GB SSD","8-core CPU and 8-core GPU","Gigabit Ethernet","Numeric with Touch ID"]
["9CX082","Z12Z000LZ","CTO iMac 24in M1 8C CPU 8C GPU 8GB 512GB TOUCH ID NUMERIC PINK        ",1606,1572.89,1729,"Direct Ship","MGPN3LL/A","06NX82/S9688LL/A",118,115.57,"IMAC 24","Pink","M1","8C CPU 8C GPU","8GB","512GB SSD","8-core CPU and 8-core GPU","Gigabit Ethernet","Numeric with Touch ID"]
["9CX100","Z130000QC","CTO iMac 24in M1 8C CPU 8C GPU 16GB 256GB TOUCH ID NUMERIC PURP       ",1606,1572.89,1729,"Direct Ship","No base model","06NX82/S9688LL/A",118,115.57,"IMAC 24","Purple","M1","8C CPU 8C GPU","16GB","256GB SSD","8-core CPU and 8-core GPU","Gigabit Ethernet","Numeric with Touch ID"]
["9CX101","Z130000QD","CTO iMac 24in M1 8C CPU 8C GPU 8GB 512GB TOUCH ID NUMERIC PURP     ",1606,1572.89,1729,"Direct Ship","No base model","06NX82/S9688LL/A",118,115.57,"IMAC 24","Purple","M1","8C CPU 8C GPU","8GB","512GB SSD","8-core CPU and 8-core GPU","Gigabit Ethernet","Numeric with Touch ID"]
["9CX112","Z131000LZ","CTO iMac 24in M1 8C CPU 8C GPU 8GB 512GB TOUCH ID NUMERIC PURP      ",1606,1572.89,1729,"Direct Ship","No base model","06NX82/S9688LL/A",118,115.57,"IMAC 24","Purple","M1","8C CPU 8C GPU","8GB","512GB SSD","8-core CPU and 8-core GPU","Gigabit Ethernet","Numeric with Touch ID"]
["9CX126","Z132000QR","CTO iMac 24in M1 8C CPU 8C GPU 16GB 256GB TOUCH ID NUMERIC ORNGE ",1606,1572.89,1729,"Direct Ship","No base model","06NX82/S9688LL/A",118,115.57,"IMAC 24","Orange","M1","8C CPU 8C GPU","16GB","256GB SSD","8-core CPU and 8-core GPU","Gigabit Ethernet","Numeric with Touch ID"]
["9CX127","Z132000QS","CTO iMac 24in M1 8C CPU 8C GPU 8GB 512GB TOUCH ID NUMERIC ORNGE     ",1606,1572.89,1729,"Direct Ship","No base model","06NX82/S9688LL/A",118,115.57,"IMAC 24","Orange","M1","8C CPU 8C GPU","8GB","512GB SSD","8-core CPU and 8-core GPU","Gigabit Ethernet","Numeric with Touch ID"]
["9CX138","Z133000LZ","CTO iMac 24in M1 8C CPU 8C GPU 8GB 512GB TOUCH ID NUMERIC ORNGE   ",1606,1572.89,1729,"Direct Ship","No base model","06NX82/S9688LL/A",118,115.57,"IMAC 24","Orange","M1","8C CPU 8C GPU","8GB","512GB SSD","8-core CPU and 8-core GPU","Gigabit Ethernet","Numeric with Touch ID"]
["7PN529","Z0ZT000EH","CTO MAC MINI 3.0GHZ 6CORE I5 8GB RAM 2TB SSD STORAGE         ",1580,1547.42,1699,"Direct Ship","MXNG2LL/A","07DZ74/S9703LL/A",69,67.58,"MAC MINI","Space Gray","I5","6-CORE","8GB","2TB SSD","Intel UHD Graphics 630","Gigabit Ethernet","None"]
["7PN533","Z0ZT0004Y","CTO MAC MINI 3.0GHZ 6CORE I5 32GB RAM 512GB SSD STORAGE         ",1580,1547.42,1699,"Direct Ship","MXNG2LL/A","07DZ74/S9703LL/A",69,67.58,"MAC MINI","Space Gray","I5","6-CORE","32GB","512GB SSD","Intel UHD Graphics 630","Gigabit Ethernet","None"]
["7PN543","Z0ZT0003H","CTO MAC MINI 3.2GHZ 6CORE i7 16GB RAM 1TB SSD STORAGE         ",1580,1547.42,1699,"Direct Ship","MXNG2LL/A","07DZ74/S9703LL/A",69,67.58,"MAC MINI","Space Gray","I7","6-CORE","16GB","1TB SSD","Intel UHD Graphics 630","Gigabit Ethernet","None"]
["8RB930","Z12N000G8","CTO MAC MINI M1 16GB MEMORY 2TB SSD STORAGE GIGABIT ENET        ",1580,1547.42,1699,"Direct Ship","MGNR3LL/A","07DZ74/S9703LL/A",69,67.58,"MAC MINI","Silver","M1","8C CPU 8C GPU","16GB","2TB SSD","8-core CPU and 8-core GPU","Gigabit Ethernet","None"]
["8RB935","Z12P000KH","CTO MAC MINI M1 16GB MEMORY 2TB SSD STORAGE GIGABIT ENET        ",1580,1547.42,1699,"Direct Ship","MGNT3LL/A","07DZ74/S9703LL/A",69,67.58,"MAC MINI","Silver","M1","8C CPU 8C GPU","16GB","2TB SSD","8-core CPU and 8-core GPU","Gigabit Ethernet","None"]
["9CW920","Z12Q000NR","CTO iMac 24in M1 8C CPU 8C GPU 16GB RAM 256GB SSD TOUCH ID KB SLVR        ",1580,1547.42,1699,"Direct Ship","MGPC3LL/A","06NX82/S9688LL/A",118,115.57,"IMAC 24","Silver","M1","8C CPU 8C GPU","16GB","256GB SSD","8-core CPU and 8-core GPU","Gigabit Ethernet","Magic keyboard with Touch ID"]
["9CW921","Z12Q000N9","CTO iMac 24in M1 8C CPU 8C GPU 8GB RAM 512GB SSD TOUCH ID KB SLVR        ",1580,1547.42,1699,"Direct Ship","MGPC3LL/A","06NX82/S9688LL/A",118,115.57,"IMAC 24","Silver","M1","8C CPU 8C GPU","8GB","512GB SSD","8-core CPU and 8-core GPU","Gigabit Ethernet","Magic keyboard with Touch ID"]
["9CW946","Z12S000NR","CTO iMac 24in M1 8C CPU 8C GPU 16GB RAM 256GB SSD TOUCH ID KB YLOW      ",1580,1547.42,1699,"Direct Ship","No base model","06NX82/S9688LL/A",118,115.57,"IMAC 24","Yellow","M1","8C CPU 8C GPU","16GB","256GB SSD","8-core CPU and 8-core GPU","Gigabit Ethernet","Magic keyboard with Touch ID"]
["9CW947","Z12S000N9","CTO iMac 24in M1 8C CPU 8C GPU 8GB RAM 512GB SSD TOUCH ID KB YLOW ",1580,1547.42,1699,"Direct Ship","No base model","06NX82/S9688LL/A",118,115.57,"IMAC 24","Yellow","M1","8C CPU 8C GPU","8GB","512GB SSD","8-core CPU and 8-core GPU","Gigabit Ethernet","Magic keyboard with Touch ID"]
["9CW983","Z12U000NR","CTO iMac 24in M1 8C CPU 8C GPU 16GB RAM 256GB SSD TOUCH ID KB GREEN        ",1580,1547.42,1699,"Direct Ship","MGPH3LL/A","06NX82/S9688LL/A",118,115.57,"IMAC 24","Green","M1","8C CPU 8C GPU","16GB","256GB SSD","8-core CPU and 8-core GPU","Gigabit Ethernet","Magic keyboard with Touch ID"]
["9CW984","Z12U000N9","CTO iMac 24in M1 8C CPU 8C GPU 8GB RAM 512GB SSD TOUCH ID KB GREEN        ",1580,1547.42,1699,"Direct Ship","MGPH3LL/A","06NX82/S9688LL/A",118,115.57,"IMAC 24","Green","M1","8C CPU 8C GPU","8GB","512GB SSD","8-core CPU and 8-core GPU","Gigabit Ethernet","Magic keyboard with Touch ID"]
["9CX021","Z12W000NR","CTO iMac 24in M1 8C CPU 8C GPU 16GB RAM 256GB SSD TOUCH ID KB BLUE         ",1580,1547.42,1699,"Direct Ship","MGPK3LL/A ","06NX82/S9688LL/A",118,115.57,"IMAC 24","Blue","M1","8C CPU 8C GPU","16GB","256GB SSD","8-core CPU and 8-core GPU","Gigabit Ethernet","Magic keyboard with Touch ID"]
["9CX022","Z12W000N9","CTO iMac 24in M1 8C CPU 8C GPU 8GB RAM 512GB SSD TOUCH ID KB BLUE         ",1580,1547.42,1699,"Direct Ship","MGPK3LL/A ","06NX82/S9688LL/A",118,115.57,"IMAC 24","Blue","M1","8C CPU 8C GPU","8GB","512GB SSD","8-core CPU and 8-core GPU","Gigabit Ethernet","Magic keyboard with Touch ID"]
["9CX062","Z12Y000NR","CTO iMac 24in M1 8C CPU 8C GPU 16GB RAM 256GB SSD TOUCH ID KB PINK         ",1580,1547.42,1699,"Direct Ship","MGPM3LL/A ","06NX82/S9688LL/A",118,115.57,"IMAC 24","Pink","M1","8C CPU 8C GPU","16GB","256GB SSD","8-core CPU and 8-core GPU","Gigabit Ethernet","Magic keyboard with Touch ID"]
["9CX063","Z12Y000N9","CTO iMac 24in M1 8C CPU 8C GPU 8GB RAM 512GB SSD TOUCH ID KB PINK         ",1580,1547.42,1699,"Direct Ship","MGPM3LL/A ","06NX82/S9688LL/A",118,115.57,"IMAC 24","Pink","M1","8C CPU 8C GPU","8GB","512GB SSD","8-core CPU and 8-core GPU","Gigabit Ethernet","Magic keyboard with Touch ID"]
["9CX092","Z130000NR","CTO iMac 24in M1 8C CPU 8C GPU 16GB RAM 256GB SSD TOUCH ID KB PURP      ",1580,1547.42,1699,"Direct Ship","No base model","06NX82/S9688LL/A",118,115.57,"IMAC 24","Purple","M1","8C CPU 8C GPU","16GB","256GB SSD","8-core CPU and 8-core GPU","Gigabit Ethernet","Magic keyboard with Touch ID"]
["9CX093","Z130000N9","CTO iMac 24in M1 8C CPU 8C GPU 8GB RAM 512GB SSD TOUCH ID KB PURP     ",1580,1547.42,1699,"Direct Ship","No base model","06NX82/S9688LL/A",118,115.57,"IMAC 24","Purple","M1","8C CPU 8C GPU","8GB","512GB SSD","8-core CPU and 8-core GPU","Gigabit Ethernet","Magic keyboard with Touch ID"]
["9CX118","Z132000NR","CTO iMac 24in M1 8C CPU 8C GPU 16GB RAM 256GB SSD TOUCH ID KB ORNGE  ",1580,1547.42,1699,"Direct Ship","No base model","06NX82/S9688LL/A",118,115.57,"IMAC 24","Orange","M1","8C CPU 8C GPU","16GB","256GB SSD","8-core CPU and 8-core GPU","Gigabit Ethernet","Magic keyboard with Touch ID"]
["9CX119","Z132000N9","CTO iMac 24in M1 8C CPU 8C GPU 8GB RAM 512GB SSD TOUCH ID KB ORNGE     ",1580,1547.42,1699,"Direct Ship","No base model","06NX82/S9688LL/A",118,115.57,"IMAC 24","Orange","M1","8C CPU 8C GPU","8GB","512GB SSD","8-core CPU and 8-core GPU","Gigabit Ethernet","Magic keyboard with Touch ID"]
["9CL953","MGPL3LL/A","24-inch iMac with Retina 4.5K display: Apple M1 chip with 8‑core CPU and 8‑core GPU, 512GB - Blue  ",1580,1547.42,1699,"Stocked",null,"06NX82/S9688LL/A",118,115.57,"IMAC 24","Blue","M1","8C CPU 8C GPU","8GB","512GB SSD","8-core CPU and 8-core GPU","Gigabit Ethernet","Magic keyboard with Touch ID"]
["9CL952","MGPJ3LL/A","24-inch iMac with Retina 4.5K display: Apple M1 chip with 8‑core CPU and 8‑core GPU, 512GB - Green      ",1580,1547.42,1699,"Stocked",null,"06NX82/S9688LL/A",118,115.57,"IMAC 24","Green","M1","8C CPU 8C GPU","8GB","512GB SSD","8-core CPU and 8-core GPU","Gigabit Ethernet","Magic keyboard with Touch ID"]
["9CL954","MGPN3LL/A","24-inch iMac with Retina 4.5K display: Apple M1 chip with 8‑core CPU and 8‑core GPU, 512GB - Pink  ",1580,1547.42,1699,"Stocked",null,"06NX82/S9688LL/A",118,115.57,"IMAC 24","Pink","M1","8C CPU 8C GPU","8GB","512GB SSD","8-core CPU and 8-core GPU","Gigabit Ethernet","Magic keyboard with Touch ID"]
["9CL951","MGPD3LL/A","24-inch iMac with Retina 4.5K display: Apple M1 chip with 8‑core CPU and 8‑core GPU, 512GB - Silver  ",1580,1547.42,1699,"Stocked",null,"06NX82/S9688LL/A",118,115.57,"IMAC 24","Silver","M1","8C CPU 8C GPU","8GB","512GB SSD","8-core CPU and 8-core GPU","Gigabit Ethernet","Magic keyboard with Touch ID"]
["9CW911","Z13K000UR","CTO iMac 24in M1 8C CPU 7C GPU 16GB RAM 512GB SSD MM STD KB SLVR        ",1580,1547.42,1699,"Direct Ship","MGTF3LL/A","06NX82/S9688LL/A",118,115.57,"IMAC 24","Silver","M1","8C CPU 7C GPU","16GB","512GB SSD","8-core CPU and 7-core GPU","None","Magic keyboard"]
["9CW912","Z13K000U1","CTO iMac 24in M1 8C CPU 7C GPU 8GB RAM 1TB SSD MM STD KB SLVR        ",1580,1547.42,1699,"Direct Ship","MGTF3LL/A","06NX82/S9688LL/A",118,115.57,"IMAC 24","Silver","M1","8C CPU 7C GPU","8GB","1TB SSD","8-core CPU and 7-core GPU","None","Magic keyboard"]
["9CW974","Z14L000UR","CTO iMac 24in M1 8C CPU 7C GPU 16GB RAM 512GB SSD MM STD KB GREEN        ",1580,1547.42,1699,"Direct Ship","MJV83LL/A","06NX82/S9688LL/A",118,115.57,"IMAC 24","Green","M1","8C CPU 7C GPU","16GB","512GB SSD","8-core CPU and 7-core GPU","None","Magic keyboard"]
["9CW975","Z14L000U1","CTO iMac 24in M1 8C CPU 7C GPU 8GB RAM 1TB SSD MM STD KB GREEN        ",1580,1547.42,1699,"Direct Ship","MJV83LL/A","06NX82/S9688LL/A",118,115.57,"IMAC 24","Green","M1","8C CPU 7C GPU","8GB","1TB SSD","8-core CPU and 7-core GPU","None","Magic keyboard"]
["9CX012","Z14M000UR","CTO iMac 24in M1 8C CPU 7C GPU 16GB RAM 512GB SSD MM STD KB BLUE        ",1580,1547.42,1699,"Direct Ship","MJV93LL/A","06NX82/S9688LL/A",118,115.57,"IMAC 24","Blue","M1","8C CPU 7C GPU","16GB","512GB SSD","8-core CPU and 7-core GPU","None","Magic keyboard"]
["9CX013","Z14M000U1","CTO iMac 24in M1 8C CPU 7C GPU 8GB RAM 1TB SSD MM STD KB BLUE        ",1580,1547.42,1699,"Direct Ship","MJV93LL/A","06NX82/S9688LL/A",118,115.57,"IMAC 24","Blue","M1","8C CPU 7C GPU","8GB","1TB SSD","8-core CPU and 7-core GPU","None","Magic keyboard"]
["9CX053","Z14P000UR","CTO iMac 24in M1 8C CPU 7C GPU 16GB RAM 512GB SSD MM STD KB PINK        ",1580,1547.42,1699,"Direct Ship","MJVA3LL/A","06NX82/S9688LL/A",118,115.57,"IMAC 24","Pink","M1","8C CPU 7C GPU","16GB","512GB SSD","8-core CPU and 7-core GPU","None","Magic keyboard"]
["9CX054","Z14P000U1","CTO iMac 24in M1 8C CPU 7C GPU 8GB RAM 1TB SSD MM STD KB PINK        ",1580,1547.42,1699,"Direct Ship","MJVA3LL/A","06NX82/S9688LL/A",118,115.57,"IMAC 24","Pink","M1","8C CPU 7C GPU","8GB","1TB SSD","8-core CPU and 7-core GPU","None","Magic keyboard"]
["7PN191","Z0ZT0002L","CTO MAC MINI 3.0GHZ 6CORE I5 16GB RAM 1TB SSD 10GB ENET         ",1487,1456.34,1599,"Direct Ship","MXNG2LL/A","07DZ74/S9703LL/A",69,67.58,"MAC MINI","Space Gray","I5","6-CORE","16GB","1TB SSD","Intel UHD Graphics 630","10 Gigabit","None"]
["7PN200","Z0ZT0003T","CTO MAC MINI 3.2GHZ 6CORE i7 8GB RAM 1TB SSD 10GB ENET         ",1487,1456.34,1599,"Direct Ship","MXNG2LL/A","07DZ74/S9703LL/A",69,67.58,"MAC MINI","Space Gray","i7","6-CORE","8GB","1TB SSD","Intel UHD Graphics 630","10 Gigabit","None"]
["7PN202","Z0ZT00017","CTO MAC MINI 3.2GHZ 6CORE i7 16GB RAM 512GB SSD 10GB ENET         ",1487,1456.34,1599,"Direct Ship","MXNG2LL/A","07DZ74/S9703LL/A",69,67.58,"MAC MINI","Space Gray","i7","6-CORE","16GB","512GB SSD","Intel UHD Graphics 630","10 Gigabit","None"]
["9CV178","Z12N000G9","CTO MAC MINI M1 8GB MEMORY  2TB SSD STORAGE 10GIGABIT ENET        ",1487,1456.34,1599,"Direct Ship","MGNR3LL/A","07DZ74/S9703LL/A",69,67.58,"MAC MINI","Silver","M1","8C CPU 8C GPU","8GB","2TB SSD","8-core CPU and 8-core GPU","10 Gigabit","None"]
["9CV179","Z12P000KF","CTO MAC MINI M1 8GB MEMORY  2TB SSD STORAGE 10GIGABIT ENET        ",1487,1456.34,1599,"Direct Ship","MGNT3LL/A","07DZ74/S9703LL/A",69,67.58,"MAC MINI","Silver","M1","8C CPU 8C GPU","8GB","2TB SSD","8-core CPU and 8-core GPU","10 Gigabit","None"]
["9DC995","Z13K00172","CTO iMac 24in M1 8C CPU 7C GPU 16GB 256GB SSD MM TOUCH ID KB ENET SLVR        ",1466,1435.77,1579,"Direct Ship","MGTF3LL/A","06NX82/S9688LL/A",118,115.57,"IMAC 24","Silver","M1","8C CPU 7C GPU","16GB","256GB SSD","8-core CPU and 7-core GPU","Gigabit Ethernet","Magic keyboard with Touch ID"]
["9DC996","Z13K00174","CTO iMac 24in M1 8C CPU 7C GPU 8GB 512GB SSD MM TOUCH ID KB ENET SLVR        ",1466,1435.77,1579,"Direct Ship","MGTF3LL/A","06NX82/S9688LL/A",118,115.57,"IMAC 24","Silver","M1","8C CPU 7C GPU","8GB","512GB SSD","8-core CPU and 7-core GPU","Gigabit Ethernet","Magic keyboard with Touch ID"]
["9DD007","Z14L000ZG","CTO iMac 24in M1 8C CPU 7C GPU 16GB 256GB SSD MM TOUCH ID KB ENET GREEN        ",1466,1435.77,1579,"Direct Ship","MJV83LL/A","06NX82/S9688LL/A",118,115.57,"IMAC 24","Green","M1","8C CPU 7C GPU","16GB","256GB SSD","8-core CPU and 7-core GPU","Gigabit Ethernet","Magic keyboard with Touch ID"]
["9DD008","Z14L000ZJ","CTO iMac 24in M1 8C CPU 7C GPU 8GB 512GB SSD MM TOUCH ID KB ENET GREEN        ",1466,1435.77,1579,"Direct Ship","MJV83LL/A","06NX82/S9688LL/A",118,115.57,"IMAC 24","Green","M1","8C CPU 7C GPU","8GB","512GB SSD","8-core CPU and 7-core GPU","Gigabit Ethernet","Magic keyboard with Touch ID"]
["9DD018","Z14M000XZ","CTO iMac 24in M1 8C CPU 7C GPU 16GB 256GB SSD MM TOUCH ID KB ENET BLUE        ",1466,1435.77,1579,"Direct Ship","MJV93LL/A","06NX82/S9688LL/A",118,115.57,"IMAC 24","Blue","M1","8C CPU 7C GPU","16GB","256GB SSD","8-core CPU and 7-core GPU","Gigabit Ethernet","Magic keyboard with Touch ID"]
["9DD019","Z14M000X8","CTO iMac 24in M1 8C CPU 7C GPU 8GB 512GB SSD MM TOUCH ID KB ENET BLUE        ",1466,1435.77,1579,"Direct Ship","MJV93LL/A","06NX82/S9688LL/A",118,115.57,"IMAC 24","Blue","M1","8C CPU 7C GPU","8GB","512GB SSD","8-core CPU and 7-core GPU","Gigabit Ethernet","Magic keyboard with Touch ID"]
["9DD029","Z14P000ZD","CTO iMac 24in M1 8C CPU 7C GPU 16GB 256GB SSD MM TOUCH ID KB ENET PINK        ",1466,1435.77,1579,"Direct Ship","MJVA3LL/A","06NX82/S9688LL/A",118,115.57,"IMAC 24","Pink","M1","8C CPU 7C GPU","16GB","256GB SSD","8-core CPU and 7-core GPU","Gigabit Ethernet","Magic keyboard with Touch ID"]
["9DD030","Z14P000ZF","CTO iMac 24in M1 8C CPU 7C GPU 8GB 512GB SSD MM TOUCH ID KB ENET PINK        ",1466,1435.77,1579,"Direct Ship","MJVA3LL/A","06NX82/S9688LL/A",118,115.57,"IMAC 24","Pink","M1","8C CPU 7C GPU","8GB","512GB SSD","8-core CPU and 7-core GPU","Gigabit Ethernet","Magic keyboard with Touch ID"]
["9DC989","Z13K0017H","CTO iMac 24in M1 8C CPU 7C GPU 16GB RAM 256GB SSD MM TOUCH ID KB SLVR        ",1438,1408.35,1549,"Direct Ship","MGTF3LL/A","06NX82/S9688LL/A",118,115.57,"IMAC 24","Silver","M1","8C CPU 7C GPU","16GB","256GB SSD","8-core CPU and 7-core GPU","None","Magic keyboard with Touch ID"]
["9DC990","Z13K0017K","CTO iMac 24in M1 8C CPU 7C GPU 8GB RAM 512GB SSD MM TOUCH ID KB SLVR        ",1438,1408.35,1549,"Direct Ship","MGTF3LL/A","06NX82/S9688LL/A",118,115.57,"IMAC 24","Silver","M1","8C CPU 7C GPU","8GB","512GB SSD","8-core CPU and 7-core GPU","None","Magic keyboard with Touch ID"]
["9DD001","Z14L000Z4","CTO iMac 24in M1 8C CPU 7C GPU 16GB RAM 256GB SSD MM TOUCH ID KB GREEN        ",1438,1408.35,1549,"Direct Ship","MJV83LL/A","06NX82/S9688LL/A",118,115.57,"IMAC 24","Green","M1","8C CPU 7C GPU","16GB","256GB SSD","8-core CPU and 7-core GPU","None","Magic keyboard with Touch ID"]
["9DD002","Z14L000Z6","CTO iMac 24in M1 8C CPU 7C GPU 8GB RAM 512GB SSD MM TOUCH ID KB GREEN        ",1438,1408.35,1549,"Direct Ship","MJV83LL/A","06NX82/S9688LL/A",118,115.57,"IMAC 24","Green","M1","8C CPU 7C GPU","8GB","512GB SSD","8-core CPU and 7-core GPU","None","Magic keyboard with Touch ID"]
["9DD012","Z14M000XM","CTO iMac 24in M1 8C CPU 7C GPU 16GB RAM 256GB SSD MM TOUCH ID KB BLUE        ",1438,1408.35,1549,"Direct Ship","MJV93LL/A","06NX82/S9688LL/A",118,115.57,"IMAC 24","Blue","M1","8C CPU 7C GPU","16GB","256GB SSD","8-core CPU and 7-core GPU","None","Magic keyboard with Touch ID"]
["9DD013","Z14M000XP","CTO iMac 24in M1 8C CPU 7C GPU 8GB RAM 512GB SSD MM TOUCH ID KB BLUE        ",1438,1408.35,1549,"Direct Ship","MJV93LL/A","06NX82/S9688LL/A",118,115.57,"IMAC 24","Blue","M1","8C CPU 7C GPU","8GB","512GB SSD","8-core CPU and 7-core GPU","None","Magic keyboard with Touch ID"]
["9DD023","Z14P000Z1","CTO iMac 24in M1 8C CPU 7C GPU 16GB RAM 256GB SSD MM TOUCH ID KB PINK        ",1438,1408.35,1549,"Direct Ship","MJVA3LL/A","06NX82/S9688LL/A",118,115.57,"IMAC 24","Pink","M1","8C CPU 7C GPU","16GB","256GB SSD","8-core CPU and 7-core GPU","None","Magic keyboard with Touch ID"]
["9DD024","Z14P000Z3","CTO iMac 24in M1 8C CPU 7C GPU 8GB RAM 512GB SSD MM TOUCH ID KB PINK        ",1438,1408.35,1549,"Direct Ship","MJVA3LL/A","06NX82/S9688LL/A",118,115.57,"IMAC 24","Pink","M1","8C CPU 7C GPU","8GB","512GB SSD","8-core CPU and 7-core GPU","None","Magic keyboard with Touch ID"]
["9CW915","Z13K0017C","CTO iMac 24in M1 8C CPU 7C GPU 16GB 256GB SSD MM STD KB ENET SLVR        ",1422,1392.68,1529,"Direct Ship","MGTF3LL/A","06NX82/S9688LL/A",118,115.57,"IMAC 24","Silver","M1","8C CPU 7C GPU","16GB","256GB SSD","8-core CPU and 7-core GPU","Gigabit Ethernet","Magic keyboard"]
["9CW916","Z13K0017D","CTO iMac 24in M1 8C CPU 7C GPU 8GB 512GB SSD MM STD KB ENET SLVR        ",1422,1392.68,1529,"Direct Ship","MGTF3LL/A","06NX82/S9688LL/A",118,115.57,"IMAC 24","Silver","M1","8C CPU 7C GPU","8GB","512GB SSD","8-core CPU and 7-core GPU","Gigabit Ethernet","Magic keyboard"]
["9CW978","Z14L000X6","CTO iMac 24in M1 8C CPU 7C GPU 16GB 256GB SSD MM STD KB ENET GREEN        ",1422,1392.68,1529,"Direct Ship","MJV83LL/A","06NX82/S9688LL/A",118,115.57,"IMAC 24","Green","M1","8C CPU 7C GPU","16GB","256GB SSD","8-core CPU and 7-core GPU","Gigabit Ethernet","Magic keyboard"]
["9CW979","Z14L000Z0","CTO iMac 24in M1 8C CPU 7C GPU 8GB 512GB SSD MM STD KB ENET GREEN        ",1422,1392.68,1529,"Direct Ship","MJV83LL/A","06NX82/S9688LL/A",118,115.57,"IMAC 24","Green","M1","8C CPU 7C GPU","8GB","512GB SSD","8-core CPU and 7-core GPU","Gigabit Ethernet","Magic keyboard"]
["9CX016","Z14M000XG","CTO iMac 24in M1 8C CPU 7C GPU 16GB 256GB SSD MM STD KB ENET BLUE        ",1422,1392.68,1529,"Direct Ship","MJV93LL/A","06NX82/S9688LL/A",118,115.57,"IMAC 24","Blue","M1","8C CPU 7C GPU","16GB","256GB SSD","8-core CPU and 7-core GPU","Gigabit Ethernet","Magic keyboard"]
["9CX017","Z14M000XH","CTO iMac 24in M1 8C CPU 7C GPU 8GB 512GB SSD MM STD KB ENET BLUE        ",1422,1392.68,1529,"Direct Ship","MJV93LL/A","06NX82/S9688LL/A",118,115.57,"IMAC 24","Blue","M1","8C CPU 7C GPU","8GB","512GB SSD","8-core CPU and 7-core GPU","Gigabit Ethernet","Magic keyboard"]
["9CX057","Z14P000ZK","CTO iMac 24in M1 8C CPU 7C GPU 16GB 256GB SSD MM STD KB ENET PINK        ",1422,1392.68,1529,"Direct Ship","MJVA3LL/A","06NX82/S9688LL/A",118,115.57,"IMAC 24","Pink","M1","8C CPU 7C GPU","16GB","256GB SSD","8-core CPU and 7-core GPU","Gigabit Ethernet","Magic keyboard"]
["9CX058","Z14P000ZL","CTO iMac 24in M1 8C CPU 7C GPU 8GB 512GB SSD MM STD KB ENET PINK        ",1422,1392.68,1529,"Direct Ship","MJVA3LL/A","06NX82/S9688LL/A",118,115.57,"IMAC 24","Pink","M1","8C CPU 7C GPU","8GB","512GB SSD","8-core CPU and 7-core GPU","Gigabit Ethernet","Magic keyboard"]
["9CW927","Z12Q000NX","CTO iMac 24in M1 8C CPU 8C GPU 8GB 256GB TOUCH ID NUMERIC SLVR        ",1420,1390.72,1529,"Direct Ship","MGPC3LL/A","06NX82/S9688LL/A",118,115.57,"IMAC 24","Silver","M1","8C CPU 8C GPU","8GB","256GB SSD","8-core CPU and 8-core GPU","Gigabit Ethernet","Numeric with Touch ID"]
["9CW953","Z12S000NX","CTO iMac 24in M1 8C CPU 8C GPU 8GB 256GB TOUCH ID NUMERIC YLOW      ",1420,1390.72,1529,"Direct Ship","No base model","06NX82/S9688LL/A",118,115.57,"IMAC 24","Yellow","M1","8C CPU 8C GPU","8GB","256GB SSD","8-core CPU and 8-core GPU","Gigabit Ethernet","Numeric with Touch ID"]
["9CW990","Z12U000NX","CTO iMac 24in M1 8C CPU 8C GPU 8GB 256GB TOUCH ID NUMERIC GREEN        ",1420,1390.72,1529,"Direct Ship","MGPH3LL/A","06NX82/S9688LL/A",118,115.57,"IMAC 24","Green","M1","8C CPU 8C GPU","8GB","256GB SSD","8-core CPU and 8-core GPU","Gigabit Ethernet","Numeric with Touch ID"]
["9CX028","Z12W000NX","CTO iMac 24in M1 8C CPU 8C GPU 8GB 256GB TOUCH ID NUMERIC BLUE         ",1420,1390.72,1529,"Direct Ship","MGPK3LL/A ","06NX82/S9688LL/A",118,115.57,"IMAC 24","Blue","M1","8C CPU 8C GPU","8GB","256GB SSD","8-core CPU and 8-core GPU","Gigabit Ethernet","Numeric with Touch ID"]
["9CX069","Z12Y000NX","CTO iMac 24in M1 8C CPU 8C GPU 8GB 256GB TOUCH ID NUMERIC PINK         ",1420,1390.72,1529,"Direct Ship","MGPM3LL/A ","06NX82/S9688LL/A",118,115.57,"IMAC 24","Pink","M1","8C CPU 8C GPU","8GB","256GB SSD","8-core CPU and 8-core GPU","Gigabit Ethernet","Numeric with Touch ID"]
["9CX099","Z130000NX","CTO iMac 24in M1 8C CPU 8C GPU 8GB 256GB TOUCH ID NUMERIC PURP      ",1420,1390.72,1529,"Direct Ship","No base model","06NX82/S9688LL/A",118,115.57,"IMAC 24","Purple","M1","8C CPU 8C GPU","8GB","256GB SSD","8-core CPU and 8-core GPU","Gigabit Ethernet","Numeric with Touch ID"]
["9CX125","Z132000NX","CTO iMac 24in M1 8C CPU 8C GPU 8GB 256GB TOUCH ID NUMERIC ORNGE  ",1420,1390.72,1529,"Direct Ship","No base model","06NX82/S9688LL/A",118,115.57,"IMAC 24","Orange","M1","8C CPU 8C GPU","8GB","256GB SSD","8-core CPU and 8-core GPU","Gigabit Ethernet","Numeric with Touch ID"]
["9CL949","MGPK3LL/A","24-inch iMac with Retina 4.5K display: Apple M1 chip with 8‑core CPU and 8‑core GPU, 256GB - Blue       ",1394,1365.26,1499,"Stocked",null,"06NX82/S9688LL/A",118,115.57,"IMAC 24","Blue","M1","8C CPU 8C GPU","8GB","256GB SSD","8-core CPU and 8-core GPU","Gigabit Ethernet","Magic keyboard with Touch ID"]
["9CL948","MGPH3LL/A","24-inch iMac with Retina 4.5K display: Apple M1 chip with 8‑core CPU and 8‑core GPU, 256GB - Green      ",1394,1365.26,1499,"Stocked",null,"06NX82/S9688LL/A",118,115.57,"IMAC 24","Green","M1","8C CPU 8C GPU","8GB","256GB SSD","8-core CPU and 8-core GPU","Gigabit Ethernet","Magic keyboard with Touch ID"]
["9CL950","MGPM3LL/A","24-inch iMac with Retina 4.5K display: Apple M1 chip with 8‑core CPU and 8‑core GPU, 256GB - Pink    ",1394,1365.26,1499,"Stocked",null,"06NX82/S9688LL/A",118,115.57,"IMAC 24","Pink","M1","8C CPU 8C GPU","8GB","256GB SSD","8-core CPU and 8-core GPU","Gigabit Ethernet","Magic keyboard with Touch ID"]
["9CL947","MGPC3LL/A","24-inch iMac with Retina 4.5K display: Apple M1 chip with 8‑core CPU and 8‑core GPU, 256GB - Silver  ",1394,1365.26,1499,"Stocked",null,"06NX82/S9688LL/A",118,115.57,"IMAC 24","Silver","M1","8C CPU 8C GPU","8GB","256GB SSD","8-core CPU and 8-core GPU","Gigabit Ethernet","Magic keyboard with Touch ID"]
["7PN531","Z0ZT0002W","CTO MAC MINI 3.0GHZ 6CORE I5 16GB RAM 1TB SSD STORAGE         ",1394,1365.26,1499,"Direct Ship","MXNG2LL/A","07DZ74/S9703LL/A",69,67.58,"MAC MINI","Space Gray","I5","6-CORE","16GB","1TB SSD","Intel UHD Graphics 630","Gigabit Ethernet","None"]
["7PN540","Z0ZT00042","CTO MAC MINI 3.2GHZ 6CORE i7 8GB RAM 1TB SSD STORAGE         ",1394,1365.26,1499,"Direct Ship","MXNG2LL/A","07DZ74/S9703LL/A",69,67.58,"MAC MINI","Space Gray","I7","6-CORE","8GB","1TB SSD","Intel UHD Graphics 630","Gigabit Ethernet","None"]
["7PN542","Z0ZT0004H","CTO MAC MINI 3.2GHZ 6CORE i7 16GB RAM 512GB SSD STORAGE         ",1394,1365.26,1499,"Direct Ship","MXNG2LL/A","07DZ74/S9703LL/A",69,67.58,"MAC MINI","Space Gray","I7","6-CORE","16GB","512GB SSD","Intel UHD Graphics 630","Gigabit Ethernet","None"]
["8RB929","Z12N000FZ","CTO MAC MINI M1 8GB MEMORY 2TB SSD STORAGE GIGABIT ENET        ",1394,1365.26,1499,"Direct Ship","MGNR3LL/A","07DZ74/S9703LL/A",69,67.58,"MAC MINI","Silver","M1","8C CPU 8C GPU","8GB","2TB SSD","8-core CPU and 8-core GPU","Gigabit Ethernet","None"]
["8RB934","Z12P000KC","CTO MAC MINI M1 8GB MEMORY 2TB SSD STORAGE GIGABIT ENET        ",1394,1365.26,1499,"Direct Ship","MGNT3LL/A","07DZ74/S9703LL/A",69,67.58,"MAC MINI","Silver","M1","8C CPU 8C GPU","8GB","2TB SSD","8-core CPU and 8-core GPU","Gigabit Ethernet","None"]
["9CW909","Z13K000UN","CTO iMac 24in M1 8C CPU 7C GPU 16GB RAM 256GB SSD MM STD KB SLVR        ",1394,1365.26,1499,"Direct Ship","MGTF3LL/A","06NX82/S9688LL/A",118,115.57,"IMAC 24","Silver","M1","8C CPU 7C GPU","16GB","256GB SSD","8-core CPU and 7-core GPU","None","Magic keyboard"]
["9CW910","Z13K000U0","CTO iMac 24in M1 8C CPU 7C GPU 8GB RAM 512GB SSD MM STD KB SLVR        ",1394,1365.26,1499,"Direct Ship","MGTF3LL/A","06NX82/S9688LL/A",118,115.57,"IMAC 24","Silver","M1","8C CPU 7C GPU","8GB","512GB SSD","8-core CPU and 7-core GPU","None","Magic keyboard"]
["9CW972","Z14L000UN","CTO iMac 24in M1 8C CPU 7C GPU 16GB RAM 256GB SSD MM STD KB GREEN        ",1394,1365.26,1499,"Direct Ship","MJV83LL/A","06NX82/S9688LL/A",118,115.57,"IMAC 24","Green","M1","8C CPU 7C GPU","16GB","256GB SSD","8-core CPU and 7-core GPU","None","Magic keyboard"]
["9CW973","Z14L000U0","CTO iMac 24in M1 8C CPU 7C GPU 8GB RAM 512GB SSD MM STD KB GREEN        ",1394,1365.26,1499,"Direct Ship","MJV83LL/A","06NX82/S9688LL/A",118,115.57,"IMAC 24","Green","M1","8C CPU 7C GPU","8GB","512GB SSD","8-core CPU and 7-core GPU","None","Magic keyboard"]
["9CX010","Z14M000UN","CTO iMac 24in M1 8C CPU 7C GPU 16GB RAM 256GB SSD MM STD KB BLUE        ",1394,1365.26,1499,"Direct Ship","MJV93LL/A","06NX82/S9688LL/A",118,115.57,"IMAC 24","Blue","M1","8C CPU 7C GPU","16GB","256GB SSD","8-core CPU and 7-core GPU","None","Magic keyboard"]
["9CX011","Z14M000U0","CTO iMac 24in M1 8C CPU 7C GPU 8GB RAM 512GB SSD MM STD KB BLUE        ",1394,1365.26,1499,"Direct Ship","MJV93LL/A","06NX82/S9688LL/A",118,115.57,"IMAC 24","Blue","M1","8C CPU 7C GPU","8GB","512GB SSD","8-core CPU and 7-core GPU","None","Magic keyboard"]
["9CX051","Z14P000UN","CTO iMac 24in M1 8C CPU 7C GPU 16GB RAM 256GB SSD MM STD KB PINK        ",1394,1365.26,1499,"Direct Ship","MJVA3LL/A","06NX82/S9688LL/A",118,115.57,"IMAC 24","Pink","M1","8C CPU 7C GPU","16GB","256GB SSD","8-core CPU and 7-core GPU","None","Magic keyboard"]
["9CX052","Z14P000U0","CTO iMac 24in M1 8C CPU 7C GPU 8GB RAM 512GB SSD MM STD KB PINK        ",1394,1365.26,1499,"Direct Ship","MJVA3LL/A","06NX82/S9688LL/A",118,115.57,"IMAC 24","Pink","M1","8C CPU 7C GPU","8GB","512GB SSD","8-core CPU and 7-core GPU","None","Magic keyboard"]
["9YH902","Z13K000UN","CTO iMac 24in M1 8C CPU 7C GPU 16GB RAM 256GB SSD MM STD KB SLVR        ",1394,1365.26,1499,"Stocked","MGTF3LL/A","06NX82/S9688LL/A",118,115.57,"IMAC 24","Silver","M1","8C CPU 7C GPU","16GB","256GB SSD","8-core CPU and 7-core GPU","None","Magic keyboard"]
["7PN173","Z0ZT00060","CTO MAC MINI 3.2GHZ 6CORE i7 8GB RAM 512GB SSD 10GB ENET         ",1301,1274.18,1399,"Direct Ship","MXNF2LL/A","07DZ74/S9703LL/A",69,67.58,"MAC MINI","Space Gray","i7","6-CORE","8GB","512GB SSD","Intel UHD Graphics 630","10 Gigabit","None"]
["7PN188","Z0ZT00072","CTO MAC MINI 3.0GHZ 6CORE I5 8GB RAM 1TB SSD 10GB ENET         ",1301,1274.18,1399,"Direct Ship","MXNG2LL/A","07DZ74/S9703LL/A",69,67.58,"MAC MINI","Space Gray","I5","6-CORE","8GB","1TB SSD","Intel UHD Graphics 630","10 Gigabit","None"]
["7PN190","Z0ZT0004N","CTO MAC MINI 3.0GHZ 6CORE I5 16GB RAM 512GB SSD 10GB ENET         ",1301,1274.18,1399,"Direct Ship","MXNG2LL/A","07DZ74/S9703LL/A",69,67.58,"MAC MINI","Space Gray","I5","6-CORE","16GB","512GB SSD","Intel UHD Graphics 630","10 Gigabit","None"]
["9CV176","Z12N000G7","CTO MAC MINI M1 16GB MEMORY  1TB SSD STORAGE 10GIGABIT ENET        ",1301,1274.18,1399,"Direct Ship","MGNR3LL/A","07DZ74/S9703LL/A",69,67.58,"MAC MINI","Silver","M1","8C CPU 8C GPU","16GB","1TB SSD","8-core CPU and 8-core GPU","10 Gigabit","None"]
["9CV177","Z12P000KK","CTO MAC MINI M1 16GB MEMORY  1TB SSD STORAGE 10GIGABIT ENET        ",1301,1274.18,1399,"Direct Ship","MGNT3LL/A","07DZ74/S9703LL/A",69,67.58,"MAC MINI","Silver","M1","8C CPU 8C GPU","16GB","1TB SSD","8-core CPU and 8-core GPU","10 Gigabit","None"]
["9DC994","Z13K0016R","CTO iMac 24in M1 8C CPU 7C GPU 8GB 256GB SSD MM TOUCH ID KB ENET SLVR        ",1280,1253.6099999999999,1379,"Direct Ship","MGTF3LL/A","06NX82/S9688LL/A",118,115.57,"IMAC 24","Silver","M1","8C CPU 7C GPU","8GB","256GB SSD","8-core CPU and 7-core GPU","Gigabit Ethernet","Magic keyboard with Touch ID"]
["9DD006","Z14L000ZE","CTO iMac 24in M1 8C CPU 7C GPU 8GB 256GB SSD MM TOUCH ID KB ENET GREEN        ",1280,1253.6099999999999,1379,"Direct Ship","MJV83LL/A","06NX82/S9688LL/A",118,115.57,"IMAC 24","Green","M1","8C CPU 7C GPU","8GB","256GB SSD","8-core CPU and 7-core GPU","Gigabit Ethernet","Magic keyboard with Touch ID"]
["9DD017","Z14M000XX","CTO iMac 24in M1 8C CPU 7C GPU 8GB 256GB SSD MM TOUCH ID KB ENET BLUE        ",1280,1253.6099999999999,1379,"Direct Ship","MJV93LL/A","06NX82/S9688LL/A",118,115.57,"IMAC 24","Blue","M1","8C CPU 7C GPU","8GB","256GB SSD","8-core CPU and 7-core GPU","Gigabit Ethernet","Magic keyboard with Touch ID"]
["9DD028","Z14P000ZB","CTO iMac 24in M1 8C CPU 7C GPU 8GB 256GB SSD MM TOUCH ID KB ENET PINK        ",1280,1253.6099999999999,1379,"Direct Ship","MJVA3LL/A","06NX82/S9688LL/A",118,115.57,"IMAC 24","Pink","M1","8C CPU 7C GPU","8GB","256GB SSD","8-core CPU and 7-core GPU","Gigabit Ethernet","Magic keyboard with Touch ID"]
["9DD034","Z14M000UU","CTO iMac 24in M1 8C CPU 7C GPU 8GB RAM 256GB SSD MM TOUCH ID KB BLUE        ",1252,1226.19,1349,"Direct Ship","MJV93LL/A","06NX82/S9688LL/A",118,115.57,"IMAC 24","Blue","M1","8C CPU 7C GPU","8GB","256GB SSD","8-core CPU and 7-core GPU","None","Magic keyboard with Touch ID"]
["9DD035","Z14L000UU","CTO iMac 24in M1 8C CPU 7C GPU 8GB RAM 256GB SSD MM TOUCH ID KB GREEN        ",1252,1226.19,1349,"Direct Ship","MJV83LL/A","06NX82/S9688LL/A",118,115.57,"IMAC 24","Green","M1","8C CPU 7C GPU","8GB","256GB SSD","8-core CPU and 7-core GPU","None","Magic keyboard with Touch ID"]
["9DD036","Z14P000UU","CTO iMac 24in M1 8C CPU 7C GPU 8GB RAM 256GB SSD MM TOUCH ID KB PINK        ",1252,1226.19,1349,"Direct Ship","MJVA3LL/A","06NX82/S9688LL/A",118,115.57,"IMAC 24","Pink","M1","8C CPU 7C GPU","8GB","256GB SSD","8-core CPU and 7-core GPU","None","Magic keyboard with Touch ID"]
["9DD037","Z13K000UV","CTO iMac 24in M1 8C CPU 7C GPU 8GB RAM 256GB SSD MM TOUCH ID KB SLVR        ",1252,1226.19,1349,"Direct Ship","MGTF3LL/A","06NX82/S9688LL/A",118,115.57,"IMAC 24","Silver","M1","8C CPU 7C GPU","8GB","256GB SSD","8-core CPU and 7-core GPU","None","Magic keyboard with Touch ID"]
["9CW914","Z13K000UT","CTO iMac 24in M1 8C CPU 7C GPU 8GB 256GB SSD MM STD KB ENET SLVR        ",1236,1210.52,1329,"Direct Ship","MGTF3LL/A","06NX82/S9688LL/A",118,115.57,"IMAC 24","Silver","M1","8C CPU 7C GPU","8GB","256GB SSD","8-core CPU and 7-core GPU","Gigabit Ethernet","Magic keyboard"]
["9CW977","Z14L000UT","CTO iMac 24in M1 8C CPU 7C GPU 8GB 256GB SSD MM STD KB ENET GREEN        ",1236,1210.52,1329,"Direct Ship","MJV83LL/A","06NX82/S9688LL/A",118,115.57,"IMAC 24","Green","M1","8C CPU 7C GPU","8GB","256GB SSD","8-core CPU and 7-core GPU","Gigabit Ethernet","Magic keyboard"]
["9CX015","Z14M000UT","CTO iMac 24in M1 8C CPU 7C GPU 8GB 256GB SSD MM STD KB ENET BLUE        ",1236,1210.52,1329,"Direct Ship","MJV93LL/A","06NX82/S9688LL/A",118,115.57,"IMAC 24","Blue","M1","8C CPU 7C GPU","8GB","256GB SSD","8-core CPU and 7-core GPU","Gigabit Ethernet","Magic keyboard"]
["9CX056","Z14P000UT","CTO iMac 24in M1 8C CPU 7C GPU 8GB 256GB SSD MM STD KB ENET PINK        ",1236,1210.52,1329,"Direct Ship","MJVA3LL/A","06NX82/S9688LL/A",118,115.57,"IMAC 24","Pink","M1","8C CPU 7C GPU","8GB","256GB SSD","8-core CPU and 7-core GPU","Gigabit Ethernet","Magic keyboard"]
["7PN528","Z0ZT0006E","CTO MAC MINI 3.0GHZ 6CORE I5 8GB RAM 1TB SSD STORAGE         ",1208,1183.0899999999999,1299,"Direct Ship","MXNG2LL/A","07DZ74/S9703LL/A",69,67.58,"MAC MINI","Space Gray","I5","6-CORE","8GB","1TB SSD","Intel UHD Graphics 630","Gigabit Ethernet","None"]
["7PN530","Z0ZT0002Z","CTO MAC MINI 3.0GHZ 6CORE I5 16GB RAM 512GB SSD STORAGE         ",1208,1183.0899999999999,1299,"Direct Ship","MXNG2LL/A","07DZ74/S9703LL/A",69,67.58,"MAC MINI","Space Gray","I5","6-CORE","16GB","512GB SSD","Intel UHD Graphics 630","Gigabit Ethernet","None"]
["7PN539","Z0ZT0002K","CTO MAC MINI 3.2GHZ 6CORE i7 8GB RAM 512GB SSD STORAGE         ",1208,1183.0899999999999,1299,"Direct Ship","MXNG2LL/A","07DZ74/S9703LL/A",69,67.58,"MAC MINI","Space Gray","I7","6-CORE","8GB","512GB SSD","Intel UHD Graphics 630","Gigabit Ethernet","None"]
["8RB928","Z12N000G5","CTO MAC MINI M1 16GB MEMORY 1TB SSD STORAGE GIGABIT ENET        ",1208,1183.0899999999999,1299,"Direct Ship","MGNR3LL/A","07DZ74/S9703LL/A",69,67.58,"MAC MINI","Silver","M1","8C CPU 8C GPU","16GB","1TB SSD","8-core CPU and 8-core GPU","Gigabit Ethernet","None"]
["8RB933","Z12P000KG","CTO MAC MINI M1 16GB MEMORY 1TB SSD STORAGE GIGABIT ENET        ",1208,1183.0899999999999,1299,"Direct Ship","MGNT3LL/A","07DZ74/S9703LL/A",69,67.58,"MAC MINI","Silver","M1","8C CPU 8C GPU","16GB","1TB SSD","8-core CPU and 8-core GPU","Gigabit Ethernet","None"]
["9CL945","MJV93LL/A","24-inch iMac with Retina 4.5K display: Apple M1 chip with 8‑core CPU and 7‑core GPU, 256GB - Blue     ",1208,1183.0899999999999,1299,"Stocked",null,"06NX82/S9688LL/A",118,115.57,"IMAC 24","Blue","M1","8C CPU 7C GPU","8GB","256GB SSD","8-core CPU and 7-core GPU","None","Magic keyboard"]
["9CL944","MJV83LL/A","24-inch iMac with Retina 4.5K display: Apple M1 chip with 8‑core CPU and 7‑core GPU, 256GB - Green    ",1208,1183.0899999999999,1299,"Stocked",null,"06NX82/S9688LL/A",118,115.57,"IMAC 24","Green","M1","8C CPU 7C GPU","8GB","256GB SSD","8-core CPU and 7-core GPU","None","Magic keyboard"]
["9CL946","MJVA3LL/A","24-inch iMac with Retina 4.5K display: Apple M1 chip with 8‑core CPU and 7‑core GPU, 256GB - Pink    ",1208,1183.0899999999999,1299,"Stocked",null,"06NX82/S9688LL/A",118,115.57,"IMAC 24","Pink","M1","8C CPU 7C GPU","8GB","256GB SSD","8-core CPU and 7-core GPU","None","Magic keyboard"]
["9CL943","MGTF3LL/A","24-inch iMac with Retina 4.5K display: Apple M1 chip with 8‑core CPU and 7‑core GPU, 256GB - Silver       ",1208,1183.0899999999999,1299,"Stocked",null,"06NX82/S9688LL/A",118,115.57,"IMAC 24","Silver","M1","8C CPU 7C GPU","8GB","256GB SSD","8-core CPU and 7-core GPU","None","Magic keyboard"]
["9CV172","Z12N000G4","CTO MAC MINI M1 16GB MEMORY  512GB SSD STORAGE 10GIGABIT ENET        ",1115,1092.01,1199,"Direct Ship","MGNR3LL/A","07DZ74/S9703LL/A",69,67.58,"MAC MINI","Silver","M1","8C CPU 8C GPU","16GB","512GB SSD","8-core CPU and 8-core GPU","10 Gigabit","None"]
["9CV173","Z12N000G6","CTO MAC MINI M1 8GB MEMORY  1TB SSD STORAGE 10GIGABIT ENET        ",1115,1092.01,1199,"Direct Ship","MGNR3LL/A","07DZ74/S9703LL/A",69,67.58,"MAC MINI","Silver","M1","8C CPU 8C GPU","8GB","1TB SSD","8-core CPU and 8-core GPU","10 Gigabit","None"]
["9CV174","Z12P000KJ","CTO MAC MINI M1 16GB MEMORY  512GB SSD STORAGE 10GIGABIT ENET        ",1115,1092.01,1199,"Direct Ship","MGNT3LL/A","07DZ74/S9703LL/A",69,67.58,"MAC MINI","Silver","M1","8C CPU 8C GPU","16GB","512GB SSD","8-core CPU and 8-core GPU","10 Gigabit","None"]
["9CV175","Z12P000KE","CTO MAC MINI M1 8GB MEMORY  1TB SSD STORAGE 10GIGABIT ENET        ",1115,1092.01,1199,"Direct Ship","MGNT3LL/A","07DZ74/S9703LL/A",69,67.58,"MAC MINI","Silver","M1","8C CPU 8C GPU","8GB","1TB SSD","8-core CPU and 8-core GPU","10 Gigabit","None"]
["8YB114","Z0ZT00076","CTO MAC MINI 3.0GHZ 6CORE I5  8GB RAM 512GB SSD 10GB ENET          ",1115,1092.01,1199,"Direct Ship","MXNG2LL/A","07DZ74/S9703LL/A",69,67.58,"MAC MINI","Space Gray","I5","6-CORE","8GB","512GB SSD","Intel UHD Graphics 630","10 Gigabit","None"]
["7PN043","MXNG2LL/A","MAC MINI 3.0GHZ I5 6-CORE 8GB/512GB SPACE GRAY ",1022,1000.93,1099,"Stocked",null,"07DZ74/S9703LL/A",69,67.58,"MAC MINI","Space Gray","i5","6-CORE","8GB","512GB SSD","Intel UHD Graphics 630","Gigabit Ethernet","None"]
["8RB926","Z12N000G2","CTO MAC MINI M1 16GB MEMORY 512GB SSD STORAGE GIGABIT ENET        ",1022,1000.93,1099,"Direct Ship","MGNR3LL/A","07DZ74/S9703LL/A",69,67.58,"MAC MINI","Silver","M1","8C CPU 8C GPU","16GB","512GB SSD","8-core CPU and 8-core GPU","Gigabit Ethernet","None"]
["8RB927","Z12N000FY","CTO MAC MINI M1 8GB MEMORY 1TB SSD STORAGE GIGABIT ENET        ",1022,1000.93,1099,"Direct Ship","MGNR3LL/A","07DZ74/S9703LL/A",69,67.58,"MAC MINI","Silver","M1","8C CPU 8C GPU","8GB","1TB SSD","8-core CPU and 8-core GPU","Gigabit Ethernet","None"]
["8RC147","Z12P000KD","CTO MAC MINI M1 16GB MEMORY 512GB SSD STORAGE GIGABIT ENET        ",1022,1000.93,1099,"Stocked","MGNT3LL/A","07DZ74/S9703LL/A",69,67.58,"MAC MINI","Silver","M1","8C CPU 8C GPU","16GB","512GB SSD","8-core CPU and 8-core GPU","Gigabit Ethernet","None"]
["8RB932","Z12P000KB","CTO MAC MINI M1 8GB MEMORY 1TB SSD STORAGE GIGABIT ENET        ",1022,1000.93,1099,"Direct Ship","MGNT3LL/A","07DZ74/S9703LL/A",69,67.58,"MAC MINI","Silver","M1","8C CPU 8C GPU","8GB","1TB SSD","8-core CPU and 8-core GPU","Gigabit Ethernet","None"]
["8RB931","Z12P000KD","CTO MAC MINI M1 16GB MEMORY 512GB SSD STORAGE GIGABIT ENET        ",1022,1000.93,1099,"Direct Ship","MGNT3LL/A","07DZ74/S9703LL/A",69,67.58,"MAC MINI","Silver","M1","8C CPU 8C GPU","16GB","512GB SSD","8-core CPU and 8-core GPU","Gigabit Ethernet","None"]
["9CV169","Z12N000G1","CTO MAC MINI M1 16GB MEMORY  256GB SSD STORAGE 10GIGABIT ENET        ",929,909.85,999,"Direct Ship","MGNR3LL/A","07DZ74/S9703LL/A",69,67.58,"MAC MINI","Silver","M1","8C CPU 8C GPU","16GB","256GB SSD","8-core CPU and 8-core GPU","10 Gigabit","None"]
["9CV170","Z12N000G3","CTO MAC MINI M1 8GB MEMORY  512GB SSD STORAGE 10GIGABIT ENET        ",929,909.85,999,"Direct Ship","MGNR3LL/A","07DZ74/S9703LL/A",69,67.58,"MAC MINI","Silver","M1","8C CPU 8C GPU","8GB","512GB SSD","8-core CPU and 8-core GPU","10 Gigabit","None"]
["9CV171","Z12P000KA","CTO MAC MINI M1 8GB MEMORY  512GB SSD STORAGE 10GIGABIT ENET        ",929,909.85,999,"Direct Ship","MGNT3LL/A","07DZ74/S9703LL/A",69,67.58,"MAC MINI","Silver","M1","8C CPU 8C GPU","8GB","512GB SSD","8-core CPU and 8-core GPU","10 Gigabit","None"]
["8RC146","Z12N000G0","CTO MAC MINI M1 16GB MEMORY 256GB SSD STORAGE GIGABIT ENET        ",836,818.76,899,"Stocked","MGNR3LL/A","07DZ74/S9703LL/A",69,67.58,"MAC MINI","Silver","M1","8C CPU 8C GPU","16GB","256GB SSD","8-core CPU and 8-core GPU","Gigabit Ethernet","None"]
["8RB925","Z12N000FX","CTO MAC MINI M1 8GB MEMORY 512GB SSD STORAGE GIGABIT ENET        ",836,818.76,899,"Direct Ship","MGNR3LL/A","07DZ74/S9703LL/A",69,67.58,"MAC MINI","Silver","M1","8C CPU 8C GPU","8GB","512GB SSD","8-core CPU and 8-core GPU","Gigabit Ethernet","None"]
["8RB877","MGNT3LL/A","MAC MINI: M1 CHIP; 8‑CORE CPU & 8‑CORE GPU, 512GB SSD",836,818.76,899,"Stocked",null,"07DZ74/S9703LL/A",69,67.58,"MAC MINI","Silver","M1","8C CPU 8C GPU","8GB","512GB SSD","8-core CPU and 8-core GPU","Gigabit Ethernet","None"]
["8RB924","Z12N000G0","CTO MAC MINI M1 16GB MEMORY 256GB SSD STORAGE GIGABIT ENET        ",836,818.76,899,"Direct Ship","MGNR3LL/A","07DZ74/S9703LL/A",69,67.58,"MAC MINI","Silver","M1","8C CPU 8C GPU","16GB","256GB SSD","8-core CPU and 8-core GPU","Gigabit Ethernet","None"]
["9CV168","Z12N000FW","CTO MAC MINI M1 8GB MEMORY 256GB SSD STORAGE 10GIGABIT ENET        ",743,727.68,799,"Direct Ship","MGNR3LL/A","07DZ74/S9703LL/A",69,67.58,"MAC MINI","Silver","M1","8C CPU 8C GPU","8GB","256GB SSD","8-core CPU and 8-core GPU","10 Gigabit","None"]
["8RB876","MGNR3LL/A","MAC MINI: M1 CHIP; 8‑CORE CPU & 8‑CORE GPU, 256GB SSD      ",650,636.6,699,"Stocked",null,"07DZ74/S9703LL/A",69,67.58,"MAC MINI","Silver","M1","8C CPU 8C GPU","8GB","256GB SSD","8-core CPU and 8-core GPU","Gigabit Ethernet","None"]

{"sheet":"iPads","index":3,"n_rows":112,"n_cols":16,"rows_kept":112,"cut":false,"hidden":false,"merged":[]}
[]
[]
[]
[]
[]
[]
[]
[]
[]
[]
[]
[]
[]
[]
[]
[]
[]
[]
[]
[]
[]
[]
[]
[]
[]
[]
[]
["IM SKU","Part","Full Description","Unit Price","Govt Price","Apple.com","AppleCare SKU","AppleCare Price","AppleCare Gov Price","Device Type","Color","Capacity","Connectivity","Apple pencil","Smartkeyboard","Magic Keyboard"]
["9CM009","MHP43LL/A","12.9-INCH IPAD PRO WI‑FI + CELLULAR 2TB - SPACE GRAY",2207,2161.96,2399,"06NX90/S9865LL/A",104,{"$f":"Table2[[#This Row],[AppleCare Price]]*0.95/0.97","v":101.85567010309278},"iPad Pro 12.9 5th gen","SPACE GRAY","2TB","Wi-fi + cellular","5KY923","7PN029","9CM031"]
["9CM010","MHP53LL/A","12.9-INCH IPAD PRO WI‑FI + CELLULAR 2TB - SILVER",2207,2161.96,2399,"06NX90/S9865LL/A",104,{"$f":"Table2[[#This Row],[AppleCare Price]]*0.95/0.97","v":101.85567010309278},"iPad Pro 12.9 5th gen","SILVER","2TB","Wi-fi + cellular","5KY923","7PN029","9CM031"]
["9CL998","MHNP3LL/A","12.9-INCH IPAD PRO WI‑FI 2TB - SPACE GRAY",2023,1981.71,2199,"06NX90/S9865LL/A",104,{"$f":"Table2[[#This Row],[AppleCare Price]]*0.95/0.97","v":101.85567010309278},"iPad Pro 12.9 5th gen","SPACE GRAY","2TB","Wi‑Fi","5KY923","7PN029","9CM031"]
["9CL999","MHNQ3LL/A","12.9-INCH IPAD PRO WI‑FI 2TB - SILVER",2023,1981.71,2199,"06NX90/S9865LL/A",104,{"$f":"Table2[[#This Row],[AppleCare Price]]*0.95/0.97","v":101.85567010309278},"iPad Pro 12.9 5th gen","SILVER","2TB","Wi‑Fi","5KY923","7PN029","9CM031"]
["9CL988","MHN23LL/A","11-INCH IPAD PRO WI-FI + CELLULAR 2TB - SPACE GRAY",1931,1891.59,2099,"06NX50/S8403LL/A",90,88.14,"iPad Pro 11 3rd gen","SPACE GRAY","2TB","Wi-fi + cellular","5KY923","7PN048","7PN030"]
["9CL989","MHN33LL/A","11-INCH IPAD PRO WI-FI + CELLULAR 2TB - SILVER",1931,1891.59,2099,"06NX50/S8403LL/A",90,88.14,"iPad Pro 11 3rd gen","SILVER","2TB","Wi-fi + cellular","5KY923","7PN048","7PN030"]
["9CM007","MHP13LL/A","12.9-INCH IPAD PRO WI‑FI + CELLULAR 1TB - SPACE GRAY",1839,1801.47,1999,"06NX90/S9865LL/A",104,{"$f":"Table2[[#This Row],[AppleCare Price]]*0.95/0.97","v":101.85567010309278},"iPad Pro 12.9 5th gen","SPACE GRAY","1TB","Wi-fi + cellular","5KY923","7PN029","9CM031"]
["9CM008","MHP23LL/A","12.9-INCH IPAD PRO WI‑FI + CELLULAR 1TB - SILVER",1839,1801.47,1999,"06NX90/S9865LL/A",104,{"$f":"Table2[[#This Row],[AppleCare Price]]*0.95/0.97","v":101.85567010309278},"iPad Pro 12.9 5th gen","SILVER","1TB","Wi-fi + cellular","5KY923","7PN029","9CM031"]
["9CL978","MHR23LL/A","11-INCH IPAD PRO WI-FI 2TB - SPACE GRAY",1747,1711.35,1899,"06NX50/S8403LL/A",90,88.14,"iPad Pro 11 3rd gen","SPACE GRAY","2TB","Wi‑Fi","5KY923","7PN048","7PN030"]
["9CL979","MHR33LL/A","11-INCH IPAD PRO WI‑FI 2TB - SILVER",1747,1711.35,1899,"06NX50/S8403LL/A",90,88.14,"iPad Pro 11 3rd gen","SILVER","2TB","Wi‑Fi","5KY923","7PN048","7PN030"]
["9CL996","MHNM3LL/A","12.9-INCH IPAD PRO WI‑FI 1TB - SPACE GRAY",1655,1621.22,1799,"06NX90/S9865LL/A",104,{"$f":"Table2[[#This Row],[AppleCare Price]]*0.95/0.97","v":101.85567010309278},"iPad Pro 12.9 5th gen","SPACE GRAY","1TB","Wi‑Fi","5KY923","7PN029","9CM031"]
["9CL997","MHNN3LL/A","12.9-INCH IPAD PRO WI‑FI 1TB - SILVER",1655,1621.22,1799,"06NX90/S9865LL/A",104,{"$f":"Table2[[#This Row],[AppleCare Price]]*0.95/0.97","v":101.85567010309278},"iPad Pro 12.9 5th gen","SILVER","1TB","Wi‑Fi","5KY923","7PN029","9CM031"]
["9CL986","MHN03LL/A","11-INCH IPAD PRO WI-FI + CELLULAR 1TB - SPACE GRAY",1563,1531.1,1699,"06NX50/S8403LL/A",90,88.14,"iPad Pro 11 3rd gen","SPACE GRAY","1TB","Wi-fi + cellular","5KY923","7PN048","7PN030"]
["9CL987","MHN13LL/A","11-INCH IPAD PRO WI-FI + CELLULAR 1TB - SILVER",1563,1531.1,1699,"06NX50/S8403LL/A",90,88.14,"iPad Pro 11 3rd gen","SILVER","1TB","Wi-fi + cellular","5KY923","7PN048","7PN030"]
["9CM005","MHNY3LL/A","12.9-INCH IPAD PRO WI‑FI + CELLULAR 512GB - SPACE GRAY",1471,1440.98,1599,"06NX90/S9865LL/A",104,{"$f":"Table2[[#This Row],[AppleCare Price]]*0.95/0.97","v":101.85567010309278},"iPad Pro 12.9 5th gen","SPACE GRAY","512GB","Wi-fi + cellular","5KY923","7PN029","9CM031"]
["9CM006","MHP03LL/A","12.9-INCH IPAD PRO WI‑FI + CELLULAR 512GB - SILVER",1471,1440.98,1599,"06NX90/S9865LL/A",104,{"$f":"Table2[[#This Row],[AppleCare Price]]*0.95/0.97","v":101.85567010309278},"iPad Pro 12.9 5th gen","SILVER","512GB","Wi-fi + cellular","5KY923","7PN029","9CM031"]
["9CL976","MHQY3LL/A","11-INCH IPAD PRO WI-FI 1TB - SPACE GRAY",1379,1350.86,1499,"06NX50/S8403LL/A",90,88.14,"iPad Pro 11 3rd gen","SPACE GRAY","1TB","Wi‑Fi","5KY923","7PN048","7PN030"]
["9CL977","MHR03LL/A","11-INCH IPAD PRO WI‑FI 1TB - SILVER",1379,1350.86,1499,"06NX50/S8403LL/A",90,88.14,"iPad Pro 11 3rd gen","SILVER","1TB","Wi‑Fi","5KY923","7PN048","7PN030"]
["9CL994","MHNK3LL/A","12.9-INCH IPAD PRO WI‑FI 512GB - SPACE GRAY",1287,1260.73,1399,"06NX90/S9865LL/A",104,{"$f":"Table2[[#This Row],[AppleCare Price]]*0.95/0.97","v":101.85567010309278},"iPad Pro 12.9 5th gen","SPACE GRAY","512GB","Wi‑Fi","5KY923","7PN029","9CM031"]
["9CL995","MHNL3LL/A","12.9-INCH IPAD PRO WI‑FI 512GB - SILVER",1287,1260.73,1399,"06NX90/S9865LL/A",104,{"$f":"Table2[[#This Row],[AppleCare Price]]*0.95/0.97","v":101.85567010309278},"iPad Pro 12.9 5th gen","SILVER","512GB","Wi‑Fi","5KY923","7PN029","9CM031"]
["9CM003","MHNW3LL/A","12.9-INCH IPAD PRO WI‑FI + CELLULAR 256GB - SPACE GRAY",1287,1260.73,1399,"06NX90/S9865LL/A",104,{"$f":"Table2[[#This Row],[AppleCare Price]]*0.95/0.97","v":101.85567010309278},"iPad Pro 12.9 5th gen","SPACE GRAY","256GB","Wi-fi + cellular","5KY923","7PN029","9CM031"]
["9CM004","MHNX3LL/A","12.9-INCH IPAD PRO WI‑FI + CELLULAR 256GB - SILVER",1287,1260.73,1399,"06NX90/S9865LL/A",104,{"$f":"Table2[[#This Row],[AppleCare Price]]*0.95/0.97","v":101.85567010309278},"iPad Pro 12.9 5th gen","SILVER","256GB","Wi-fi + cellular","5KY923","7PN029","9CM031"]
["9CL984","MHMX3LL/A","11-INCH IPAD PRO WI-FI + CELLULAR 512GB - SPACE GRAY",1195,1170.6099999999999,1299,"06NX50/S8403LL/A",90,88.14,"iPad Pro 11 3rd gen","SPACE GRAY","512GB","Wi-fi + cellular","5KY923","7PN048","7PN030"]
["9CL985","MHMY3LL/A","11-INCH IPAD PRO WI-FI + CELLULAR 512GB - SILVER",1195,1170.6099999999999,1299,"06NX50/S8403LL/A",90,88.14,"iPad Pro 11 3rd gen","SILVER","512GB","Wi-fi + cellular","5KY923","7PN048","7PN030"]
["9CM001","MHNR3LL/A","12.9-INCH IPAD PRO WI‑FI + CELLULAR 128GB - SPACE GRAY",1195,1170.6099999999999,1299,"06NX90/S9865LL/A",104,{"$f":"Table2[[#This Row],[AppleCare Price]]*0.95/0.97","v":101.85567010309278},"iPad Pro 12.9 5th gen","SPACE GRAY","128GB","Wi-fi + cellular","5KY923","7PN029","9CM031"]
["9CM002","MHNT3LL/A","12.9-INCH IPAD PRO WI‑FI + CELLULAR 128GB - SILVER",1195,1170.6099999999999,1299,"06NX90/S9865LL/A",104,{"$f":"Table2[[#This Row],[AppleCare Price]]*0.95/0.97","v":101.85567010309278},"iPad Pro 12.9 5th gen","SILVER","128GB","Wi-fi + cellular","5KY923","7PN029","9CM031"]
["9CL992","MHNH3LL/A","12.9-INCH IPAD PRO WI‑FI 256GB - SPACE GRAY",1103,1080.49,1199,"06NX90/S9865LL/A",104,{"$f":"Table2[[#This Row],[AppleCare Price]]*0.95/0.97","v":101.85567010309278},"iPad Pro 12.9 5th gen","SPACE GRAY","256GB","Wi‑Fi","5KY923","7PN029","9CM031"]
["9CL993","MHNJ3LL/A","12.9-INCH IPAD PRO WI‑FI 256GB - SILVER",1103,1080.49,1199,"06NX90/S9865LL/A",104,{"$f":"Table2[[#This Row],[AppleCare Price]]*0.95/0.97","v":101.85567010309278},"iPad Pro 12.9 5th gen","SILVER","256GB","Wi‑Fi","5KY923","7PN029","9CM031"]
["9CL974","MHQW3LL/A","11-INCH IPAD PRO WI-FI 512GB - SPACE GRAY",1011,990.37,1099,"06NX50/S8403LL/A",90,88.14,"iPad Pro 11 3rd gen","SPACE GRAY","512GB","Wi‑Fi","5KY923","7PN048","7PN030"]
["9CL975","MHQX3LL/A","11-INCH IPAD PRO WI‑FI 512GB - SILVER",1011,990.37,1099,"06NX50/S8403LL/A",90,88.14,"iPad Pro 11 3rd gen","SILVER","512GB","Wi‑Fi","5KY923","7PN048","7PN030"]
["9CL982","MHMV3LL/A","11-INCH IPAD PRO WI-FI + CELLULAR 256GB - SPACE GRAY",1011,990.37,1099,"06NX50/S8403LL/A",90,88.14,"iPad Pro 11 3rd gen","SPACE GRAY","256GB","Wi-fi + cellular","5KY923","7PN048","7PN030"]
["9CL983","MHMW3LL/A","11-INCH IPAD PRO WI-FI + CELLULAR 256GB - SILVER",1011,990.37,1099,"06NX50/S8403LL/A",90,88.14,"iPad Pro 11 3rd gen","SILVER","256GB","Wi-fi + cellular","5KY923","7PN048","7PN030"]
["9CL990","MHNF3LL/A","12.9-INCH IPAD PRO WI‑FI 128GB - SPACE GRAY",1011,990.37,1099,"06NX90/S9865LL/A",104,{"$f":"Table2[[#This Row],[AppleCare Price]]*0.95/0.97","v":101.85567010309278},"iPad Pro 12.9 5th gen","SPACE GRAY","128GB","Wi‑Fi","5KY923","7PN029","9CM031"]
["9CL991","MHNG3LL/A","12.9-INCH IPAD PRO WI‑FI 128GB - SILVER",1011,990.37,1099,"06NX90/S9865LL/A",104,{"$f":"Table2[[#This Row],[AppleCare Price]]*0.95/0.97","v":101.85567010309278},"iPad Pro 12.9 5th gen","SILVER","128GB","Wi‑Fi","5KY923","7PN029","9CM031"]
["9CL980","MHMT3LL/A","11-INCH IPAD PRO WI-FI + CELLULAR 128GB - SPACE GRAY",919,900.24,999,"06NX50/S8403LL/A",90,88.14,"iPad Pro 11 3rd gen","SPACE GRAY","128GB","Wi-fi + cellular","5KY923","7PN048","7PN030"]
["9CL981","MHMU3LL/A","11-INCH IPAD PRO WI-FI + CELLULAR 128GB - SILVER",919,900.24,999,"06NX50/S8403LL/A",90,88.14,"iPad Pro 11 3rd gen","SILVER","128GB","Wi-fi + cellular","5KY923","7PN048","7PN030"]
["9CL972","MHQU3LL/A","11-INCH IPAD PRO WI-FI 256GB - SPACE GRAY",827,810.12,899,"06NX50/S8403LL/A",90,88.14,"iPad Pro 11 3rd gen","SPACE GRAY","256GB","Wi‑Fi","5KY923","7PN048","7PN030"]
["9CL973","MHQV3LL/A","11-INCH IPAD PRO WI‑FI 256GB - SILVER",827,810.12,899,"06NX50/S8403LL/A",90,88.14,"iPad Pro 11 3rd gen","SILVER","256GB","Wi‑Fi","5KY923","7PN048","7PN030"]
["02NX70","MM713LL/A","10.9-inch iPad Air Wi-Fi + Cellular 256GB Space Gray",827,809.95,899,"06NY04/SEJD2LL/A",55,53.87,"iPad Air 5th gen","SPACE GRAY","256GB","Wi-fi + cellular","5KY923","7PN048","7PN030"]
["02NX71","MM743LL/A","10.9-inch iPad Air Wi-Fi + Cellular 256GB Starlight",827,809.95,899,"06NY04/SEJD2LL/A",55,53.87,"iPad Air 5th gen","STARLIGHT","256GB","Wi-fi + cellular","5KY923","7PN048","7PN030"]
["02NX72","MM733LL/A","10.9-inch iPad Air Wi-Fi + Cellular 256GB Blue",827,809.95,899,"06NY04/SEJD2LL/A",55,53.87,"iPad Air 5th gen","BLUE","256GB","Wi-fi + cellular","5KY923","7PN048","7PN030"]
["02NX73","MM723LL/A","10.9-inch iPad Air Wi-Fi + Cellular 256GB Pink",827,809.95,899,"06NY04/SEJD2LL/A",55,53.87,"iPad Air 5th gen","PINK","256GB","Wi-fi + cellular","5KY923","7PN048","7PN030"]
["02NX74","MMED3LL/A","10.9-inch iPad Air Wi-Fi + Cellular 256GB Purple",827,809.95,899,"06NY04/SEJD2LL/A",55,53.87,"iPad Air 5th gen","PURPLE","256GB","Wi-fi + cellular","5KY923","7PN048","7PN030"]
["9MM375","MLX93LL/A","IPAD MINI WI-FI + CELLULAR 256GB - PINK",759,743.51,799,"06NX94/SCLH2LL/A",48,47.04,"iPad mini 6th generation","PINK","256GB","Wi-Fi + Cellular","5KY923"]
["9MM374","MK8K3LL/A","IPAD MINI WI-FI + CELLULAR 256GB - PURPLE",759,743.51,799,"06NX94/SCLH2LL/A",48,47.04,"iPad mini 6th generation","PURPLE","256GB","Wi-Fi + Cellular","5KY923"]
["9MM372","MK8F3LL/A","IPAD MINI WI-FI + CELLULAR 256GB - SPACE GRAY",759,743.51,799,"06NX94/SCLH2LL/A",48,47.04,"iPad mini 6th generation","SPACE GRAY","256GB","Wi-Fi + Cellular","5KY923"]
["9MM373","MK8H3LL/A","IPAD MINI WI-FI + CELLULAR 256GB - STARLIGHT",759,743.51,799,"06NX94/SCLH2LL/A",48,47.04,"iPad mini 6th generation","STARLIGHT","256GB","Wi-Fi + Cellular","5KY923"]
["9CL970","MHQR3LL/A","11-INCH IPAD PRO WI-FI 128GB - SPACE GRAY",735,720,799,"06NX50/S8403LL/A",90,88.14,"iPad Pro 11 3rd gen","SPACE GRAY","128GB","Wi‑Fi","5KY923","7PN048","7PN030"]
["9CL971","MHQT3LL/A","11-INCH IPAD PRO WI‑FI 128GB - SILVER",735,720,799,"06NX50/S8403LL/A",90,88.14,"iPad Pro 11 3rd gen","SILVER","128GB","Wi‑Fi","5KY923","7PN048","7PN030"]
["02NX60","MM9L3LL/A","10.9-inch iPad Air Wi-Fi 256GB Space Gray",689,674.79,749,"06NY04/SEJD2LL/A",55,53.87,"iPad Air 5th gen","SPACE GRAY","256GB","Wi‑Fi","5KY923","7PN048","7PN030"]
["02NX61","MM9P3LL/A","10.9-inch iPad Air Wi-Fi 256GB Starlight",689,674.79,749,"06NY04/SEJD2LL/A",55,53.87,"iPad Air 5th gen","STARLIGHT","256GB","Wi‑Fi","5KY923","7PN048","7PN030"]
["02NX62","MM9N3LL/A","10.9-inch iPad Air Wi-Fi 256GB Blue",689,674.79,749,"06NY04/SEJD2LL/A",55,53.87,"iPad Air 5th gen","BLUE","256GB","Wi‑Fi","5KY923","7PN048","7PN030"]
["02NX63","MM9M3LL/A","10.9-inch iPad Air Wi-Fi 256GB Pink",689,674.79,749,"06NY04/SEJD2LL/A",55,53.87,"iPad Air 5th gen","PINK","256GB","Wi‑Fi","5KY923","7PN048","7PN030"]
["02NX64","MME63LL/A","10.9-inch iPad Air Wi-Fi 256GB Purple",689,674.79,749,"06NY04/SEJD2LL/A",55,53.87,"iPad Air 5th gen","PURPLE","256GB","Wi‑Fi","5KY923","7PN048","7PN030"]
["02NX65","MM6R3LL/A","10.9-inch iPad Air Wi-Fi + Cellular 64GB Space Gray",689,674.79,749,"06NY04/SEJD2LL/A",55,53.87,"iPad Air 5th gen","SPACE GRAY","64GB","Wi-fi + cellular","5KY923","7PN048","7PN030"]
["02NX66","MM6V3LL/A","10.9-inch iPad Air Wi-Fi + Cellular 64GB Starlight",689,674.79,749,"06NY04/SEJD2LL/A",55,53.87,"iPad Air 5th gen"," STARLIGHT","64GB","Wi-fi + cellular","5KY923","7PN048","7PN030"]
["02NX67","MM6U3LL/A","10.9-inch iPad Air Wi-Fi + Cellular 64GB Blue",689,674.79,749,"06NY04/SEJD2LL/A",55,53.87,"iPad Air 5th gen","BLUE","64GB","Wi-fi + cellular","5KY923","7PN048","7PN030"]
["02NX68","MM6T3LL/A","10.9-inch iPad Air Wi-Fi + Cellular 64GB Pink",689,674.79,749,"06NY04/SEJD2LL/A",55,53.87,"iPad Air 5th gen","PINK","64GB","Wi-fi + cellular","5KY923","7PN048","7PN030"]
["02NX69","MME93LL/A","10.9-inch iPad Air Wi-Fi + Cellular 64GB Purple",689,674.79,749,"06NY04/SEJD2LL/A",55,53.87,"iPad Air 5th gen","PURPLE","64GB","Wi-fi + cellular","5KY923","7PN048","7PN030"]
["9MM371","MLX43LL/A","IPAD MINI WI-FI + CELLULAR 64GB - PINK",617,604.41,649,"06NX94/SCLH2LL/A",48,47.04,"iPad mini 6th generation","PINK","64GB","Wi-Fi + Cellular","5KY923"]
["9MM370","MK8E3LL/A","IPAD MINI WI-FI + CELLULAR 64GB - PURPLE",617,604.41,649,"06NX94/SCLH2LL/A",48,47.04,"iPad mini 6th generation","PURPLE","64GB","Wi-Fi + Cellular","5KY923"]
["9MM368","MK893LL/A","IPAD MINI WI-FI + CELLULAR 64GB - SPACE GRAY",617,604.41,649,"06NX94/SCLH2LL/A",48,47.04,"iPad mini 6th generation","SPACE GRAY","64GB","Wi-Fi + Cellular","5KY923"]
["9MM369","MK8C3LL/A","IPAD MINI WI-FI + CELLULAR 64GB - STARLIGHT",617,604.41,649,"06NX94/SCLH2LL/A",48,47.04,"iPad mini 6th generation","STARLIGHT","64GB","Wi-Fi + Cellular","5KY923"]
["9MM367","MLWR3LL/A","IPAD MINI WI-FI 256GB - PINK",617,604.41,649,"06NX94/SCLH2LL/A",48,47.04,"iPad mini 6th generation","PINK","256GB","Wi‑Fi","5KY923"]
["9MM366","MK7X3LL/A","IPAD MINI WI-FI 256GB - PURPLE",617,604.41,649,"06NX94/SCLH2LL/A",48,47.04,"iPad mini 6th generation","PURPLE","256GB","Wi‑Fi","5KY923"]
["9MM364","MK7T3LL/A","IPAD MINI WI-FI 256GB - SPACE GRAY",617,604.41,649,"06NX94/SCLH2LL/A",48,47.04,"iPad mini 6th generation","SPACE GRAY","256GB","Wi‑Fi","5KY923"]
["9MM365","MK7V3LL/A","IPAD MINI WI-FI 256GB - STARLIGHT",617,604.41,649,"06NX94/SCLH2LL/A",48,47.04,"iPad mini 6th generation","STARLIGHT","256GB","Wi‑Fi","5KY923"]
["9MM383","MK6A3LL/A","10.2-INCH IPAD 9TH GEN WI-FI + CELLULAR 256GB - SILVER",560,548.57000000000005,609,"07DZ75/SCM32LL/A",48,47.04,"iPad 9th generation","SILVER","256GB","Wi-Fi + Cellular","1Z6191","7PN047"]
["9MM382","MK693LL/A","10.2-INCH IPAD 9TH GEN WI-FI + CELLULAR 256GB - SPACE GRAY",560,548.57000000000005,609,"07DZ75/SCM32LL/A",48,47.04,"iPad 9th generation","SPACE GRAY","256GB","Wi-Fi + Cellular","1Z6191","7PN047"]
["02NX55","MM9C3LL/A","10.9-inch iPad Air Wi-Fi 64GB Space Gray",551,539.64,599,"06NY04/SEJD2LL/A",55,53.87,"iPad Air 5th gen","SPACE GRAY","64GB","Wi‑Fi","5KY923","7PN048","7PN030"]
["02NX56","MM9F3LL/A","10.9-inch iPad Air Wi-Fi 64GB Starlight",551,539.64,599,"06NY04/SEJD2LL/A",55,53.87,"iPad Air 5th gen","STARLIGHT","64GB","Wi‑Fi","5KY923","7PN048","7PN030"]
["02NX57","MM9E3LL/A","10.9-inch iPad Air Wi-Fi 64GB Blue",551,539.64,599,"06NY04/SEJD2LL/A",55,53.87,"iPad Air 5th gen","BLUE","64GB","Wi‑Fi","5KY923","7PN048","7PN030"]
["02NX58","MM9D3LL/A","10.9-inch iPad Air Wi-Fi 64GB Pink",551,539.64,599,"06NY04/SEJD2LL/A",55,53.87,"iPad Air 5th gen","PINK","64GB","Wi‑Fi","5KY923","7PN048","7PN030"]
["02NX59","MME23LL/A","10.9-inch iPad Air Wi-Fi 64GB Purple",551,539.64,599,"06NY04/SEJD2LL/A",55,53.87,"iPad Air 5th gen","PURPLE","64GB","Wi‑Fi","5KY923","7PN048","7PN030"]
["9MM363","MLWL3LL/A","IPAD MINI WI-FI 64GB - PINK",474,464.33,499,"06NX94/SCLH2LL/A",48,47.04,"iPad mini 6th generation","PINK","64GB","Wi‑Fi","5KY923"]
["9MM362","MK7R3LL/A","IPAD MINI WI-FI 64GB - PURPLE",474,464.33,499,"06NX94/SCLH2LL/A",48,47.04,"iPad mini 6th generation","PURPLE","64GB","Wi‑Fi","5KY923"]
["9MM360","MK7M3LL/A","IPAD MINI WI-FI 64GB - SPACE GRAY",474,464.33,499,"06NX94/SCLH2LL/A",48,47.04,"iPad mini 6th generation","SPACE GRAY","64GB","Wi‑Fi","5KY923"]
["9MM361","MK7P3LL/A","IPAD MINI WI-FI 64GB - STARLIGHT",474,464.33,499,"06NX94/SCLH2LL/A",48,47.04,"iPad mini 6th generation","STARLIGHT","64GB","Wi‑Fi","5KY923"]
["9MM379","MK2P3LL/A","10.2-INCH IPAD 9TH GEN WI-FI 256GB - SILVER",441,432,479,"07DZ75/SCM32LL/A",48,47.04,"iPad 9th generation","SILVER","256GB","Wi‑Fi","1Z6191","7PN047"]
["9MM378","MK2N3LL/A","10.2-INCH IPAD 9TH GEN WI-FI 256GB - SPACE GRAY",441,432,479,"07DZ75/SCM32LL/A",48,47.04,"iPad 9th generation","SPACE GRAY","256GB","Wi‑Fi","1Z6191","7PN047"]
["9MM381","MK673LL/A","10.2-INCH IPAD  9TH GEN WI-FI + CELLULAR 64GB - SILVER",431,422.2,459,"07DZ75/SCM32LL/A",48,47.04,"iPad 9th generation","SILVER","64GB","Wi-Fi + Cellular","1Z6191","7PN047"]
["9MM380","MK663LL/A","10.2-INCH IPAD 9TH GEN WI-FI + CELLULAR 64GB - SPACE GRAY",431,422.2,459,"07DZ75/SCM32LL/A",48,47.04,"iPad 9th generation","SPACE GRAY","64GB","Wi-Fi + Cellular","1Z6191","7PN047"]
["9MM377","MK2L3LL/A","10.2-INCH IPAD 9TH GEN WI-FI 64GB - SILVER",309,293.23,329,"07DZ75/SCM32LL/A",48,47.04,"iPad 9th generation","SILVER","64GB","Wi‑Fi","1Z6191","7PN047"]
["9MM376","MK2K3LL/A","10.2-INCH IPAD 9TH GEN WI-FI 64GB - SPACE GRAY",309,293.23,329,"07DZ75/SCM32LL/A",48,47.04,"iPad 9th generation","SPACE GRAY","64GB","Wi‑Fi","1Z6191","7PN047"]

{"sheet":"Accessories","index":4,"n_rows":470,"n_cols":8,"rows_kept":470,"cut":false,"hidden":false,"merged":[]}
[]
[]
[]
[]
[]
[]
[]
[]
[]
[]
[]
[]
[]
[]
[]
[]
[]
[]
[]
[]
[]
[]
[]
[]
[]
[]
[]
[]
["IM SKU","Part#","Description","Unit Price","Govt Price","Apple.com","Compatibility","Categories"]
["7FU902","MWPF2LL/A","PRO DISPLAY XDR - NANO-TEXTURE GLASS",5399,5287.68,5999,"Mac Pro","Displays & Mounts"]
["7FU937","MX8G2G/A","256GB (2X128GB) DDR4 ECC MEMORY KIT - MAC PRO",5220,5112.37,6000,"Mac Pro","Video, Memory & Capture card"]
["7FU901","MWPE2LL/A","PRO DISPLAY XDR - STANDARD GLASS",4499,4406.24,4999,"Mac Pro","Displays & Mounts"]
["7FU936","MX1K2G/A","128GB (2X64GB) DDR4 ECC MEMORY KIT - MAC PRO",2436,2385.77,2800,"Mac Pro","Video, Memory & Capture card"]
["02NX45","MMYV3LL/A","Apple Studio Display Nano-Texture Glass - Tilt- and Height-Adjustable Stand",2069,2026.34,2299,null,"Displays & Mounts"]
["7PN044","MW672AM/A","RADEON PRO VEGA II MPX MODULE",1914,2385.77,2200,"Mac Pro","Video, Memory & Capture card"]
["02NX43","MK0Q3LL/A","Apple Studio Display Standard Glass - Tilt- and Height-Adjustable Stand",1799,1761.91,1999,null,"Displays & Mounts"]
["7PN045","MW682AM/A","AFTERBURNER CARD",1740,1704.12,2000,"Mac Pro","Video, Memory & Capture card"]
["02NX44","MMYW3LL/A","Apple Studio Display Nano-Texture Glass - Tilt-Adjustable Stand",1709,1673.76,1899,null,"Displays & Mounts"]
["02NX47","MMYX3LL/A","Apple Studio Display Nano-Texture Glass - VESA Mount Adapter (Stand not included)",1709,1673.76,1899,null,"Displays & Mounts"]
["02NX42","MK0U3LL/A","Apple Studio Display Standard Glass - Tilt-Adjustable Stand",1439,1409.33,1599,null,"Displays & Mounts"]
["02NX46","MMYQ3LL/A","Apple Studio Display Standard Glass - VESA Mount Adapter (Stand not included)",1439,1409.33,1599,null,"Displays & Mounts"]
["7FU935","MX1J2G/A","64GB (2X32GB) DDR4 ECC MEMORY KIT - MAC PRO",1044,1022.47,1200,"Mac Pro","Video, Memory & Capture card"]
["7TL206","MW662AM/A","RADEON PRO W5700X MPX MODULE - MAC PRO",870,852.06,1000,"Mac Pro","Video, Memory & Capture card"]
["7FU903","MWUG2LL/A","PRO STAND",869,851.08,999,"Pro Display","Displays & Mounts"]
["7FU934","MX1H2G/A","32GB (2X16GB) DDR4 ECC MEMORY KIT - MAC PRO",696,681.65,800,"Mac Pro","Video, Memory & Capture card"]
["03WQ97","MKGY3AM/A","Radeon Pro W6600X MPX Module",609,596.44000000000005,700,"Mac Pro","Video, Memory & Capture card"]
["7TK979","MX572ZM/A","APPLE MAC PRO WHEELS KIT",608,595.46,699,"Mac Pro","Stand"]
["8TQ517","MGYH3AM/A","AIRPODS MAX - SPACE GRAY",434,425.05,549,null,"Headphones"]
["8TQ518","MGYJ3AM/A","AIRPODS MAX - SILVER",434,425.05,549,null,"Headphones"]
["8TQ519","MGYL3AM/A","AIRPODS MAX - SKY BLUE",434,425.05,549,null,"Headphones"]
["8TQ520","MGYM3AM/A","AIRPODS MAX - PINK",434,425.05,549,null,"Headphones"]
["8TQ521","MGYN3AM/A","AIRPODS MAX - GREEN",434,425.05,549,null,"Headphones"]
["8TQ517","MGYH3AM/A","AIRPODS MAX - SPACE GRAY  ",434,425.05,545,"iPhone headphones"]
["8TQ518","MGYJ3AM/A","AIRPODS MAX - SILVER  ",434,425.05,545,"iPhone headphones"]
["8TQ519","MGYL3AM/A","AIRPODS MAX - SKY BLUE  ",434,425.05,545,"iPhone headphones"]
["8TQ520","MGYM3AM/A","AIRPODS MAX - PINK  ",434,425.05,545,"iPhone headphones"]
["8TQ521","MGYN3AM/A","AIRPODS MAX - GREEN  ",434,425.05,545,"iPhone headphones"]
["8TQ517","MGYH3AM/A","AIRPODS MAX - SPACE GRAY  ",434,425.05,545,"Watch headphones"]
["8TQ518","MGYJ3AM/A","AIRPODS MAX - SILVER  ",434,425.05,545,"Watch headphones"]
["8TQ519","MGYL3AM/A","AIRPODS MAX - SKY BLUE  ",434,425.05,545,"Watch headphones"]
["8TQ520","MGYM3AM/A","AIRPODS MAX - PINK  ",434,425.05,545,"Watch headphones"]
["8TQ521","MGYN3AM/A","AIRPODS MAX - GREEN  ",434,425.05,545,"Watch headphones"]
["9CM030","MJQK3LL/A","MAGIC KEYBOARD FOR IPAD PRO 12.9‑INCH (5TH GENERATION) - US ENGLISH - BLACK",314,307.52999999999997,349,"iPad Pro 12.9\"","Mice and keyboards"]
["9CM031","MJQL3LL/A","MAGIC KEYBOARD FOR IPAD PRO 12.9‑INCH (5TH GENERATION) - US ENGLISH - WHITE",314,307.52999999999997,349,"iPad Pro 12.9\"","Mice and keyboards"]
["7PN030","MXQT2LL/A","MAGIC KEYBOARD FOR IPAD PRO 11-INCH (2ND AND 3RD GENERATION) AND IPAD AIR (4TH GENERATION) - US ENGLISH – BLACK",269,263.45,299,"iPad Pro 11\"","Mice and keyboards"]
["7PN030","MXQT2LL/A","MAGIC KEYBOARD FOR 11IN IPADPRO 2ND GENERATION",269,263.45,299,"iPad Air 5th gen","Mice and keyboards"]
["9AF168","MJQJ3LL/A","MAGIC KEYBOARD FOR IPAD PRO 11-INCH (2ND AND 3RD GENERATION) AND IPAD AIR (4TH GENERATION) - US ENGLISH - WHITE",269,263.45,299,"iPad Pro 11\"","Mice and keyboards"]
["7TK980","MXNM2ZM/A","APPLE MAC PRO FEET KIT",260,254.64,299,"Mac Pro","Stand"]
["7PN029","MXNL2LL/A","IPAD SMART KEYBOARD FOLIO 12.9IN IPAD PRO",179,175.31,199,"iPad Pro 12.9\"","Mice and keyboards"]
["9CL940","MXH02LL/A","APPLE TV 4K 64GB",179,175.31,199,null,"Apple TV"]
["7FU904","MWUF2LL/A","VESA MOUNT ADAPTER",173,169.43,199,"Pro Display","Displays & Mounts"]
["03WR00","MMMR3LL/A","Magic Keyboard with Touch ID and Numeric Keypad for Mac models with Apple silicon - Black Keys - US English",173,169.43,199,null,"Mice and keyboards"]
["7PN048","MXNK2LL/A","IPAD SMART KEYBOARD FOLIO 11IN IPAD PRO",161,157.68,179,"iPad Pro 11\"","Mice and keyboards"]
["7PN048","MXNK2LL/A","IPAD SMART KEYBOARD FOLIO 11IN IPAD PRO",161,157.68,179,"iPad Air 5th gen","Mice and keyboards"]
["9CL939","MXGY2LL/A","APPLE TV 4K 32GB",161,157.68,179,null,"Apple TV"]
["9YG952","MME73AM/A","AIRPODS (3RD GENERATION)",161,157.68,179,null,"Headphones"]
["9HK857","MK2C3LL/A","MAGIC KEYBOARD WITH TOUCH ID AND NUMERIC FOR MAC W APPLE SILICON",156,152.78350515463899,179,"Macbook Air 13\" M1","Mice and keyboards"]
["9HK857","MK2C3LL/A","MAGIC KEYBOARD WITH TOUCH ID AND NUMERIC FOR MAC W APPLE SILICON",156,152.78350515463899,179,"Macbook Pro 13\" M1","Mice and keyboards"]
["9HK857","MK2C3LL/A","MAGIC KEYBOARD WITH TOUCH ID AND NUMERIC FOR MAC W APPLE SILICON",156,152.78350515463899,179,"iMac 24\" M1","Mice and keyboards"]
["9HK857","MK2C3LL/A","MAGIC KEYBOARD WITH TOUCH ID AND NUMERIC FOR MAC W APPLE SILICON",156,152.78350515463899,179,"Mac Mini M1","Mice and keyboards"]
["9HK857","MK2C3LL/A","MAGIC KEYBOARD WITH TOUCH ID AND NUMERIC FOR MAC W APPLE SILICON",156,152.78350515463899,179,"Macbook Pro 14\" M1","Mice and keyboards"]
["9HK857","MK2C3LL/A","MAGIC KEYBOARD WITH TOUCH ID AND NUMERIC FOR MAC W APPLE SILICON",156,152.78350515463899,179,"Macbook Pro 16\" M1","Mice and keyboards"]
["7PN047","MX3L2LL/A","SMART KEYBOARD FOR IPAD ",143,140.05000000000001,159,"iPad 9th gen","Mice and keyboards"]
["03WQ96","MWP02AM/A","Thunderbolt 4 Pro Cable (3 m)  (Consumer orders may not begin at this time)",138,135.15,159,null,"Power and cables"]
["9CL938","MHY93LL/A","APPLE TV HD 32GB",134,131.24,149,null,"Apple TV"]
["9HK855","MK293LL/A","MAGIC KEYBOARD WITH TOUCH ID FOR MAC W APPLE SILICON",130,127.319587628866,149,"Macbook Air 13\" M1","Mice and keyboards"]
["9HK855","MK293LL/A","MAGIC KEYBOARD WITH TOUCH ID FOR MAC W APPLE SILICON",130,127.319587628866,149,"Macbook Pro 13\" M1","Mice and keyboards"]
["9HK855","MK293LL/A","MAGIC KEYBOARD WITH TOUCH ID FOR MAC W APPLE SILICON",130,127.319587628866,149,"iMac 24\" M1","Mice and keyboards"]
["9HK855","MK293LL/A","MAGIC KEYBOARD WITH TOUCH ID FOR MAC W APPLE SILICON",130,127.319587628866,149,"Mac Mini M1","Mice and keyboards"]
["9HK855","MK293LL/A","MAGIC KEYBOARD WITH TOUCH ID FOR MAC W APPLE SILICON",130,127.319587628866,149,"Macbook Pro 14\" M1","Mice and keyboards"]
["9HK855","MK293LL/A","MAGIC KEYBOARD WITH TOUCH ID FOR MAC W APPLE SILICON",130,127.319587628866,149,"Macbook Pro 16\" M1","Mice and keyboards"]
["03WQ98","MMMP3AM/A","Magic Trackpad - Black Multi-Touch Surface",130,127.32,149,null,"Mice and keyboards"]
["6KY362","MV7N2AM/A","AIRPODS WITH CHARGING CASE",116,113.61,129,null,"Headphones"]
["5KY923","MU8F2AM/A","APPLE PENCIL (2ND GENERATION)",116,113.61,129,"iPad Air 5th gen","Stylus"]
["5KY923","MU8F2AM/A","APPLE PENCIL (2ND GENERATION)",116,87.16,129,"iPad mini 6","Stylus"]
["5KY923","MU8F2AM/A","APPLE PENCIL (2ND GENERATION)",116,113.61,129,"iPad Pro 11\"","Stylus"]
["5KY923","MU8F2AM/A","APPLE PENCIL (2ND GENERATION)",116,113.61,129,"iPad Pro 12.9\"","Stylus"]
["6KY362","MV7N2AM/A","AIRPODS2 WITH CHARGING CASE  ",116,113.61,129,"iPhone headphones"]
["6KY362","MV7N2AM/A","AIRPODS2 WITH CHARGING CASE  ",116,113.61,129,"Watch headphones"]
["9HK858","MK2D3AM/A","MAGIC TRACKPAD 2 SILVER",112,109.69,129,"Mac mini","Mice and keyboards"]
["9HK858","MK2D3AM/A","MAGIC TRACKPAD 2 SILVER",112,109.69,129,"Macbook Pro 13\"","Mice and keyboards"]
["9HK858","MK2D3AM/A","MAGIC TRACKPAD 2 SILVER",112,109.69,129,"Macbook Air 13\"","Mice and keyboards"]
["9HK858","MK2D3AM/A","MAGIC TRACKPAD 2 SILVER",112,109.69,129,"Macbook Pro 16\" Intel","Mice and keyboards"]
["9HK858","MK2D3AM/A","MAGIC TRACKPAD 2 SILVER",112,109.69,129,"Mac Pro","Mice and keyboards"]
["8Y0008","MQ052LL/A","MAGIC KEYBOARD WITH NUMERIC KEYPAD - SILVER",112,109.69,129,"Mac mini","Mice and keyboards"]
["8Y0008","MQ052LL/A","MAGIC KEYBOARD WITH NUMERIC KEYPAD - SILVER",112,109.69,129,"Macbook Pro 13\"","Mice and keyboards"]
["8Y0008","MQ052LL/A","MAGIC KEYBOARD WITH NUMERIC KEYPAD - SILVER",112,109.69,129,"Macbook Air 13\"","Mice and keyboards"]
["8Y0008","MQ052LL/A","MAGIC KEYBOARD WITH NUMERIC KEYPAD - SILVER",112,109.69,129,"Macbook Pro 16\" Intel","Mice and keyboards"]
["8Y0008","MQ052LL/A","MAGIC KEYBOARD WITH NUMERIC KEYPAD - SILVER",112,109.69,129,"Mac Pro","Mice and keyboards"]
["03WQ95","MN713AM/A","THUNDERBOLT 4 PRO CABLE 1.8M",112,109.69,129,null,"Power and cables"]
["9HK858","MK2D3AM/A","MAGIC TRACKPAD 2 SILVER",112,109.69,129,"Macbook Pro 14\" M1","Mice and keyboards"]
["9HK858","MK2D3AM/A","MAGIC TRACKPAD 2 SILVER",112,109.69,129,"Macbook Pro 16\" M1","Mice and keyboards"]
["8Y0008","MQ052LL/A","MAGIC KEYBOARD WITH NUMERIC KEYPAD - SILVER",112,109.69,129,"Macbook Pro 16\" M1","Mice and keyboards"]
["9HK858","MK2D3AM/A","MAGIC TRACKPAD 2 SILVER",112,109.69,129,"Macbook Pro 14\" M1","Mice and keyboards"]
["8Y0008","MQ052LL/A","MAGIC KEYBOARD WITH NUMERIC KEYPAD - SILVER",112,109.69,129,"Macbook Pro 14\" M1","Mice and keyboards"]
["03WQ95","MN713AM/A","Thunderbolt 4 Pro Cable (1.8 m)",112,109.69,129,null,"Power and cables"]
["8RB781","MHXF3AM/A","MAGSAFE DUO CHARGER  ",102,99.9,128,"iPhone Power"]
["8RB781","MHXF3AM/A","MAGSAFE DUO CHARGER  ",102,99.9,128,"Watch Power"]
["1Z6191","MK0C2AM/A           ","APPLE PENCIL (1ST GENERATION)",89,87.16,99,"iPad 9th gen","Stylus"]
["8NW992","MY5G2LL/A","HOMEPOD MINI - SPACE GRAY",89,87.16,99,null,"Speaker"]
["8NW993","MY5H2LL/A","HOMEPOD MINI - WHITE     ",89,87.16,99,null,"Speaker"]
["9YG954","MJ2C3LL/A","HOMEPOD MINI - BLUE",89,87.16,99,null,"Speaker"]
["9YG955","MJ2D3LL/A","HOMEPOD MINI - ORANGE",89,87.16,99,null,"Speaker"]
["9YG956","MJ2E3LL/A","HOMEPOD MINI - YELLOW",89,87.16,99,null,"Speaker"]
["9HK856","MK2A3LL/A","MAGIC KEYBOARD SILVER",86,84.23,99,"Mac mini","Mice and keyboards"]
["9HK856","MK2A3LL/A","MAGIC KEYBOARD SILVER",86,84.23,99,"Macbook Pro 13\"","Mice and keyboards"]
["9HK856","MK2A3LL/A","MAGIC KEYBOARD SILVER",86,84.23,99,"Macbook Air 13\"","Mice and keyboards"]
["9HK856","MK2A3LL/A","MAGIC KEYBOARD SILVER",86,84.23,99,"Macbook Pro 16\" Intel","Mice and keyboards"]
["9HK856","MK2A3LL/A","MAGIC KEYBOARD SILVER",86,84.23,99,"Mac Pro","Mice and keyboards"]
["9YG957","MLYU3AM/A","Apple 140W USB-C POWER ADAPTER",86,84.23,99,"Macbook Pro 16\" M1","Power and cables"]
["9HK856","MK2A3LL/A","MAGIC KEYBOARD SILVER",86,84.23,99,"Macbook Pro 16\" M1","Mice and keyboards"]
["9HK856","MK2A3LL/A","MAGIC KEYBOARD SILVER",86,84.23,99,"Macbook Pro 14\" M1","Mice and keyboards"]
["03WQ99","MMMQ3AM/A","Magic Mouse - Black Multi-Touch Surface",86,84.23,99,null,"Mice and keyboards"]
["9CL942","MX542AM/A","AIRTAG (4 PACK)",78,76.39,99]
["9CM027","MJMG3ZM/A","SMART FOLIO FOR IPAD PRO 12.9-INCH (5TH GENERATION) - BLACK",78,76.39,99,"iPad Pro 12.9\"","ipad cases"]
["9CM028","MJMH3ZM/A","SMART FOLIO FOR IPAD PRO 12.9-INCH (5TH GENERATION) - WHITE",78,76.39,99,"iPad Pro 12.9\"","ipad cases"]
["9CM029","MJMJ3ZM/A","SMART FOLIO FOR IPAD PRO 12.9-INCH (5TH GENERATION) - DEEP NAVY",78,76.39,99,"iPad Pro 12.9\"","ipad cases"]
["9CL942","MX542AM/A","AIRTAG 4 PACK  ",78,76.39,98,"Airtag"]
["9HH741","MJWY3AM/A","MAGSAFE BATTERY PACK  ",78,76.39,98,"iPhone Power"]
["9HK859","MK2E3AM/A","MAGIC MOUSE WHITE",69,67.58,79,"Mac mini","Mice and keyboards"]
["9HK859","MK2E3AM/A","MAGIC MOUSE WHITE",69,67.58,79,"Macbook Pro 13\"","Mice and keyboards"]
["9HK859","MK2E3AM/A","MAGIC MOUSE WHITE",69,67.58,79,"Macbook Air 13\"","Mice and keyboards"]
["9HK859","MK2E3AM/A","MAGIC MOUSE WHITE",69,67.58,79,"Macbook Pro 16\" Intel","Mice and keyboards"]
["9HK859","MK2E3AM/A","MAGIC MOUSE WHITE",69,67.58,79,"Mac Pro","Mice and keyboards"]
["7DT885","MX0J2AM/A","APPLE 96W USB-C POWER ADAPTER",69,67.58,67.58,"Macbook Pro 14\" M1","Power and cables"]
["9HK859","MK2E3AM/A","MAGIC MOUSE WHITE",69,67.58,79,"Macbook Pro 14\" M1","Mice and keyboards"]
["9HK859","MK2E3AM/A","MAGIC MOUSE WHITE",69,67.58,79,"Macbook Pro 16\" M1","Mice and keyboards"]
["9HK859","MK2E3AM/A","MAGIC MOUSE WHITE",69,67.58,79,"Macbook Pro 14\" M1","Mice and keyboards"]
["6KY360","MR8U2AM/A","WIRELESS CHARGING CASE FOR AIRPODS",62,60.72,79,null,"Headphones"]
["8HH960","MH0D3ZM/A","SMART FOLIO FOR IPAD AIR BLACK GEN 4 AND 5       ",62,60.72,79,"iPad Air 5th gen","ipad cases"]
["9CM024","MJM93ZM/A","SMART FOLIO FOR IPAD PRO 11-INCH (3RD GENERATION) - BLACK",62,60.72,79,"iPad Pro 11\"","ipad cases"]
["6KY360","MR8U2AM/A","AIRPODS WRLS CHARGING CASE ONLY *NOT COMPATIBLE WITH AIRPODS PRO",62,60.72,78,"iPhone headphones"]
["6KY360","MR8U2AM/A","AIRPODS WRLS CHARGING CASE ONLY *NOT COMPATIBLE WITH AIRPODS PRO",62,60.72,78,"Watch headphones"]
["ZG6832","MJ1L2AM/A","USB-C VGA MULTIPORT ADAPTER  ",60,58.76,69,"iPad Pro 11\"","Power and cables"]
["ZG6832","MJ1L2AM/A","USB-C VGA MULTIPORT ADAPTER  ",60,58.76,69,"iPad Pro 12.9\"","Power and cables"]
["ZG6832","MJ1L2AM/A","USB-C VGA MULTIPORT ADAPTER  ",60,58.76,69,"Macbook Air 13\"","Power and cables"]
["ZG6832","MJ1L2AM/A","USB-C VGA MULTIPORT ADAPTER  ",60,58.76,69,"Macbook Pro 13\"","Power and cables"]
["ZG6832","MJ1L2AM/A","USB-C VGA MULTIPORT ADAPTER  ",60,58.76,69,"Macbook Pro 16\" Intel","Power and cables"]
["ZG6832","MJ1L2AM/A","USB-C VGA MULTIPORT ADAPTER  ",60,58.76,69,"Mac Mini","Power and cables"]
["ZG6832","MJ1L2AM/A","USB-C VGA MULTIPORT ADAPTER  ",60,58.76,69,"Mac Pro","Power and cables"]
["6VD794","MUF82AM/A","USB-C DIGITAL AV MULTIPORT ADAPTER",60,58.76,69,"Mac mini","Power and cables"]
["6VD794","MUF82AM/A","USB-C DIGITAL AV MULTIPORT ADAPTER",60,58.76,69,"Macbook Pro 13\"","Power and cables"]
["6VD794","MUF82AM/A","USB-C DIGITAL AV MULTIPORT ADAPTER",60,58.76,69,"Macbook Air 13\"","Power and cables"]
["6VD794","MUF82AM/A","USB-C DIGITAL AV MULTIPORT ADAPTER",60,58.76,69,"Macbook Pro 16\" Intel","Power and cables"]
["6VD794","MUF82AM/A","USB-C DIGITAL AV MULTIPORT ADAPTER",60,58.76,69,"Mac Pro","Power and cables"]
["6VD794","MUF82AM/A","USB-C DIGITAL AV MULTIPORT ADAPTER",60,58.76,69,"iPad Pro 11\"","Power and cables"]
["6VD794","MUF82AM/A","USB-C DIGITAL AV MULTIPORT ADAPTER",60,58.76,69,"iPad Pro 12.9\"","Power and cables"]
["ZG6832","MJ1L2AM/A           ","USB-C VGA MULTIPORT ADAPTER                                       ",60,58.76,69,"Mac mini","Power and cables"]
["ZG6832","MJ1L2AM/A           ","USB-C VGA MULTIPORT ADAPTER                                       ",60,58.76,69,"Macbook Pro 13\"","Power and cables"]
["ZG6832","MJ1L2AM/A           ","USB-C VGA MULTIPORT ADAPTER                                       ",60,58.76,69,"Macbook Air 13\"","Power and cables"]
["ZG6832","MJ1L2AM/A           ","USB-C VGA MULTIPORT ADAPTER                                       ",60,58.76,69,"Macbook Pro 16\" Intel","Power and cables"]
["ZG6832","MJ1L2AM/A           ","USB-C VGA MULTIPORT ADAPTER                                       ",60,58.76,69,"Mac Pro","Power and cables"]
["ZG6832","MJ1L2AM/A           ","USB-C VGA MULTIPORT ADAPTER                                       ",60,58.76,69,"iPad Pro 11\"","Power and cables"]
["ZG6832","MJ1L2AM/A           ","USB-C VGA MULTIPORT ADAPTER                                       ",60,58.76,69,"iPad Pro 12.9\"","Power and cables"]
["ZG6832","MJ1L2AM/A","USB-C VGA MULTIPORT ADAPTER  ",60,58.76,69,"Macbook Pro 16\" M1","Power and cables"]
["6VD794","MUF82AM/A","USB-C DIGITAL AV MULTIPORT ADAPTER",60,58.76,69,"Macbook Pro 16\" M1","Power and cables"]
["ZG6832","MJ1L2AM/A           ","USB-C VGA MULTIPORT ADAPTER                                       ",60,58.76,69,"Macbook Pro 16\" M1","Power and cables"]
["ZG6832","MJ1L2AM/A","USB-C VGA MULTIPORT ADAPTER  ",60,58.76,69,"Macbook Pro 14\" M1","Power and cables"]
["6VD794","MUF82AM/A","USB-C DIGITAL AV MULTIPORT ADAPTER",60,58.76,69,"Macbook Pro 14\" M1","Power and cables"]
["ZG6832","MJ1L2AM/A           ","USB-C VGA MULTIPORT ADAPTER                                       ",60,58.76,69,"Macbook Pro 14\" M1","Power and cables"]
["9CL962","MJFM3LL/A","SIRI REMOTE",51,49.95,59,"Apple TV"]
["9ZN570","MKU63AM/A","67W USB-C POWER ADAPTER",51,49.95,59,null,"Power and cables"]
["07DV69","MNWM3AM/A","35W Dual USB-C Port Compact Power Adapter",51,49.95,59,"Macbook Air 13\" M2","Power and cables"]
["07DV70","MNWP3AM/A","35W Dual USB-C Port Power Adapter",51,49.95,59,"Macbook Air 13\" M2","Power and cables"]
["8NX093","MHK73ZM/A","IPHONE 12 MINI LEATHER CASE WITH MAGSAFE - (PRODUCT)RED",47,46.03,59,"iPhone 12 mini","iPhone cases"]
["8NX094","MHK93ZM/A","IPHONE 12 MINI LEATHER CASE WITH MAGSAFE - SADDLE BROWN",47,46.03,59,"iPhone 12 mini","iPhone cases"]
["8NX095","MHKA3ZM/A","IPHONE 12 MINI LEATHER CASE WITH MAGSAFE - BLACK",47,46.03,59,"iPhone 12 mini","iPhone cases"]
["8NX096","MHKD3ZM/A","IPHONE 12 | 12 PRO LEATHER CASE WITH MAGSAFE - (PRODUCT)RED",47,46.03,59,"iPhone 12 | 12 Pro","iPhone cases"]
["8NX097","MHKF3ZM/A","IPHONE 12 | 12 PRO LEATHER CASE WITH MAGSAFE - SADDLE BROWN",47,46.03,59,"iPhone 12 | 12 Pro","iPhone cases"]
["8NX098","MHKG3ZM/A","IPHONE 12 | 12 PRO LEATHER CASE WITH MAGSAFE - BLACK",47,46.03,59,"iPhone 12 | 12 Pro","iPhone cases"]
["8NX099","MHKJ3ZM/A","IPHONE 12 PRO MAX LEATHER CASE WITH MAGSAFE - (PRODUCT)RED",47,46.03,59,"iPhone 12 Pro max","iPhone cases"]
["8NX100","MHKL3ZM/A","IPHONE 12 PRO MAX LEATHER CASE WITH MAGSAFE - SADDLE BROWN",47,46.03,59,"iPhone 12 Pro max","iPhone cases"]
["8NX101","MHKM3ZM/A","IPHONE 12 PRO MAX LEATHER CASE WITH MAGSAFE - BLACK",47,46.03,59,"iPhone 12 Pro max","iPhone cases"]
["9MM438","MM6G3ZM/A","SMART FOLIO FOR IPAD MINI (6TH GENERATION) - BLACK",47,46.03,59,"iPad mini 6","ipad cases"]
["9MM439","MM6H3ZM/A","SMART FOLIO FOR IPAD MINI (6TH GENERATION) - WHITE",47,46.03,59,"iPad mini 6","ipad cases"]
["9MM415","MM0Y3ZM/A","IPHONE LEATHER WALLET WITH MAGSAFE MIDNIGHT *BUY CASE PK 10",47,46.03,59,"IPHONE","IPHONE CASE"]
["9MM410","MM0M3ZM/A","IPHONE 13 MINI LEATHER CASE MAGSAFE MIDNIGHT *BUY CASE PK 10",47,46.03,59,"IPHONE 13","IPHONE CASE"]
["9MM417","MM183ZM/A","IPHONE 13 LEATHER CASE WITH MAGSAFE MIDNIGHT *NO RETURNS",47,46.03,59,"IPHONE 13","IPHONE CASE"]
["9MM419","MM1H3ZM/A","IPHONE 13 PRO LEATHER CASE MAGSAFE MIDNIGHT *NO RETURNS",47,46.03,59,"IPHONE 13","IPHONE CASE"]
["9MM421","MM1R3ZM/A","IPHONE 13 PRO MAX LEATHER CASE MAGSAFE MIDNIGHT *BUY CASE PK 10",47,46.03,59,"IPHONE 13","IPHONE CASE"]
["9MM411","MM0Q3ZM/A","IPHONE LEATHER WALLET MAGSAFE GOLDEN BROWN *NO RETURNS",47,46.03,59,"iPhone Wallets"]
["9MM412","MM0T3ZM/A","IPHONE LEATHER WALLET WITH MAGSAFE DARK CHERRY *BUY CASE 10",47,46.03,59,"iPhone Wallets"]
["9MM413","MM0W3ZM/A","IPHONE LEATHER WALLET WITH MAGSAFE WISTERIA *BUY CASE 10",47,46.03,59,"iPhone Wallets"]
["9MM414","MM0X3ZM/A","IPHONE LEATHER WALLET WITH MAGSAFE SEQUOIA GREEN *BUY CASE 10",47,46.03,59,"iPhone Wallets"]
["9MM415","MM0Y3ZM/A","IPHONE LEATHER WALLET WITH MAGSAFE MIDNIGHT *BUY CASE PK 10",47,46.03,59,"iPhone Wallets"]
["7M4452","MMEL2AM/A","THUNDERBOLT 3 (USB-C) TO THUNDERBOLT 2 ADAPTER",43,42.11,49,"Macbook Air 13\"","Power and cables"]
["7M4452","MMEL2AM/A","THUNDERBOLT 3 (USB-C) TO THUNDERBOLT 2 ADAPTER",43,42.11,49,"Macbook Pro 13\"","Power and cables"]
["7M4452","MMEL2AM/A","THUNDERBOLT 3 (USB-C) TO THUNDERBOLT 2 ADAPTER",43,42.11,49,"Macbook Pro 16\" Intel","Power and cables"]
["7M4452","MMEL2AM/A","THUNDERBOLT 3 (USB-C) TO THUNDERBOLT 2 ADAPTER",43,42.11,49,"Mac Mini","Power and cables"]
["7M4452","MMEL2AM/A","THUNDERBOLT 3 (USB-C) TO THUNDERBOLT 2 ADAPTER",43,42.11,49,"Mac Pro","Power and cables"]
["7M4452","MMEL2AM/A","THUNDERBOLT 3 (USB-C) TO THUNDERBOLT 2 ADAPTER",43,42.11,49,"iPad Pro 11\"","Power and cables"]
["7M4452","MMEL2AM/A","THUNDERBOLT 3 (USB-C) TO THUNDERBOLT 2 ADAPTER",43,42.11,49,"iPad Pro 12.9\"","Power and cables"]
["9YG958","MLYV3AM/A","USB-C TO MAGSAFE 3 CABLE (2 M)",43,42.11,49,"Macbook Pro 14\" M1","Power and cables"]
["9YG958","MLYV3AM/A","USB-C TO MAGSAFE 3 CABLE (2 M)",43,42.11,49,"Macbook Pro 16\" M1","Power and cables"]
["7M4452","MMEL2AM/A","THUNDERBOLT 3 (USB-C) TO THUNDERBOLT 2 ADAPTER",43,42.11,49,"Macbook Pro 16\" M1","Power and cables"]
["7M4452","MMEL2AM/A","THUNDERBOLT 3 (USB-C) TO THUNDERBOLT 2 ADAPTER",43,42.11,49,"Macbook Pro 14\" M1","Power and cables"]
["1X5253","MD825AM/A           ","LIGHTNING TO VGA ADAPTER                                          ",39,38.200000000000003,49,null,"Power and cables"]
["YZ7155","MD826AM/A           ","LIGHTNING DIGITAL AV ADAPTER                                      ",39,38.200000000000003,49,null,"Power and cables"]
["6KX793","MVQ32ZM/A","SMART COVER FOR 10.5IN IPAD AIR - WHITE",39,38.200000000000003,49,"iPad 9th gen","ipad cases"]
["1X5253","MD825AM/A           ","LIGHTNING TO VGA ADAPTER                                          ",39,38.200000000000003,49,"iPad 9th gen","Power and cables"]
["YZ7155","MD826AM/A           ","LIGHTNING DIGITAL AV ADAPTER                                      ",39,38.200000000000003,49,"iPad 9th gen","Power and cables"]
["8NX105","MHKX3ZM/A","IPHONE 12 MINI SILICONE CASE WITH MAGSAFE - BLACK",39,38.200000000000003,49,"iPhone 12 mini","iPhone cases"]
["8NX109","MHL73ZM/A","IPHONE 12 | 12 PRO SILICONE CASE WITH MAGSAFE - BLACK",39,38.200000000000003,49,"iPhone 12 | 12 Pro","iPhone cases"]
["8NX113","MHLG3ZM/A","IPHONE 12 PRO MAX SILICONE CASE WITH MAGSAFE - BLACK",39,38.200000000000003,49,"iPhone 12 Pro max","iPhone cases"]
["8NX114","MHLL3ZM/A","IPHONE 12 MINI CLEAR CASE WITH MAGSAFE",39,38.200000000000003,49,"iPhone 12 mini","iPhone cases"]
["8NX115","MHLM3ZM/A","IPHONE 12 | 12 PRO CLEAR CASE WITH MAGSAFE",39,38.200000000000003,49,"iPhone 12 Pro clear","iPhone cases"]
["8NX116","MHLN3ZM/A","IPHONE 12 PRO MAX CLEAR CASE WITH MAGSAFE",39,38.200000000000003,49,"iPhone 12 Pro max","iPhone cases"]
["8NX102","MHKU3ZM/A","IPHONE 12 MINI SILICONE CASE WITH MAGSAFE - DEEP NAVY",39,38.200000000000003,49,"iPhone 12 mini","iPhone cases"]
["8NX103","MHKV3ZM/A","IPHONE 12 MINI SILICONE CASE WITH MAGSAFE - WHITE",39,38.200000000000003,49,"iPhone 12 mini","iPhone cases"]
["8NX106","MHL43ZM/A","IPHONE 12 | 12 PRO SILICONE CASE WITH MAGSAFE - DEEP NAVY",39,38.200000000000003,49,"iPhone 12 | 12 Pro","iPhone cases"]
["8NX107","MHL53ZM/A","IPHONE 12 | 12 PRO SILICONE CASE WITH MAGSAFE - WHITE",39,38.200000000000003,49,"iPhone 12 | 12 Pro","iPhone cases"]
["8NX108","MHL63ZM/A","IPHONE 12 | 12 PRO SILICONE CASE WITH MAGSAFE - (PRODUCT)RED",39,38.200000000000003,49,"iPhone 12 | 12 Pro","iPhone cases"]
["8NX110","MHLD3ZM/A","IPHONE 12 PRO MAX SILICONE CASE WITH MAGSAFE - DEEP NAVY",39,38.200000000000003,49,"iPhone 12 Pro max","iPhone cases"]
["8JC404","MX4U2ZM/A ","SMART BLACK COVER FOR IPAD 9TH ACCS GENERATION                         ",39,38.200000000000003,49,"iPad 9th gen","ipad cases"]
["8NX111","MHLE3ZM/A","IPHONE 12 PRO MAX SILICONE CASE WITH MAGSAFE - WHITE",39,38.200000000000003,49,"iPhone 12 Pro max","iPhone cases"]
["8NX112","MHLF3ZM/A","IPHONE 12 PRO MAX SILICONE CASE WITH MAGSAFE - (PRODUCT)RED",39,38.200000000000003,49,"iPhone 12 Pro max","iPhone cases"]
["8NX114","MHLL3ZM/A","IPHONE 12 MINI CLEAR CASE MAGSAFE  *BUY CASE 10 *NO RETURNS",39,38.200000000000003,49,"IPHONE 12","IPHONE CASE"]
["8NX105","MHKX3ZM/A","IPHONE 12 MINI BLACK SILCONE CS MAGSAFE *NO RETURNS",39,38.200000000000003,49,"IPHONE 12","IPHONE CASE"]
["8NX115","MHLM3ZM/A","IPHONE 12-12 PRO CLEAR CASE MAGSAFE *NO RETURNS",39,38.200000000000003,49,"IPHONE 12 | 12","IPHONE CASE"]
["8NX109","MHL73ZM/A","IPHONE 12-12PRO BLACK SILICONE MAGSAFE CASE *NO RETURNS",39,38.200000000000003,49,"IPHONE 12 | 12","IPHONE CASE"]
["8NX116","MHLN3ZM/A","IPHONE 12PRO MAX CLEAR CASE MAGSAFE  *NO RETURNS",39,38.200000000000003,49,"IPHONE 12","IPHONE CASE"]
["8NX113","MHLG3ZM/A","IPHONE 12PRO MAX BLACK SILICONE MAGSAFE CASE *NO RETURNS",39,38.200000000000003,49,"IPHONE 12","IPHONE CASE"]
["9MM422","MM203ZM/A","IPHONE 13 MINI SILICONE CASE MAGSAFE CHALK PINK *BUY CASE PK 10",39,38.200000000000003,49,"IPHONE 13","IPHONE CASE"]
["9MM423","MM213ZM/A","IPHONE 13 MINI SILICONE CASE MAGSAFE ABYSS BLUE *BUY CASE PK 10",39,38.200000000000003,49,"IPHONE 13","IPHONE CASE"]
["9MM434","MM2W3ZM/A","IPHONE 13 MINI CLEAR CASE MAGSAFE *BUY CASE 10 *NO RETURNS",39,38.200000000000003,49,"IPHONE 13","IPHONE CASE"]
["9MM425","MM283ZM/A","IPHONE 13 SILICONE CASE MAGSAFE CHALK PINK *BUY CASE PK 10",39,38.200000000000003,49,"IPHONE 13","IPHONE CASE"]
["9MM426","MM293ZM/A","IPHONE 13 SILICONE CASE MAGSAFE ABYSS BLUE *BUY CASE PK 10",39,38.200000000000003,49,"IPHONE 13","IPHONE CASE"]
["9MM427","MM2A3ZM/A","IPHONE 13 SILICONE CASE MAGSAFE MIDNIGHT *NO RETURNS",39,38.200000000000003,49,"IPHONE 13","IPHONE CASE"]
["9MM435","MM2X3ZM/A","IPHONE 13 CLEAR CASE MAGSAFE *NO RETURNS",39,38.200000000000003,49,"IPHONE 13","IPHONE CASE"]
["9MM428","MM2H3ZM/A","IPHONE 13 PRO SILICONE CASE MAGSAFE CHALK PINK *BUY CASE PK 10",39,38.200000000000003,49,"IPHONE 13","IPHONE CASE"]
["9MM429","MM2J3ZM/A","IPHONE 13 PRO SILICONE CASE MAGSAFE ABYSS BLUE *NO RETURNS",39,38.200000000000003,49,"IPHONE 13","IPHONE CASE"]
["9MM430","MM2K3ZM/A","IPHONE 13 PRO SILICONE CASE MAGSAFE MIDNIGHT *NO RETURNS",39,38.200000000000003,49,"IPHONE 13","IPHONE CASE"]
["9MM436","MM2Y3ZM/A","IPHONE 13 PRO CLEAR CASE MAGSAFE *NO RETURNS",39,38.200000000000003,49,"IPHONE 13","IPHONE CASE"]
["9MM431","MM2R3ZM/A","IPHONE 13 PRO MAX SILICONE CASE MAGSAFE CHALK PINK *BUY CASE PK 10",39,38.200000000000003,49,"IPHONE 13","IPHONE CASE"]
["9MM432","MM2T3ZM/A","IPHONE 13 PRO MAX SILICONE CASE MAGSAFE ABYSS BLUE *NO RETURNS",39,38.200000000000003,49,"IPHONE 13","IPHONE CASE"]
["9MM433","MM2U3ZM/A","IPHONE 13 PRO MAX SILICONE CASE MAGSAFE  MIDNIGHT *NO RETURNS",39,38.200000000000003,49,"IPHONE 13","IPHONE CASE"]
["9MM437","MM313ZM/A","IPHONE 13 PRO MAX CLEAR CASE MAGSAFE *NO RETURNS",39,38.200000000000003,49,"IPHONE 13","IPHONE CASE"]
["9MM393","MKU73AM/A","41MM CLOVER SPORT BAND REG *BUY CASE PK 4",39,38.200000000000003,49,"APPLE WATCH"]
["9MM394","MKU83AM/A","41MM MIDNIGHT SPORT BAND RE .",39,38.200000000000003,49,"APPLE WATCH"]
["9MM395","MKU93AM/A","41MM STARLIGHT SPORT BAND REG *BUY CASE PACK 4",39,38.200000000000003,49,"APPLE WATCH"]
["9MM396","MKUE3AM/A","41MM ABYSS BLUE SPORT BAND *BUY CASE PACK 4",39,38.200000000000003,49,"APPLE WATCH"]
["9MM401","ML2U3AM/A","41MM BLACK NIKE SPORT LOOP .",39,38.200000000000003,49,"APPLE WATCH"]
["9MM403","ML833AM/A","41MM ANTH/BLACK NIKE SPORT BAND *BUY CASE PACK 4",39,38.200000000000003,49,"APPLE WATCH"]
["9MM404","ML843AM/A","41MM PLAT/BLACK NIKE SPORT BAND *BUY CASE PACK 4",39,38.200000000000003,49,"APPLE WATCH"]
["8TW212","MJ4V3AM/A","WATCH BAND 40MM BLACK UNITY SPORT BAND - REGULAR *BUY CASE 4",39,38.200000000000003,49,"APPLE WATCH"]
["9MM397","MKUN3AM/A","45MM CLOVER SPORT BAND *BUY CASE PACK 4",39,38.200000000000003,49,"APPLE WATCH"]
["9MM398","MKUQ3AM/A","45MM MIDNIGHT SPORT BAND .",39,38.200000000000003,49,"APPLE WATCH"]
["9MM399","MKUU3AM/A","45MM STARLIGHT SPORT BAND .",39,38.200000000000003,49,"APPLE WATCH"]
["9MM400","MKUW3AM/A","45MM ABYSS BLUE SPORT BAND *BUY CASE PACK 4",39,38.200000000000003,49,"APPLE WATCH"]
["9MM402","ML343AM/A","45MM BLACK NIKE SPORT LOOP  ",39,38.200000000000003,49,"APPLE WATCH"]
["9MM405","ML883AM/A","45MM ANTH/BLACK NIKE SPORT BAND  ",39,38.200000000000003,49,"APPLE WATCH"]
["9MM406","ML893AM/A","45MM PLAT/BLACK NIKE SPORT BAND  ",39,38.200000000000003,49,"APPLE WATCH"]
["9MM408","MLYT3AM/A","45MM MIDNIGHT SPORT BAND X LG EXTRA LARGE *BUY CASE PACK 4",39,38.200000000000003,49,"APPLE WATCH"]
["8TW213","MJ4W3AM/A","WATCH BAND 44MM BLACK UNITY SPORT BAND - REGULAR *BUY CASE 4",39,38.200000000000003,49,"APPLE WATCH"]
["1X5253","MD825AM/A","LIGHTNING TO VGA ADAPTER  ",39,38.200000000000003,49,"iPhone cables and docks"]
["YZ7155","MD826AM/A","LIGHTNING DIGITAL AV ADAPTER .",39,38.200000000000003,49,"iPhone cables and docks"]
["8HF295","MY1W2AM/A","APPLE 30W USB-C POWER ADAPTER",34,33.299999999999997,39,"Macbook Air 13\"","Power and cables"]
["2MZ843","MQ4H2AM/A","THUNDERBOLT 3 (USB-C) CABLE 0.8M",34,33.299999999999997,39,null,"Power and cables"]
["ZN9915","MD861LL/A           ","THUNDERBOLT CABLE 2M                                       ",34,33.299999999999997,39,null,"Power and cables"]
["5KY934","MUFG2AM/A","USB-C TO SD CARD READER",34,33.299999999999997,39,null,"Power and cables"]
["8HF295","MY1W2AM/A","30W USB-C POWER ADAPTER PACKAGE CHANGE",34,33.299999999999997,39,"iPhone Power"]
["1V7511","MK0W2AM/A           ","LIGHTNING TO USB3 CAMERA ADAPTER                            ",31,30.36,39,null,"Power and cables"]
["6YH571","MWVG2ZM/A","IPHONE 11 CLEAR CASE",31,30.36,39,"iPhone 11","iPhone cases"]
["6YH572","MWVU2ZM/A","IPHONE 11 SILICONE CASE - BLACK",31,30.36,39,"iPhone 11","iPhone cases"]
["1V7511","MK0W2AM/A           ","LIGHTNING TO USB3 CAMERA ADAPTER                            ",31,30.36,39,"iPad 9th gen","Power and cables"]
["8NX092","MHXH3AM/A","MAGSAFE CHARGER",31,30.36,39,null,"Power and cables"]
["9CL959","MX4A2ZM/A","AIRTAG LEATHER LOOP - SADDLE BROWN",31,30.36,39]
["6YH571","MWVG2ZM/A","IPHONE 11 CLEAR CASE * NO RETURNS *BUY CASE PK 10",31,30.36,39,"IPHONE 11","IPHONE CASE"]
["6YH572","MWVU2ZM/A","IPHONE 11 SILICONE CASE BLACK * NO RETURNS",31,30.36,39,"IPHONE 11","IPHONE CASE"]
["6YH595","MX0H2ZM/A","IPHONE 11 PRO MAX CLEAR CASE * NO RETURNS *BUY CASE PK 10",31,30.36,39,"IPHONE 11","IPHONE CASE"]
["9CL959","MX4A2ZM/A","AIRTAG LEATHER LOOP BROWN SADDLE BROWN",31,30.36,39,"Airtag"]
["8NX092","MHXH3AM/A","MAGSAFE CHARGER  ",31,30.36,39,"iPhone Power"]
["1V7511","MK0W2AM/A","LIGHTNING TO USB3 CAMERA ADAPTR ADAPTER",31,30.36,39,"iPhone cables and docks"]
["9CL958","MK103ZM/A","AIRTAG LEATHER KEY RING - (PRODUCT)RED",28,27.42,35]
["9MM440","MMF93ZM/A","AIRTAG LEATHER KEY RING - MIDNIGHT",28,27.42,35,"Airtag"]
["9MM441","MMFA3ZM/A","AIRTAG LEATHER KEY RING - GOLDEN BROWN",28,27.42,35,"Airtag"]
["9MM442","MMFC3ZM/A","AIRTAG LEATHER KEY RING - WISTERIA",28,27.42,35,"Airtag"]
["7TL027","MXYH2ZM/A","IPHONE SE SILICONE CASE BLACK NO RETURNS  *ORDER CASE OF 10",28,27.42,35,"IPHONE SE","IPHONE CASE"]
["7TL028","MXYJ2ZM/A","IPHONE SE SILICONE CASE WHITE BUY 10 CASE *NO RETURNS",28,27.42,35,"IPHONE SE","IPHONE CASE"]
["7TL029","MXYK2ZM/A","IPHONE SE SILICONE CASE PINK NO RETURNS",28,27.42,35,"IPHONE SE","IPHONE CASE"]
["9CL958","MK103ZM/A","AIRTAG LEATHER KEY RING RED  ",28,27.42,35,"Airtag"]
["9MM440","MMF93ZM/A","AIRTAG LEATHER KEY RING MIDNIGHT",28,27.42,35,"Airtag"]
["9MM441","MMFA3ZM/A","AIRTAG LEATHER KEY RING GOLDEN BROWN",28,27.42,35,"Airtag"]
["9MM442","MMFC3ZM/A","AIRTAG LEATHER KEY RING WISTERIA",28,27.42,35,"Airtag"]
["8TQ522","MXK22AM/A","LIGHTNING TO 3.5MM AUDIO CABLE WHITE",28,27.42,35,"iPhone cables and docks"]
["03WQ94","MN6E3ZM/A","iPhone SE Silicone Case - Midnight",28,27.42,35,"iPhone SE","ipHONE CASE"]
["03WQ94","MN6E3ZM/A","iPhone SE Silicone Case Midnight",28,27.42,35,"iPhone SE","ipHONE CASE"]
["1E3275","MD463LL/A           ","THUNDERBOLT GIGABIT ETHERNET ADAPTER                            ",25,24.48,29,null,"Power and cables"]
["1A7776","MD464LL/A           ","THUNDERBOLT TO FIREWIRE ADAPTER                                   ",25,24.48,29,null,"Power and cables"]
["ZK7496","MD862LL/A","THUNDERBOLT CABLE 0.5M",25,24.48,29,null,"Power and cables"]
["1E3275","MD463LL/A","THUNDERBOLT GIGABIT ETHERNET ADAPTER",25,24.48,31,"iPhone cables and docks"]
["9HK860","MQGH2AM/A","USB-C TO LIGHTNING CABLE (2 M)",23,22.53,29,null,"Power and cables"]
["9HK860","MQGH2AM/A","USB-C TO LIGHTNING CABLE (2 M)",23,22.53,29,"iPad 9th gen","Power and cables"]
["YW4641","MD837AM/A","WORLD TRAVEL ADAPTER KIT ",23,22.53,29,"Macbook Air 13\"","Power and cables"]
["YW4641","MD837AM/A","WORLD TRAVEL ADAPTER KIT ",23,22.53,29,"Macbook Pro 13\"","Power and cables"]
["YW4641","MD837AM/A","WORLD TRAVEL ADAPTER KIT ",23,22.53,29,"Macbook Pro 16\" Intel","Power and cables"]
["YW4641","MD837AM/A           ","WORLD TRAVEL ADAPTER KIT NO 30 PIN ADAPTER CABLE            ",23,22.53,29,null,"Power and cables"]
["1Z0409","MD819AM/A           ","LIGHTNING TO USB CABLE 2M                           ",23,22.53,29,null,"Power and cables"]
["1A7774","MD821AM/A           ","LIGHTNING TO USB CAMERA ADAPTER                                   ",23,22.53,29,null,"Power and cables"]
["2Z8537","MJYT2AM/A","LIGHTNING TO SD CARD CAMERA RDR USB3",23,22.53,29,null,"Power and cables"]
["6YH555","MX2E2AM/A","APPLE WATCH MAGNETIC USB CHARGING CABLE 1M",23,22.53,29,"Apple Watch","Power and cables"]
["1A7774","MD821AM/A           ","LIGHTNING TO USB CAMERA ADAPTER                                   ",23,22.53,29,"iPad 9th gen","Power and cables"]
["2Z8537","MJYT2AM/A","LIGHTNING TO SD CARD CAMERA RDR USB3",23,22.53,29,"iPad 9th gen","Power and cables"]
["1Z0409","MD819AM/A           ","LIGHTNING TO USB CABLE 2M                           ",23,22.53,29,"iPad 9th gen","Power and cables"]
["9CL941","MX532AM/A","AIRTAG (1 PACK)",23,22.53,29]
["9CL960","MX4F2ZM/A","AIRTAG LOOP - WHITE",23,22.53,29]
["YW4641","MD837AM/A","WORLD TRAVEL ADAPTER KIT ",23,22.53,29,"Macbook Pro 16\" M1","Power and cables"]
["YW4641","MD837AM/A","WORLD TRAVEL ADAPTER KIT ",23,22.53,29,"Macbook Pro 14\" M1","Power and cables"]
["9MM407","MLWJ3AM/A","WATCH MAGNETIC FAST CHARGER TO USB-C CABLE 1 M",23,22.53,29,"APPLE WATCH"]
["6YH555","MX2E2AM/A","APPLE WATCH MAGNTC CABLE 1 M CHARGING CABLE",23,22.53,29,"APPLE WATCH"]
["9CL941","MX532AM/A","AIRTAG 1PK  ",23,22.53,29,"Airtag"]
["9CL960","MX4F2ZM/A","AIRTAG LOOP - WHITE  ",23,22.53,29,"Airtag"]
["YW4641","MD837AM/A","WORLD TRAVEL ADAPTER KIT NO 30 PIN ADAPTER CABLE",23,22.53,29,"iPhone Power"]
["1Z0409","MD819AM/A","LIGHTNING TO USB CABLE 2M 6FT",23,22.53,29,"iPhone cables and docks"]
["1A7774","MD821AM/A","LIGHTNING TO USB CAMERA ADAPTER .",23,22.53,29,"iPhone cables and docks"]
["2Z8537","MJYT2AM/A","LIGHTNING TO SD CARD CAMERA RDR USB3",23,22.53,29,"iPhone cables and docks"]
["9HK860","MQGH2AM/A","USB-C TO LIGHTNING CABLE 2 M  ",23,22.53,29,"iPhone cables and docks"]
["9MM407","MLWJ3AM/A","WATCH MAGNETIC FAST CHARGER TO USB-C CABLE 1 M",23,22.53,29,"Watch Cables & Docks"]
["6YH555","MX2E2AM/A","APPLE WATCH MAGNTC CABLE 1 M CHARGING CABLE",23,22.53,29,"Watch Cables & Docks"]
["9MM407","MLWJ3AM/A","WATCH MAGNETIC FAST CHARGER TO USB-C CABLE 1 M",23,22.53,29,"Watch Power"]
["1V7512","MLUN2AM/A           ","APPLE PENCIL TIPS 4PK                                             ",17.100000000000001,16.75,19,null,"Stylus"]
["ZG6833","MJ1M2AM/A","USB-C TO USB ADAPTER  ",16.5,16.16,19,"iPad Pro 11\"","Power and cables"]
["ZG6833","MJ1M2AM/A","USB-C TO USB ADAPTER  ",16.5,16.16,19,"iPad Pro 12.9\"","Power and cables"]
["ZG6833","MJ1M2AM/A","USB-C TO USB ADAPTER  ",16.5,16.16,19,"Macbook Air 13\"","Power and cables"]
["ZG6833","MJ1M2AM/A","USB-C TO USB ADAPTER  ",16.5,16.16,19,"Macbook Pro 13\"","Power and cables"]
["ZG6833","MJ1M2AM/A","USB-C TO USB ADAPTER  ",16.5,16.16,19,"Macbook Pro 16\" Intel","Power and cables"]
["ZG6833","MJ1M2AM/A","USB-C TO USB ADAPTER  ",16.5,16.16,19,"Mac Mini","Power and cables"]
["ZG6833","MJ1M2AM/A","USB-C TO USB ADAPTER  ",16.5,16.16,19,"Mac Pro","Power and cables"]
["7M4451","MLL82AM/A","USB-C CHARGE CABLE (2M)",16.5,16.16,19,"iPad Pro 11\"","Power and cables"]
["7M4451","MLL82AM/A","USB-C CHARGE CABLE (2M)",16.5,16.16,19,"iPad Pro 12.9\"","Power and cables"]
["7M4451","MLL82AM/A","USB-C CHARGE CABLE (2M)",16.5,16.16,19,"Macbook Air 13\"","Power and cables"]
["7M4451","MLL82AM/A","USB-C CHARGE CABLE (2M)",16.5,16.16,19,"Macbook Pro 13\"","Power and cables"]
["7M4451","MLL82AM/A","USB-C CHARGE CABLE (2M)",16.5,16.16,19,"Macbook Pro 16\" Intel","Power and cables"]
["7M4451","MLL82AM/A","USB-C CHARGE CABLE (2M)",16.5,16.16,19,"Mac Mini","Power and cables"]
["7M4451","MLL82AM/A","USB-C CHARGE CABLE (2M)",16.5,16.16,19,"Mac Pro","Power and cables"]
["ZG6836","MK122LL/A           ","POWER ADAPTER EXTENSION CABLE                                     ",16.5,16.16,19,"Macbook Air 13\"","Power and cables"]
["ZG6836","MK122LL/A           ","POWER ADAPTER EXTENSION CABLE                                     ",16.5,16.16,19,"Macbook Pro 13\"","Power and cables"]
["ZG6836","MK122LL/A           ","POWER ADAPTER EXTENSION CABLE                                     ",16.5,16.16,19,"Macbook Pro 16\" Intel","Power and cables"]
["ZG6833","MJ1M2AM/A           ","USB-C TO USB ADAPTER                                              ",16.5,16.16,19,"Mac mini","Power and cables"]
["ZG6833","MJ1M2AM/A           ","USB-C TO USB ADAPTER                                              ",16.5,16.16,19,"Macbook Pro 13\"","Power and cables"]
["ZG6833","MJ1M2AM/A           ","USB-C TO USB ADAPTER                                              ",16.5,16.16,19,"Macbook Air 13\"","Power and cables"]
["ZG6833","MJ1M2AM/A           ","USB-C TO USB ADAPTER                                              ",16.5,16.16,19,"Macbook Pro 16\" Intel","Power and cables"]
["ZG6833","MJ1M2AM/A           ","USB-C TO USB ADAPTER                                              ",16.5,16.16,19,"Mac Pro","Power and cables"]
["ZG6833","MJ1M2AM/A           ","USB-C TO USB ADAPTER                                              ",16.5,16.16,19,"iPad Pro 11\"","Power and cables"]
["ZG6833","MJ1M2AM/A           ","USB-C TO USB ADAPTER                                              ",16.5,16.16,19,"iPad Pro 12.9\"","Power and cables"]
["ZG6833","MJ1M2AM/A","USB-C TO USB ADAPTER  ",16.5,16.16,19,"Macbook Pro 16\" M1","Power and cables"]
["7M4451","MLL82AM/A","USB-C CHARGE CABLE (2M)",16.5,16.16,19,"Macbook Pro 16\" M1","Power and cables"]
["ZG6836","MK122LL/A           ","POWER ADAPTER EXTENSION CABLE                                     ",16.5,16.16,19,"Macbook Pro 16\" M1","Power and cables"]
["ZG6833","MJ1M2AM/A           ","USB-C TO USB ADAPTER                                              ",16.5,16.16,19,"Macbook Pro 16\" M1","Power and cables"]
["ZG6833","MJ1M2AM/A","USB-C TO USB ADAPTER  ",16.5,16.16,19,"Macbook Pro 14\" M1","Power and cables"]
["7M4451","MLL82AM/A","USB-C CHARGE CABLE (2M)",16.5,16.16,19,"Macbook Pro 14\" M1","Power and cables"]
["ZG6836","MK122LL/A           ","POWER ADAPTER EXTENSION CABLE                                     ",16.5,16.16,19,"Macbook Pro 14\" M1","Power and cables"]
["ZG6833","MJ1M2AM/A           ","USB-C TO USB ADAPTER                                              ",16.5,16.16,19,"Macbook Pro 14\" M1","Power and cables"]
["6E3289","MMTN2AM/A","EARPODS WITH LIGHTNING CONNECTOR",15,14.69,29,null,"Headphones"]
["8N5701","MNHF2AM/A","EARPODS WITH 3.5MM HEADPHONE PLUG",15,14.69,29,null,"Headphones"]
["9YG959","MM0A3AM/A","LIGHTNING TO USB-C CABLE 1M ",15,14.69,19,"Macbook Air 13\"","Power and cables"]
["9YG959","MM0A3AM/A","LIGHTNING TO USB-C CABLE 1M ",15,14.69,19,"Macbook Pro 13\"","Power and cables"]
["9YG959","MM0A3AM/A","LIGHTNING TO USB-C CABLE 1M ",15,14.69,19,"Macbook Pro 16\" Intel","Power and cables"]
["9YG959","MM0A3AM/A","LIGHTNING TO USB-C CABLE 1M ",15,14.69,19,"Mac Mini","Power and cables"]
["9YG959","MM0A3AM/A","LIGHTNING TO USB-C CABLE 1M ",15,14.69,19,"Mac Pro","Power and cables"]
["9YG959","MM0A3AM/A","LIGHTNING TO USB-C CABLE 1M ",15,14.69,19,"Airpods","Power and cables"]
["9YG959","MM0A3AM/A","LIGHTNING TO USB-C CABLE 1M ",15,14.69,19,"iPods","Power and cables"]
["3E3819","MM4T2AM/A           ","APPLE REMOTE                                                      ",15,14.69,19,"Apple TV (2nd and 3rd Gen)","Remote and controllers"]
["RA7004","MA591G/C            ","30-PIN TO USB CABLE 1M FOR IPHONE IPAD IPOD             ",15,14.69,19,null,"Power and cables"]
["8NX091","MHJA3AM/A","20W USB-C POWER ADAPTER",15,14.69,19,"iPad Air 5th gen","Power and cables"]
["QC3532","MD810LL/A           ","APPLE 5W USB POWER ADAPTER FOR ALL IPHONE AND IPOD MODELS         ",15,14.69,19,null,"Power and cables"]
["1X0646","ME291AM/A           ","LIGHTNING TO USB CABLE 0.5M                               ",15,14.69,19,null,"Power and cables"]
["7DT887","MXLY2AM/A","LIGHTNING TO USB CABLE 1M",15,14.69,19,null,"Power and cables"]
["9YG959","MM0A3AM/A","USB-C TO LIGHTNING CABLE 1M",15,14.69,19,null,"Power and cables"]
["9HH742","MM093AM/A","USB-C CHARGE CABLE 1M",15,14.69,19,null,"Power and cables"]
["8NX091","MHJA3AM/A","20W USB-C POWER ADAPTER",15,14.69,19,"iPad 9th gen","Power and cables"]
["9YG959","MM0A3AM/A","USB-C TO LIGHTNING CABLE 1M",15,14.69,19,"Mac mini","Power and cables"]
["9YG959","MM0A3AM/A","USB-C TO LIGHTNING CABLE 1M",15,14.69,19,"Macbook Pro 13\"","Power and cables"]
["9YG959","MM0A3AM/A","USB-C TO LIGHTNING CABLE 1M",15,14.69,19,"Macbook Air 13\"","Power and cables"]
["9YG959","MM0A3AM/A","USB-C TO LIGHTNING CABLE 1M",15,14.69,19,"Macbook Pro 16\" Intel","Power and cables"]
["9YG959","MM0A3AM/A","USB-C TO LIGHTNING CABLE 1M",15,14.69,19,"Mac Pro","Power and cables"]
["8NX091","MHJA3AM/A","20W USB-C POWER ADAPTER",15,14.69,19,"iPad mini 6","Power and cables"]
["1X0646","ME291AM/A           ","LIGHTNING TO USB CABLE 0.5M                               ",15,14.69,19,"iPad 9th gen","Power and cables"]
["7DT887","MXLY2AM/A","LIGHTNING TO USB CABLE 1M",15,14.69,19,"iPad 9th gen","Power and cables"]
["8NX091","MHJA3AM/A","20W USB-C POWER ADAPTER",15,14.69,19,"iPad Pro 11\"","Power and cables"]
["8NX091","MHJA3AM/A","20W USB-C POWER ADAPTER",15,14.69,19,"iPad Pro 12.9\"","Power and cables"]
["8NX091","MHJA3AM/A","20W USB-C POWER ADAPTER",15,14.69,19,null,"Power and cables"]
["9YG959","MM0A3AM/A","USB-C TO LIGHTNING CABLE (1 M)",15,14.69,19,null,"Power and cables"]
["9YG959","MM0A3AM/A","LIGHTNING TO USB-C CABLE 1M ",15,14.69,19,"Macbook Pro 16\" M1","Power and cables"]
["9YG959","MM0A3AM/A","USB-C TO LIGHTNING CABLE 1M",15,14.69,19,"Macbook Pro 16\" M1","Power and cables"]
["9YG959","MM0A3AM/A","LIGHTNING TO USB-C CABLE 1M ",15,14.69,19,"Macbook Pro 14\" M1","Power and cables"]
["9YG959","MM0A3AM/A","USB-C TO LIGHTNING CABLE 1M",15,14.69,19,"Macbook Pro 14\" M1","Power and cables"]
["8NX091","MHJA3AM/A","20W USB-C POWER ADAPTER  ",15,14.69,19,"iPhone Power"]
["QC3532","MD810LL/A","APPLE 5W USB POWER ADAPTER FOR ALL IPHONE AND IPOD MODELS",15,14.69,19,"iPhone Power"]
["8LC309","MGN03AM/A","12W USB POWER ADAPTER  ",15,14.69,19,"iPhone Power"]
["RA7004","MA591G/C","30-PIN TO USB CABLE 1M FOR IPHONE, IPAD, IPOD",15,14.69,19,"iPhone cables and docks"]
["1X0646","ME291AM/A","LIGHTNING TO USB CABLE 0.5M",15,14.69,19,"iPhone cables and docks"]
["8LC309","MGN03AM/A","12W USB POWER ADAPTER  ",15,14.69,19,"Watch Power"]
["ZK7499","MD504LL/A           ","MAGSAFE TO MAGSAFE 2 CONVERTER                                    ",8.69,8.51,9.99,null,"Power and cables"]
["6E3290","MMX62AM/A","LIGHTNING TO 3.5 MM HEADPHONE JACK ADAPTER",7.11,6.96,9,null,"Power and cables"]
["5KY931","MU7E2AM/A","USB-C TO 3.5 MM HEADPHONE JACK ADAPTER",7.11,6.96,9,null,"Power and cables"]
["6E3290","MMX62AM/A","LIGHTNING TO 3.5 MM HEADPHONE JACK ADAPTER",7.11,6.96,9,"iPad 9th gen","Power and cables"]
["6E3290","MMX62AM/A","LIGHTNING TO 3.5 MM HEADPHONE JACK ADAPTER",7.11,6.96,9,"iPhone cables and docks"]
["07JN13","MQD83AM/A","AirPods Pro (2nd generation)",224,219.38,249,null,"Headphones"]
["07JP79","MPNY3AM/A","AirPods (3rd generation) with Lightning Charging Case",152,148.87,179,null,"Headphones"]
["06KH18","MP713AM/A","41mm (PRODUCT)RED Sport Band - M/L",39,38.200000000000003,49,null,"Apple watch band"]
["06KH19","MP703AM/A","41mm (PRODUCT)RED Sport Band - S/M",39,38.200000000000003,49,null,"Apple watch band"]
["06KH20","MPGQ3AM/A","41mm Black/Black Nike Sport Band - M/L",39,38.200000000000003,49,null,"Apple watch band"]
["06KH21","MPGP3AM/A","41mm Black/Black Nike Sport Band - S/M",39,38.200000000000003,49,null,"Apple watch band"]
["06KH22","MPHW3AM/A","41mm Black/Summit White Nike Sport Loop",39,38.200000000000003,49,null,"Apple watch band"]
["06KH23","MPLP3AM/A","41mm Midnight Sport Band - M/L",39,38.200000000000003,49,null,"Apple watch band"]
["06KH24","MPLN3AM/A","41mm Midnight Sport Band - S/M",39,38.200000000000003,49,null,"Apple watch band"]
["06KH25","MPLR3AM/A","41mm Starlight Sport Band - M/L",39,38.200000000000003,49,null,"Apple watch band"]
["06KH26","MPLQ3AM/A","41mm Starlight Sport Band - S/M",39,38.200000000000003,49,null,"Apple watch band"]
["06KH27","MPGM3AM/A","41mm Summit White/Black Nike Sport Band - M/L",39,38.200000000000003,49,null,"Apple watch band"]
["06KH28","MPGL3AM/A","41mm Summit White/Black Nike Sport Band - S/M",39,38.200000000000003,49,null,"Apple watch band"]
["06KH29","MPHV3AM/A","41mm Summit White/Black Nike Sport Loop",39,38.200000000000003,49,null,"Apple watch band"]
["06KH30","MP6X3AM/A","41mm White Sport Band - M/L",39,38.200000000000003,49,null,"Apple watch band"]
["06KH31","MP6W3AM/A","41mm White Sport Band - S/M",39,38.200000000000003,49,null,"Apple watch band"]
["06KH32","MP7L3AM/A","45mm (PRODUCT)RED Sport Band - M/L",39,38.200000000000003,49,null,"Apple watch band"]
["06KH33","MP7K3AM/A","45mm (PRODUCT)RED Sport Band - S/M",39,38.200000000000003,49,null,"Apple watch band"]
["06KH34","MPH63AM/A","45mm Black/Black Nike Sport Band - M/L",39,38.200000000000003,49,null,"Apple watch band"]
["06KH35","MPH53AM/A","45mm Black/Black Nike Sport Band - S/M",39,38.200000000000003,49,null,"Apple watch band"]
["06KH36","MPJ13AM/A","45mm Black/Summit White Nike Sport Loop",39,38.200000000000003,49,null,"Apple watch band"]
["06KH37","MQH53AM/A","45mm Midnight Sport Band - Extra Large",39,38.200000000000003,49,null,"Apple watch band"]
["06KH38","MPLU3AM/A","45mm Midnight Sport Band - M/L",39,38.200000000000003,49,null,"Apple watch band"]
["06KH39","MPLT3AM/A","45mm Midnight Sport Band - S/M",39,38.200000000000003,49,null,"Apple watch band"]
["06KH40","MPLW3AM/A","45mm Starlight Sport Band - M/L",39,38.200000000000003,49,null,"Apple watch band"]
["06KH41","MPLV3AM/A","45mm Starlight Sport Band - S/M",39,38.200000000000003,49,null,"Apple watch band"]
["06KH42","MPH33AM/A","45mm Summit White/Black Nike Sport Band - M/L",39,38.200000000000003,49,null,"Apple watch band"]
["06KH43","MPH23AM/A","45mm Summit White/Black Nike Sport Band - S/M",39,38.200000000000003,49,null,"Apple watch band"]
["06KH44","MPJ03AM/A","45mm Summit White/Black Nike Sport Loop",39,38.200000000000003,49,null,"Apple watch band"]
["06KH45","MP7H3AM/A","45mm White Sport Band - M/L",39,38.200000000000003,49,null,"Apple watch band"]
["07JP81","MP7G3AM/A","45mm White Sport Band - S/M",39,38.200000000000003,49,null,"Apple watch band"]
["06KH46","MQEQ3AM/A","49mm Black/Gray Trail Loop - M/L",79,77.37,99,null,"Apple watch band"]
["05GM59","MQEP3AM/A","49mm Black/Gray Trail Loop - S/M",79,77.37,99,null,"Apple watch band"]
["06KH48","MQEK3AM/A","49mm Blue/Gray Trail Loop - M/L",79,77.37,99,null,"Apple watch band"]
["06KH49","MQEJ3AM/A","49mm Blue/Gray Trail Loop - S/M",79,77.37,99,null,"Apple watch band"]
["06KH50","MQE43AM/A","49mm Green Alpine Loop - Large",79,77.37,99,null,"Apple watch band"]
["06KH51","MQE33AM/A","49mm Green Alpine Loop - Medium",79,77.37,99,null,"Apple watch band"]
["06KH52","MQE23AM/A","49mm Green Alpine Loop - Small",79,77.37,99,null,"Apple watch band"]
["06KH53","MQEE3AM/A","49mm Midnight Ocean Band",79,77.37,99,null,"Apple watch band"]
["06KH54","MQEF3AM/A","49mm Midnight Ocean Band Extension",39,38.200000000000003,49,null,"Apple watch band"]
["06KH55","MQE73AM/A","49mm Starlight Alpine Loop - Large",79,77.37,99,null,"Apple watch band"]
["06KH56","MQE63AM/A","49mm Starlight Alpine Loop - Medium",79,77.37,99,null,"Apple watch band"]
["06KH57","MQE53AM/A","49mm Starlight Alpine Loop - Small",79,77.37,99,null,"Apple watch band"]
["07YZ84","MPU43ZM/A","iPhone 14 Plus Clear Case with MagSafe",39,38.200000000000003,49,null,"iphone case"]
["07YZ77","MPP93ZM/A","iPhone 14 Plus Leather Case with MagSafe - Midnight",47,46.03,59,null,"iphone case"]
["07YZ85","MPU63ZM/A","iPhone 14 Pro Clear Case with MagSafe",39,38.200000000000003,49,null,"iphone case"]
["07YZ78","MPPG3ZM/A","iPhone 14 Pro Leather Case with MagSafe - Midnight",47,46.03,59,null,"iphone case"]
["07YZ86","MPU73ZM/A","iPhone 14 Pro Max Clear Case with MagSafe",39,38.200000000000003,49,null,"iphone case"]
["07YZ79","MPPM3ZM/A","iPhone 14 Pro Max Leather Case with MagSafe - Midnight",47,46.03,59,null,"iphone case"]
["07YZ82","MPTP3ZM/A","iPhone 14 Pro Max Silicone Case with MagSafe - Midnight",39,38.200000000000003,49,null,"iphone case"]
["07YZ81","MPTE3ZM/A","iPhone 14 Pro Silicone Case with MagSafe - Midnight",39,38.200000000000003,49,null,"iphone case"]
["07YZ80","MPRU3ZM/A","iPhone 14 Silicone Case with MagSafe - Midnight",39,38.200000000000003,49,null,"iphone case"]